Workbook

Sheet Menú
A1: INVERSIÓN EXTRANJERA DIRECTA EN MÉXICO (IED EN MÉXICO)
B43: DataMéxico: | C43: https://www.economia.gob.mx/datamexico/
B44: Gob.mx: | C44: https://www.gob.mx/se/acciones-y-programas/competitividad-y-normatividad-inversion-extranjera-directa
B45: Datos Abiertos: | C45: https://www.gob.mx/se/acciones-y-programas/competitividad-y-normatividad-inversion-extranjera-directa?state=published
B47: Datos recientes sobre IED en México
B48: IED en México en enero-junio de 2024 (Secretaría de Economía)
B49: Expectativas de IED para 2024 (Banco de México)
B51: Variaciones de la IED en México en enero-junio de 2024 con respecto al mismo periodo de 2023
B52: IED en México por trimestre
B53: IED en México por año
B54: IED en México por tipo de inversión
B55: IED en México por país de origen
B56: IED en México por sector económico
B57: IED en México por entidad federativa
B59: Países y Estados, principales países de origen y entidades federativas de destino de la IED en México
B60: Principales países de origen de los flujos de IED en México
B61: Principales entidades federativas receptoras de los flujos de IED en México
B63: Series históricas de IED en México
B64: IED por tipo de inversión (1980-2T 2024), de acuerdo a los datos publicados por la Secretaría de Economía
B65: IED por tipo de inversión (1980-2T 2024), de acuerdo a los datos publicados por el Banco de México
B66: IED por país de origen (1980-2T 2024), de acuerdo a los datos publicados por la Secretaría de Economía
B67: IED por sector económico (1980-2T 2024), de acuerdo a los datos publicados por la Secretaría de Economía
B68: IED por entidad federativa (1980-2T 2024), de acuerdo a los datos publicados por la Secretaría de Economía
B70: Inward o IED recibida a nivel internacional
B71: Principales países receptores de IED
B72: Participación de la IED recibida por México respecto al total mundial
B73: Participación de la IED recibida por México respecto a los países en desarrollo y Latinoamérica
B74: Acervos de IED
B76: Outward o IED emitida a nivel internacional
B77: Principales países emisores de flujos de IED
B79: IED en la Balanza de Pagos y la congruencia entre las cifras publicadas por Banco de México y la Secretaría de Economía
B81: Estadísticas complementarias, referencias internacionales para posicionar a México en el mundo
B82: IED como porcentaje del PIB en países seleccionados
B83: IED como porcentaje de la Formación Bruta de Capital Fijo (FBKF) en países seleccionados
B84: Flujos de IED per cápita
B86: Acrónimos
B87: Siglas utilizadas en el documento

Sheet Datos recientes
A1: DATOS RECIENTES SOBRE IED EN MÉXICO
A5: CONTENIDO
A6: * IED en México enero-junio 2024 (Secretaría de Economía)
A7: * Expectativas de IED en México para 2024 (Banco de México)

Sheet Variaciones (2) (hidden)
A7: CONTENIDO
A8: * Nota Metodológica
A9: * IED en México en enero-marzo por trimestre
A10: * IED en México en enero-marzo por año
A11: * IED en México en enero-marzo por tipo de inversión
A12: * IED en México en enero-marzo por país de origen
A13: * IED en México en enero-marzo por sector económico
A14: * IED en México en enero-marzo por entidad federativa
A34: https://www.gob.mx/se/acciones-y-programas/competitividad-y-normatividad-inversion-extranjera-directa?state=published
A36: IED en México en enero-marzo por trimestre (millones de dólares)
B38: Tipo de inversión | C38: Originalmente publicado* | F38: Actualizado
C39: 2023 A | D39: 2024 B | E39: Variación [(B-A)/A]100 | F39: 2023 C | G39: 2024 B | H39: Variación [(B-C)/C]100
B40: Primer trimestre | C40: 18635.69179 | D40: 20312.65875 | E40: =((D40-C40)/C40)*100 -> 8.998683704 | F40: 36280.96335 | G40: 20312.65875 | H40: =((G40-F40)/F40)*100 -> -44.01290132
B41: Enero-marzo | C41: 18635.69179 | D41: 20312.65875 | E41: =((D41-C41)/C41)*100 -> 8.998683704 | F41: 36280.96335 | G41: 20312.65875 | H41: =((G41-F41)/F41)*100 -> -44.01290132
B42: *El dato para enero-marzo incluye los datos originalmente publicados para cada trimestre más las actualizaciones que se recibieron para el primero y segundo trimestres; por ello, el dato enero-marzo no es la suma de los datos originalmente publicados en cada trimestre. Para consultar las cifras originalmente publicadas desde 2009, se pueden revisar los informes al H. Congreso de Unión publicados en la página: gob.mx:
B43: https://www.gob.mx/se/acciones-y-programas/competitividad-y-normatividad-inversion-extranjera-directa
B44: Fuente: Secretaría de Economía
A46: IED en México en enero-marzo por año (millones de dólares)
B48: Año | C48: Originalmente publicado | F48: Actualizado
C49: Monto | D49: Variación Anual | F49: Monto | G49: Variación anual
B50: 1999 | C50: 6967.520185 | F50: 6967.526434
B51: 2000 | C51: 2078 | D51: =IF(AND(C51=0,C50=0),0,IF(AND(C51=0,C50<0),-100,IF(AND(C51=0,C50>0),100,IF(AND(C51<0,C50=0),100,IF(AND(C51<0,C50<0),-((C50-C51)/C51)*100,IF(AND(C51<0,C50>0),-((C50-C51)/C51)*100,IF(C51>0,((C50-C51)/C51)*100,"error"))))))) -> 235.2993352 | E51: =IF(AND(C51=0,D51=0),0,IF(AND(C51=0,D51<0),-100,IF(AND(C51=0,D51>0),100,IF(AND(C51<0,D51=0),100,IF(AND(C51<0,D51<0),-((D51-C51)/C51)*100,IF(AND(C51<0,D51>0),-((D51-C51)/C51)*100,IF(C51>0,((D51-C51)/C51)*100,"error"))))))) -> -88.67664412 | F51: 4600.635836 | G51: =IF(AND(F51=0,F50=0),0,IF(AND(F51=0,F50<0),-100,IF(AND(F51=0,F50>0),100,IF(AND(F51<0,F50=0),100,IF(AND(F51<0,F50<0),-((F50-F51)/F51)*100,IF(AND(F51<0,F50>0),-((F50-F51)/F51)*100,IF(F51>0,((F50-F51)/F51)*100,"error"))))))) -> 51.44703216 | H51: =IF(AND(F51=0,G51=0),0,IF(AND(F51=0,G51<0),-100,IF(AND(F51=0,G51>0),100,IF(AND(F51<0,G51=0),100,IF(AND(F51<0,G51<0),-((G51-F51)/F51)*100,IF(AND(F51<0,G51>0),-((G51-F51)/F51)*100,IF(F51>0,((G51-F51)/F51)*100,"error"))))))) -> -98.88174083
B52: 2001 | C52: 1823.8 | D52: 13.93793179 | E52: -99.23577521 | F52: 3598.677 | G52: =IF(AND(F52=0,F51=0),0,IF(AND(F52=0,F51<0),-100,IF(AND(F52=0,F51>0),100,IF(AND(F52<0,F51=0),100,IF(AND(F52<0,F51<0),-((F51-F52)/F52)*100,IF(AND(F52<0,F51>0),-((F51-F52)/F52)*100,IF(F52>0,((F51-F52)/F52)*100,"error"))))))) -> 27.84242196 | H52: =IF(AND(F52=0,G52=0),0,IF(AND(F52=0,G52<0),-100,IF(AND(F52=0,G52>0),100,IF(AND(F52<0,G52=0),100,IF(AND(F52<0,G52<0),-((G52-F52)/F52)*100,IF(AND(F52<0,G52>0),-((G52-F52)/F52)*100,IF(F52>0,((G52-F52)/F52)*100,"error"))))))) -> -99.22631506
B53: 2002 | C53: 1675.1 | D53: 8.877081965 | E53: -99.4700566 | F53: 5067.984279 | G53: -28.99194627 | H53: -100.5720607
B54: 2003 | C54: 1908.3 | D54: -12.22030079 | E54: -100.6403763 | F54: 3963.685365 | G54: 27.86040801 | H54: -99.29710849
B55: 2004 | C55: 7424.8 | D55: -74.2982976 | E55: -101.0006774 | F55: 9363.457932 | G55: -57.66857294 | H55: -100.6158897
B56: 2005 | C56: 3252.6 | D56: 128.2727664 | E56: -96.05630061 | F56: 6761.620884 | G56: 38.47948729 | H56: -99.43091327
B57: 2006 | C57: 1446 | D57: 124.9377593 | E57: -91.35976768 | F57: 7437.100645 | G57: -9.08256851 | H57: -100.1221251
B58: 2007 | C58: 4853.6 | D58: -70.2076809 | E58: -101.4465074 | F58: 10815.78141 | G58: -31.23843426 | H58: -100.2888227
B59: 2008 | C59: 3412.8 | D59: 42.21753399 | E59: -98.7629649 | F59: 8546.668217 | G59: 26.54968154 | H59: -99.68935636
B60: 2009 | C60: 2663.2 | D60: 28.14659057 | E60: -98.94312892 | F60: 6105.295414 | G60: 39.98779155 | H60: -99.34503101
B61: 2010 | C61: 4333.3 | D61: -38.5410657 | E61: -100.8894161 | F61: 8722.791699 | G61: -30.00755235 | H61: -100.3440132
B62: 2011 | C62: 4787.7 | D62: -9.490987322 | E62: -100.1982369 | F62: 8431.214576 | G62: 3.458305094 | H62: -99.95898212
B63: 2012 | C63: 4372.4 | D63: 9.498216083 | E63: -99.78276882 | F63: 7892.685983 | G63: 6.823134652 | H63: -99.91355117
B64: 2013 | C64: 4987.6 | D64: -12.33458978 | E64: -100.2473051 | F64: 10571.57965 | G64: -25.34052388 | H64: -100.2397042
B65: 2014 | C65: 5820.8 | D65: -14.31418362 | E65: -100.2459144 | F65: 13827.99701 | G65: -23.54945087 | H65: -100.1703027
B66: 2015 | C66: 7573.2 | D66: -23.13949189 | E66: -100.3055444 | F66: 12136.33084 | G66: 13.93886 | H66: -99.88514766
B67: 2016 | C67: 7896.4 | D67: -4.093004407 | E67: -100.0518338 | F67: 12805.77856 | G67: -5.227700239 | H67: -100.040823
B68: 2017 | C68: 7945.6 | D68: -0.6192106323 | E68: -100.0077931 | F68: 13779.669 | G68: -7.067589506 | H68: -100.05129
B69: 2018 | C69: 9502.4 | D69: -16.3832295 | E69: -100.1724115 | F69: 14067.52329 | G69: -2.046232906 | H69: -100.0145458
B70: 2019 | C70: 10162 | D70: -6.490848258 | E70: -100.0638737 | F70: 15211.62459 | G70: -7.521230178 | H70: -100.049444
B71: 2020 | C71: 10334.03857 | D71: -1.664775785 | E71: -100.0161096 | F71: 16809.77562 | G71: -9.507271627 | H71: -100.056558
B72: 2021 | C72: 11864.03046 | D72: -12.89605498 | E72: -100.1086988 | F72: 16462.30049 | G72: 2.110732511 | H72: -99.98717839
B73: 2022 | C73: 19427.5 | D73: -38.93176959 | E73: -100.2003952 | F73: 22781.78931 | G73: =IF(AND(F73=0,F72=0),0,IF(AND(F73=0,F72<0),-100,IF(AND(F73=0,F72>0),100,IF(AND(F73<0,F72=0),100,IF(AND(F73<0,F72<0),-((F72-F73)/F73)*100,IF(AND(F73<0,F72>0),-((F72-F73)/F73)*100,IF(F73>0,((F72-F73)/F73)*100,"error"))))))) -> -27.73921194 | H73: =IF(AND(F73=0,G73=0),0,IF(AND(F73=0,G73<0),-100,IF(AND(F73=0,G73>0),100,IF(AND(F73<0,G73=0),100,IF(AND(F73<0,G73<0),-((G73-F73)/F73)*100,IF(AND(F73<0,G73>0),-((G73-F73)/F73)*100,IF(F73>0,((G73-F73)/F73)*100,"error"))))))) -> -100.1217605
B74: 2023 | C74: 18635.69179 | D74: =IF(AND(C74=0,C73=0),0,IF(AND(C74=0,C73<0),-100,IF(AND(C74=0,C73>0),100,IF(AND(C74<0,C73=0),100,IF(AND(C74<0,C73<0),-((C73-C74)/C74)*100,IF(AND(C74<0,C73>0),-((C73-C74)/C74)*100,IF(C74>0,((C73-C74)/C74)*100,"error"))))))) -> 4.248880151 | E74: =IF(AND(C74=0,D74=0),0,IF(AND(C74=0,D74<0),-100,IF(AND(C74=0,D74>0),100,IF(AND(C74<0,D74=0),100,IF(AND(C74<0,D74<0),-((D74-C74)/C74)*100,IF(AND(C74<0,D74>0),-((D74-C74)/C74)*100,IF(C74>0,((D74-C74)/C74)*100,"error"))))))) -> -99.97720031 | F74: 23498.60086 | G74: =IF(AND(F74=0,F73=0),0,IF(AND(F74=0,F73<0),-100,IF(AND(F74=0,F73>0),100,IF(AND(F74<0,F73=0),100,IF(AND(F74<0,F73<0),-((F73-F74)/F74)*100,IF(AND(F74<0,F73>0),-((F73-F74)/F74)*100,IF(F74>0,((F73-F74)/F74)*100,"error"))))))) -> -3.050443508 | H74: =IF(AND(F74=0,G74=0),0,IF(AND(F74=0,G74<0),-100,IF(AND(F74=0,G74>0),100,IF(AND(F74<0,G74=0),100,IF(AND(F74<0,G74<0),-((G74-F74)/F74)*100,IF(AND(F74<0,G74>0),-((G74-F74)/F74)*100,IF(F74>0,((G74-F74)/F74)*100,"error"))))))) -> -100.0129814
B75: 2024 | C75: 20312.65875 | D75: =IF(AND(C75=0,C73=0),0,IF(AND(C75=0,C73<0),-100,IF(AND(C75=0,C73>0),100,IF(AND(C75<0,C73=0),100,IF(AND(C75<0,C73<0),-((C73-C75)/C75)*100,IF(AND(C75<0,C73>0),-((C73-C75)/C75)*100,IF(C75>0,((C73-C75)/C75)*100,"error"))))))) -> -4.357670562 | E75: -100.021453 | F75: 20312.65875 | G75: =IF(AND(F75=0,F73=0),0,IF(AND(F75=0,F73<0),-100,IF(AND(F75=0,F73>0),100,IF(AND(F75<0,F73=0),100,IF(AND(F75<0,F73<0),-((F73-F75)/F75)*100,IF(AND(F75<0,F73>0),-((F73-F75)/F75)*100,IF(F75>0,((F73-F75)/F75)*100,"error"))))))) -> 12.15562469 | H75: =IF(AND(F75=0,G75=0),0,IF(AND(F75=0,G75<0),-100,IF(AND(F75=0,G75>0),100,IF(AND(F75<0,G75=0),100,IF(AND(F75<0,G75<0),-((G75-F75)/F75)*100,IF(AND(F75<0,G75>0),-((G75-F75)/F75)*100,IF(F75>0,((G75-F75)/F75)*100,"error"))))))) -> -99.94015739
A78: IED en México en enero-marzo por tipo de inversión (millones de dólares)
B80: Tipo de inversión | C80: Originalmente publicado | F80: Actualizado
C81: 2023 A | D81: 2024 B | E81: Variación [(B-A)/A]100 | F81: 2023 C | G81: 2024 B | H81: Variación [(B-C)/C]100
B82: Total | C82: =SUM(C83:C85) -> 18635.69179 | D82: =SUM(D83:D85) -> 20312.65875 | E82: =((D82-C82)/C82)*100 -> 8.998683704 | F82: =SUM(F83:F85) -> 36280.96335 | G82: =SUM(G83:G85) -> 20312.65875 | H82: =((G82-F82)/F82)*100 -> -44.01290132
B83: Nuevas inversiones | C83: 931.6891733 | D83: 599.3244457 | E83: =((D83-C83)/C83)*100 -> -35.6733487 | F83: 5031.720409 | G83: 599.3244457 | H83: =((G83-F83)/F83)*100 -> -88.08907497
B84: Reinversiones | C84: 16704.70857 | D84: 19614.77619 | E84: =((D84-C84)/C84)*100 -> 17.42064283 | F84: 26639.24931 | G84: 19614.77619 | H84: =((G84-F84)/F84)*100 -> -26.3688854
B85: Cuentas | C85: 999.2940461 | D85: 98.55811836 | E85: =((D85-C85)/C85)*100 -> -90.1372255 | F85: 4609.993629 | G85: 98.55811836 | H85: =((G85-F85)/F85)*100 -> -97.86207691
B86: Fuente: Secretaría de Economía
A88: IED en México en enero-marzo por país de origen (millones de dólares)
B90: País de Origen | C90: Originalmente publicado | F90: Actualizado
C91: 2023 A | D91: 2024 B | E91: Variación [(B-A)/A]100 | F91: 2023 C | G91: 2024 B | H91: Variación [(B-C)/C]100
B92: Total | C92: =SUM(C93:C103) -> 18635.69179 | D92: =SUM(D93:D103) -> 20312.65875 | E92: =IF(AND(C92=0,D92=0),0,IF(AND(C92=0,D92<0),-100,IF(AND(C92=0,D92>0),100,IF(AND(C92<0,D92=0),100,IF(AND(C92<0,D92<0),-((D92-C92)/C92)*100,IF(AND(C92<0,D92>0),-((D92-C92)/C92)*100,IF(C92>0,((D92-C92)/C92)*100,"error"))))))) -> 8.998683704 | F92: =SUM(F93:F103) -> 36280.96335 | G92: =SUM(G93:G103) -> 20312.65875 | H92: =IF(AND(F92=0,G92=0),0,IF(AND(F92=0,G92<0),-100,IF(AND(F92=0,G92>0),100,IF(AND(F92<0,G92=0),100,IF(AND(F92<0,G92<0),-((G92-F92)/F92)*100,IF(AND(F92<0,G92>0),-((G92-F92)/F92)*100,IF(F92>0,((G92-F92)/F92)*100,"error"))))))) -> -44.01290132
B93: Estados Unidos | C93: 6405.247533 | D93: 10615.23239 | E93: 65.72712193 | F93: 13757.28159 | G93: 10615.23239 | H93: -22.83917199
B94: Alemania | C94: 1258.939968 | D94: 1740.134625 | E94: 38.22220832 | F94: 2444.528054 | G94: 1740.134625 | H94: -28.81510923
B95: Canadá | C95: 831.2661903 | D95: 1705.095958 | E95: 105.1203306 | F95: 3490.491919 | G95: 1705.095958 | H95: -51.15026771
B96: Japón | C96: 337.4694861 | D96: 1429.976377 | E96: 323.7350148 | F96: 2915.288601 | G96: 1429.976377 | H96: -50.94906293
B97: Argentina | C97: 1739.583594 | D97: 840.4716865 | E97: -51.68546718 | F97: 2251.047759 | G97: 840.4716865 | H97: -62.66308953
B98: Suiza | C98: 463.2724586 | D98: 763.5803838 | E98: 64.82317687 | F98: 366.0896044 | G98: 763.5803838 | H98: 108.5774561
B99: Corea, República de | C99: 108.3465353 | D99: 640.6366586 | E99: 491.2848592 | F99: 504.3805128 | G99: 640.6366586 | H99: 27.01455395
B100: Países Bajos | C100: 1602.26833 | D100: 529.8837596 | E100: -66.92914977 | F100: 878.414957 | G100: 529.8837596 | H100: -39.67728402
B101: España | C101: 3779.918205 | D101: 350.6567939 | E101: -90.7231645 | F101: 3776.787696 | G101: 350.6567939 | H101: -90.71547511
B102: Brasil | C102: 257.0706219 | D102: 164.3606667 | E102: -36.06400237 | F102: 491.6533027 | G102: 164.3606667 | H102: -66.56980319
B103: Resto | C103: 1852.308868 | D103: 1532.629453 | E103: -17.25842924 | F103: 5404.999347 | G103: 1532.629453 | H103: -71.64422501
B104: Fuente: Secretaría de Economía
A106: IED en México en enero-marzo por sector económico (millones de dólares)
B108: Sector Económico | C108: Originalmente publicado | F108: Actualizado
C109: 2023 A | D109: 2024 B | E109: Variación [(B-A)/A]100 | F109: 2023 C | G109: 2024 B | H109: Variación [(B-C)/C]100
B110: Total | C110: =C111+C112+C117 -> 18667.56834 | D110: =D111+D112+D117 -> 20312.65875 | E110: =IF(AND(C110=0,D110=0),0,IF(AND(C110=0,D110<0),-100,IF(AND(C110=0,D110>0),100,IF(AND(C110<0,D110=0),100,IF(AND(C110<0,D110<0),-((D110-C110)/C110)*100,IF(AND(C110<0,D110>0),-((D110-C110)/C110)*100,IF(C110>0,((D110-C110)/C110)*100,"error"))))))) -> 8.812558674 | F110: =F111+F112+F117 -> 36280.96335 | G110: =G111+G112+G117 -> 20312.65875 | H110: =IF(AND(F110=0,G110=0),0,IF(AND(F110=0,G110<0),-100,IF(AND(F110=0,G110>0),100,IF(AND(F110<0,G110=0),100,IF(AND(F110<0,G110<0),-((G110-F110)/F110)*100,IF(AND(F110<0,G110>0),-((G110-F110)/F110)*100,IF(F110>0,((G110-F110)/F110)*100,"error"))))))) -> -44.01290132
B111: Agropecuario | C111: 41.75814092 | D111: 265.060163 | E111: 534.7508706 | F111: 335.4790627 | G111: 265.060163 | H111: -20.99054978
B112: Industrial | C112: =C113+C114+C115+C116 -> 10843.33766 | D112: =D113+D114+D115+D116 -> 11133.55748 | E112: 2.676480581 | F112: =F113+F114+F115+F116 -> 21773.67922 | G112: =G113+G114+G115+G116 -> 11133.55748 | H112: -48.86689855
B113: Minería | C113: 418.5068197 | D113: 2373.423117 | E113: 467.1169512 | F113: 3491.039139 | G113: 2373.423117 | H113: -32.01384968
B114: Electricidad y agua | C114: 50.72796448 | D114: 88.73835073 | E114: 74.92984715 | F114: -93.0140955 | G114: 88.73835073 | H114: 195.4031217
B115: Construcción | C115: 447.8512151 | D115: 169.8646331 | E115: -62.07119074 | F115: 257.7547036 | G115: 169.8646331 | H115: -34.09833815
B116: Manufacturas | C116: 9926.251658 | D116: 8501.531384 | E116: -14.35305414 | F116: 18117.89947 | G116: 8501.531384 | H116: -53.07661687
B117: Servicios | C117: =SUM(C118:C131) -> 7782.472539 | D117: =SUM(D118:D131) -> 8914.041103 | E117: 14.53996218 | F117: =SUM(F118:F131) -> 14171.80506 | G117: =SUM(G118:G131) -> 8914.041103 | H117: -37.10017134
B118: Comercio al por mayor | C118: 335.5159987 | D118: 1042.976742 | E118: 210.8575288 | F118: 915.9676195 | G118: 1042.976742 | H118: 13.86611491
B119: Comercio al por menor | C119: 386.4969258 | D119: 597.6435522 | E119: 54.63086828 | F119: 439.128672 | G119: 597.6435522 | H119: 36.09759287
B120: Transportes | C120: 650.5664021 | D120: 1278.286709 | E120: 96.48827624 | F120: 2283.460221 | G120: 1278.286709 | H120: -44.01975136
B121: Información en medios masivos | C121: -121.7903914 | D121: 290.2236189 | E121: 338.2976322 | F121: -221.3257669 | G121: 290.2236189 | H121: 231.1296117
B122: Serv. financieros | C122: 6044.357342 | D122: 5153.151219 | E122: -14.74443142 | F122: 7170.223064 | G122: 5153.151219 | H122: -28.13122866
B123: Serv. inmobiliarios y de alquiler | C123: 27.81211571 | D123: 87.3475159 | E123: 214.0628236 | F123: 360.1114441 | G123: 87.3475159 | H123: -75.7443099
B124: Serv. profesionales | C124: 153.4368632 | D124: 73.91948724 | E124: -51.82416682 | F124: 526.5895176 | G124: 73.91948724 | H124: -85.96259804
B125: Corporativos | C125: -24.34086703 | D125: 1.75033928 | E125: 107.1909488 | F125: -13.70788952 | G125: 1.75033928 | H125: 112.7688458
B126: Serv. de apoyo a los negocios | C126: 57.38600382 | D126: 32.14942617 | E126: -43.97688629 | F126: -1.971664938 | G126: 32.14942617 | H126: 1730.572495
B127: Serv. educativos | C127: 15.74251466 | D127: 6.060464 | E127: -61.50256722 | F127: 15.99885664 | G127: 6.060464 | H127: -62.11939305
B128: Serv. de salud | C128: 0.3559213794 | D128: 0.002941965115 | E128: -99.17342276 | F128: 0.5791212498 | G128: 0.002941965115 | H128: -99.49199496
B129: Serv. de esparcimiento | C129: 7.410448259 | D129: 20.71334449 | E129: 179.5154053 | F129: 21.01059618 | G129: 20.71334449 | H129: -1.414770389
B130: Serv. de alojamiento temporal | C130: 246.829729 | D130: 329.0748932 | E130: 33.32060707 | F130: 2650.231842 | G130: 329.0748932 | H130: -87.58316582
B131: Otros servicios | C131: 2.693532896 | D131: 0.74084939 | E131: -72.49525368 | F131: 25.5094305 | G131: 0.74084939 | H131: -97.09578232
B132: Fuente: Secretaría de Economía
A134: IED en México en enero-marzo por entidad federativa (millones de dólares)
B136: Entidad Federativa | C136: Originalmente publicado | F136: Actualizado
C137: 2023 A | D137: 2024 B | E137: Variación [(B-A)/A]100 | F137: 2023 C | G137: 2024 B | H137: Variación [(B-C)/C]100
B138: Aguascalientes | C138: 174.4536026 | D138: -89.58034744 | E138: =IF(AND(C138=0,D138=0),0,IF(AND(C138=0,D138<0),-100,IF(AND(C138=0,D138>0),100,IF(AND(C138<0,D138=0),100,IF(AND(C138<0,D138<0),-((D138-C138)/C138)*100,IF(AND(C138<0,D138>0),-((D138-C138)/C138)*100,IF(C138>0,((D138-C138)/C138)*100,"error"))))))) -> -151.3490957 | F138: 1379.158643 | G138: -89.58034744 | H138: =((G138-F138)/F138)*100 -> -106.4952896
B139: Baja California | C139: 785.0663057 | D139: 1082.632868 | E139: 37.90336684 | F139: 1475.593716 | G139: 1082.632868 | H139: -26.63069409
B140: Baja California Sur | C140: 108.6477901 | D140: 174.3235055 | E140: 60.44827543 | F140: 1141.11867 | G140: 174.3235055 | H140: -84.72345515
B141: Campeche | C141: 16.00138543 | D141: 12.59820999 | E141: -21.26800488 | F141: 74.52219042 | G141: 12.59820999 | H141: -83.0946864
B142: Chiapas | C142: 59.30803481 | D142: 9.418437331 | E142: -84.11945808 | F142: 39.83869197 | G142: 9.418437331 | H142: -76.35856785
B143: Chihuahua | C143: 562.4089805 | D143: 683.0573548 | E143: 21.45207108 | F143: 1980.082366 | G143: 683.0573548 | H143: -65.50358882
B144: Ciudad de México | C144: 7039.127472 | D144: 12042.99368 | E144: 71.08645535 | F144: 11199.64092 | G144: 12042.99368 | H144: 7.530176793
B145: Coahuila | C145: 321.7860505 | D145: 6.2494393 | E145: -98.05788993 | F145: 921.443746 | G145: 6.2494393 | H145: -99.32177745
B146: Colima | C146: 12.83529225 | D146: 65.19356865 | E146: 407.9243025 | F146: 57.37672597 | G146: 65.19356865 | H146: 13.62371683
B147: Durango | C147: 54.22072015 | D147: 106.7115066 | E147: 96.80946019 | F147: 377.8293061 | G147: 106.7115066 | H147: -71.75668882
B148: Estado de México | C148: 891.7105078 | D148: 674.8054806 | E148: -24.32460146 | F148: 1931.338081 | G148: 674.8054806 | H148: -65.06020943
B149: Guanajuato | C149: 491.8499435 | D149: 596.7792253 | E149: 21.33359641 | F149: 808.212136 | G149: 596.7792253 | H149: -26.16057112
B150: Guerrero | C150: 49.41206115 | D150: 12.23876595 | E150: -75.2312175 | F150: -178.7894696 | G150: 12.23876595 | H150: -106.8453506
B151: Hidalgo | C151: 156.6169624 | D151: 136.2877936 | E151: -12.9801833 | F151: 285.4347256 | G151: 136.2877936 | H151: -52.25255324
B152: Jalisco | C152: 1179.027304 | D152: 593.3560341 | E152: -49.67410575 | F152: 2049.867891 | G152: 593.3560341 | H152: -71.05393783
B153: Michoacán | C153: 195.4150258 | D153: 167.544687 | E153: -14.26212681 | F153: 198.3854857 | G153: 167.544687 | H153: -15.54589467
B154: Morelos | C154: 144.0491134 | D154: -42.1972485 | E154: -129.2936537 | F154: 195.5141342 | G154: -42.1972485 | H154: -121.5827099
B155: Nayarit | C155: 49.35663045 | D155: 11.36730734 | E155: -76.96903691 | F155: 319.1025425 | G155: 11.36730734 | H155: -96.43772586
B156: Nuevo León | C156: 2332.19098 | D156: 1350.721627 | E156: -42.08357556 | F156: 2553.08541 | G156: 1350.721627 | H156: -47.09453819
B157: Oaxaca | C157: 44.08747725 | D157: 6.781134595 | E157: -84.61890991 | F157: 53.21100473 | G157: 6.781134595 | H157: -87.25614254
B158: Puebla | C158: 920.0986417 | D158: 362.4627083 | E158: -60.60610332 | F158: 278.5841378 | G158: 362.4627083 | H158: 30.10888242
B159: Querétaro | C159: 379.5096977 | D159: 489.3142179 | E159: 28.93325805 | F159: 1107.352056 | G159: 489.3142179 | H159: -55.81222654
B160: Quintana Roo | C160: 129.2152407 | D160: 82.90759301 | E160: -35.83760509 | F160: 1021.593913 | G160: 82.90759301 | H160: -91.8844864
B161: San Luis Potosí | C161: 374.9025809 | D161: 663.5655104 | E161: 76.99678375 | F161: 1115.658461 | G161: 663.5655104 | H161: -40.52252247
B162: Sinaloa | C162: 107.8951311 | D162: 141.7585613 | E162: 31.38550351 | F162: 416.373746 | G162: 141.7585613 | H162: -65.95401063
B163: Sonora | C163: 386.9266668 | D163: 63.86277212 | E163: -83.49486412 | F163: 2711.77665 | G163: 63.86277212 | H163: -97.64498407
B164: Tabasco | C164: 66.26170423 | D164: 48.07141389 | E164: -27.45219211 | F164: 317.8794408 | G164: 48.07141389 | H164: -84.87746997
B165: Tamaulipas | C165: 226.6019153 | D165: 104.1051078 | E165: -54.05815185 | F165: 493.7515882 | G165: 104.1051078 | H165: -78.91548902
B166: Tlaxcala | C166: 176.0586427 | D166: 33.33748029 | E166: -81.06455907 | F166: 311.3567795 | G166: 33.33748029 | H166: -89.29283623
B167: Veracruz | C167: 830.7358969 | D167: 684.8841549 | E167: -17.55693266 | F167: 803.3835847 | G167: 684.8841549 | H167: -14.7500437
B168: Yucatán | C168: 110.8121586 | D168: 48.55354116 | E168: -56.18392263 | F168: 199.3502624 | G168: 48.55354116 | H168: -75.64410472
B169: Zacatecas | C169: 259.1018743 | D169: -11.44733844 | E169: =IF(AND(C169=0,D169=0),0,IF(AND(C169=0,D169<0),-100,IF(AND(C169=0,D169>0),100,IF(AND(C169<0,D169=0),100,IF(AND(C169<0,D169<0),-((D169-C169)/C169)*100,IF(AND(C169<0,D169>0),-((D169-C169)/C169)*100,IF(C169>0,((D169-C169)/C169)*100,"error"))))))) -> -104.418084 | F169: 641.9358122 | G169: -11.44733844 | H169: =((G169-F169)/F169)*100 -> -101.7832528
B170: Total | C170: =SUM(C138:C169) -> 18635.69179 | D170: =SUM(D138:D169) -> 20312.65875 | E170: 8.998683704 | F170: =SUM(F138:F169) -> 36280.96335 | G170: =SUM(G138:G169) -> 20312.65875 | H170: -44.01290132
B171: Fuente: Secretaría de Economía

Sheet Variaciones
A1: VARIACIONES DE LA IED EN MÉXICO ENERO - JUNIO DE 2024 RESPECTO ENERO - JUNIO 2023
A6: CONTENIDO
A7: * Nota Metodológica
A8: * IED en México en enero - junio por trimestre
A9: * IED en México en enero - junio por año
A10: * IED en México en enero - junio por tipo de inversión
A11: * IED en México en enero - junio por país de origen
A12: * IED en México en enero - junio por sector económico
A13: * IED en México en enero - junio por entidad federativa
A33: https://www.gob.mx/se/acciones-y-programas/competitividad-y-normatividad-inversion-extranjera-directa?state=published
A35: IED en México en enero-junio por trimestre (millones de dólares)
B37: Tipo de inversión | C37: Originalmente publicado* | F37: Actualizado
C38: 2023 A | D38: 2024 B | E38: Variación [(B/A)-1]*100 | F38: 2023 C | G38: 2024 B | H38: Variación [(B/A)-1]*100
B39: Enero-marzo | C39: 23366.29244 | D39: 26015.40516 | E39: =((D39/C39)-1)*100 -> 11.33732589 | F39: 23502.18393 | G39: 26015.40516 | H39: =((G39/F39)-1)*100 -> 10.69356462
B40: Abril-junio | C40: 5674.531439 | D40: 5080.919952 | E40: =((D40/C40)-1)*100 -> -10.46097803 | F40: 8619.602245 | G40: 5080.919952 | H40: =((G40/F40)-1)*100 -> -41.05389312
B41: Para consultar las cifras originalmente publicadas desde 2018, se pueden revisar los informes al H. Congreso de Unión publicados en la página gob.mx:
B42: https://www.gob.mx/se/acciones-y-programas/competitividad-y-normatividad-inversion-extranjera-directa
B43: Fuente: Secretaría de Economía
A45: IED en México en enero-junio por año (millones de dólares)
B47: Año | C47: Originalmente publicado* | F47: Actualizado
C48: Monto | D48: Variación Anual | F48: Monto | G48: Variación anual
B49: 2000** | C49: 7134.9 | D49: 70.304 | E49: -88.67664412 | F49: 9458.059316 | G49: 35.27 | H49: -98.88174083
B50: 2001** | C50: 3758.9 | D50: =((C50/C49)-1)*100 -> -47.31671082 | E50: -99.23577521 | F50: 8817.507266 | G50: =((F50/F49)-1)*100 -> -6.772552678 | H50: -99.23577521
B51: 2002** | C51: 4659 | D51: =((C51/C50)-1)*100 -> 23.94583522 | E51: -98.23577521 | F51: 11326.50397 | G51: =((F51/F50)-1)*100 -> 28.45471657 | H51: -98.23577521
B52: 2003** | C52: 4156.8 | D52: -10.77913715 | E52: -97.23577521 | F52: 9511.021576 | G52: -16.02862098 | H52: -97.23577521
B53: 2004** | C53: 9571.1 | D53: 130.2516359 | E53: -96.23577521 | F53: 13714.95411 | G53: 44.20064138 | H53: -96.23577521
B54: 2005** | C54: 5963.8 | D54: -37.68950277 | E54: -95.23577521 | F54: 13535.23625 | G54: -1.310378885 | H54: -95.23577521
B55: 2006 | C55: 6942.2 | D55: 16.40564741 | E55: -94.23577521 | F55: 14071.66619 | G55: 3.963210748 | H55: -94.23577521
B56: 2007 | C56: 9444.2 | D56: 36.04044827 | E56: -93.23577521 | F56: 16953.41971 | G56: 20.47912086 | H56: -93.23577521
B57: 2008 | C57: 9544.6 | D57: 1.063086339 | E57: -92.23577521 | F57: 16923.42514 | G57: -0.1769234748 | H57: -92.23577521
B58: 2009 | C58: 9976 | D58: 4.519833204 | E58: -91.23577521 | F58: 12199.78877 | G58: -27.9118224 | H58: -91.23577521
B59: 2010 | C59: 12239.4 | D59: 22.68845229 | E59: -90.23577521 | F59: 18024.41308 | G59: 47.74364883 | H59: -90.23577521
B60: 2011 | C60: 10601.4 | D60: -13.38300897 | E60: -89.23577521 | F60: 15128.62588 | G60: -16.06591675 | H60: -89.23577521
B61: 2012 | C61: 9621.6 | D61: -9.242175562 | E61: -88.23577521 | F61: 13514.82068 | G61: -10.66722918 | H61: -88.23577521
B62: 2013 | C62: 23846.7 | D62: 147.8454727 | E62: -87.23577521 | F62: 31590.72166 | G62: 133.7487297 | H62: -87.23577521
B63: 2014 | C63: 9732.5 | D63: -59.18722507 | E63: -86.23577521 | F63: 19306.74624 | G63: -38.88475721 | H63: -86.23577521
B64: 2015 | C64: 13749.7 | D64: 41.27613666 | E64: -85.23577521 | F64: 18793.1795 | G64: -2.660037781 | H64: -85.23577521
B65: 2016 | C65: 14385 | D65: 4.620464446 | E65: -84.23577521 | F65: 19016.40115 | G65: 1.187780149 | H65: -84.23577521
B66: 2017 | C66: 15645.2 | D66: 8.760514425 | E66: -83.23577521 | F66: 20593.52138 | G66: 8.293473697 | H66: -83.23577521
B67: 2018 | C67: 17842.3 | D67: 14.04328484 | E67: -82.23577521 | F67: 23645.27484 | G67: 14.81899767 | H67: -82.23577521
B68: 2019 | C68: 18102.4 | D68: 1.4577717 | E68: -81.23577521 | F68: 21717.12887 | G68: -8.154466284 | H68: -81.23577521
B69: 2020 | C69: 17969.26465 | D69: -0.7354569082 | E69: -80.23577521 | F69: 24103.74604 | G69: 10.98956118 | H69: -80.23577521
B70: 2021 | C70: 18433.46954 | D70: 2.583327159 | E70: -79.23577521 | F70: 22346.6067 | G70: -7.28990145 | H70: -79.23577521
B71: 2022 | C71: 27511.62373 | D71: 49.24821217 | E71: -78.23577521 | F71: 30970.1166 | G71: 38.58979581 | H71: -78.23577521
B72: 2023 | C72: 29040.82387 | D72: 5.558378366 | E72: -77.23577521 | F72: 32121.78618 | G72: 3.718647853 | H72: -77.23577521
B73: 2024 | C73: 31096.32511 | D73: 7.077971492 | E73: -76.23577521 | F73: 31096.32511 | G73: -3.192416078 | H73: -76.23577521
B74: Fuente: Secretaría de Economía
B75: *Se incluyen los movimientos de Televisa-Univisión y Aeroméxico, realizados en el primer trimestre de 2022
B76: ** A partir del primer trimestre de 2023, los datos desde 1999 al 2005 no cambian
A78: IED en México en enero-junio por tipo de inversión (millones de dólares)
B80: Tipo de inversión | C80: Originalmente publicado | F80: Actualizado
C81: 2023 A | D81: 2024 B | E81: Variación [(B/A)-1]*100 | F81: 2023 C | G81: 2024 B | H81: Variación [(B/A)-1]*100
B82: Cuentas entre compañías | C82: 4297.034324 | D82: -100.5849742 | E82: =((D82/C82)-1)*100 -> -102.3407999 | F82: 3650.738175 | G82: -100.5849742 | H82: =((G82/F82)-1)*100 -> -102.7551955
B83: Nuevas inversiones | C83: 2135.168039 | D83: 909.3070721 | E83: =((D83/C83)-1)*100 -> -57.41285671 | F83: 2963.309875 | G83: 909.3070721 | H83: =((G83/F83)-1)*100 -> -69.31447906
B84: Reinversión de utilidades | C84: 22608.62151 | D84: 30287.60301 | E84: 33.96483725 | F84: 25507.73813 | G84: 30287.60301 | H84: 18.73888176
B85: Total | C85: =SUM(C82:C84) -> 29040.82387 | D85: =SUM(D82:D84) -> 31096.32511 | E85: =((D85/C85)-1)*100 -> 7.077971492 | F85: =SUM(F82:F84) -> 32121.78618 | G85: =SUM(G82:G84) -> 31096.32511 | H85: -3.192416078
B86: Fuente: Secretaría de Economía
A88: IED en México en enero-junio por país de origen (millones de dólares)
B90: País de Origen | C90: Originalmente publicado | F90: Actualizado
C91: 2023 A | D91: 2024 B | E91: Variación [(B/A)-1]*100 | F91: 2023 C | G91: 2024 B | H91: Variación [(B/A)-1]*100
B92: Total | C92: 29040.82387 | D92: 31096.32511 | E92: =((D92/C92)-1)*100 -> 7.077971492 | F92: 23498.60086 | G92: 31096.32511 | H92: =((G92/F92)-1)*100 -> 32.33266652
B93: Estados Unidos | C93: 12369.95675 | D93: 13717.39801 | E93: =((D93/C93)-1)*100 -> 10.8928534 | F93: 12972.06675 | G93: 13717.39801 | H93: =((G93/F93)-1)*100 -> 5.745663114
B94: Alemania | C94: 2547.279328 | D94: 4167.185806 | E94: 63.59359418 | F94: 2543.444191 | G94: 4167.185806 | H94: 63.84026905
B95: Japón | C95: 1998.66436 | D95: 3082.033836 | E95: 54.20467279 | F95: 2403.879483 | G95: 3082.033836 | H95: 28.21082996
B96: Canadá | C96: 1218.666346 | D96: 2407.814339 | E96: 97.57781504 | F96: 1585.740978 | G96: 2407.814339 | H96: 51.84159154
B97: Bélgica | C97: 29.27739118 | D97: 1525.492272 | E97: 5110.47884 | F97: 35.2113142 | G97: 1525.492272 | H97: 4232.39232
B98: Argentina | C98: 2231.850661 | D98: 909.4629585 | E98: -59.25072522 | F98: 2467.391187 | G98: 909.4629585 | H98: -63.14070653
B99: Corea del Sur | C99: 18.58521578 | D99: 676.9188132 | E99: 3542.243497 | F99: 65.73473934 | G99: 676.9188132 | H99: 929.7733283
B100: Países Bajos | C100: 1275.134192 | D100: 587.5182075 | E100: -53.92498993 | F100: 849.4893281 | G100: 587.5182075 | H100: -30.83865941
B101: Suiza | C101: 463.3537389 | D101: 530.9831105 | E101: 14.59562444 | F101: 513.9230207 | G101: 530.9831105 | H101: 3.319580787
B102: Reino Unido | C102: 947.580605 | D102: 457.9336132 | E102: -51.67338685 | F102: 980.2967043 | G102: 457.9336132 | H102: -53.28622332
B103: Resto | C103: =C92-(SUM(C93:C102)) -> 5940.475285 | D103: =D92-(SUM(D93:D102)) -> 3033.584147 | E103: -48.93364586 | F103: 2579.628868 | G103: 3033.584147 | H103: 17.59769728
B104: Fuente: Secretaría de Economía
A106: IED en México en enero-junio por sector económico (millones de dólares)
B108: Sector Económico | C108: Originalmente publicado | F108: Actualizado
C109: 2023 A | D109: 2024 B | E109: Variación [(B/A)-1]*100 | F109: 2023 C | G109: 2024 B | H109: Variación [(B/A)-1]*100
B110: Agropecuario | C110: 35.40955322 | D110: 286.8036042 | E110: =((D110/C110)-1)*100 -> 709.9610929 | F110: 81.38986816 | G110: 286.8036042 | H110: =((G110/F110)-1)*100 -> 252.3824411
B111: Industrial | C111: =C112+C113+C114+C115 -> 17621.85593 | D111: 18727 | E111: =((D111/C111)-1)*100 -> 6.27143971 | F111: =F112+F113+F114+F115 -> 20507.78265 | G111: 18727 | H111: =((G111/F111)-1)*100 -> -8.683448057
B112: Minería | C112: 737.2503305 | D112: 2981.092696 | E112: 304.3528463 | F112: 2605.450443 | G112: 2981.092696 | H112: 14.41755508
B113: Electricidad y agua | C113: -298.9509295 | D113: 153.2256332 | E113: -151.2544428 | F113: -272.1584508 | G113: 153.2256332 | H113: -156.3001563
B114: Construcción | C114: 659.3922671 | D114: -1059.941317 | E114: -260.7451846 | F114: 615.4092986 | G114: -1059.941317 | H114: -272.2335556
B115: Manufacturas | C115: 16524.16426 | D115: 16652.88162 | E115: 0.7789644174 | F115: 17559.08136 | G115: 16652.88162 | H115: -5.160860773
B116: Servicios | C116: =SUM(C117:C130) -> 11383.55839 | D116: 12082 | E116: 6.135529718 | F116: =SUM(F117:F130) -> 11532.61365 | G116: 12082 | H116: 4.763762691
B117: Comercio al por mayor | C117: 599.1703843 | D117: 1252.253103 | E117: 108.9978303 | F117: 353.9844665 | G117: 1252.253103 | H117: 253.7593374
B118: Comercio al por menor | C118: 315.2751863 | D118: 1099.198576 | E118: 248.6473481 | F118: 354.4079306 | G118: 1099.198576 | H118: 210.1506714
B119: Transportes | C119: 650.7061387 | D119: 2497.076342 | E119: 283.7486991 | F119: 1112.249553 | G119: 2497.076342 | H119: 124.5068416
B120: Información en medios masivos | C120: 221.2251096 | D120: 424.1270162 | E120: 91.71739452 | F120: 173.1329051 | G120: 424.1270162 | H120: 144.9719283
B121: Serv. financieros | C121: 7841.866934 | D121: 4797.123075 | E121: -38.82677281 | F121: 7356.793261 | G121: 4797.123075 | H121: -34.7932869
B122: Serv. inmobiliarios y de alquiler | C122: 81.92445697 | D122: 272.0937076 | E122: 232.1275693 | F122: 102.4778385 | G122: 272.0937076 | H122: 165.5146825
B123: Serv. profesionales | C123: 236.6381562 | D123: 371.9270282 | E123: 57.17119934 | F123: 325.5699102 | G123: 371.9270282 | H123: 14.23875995
B124: Corporativos | C124: -24.07454229 | D124: 3.585315536 | E124: -114.8925595 | F124: -21.38739603 | G124: 3.585315536 | H124: -116.7636842
B125: Serv. de apoyo a los negocios | C125: 57.92123879 | D125: 72.74113119 | E125: 25.58628357 | F125: 45.3223033 | G125: 72.74113119 | H125: 60.49742818
B126: Serv. educativos | C126: 16.56159892 | D126: 6.060464 | E126: -63.40652838 | F126: 20.64596946 | G126: 6.060464 | H126: -70.6457766
B127: Serv. de salud | C127: 0.000588223445 | D127: 7.907382757 | E127: 1344182.147 | F127: 0.5175964069 | G127: 7.907382757 | H127: 1427.712065
B128: Serv. de esparcimiento | C128: 25.33660952 | D128: 22.86968826 | E128: -9.736587906 | F128: 19.24932396 | G128: 22.86968826 | H128: 18.80774781
B129: Serv. de alojamiento temporal | C129: 1347.164546 | D129: 1232.022037 | E129: -8.547026345 | F129: 1678.409464 | G129: 1232.022037 | H129: -26.59585971
B130: Otros servicios | C130: 13.84198683 | D130: 23.27800424 | E130: 68.16953033 | F130: 11.24052803 | G130: 23.27800424 | H130: 107.0899531
B131: Total | C131: =C110+C111+C116 -> 29040.82387 | D131: =D110+D111+D116 -> 31095.8036 | E131: =((D131/C131)-1)*100 -> 7.076175726 | F131: =F110+F111+F116 -> 32121.78618 | G131: 31095.8036 | H131: -3.194039604
B132: Fuente: Secretaría de Economía
A134: IED en México en enero-junio por entidad federativa (millones de dólares)
B136: Entidad Federativa | C136: Originalmente publicado | F136: Actualizado
C137: 2023 A | D137: 2024 B | E137: Variación [(B/A)-1]*100 | F137: 2023 C | G137: 2024 B | H137: Variación [(B/A)-1]*100
B138: Aguascalientes | C138: 1240.266186 | D138: 394.1288797 | E138: =((D138/C138)-1)*100 -> -68.22223453 | F138: 1207.637157 | G138: 394.1288797 | H138: =((G138/F138)-1)*100 -> -67.36363423
B139: Baja California | C139: 1463.27116 | D139: 1809.065877 | E139: =((D139/C139)-1)*100 -> 23.63162253 | F139: 1534.711587 | G139: 1809.065877 | H139: =((G139/F139)-1)*100 -> 17.87660249
B140: Baja California Sur | C140: 533.4059263 | D140: 366.9391433 | E140: -31.208274 | F140: 661.9571278 | G140: 366.9391433 | H140: -44.5675365
B141: Campeche | C141: -11.33539933 | D141: 126.609792 | E141: -1216.941612 | F141: -14.77561505 | G141: 126.609792 | H141: -956.8833963
B142: Chiapas | C142: 64.037636 | D142: 101.2424761 | E142: 58.09839716 | F142: 52.74788517 | G142: 101.2424761 | H142: 91.93655969
B143: Chihuahua | C143: 1092.364444 | D143: 1076.27238 | E143: -1.473140653 | F143: 1157.715214 | G143: 1076.27238 | H143: -7.034790015
B144: Ciudad de México | C144: 10224.5346 | D144: 14184.37209 | E144: 38.72877982 | F144: 10469.85785 | G144: 14184.37209 | H144: 35.47817264
B145: Coahuila de Zaragoza | C145: 1189.487023 | D145: 391.9986958 | E145: -67.044727 | F145: 1201.111594 | G145: 391.9986958 | H145: -67.36367398
B146: Colima | C146: 30.35146856 | D146: 245.3739839 | E146: 708.4418828 | F146: 36.53552086 | G146: 245.3739839 | H146: 571.6039025
B147: Durango | C147: 320.8765692 | D147: 134.9151989 | E147: -57.95417559 | F147: 317.3424258 | G147: 134.9151989 | H147: -57.48592438
B148: Estado de México | C148: 1329.933504 | D148: 1709.324524 | E148: 28.5270669 | F148: 1370.279405 | G148: 1709.324524 | H148: 24.74277278
B149: Guanajuato | C149: 891.2186042 | D149: 1351.015054 | E149: 51.59188184 | F149: 1330.09802 | G149: 1351.015054 | H149: 1.572593382
B150: Guerrero | C150: 61.49717678 | D150: 42.26662304 | E150: -31.27062858 | F150: -191.2654325 | G150: 42.26662304 | H150: -122.0984119
B151: Hidalgo | C151: 220.6882166 | D151: 210.8998216 | E151: -4.435395393 | F151: 269.6696301 | G151: 210.8998216 | H151: -21.79326182
B152: Jalisco | C152: 1390.484143 | D152: 892.9749245 | E152: -35.77956792 | F152: 1323.157423 | G152: 892.9749245 | H152: -32.51181536
B153: Michoacán de Ocampo | C153: 233.4473169 | D153: 201.2535414 | E153: -13.79059565 | F153: 205.2761564 | G153: 201.2535414 | H153: -1.95961145
B154: Morelos | C154: 157.4138833 | D154: 148.3961561 | E154: -5.728673366 | F154: 147.3160535 | G154: 148.3961561 | H154: 0.7331872636
B155: Nayarit | C155: 121.9565646 | D155: 183.3387524 | E155: 50.33118801 | F155: 181.7403065 | G155: 183.3387524 | H155: 0.8795219705
B156: Nuevo León | C156: 2794.85672 | D156: 2304.246096 | E156: -17.55405277 | F156: 2724.955606 | G156: 2304.246096 | H156: -15.43913261
B157: Oaxaca | C157: 49.42679696 | D157: 63.48258465 | E157: 28.43758559 | F157: 49.91765422 | G157: 63.48258465 | H157: 27.17461515
B158: Puebla | C158: 1002.302042 | D158: 933.350628 | E158: -6.87930495 | F158: 859.3769222 | G158: 933.350628 | H158: 8.607830145
B159: Querétaro | C159: 499.9561207 | D159: 878.6282903 | E159: 75.74108085 | F159: 654.0950607 | G159: 878.6282903 | H159: 34.32730853
B160: Quintana Roo | C160: 496.6127253 | D160: 578.9732714 | E160: 16.58446148 | F160: 633.4071321 | G160: 578.9732714 | H160: -8.593818719
B161: San Luis Potosí | C161: 1211.753659 | D161: 1064.234274 | E161: -12.17404078 | F161: 1347.877838 | G161: 1064.234274 | H161: -21.0437145
B162: Sinaloa | C162: 192.7798377 | D162: 262.8427803 | E162: 36.34350115 | F162: 174.2699492 | G162: 262.8427803 | H162: 50.82507422
B163: Sonora | C163: 491.2377722 | D163: 105.0031041 | E163: -78.62479026 | F163: 2577.844445 | G163: 105.0031041 | H163: -95.92670906
B164: Tabasco | C164: -22.54183682 | D164: 390.8937523 | E164: -1834.081191 | F164: 6.687589981 | G164: 390.8937523 | H164: 5745.061576
B165: Tamaulipas | C165: 323.9299448 | D165: 341.6891778 | E165: 5.482430143 | F165: 332.7943714 | G165: 341.6891778 | H165: 2.672763471
B166: Tlaxcala | C166: 229.7396349 | D166: 69.66625764 | E166: -69.67599532 | F166: 215.500891 | G166: 69.66625764 | H166: -67.67240389
B167: Veracruz de Ignacio de la Llave | C167: 806.0150983 | D167: 361.2842842 | E167: -55.17648678 | F167: 946.37247 | G167: 361.2842842 | H167: -61.82430326
B168: Yucatán | C168: 154.5708186 | D168: 98.76019344 | E168: -36.1068316 | F168: 137.6545172 | G168: 98.76019344 | H168: -28.25502901
B169: Zacatecas | C169: 256.2855227 | D169: 72.88250504 | E169: -71.56198904 | F169: 199.9194259 | G169: 72.88250504 | H169: -63.54406045
B170: Total | C170: 29040.82387 | D170: 31096.32511 | E170: 7.077971492 | F170: 32121.78618 | G170: 31096.32511 | H170: -3.192416078
B171: Fuente: Secretaría de Economía

Sheet Países y Estados
A1: PRINCIPALES PAÍSES DE ORIGEN Y ENTIDADES FEDERATIVAS DE DESTINO DE LA IED EN MÉXICO
A6: CONTENIDO
A7: * Nota Metodológica
A8: * Flujos de IED en México por país de origen
A9: * Flujos de IED en México por entidad federativa
A24: Flujos de IED en México por país de origen (millones de dólares)
B26: País de origen | C26: Monto | E26: Posición
C27: Enero 2006-junio 2024 | D27: Enero-junio 2024 | E27: Enero 2006-junio 2024 | F27: Enero-junio 2024
B28: Alemania | C28: 34636.1579 | D28: 4167.185806 | E28: 4 | F28: 2
B29: Argentina | C29: 12012.33543 | D29: 909.4629585 | E29: 9 | F29: 6
B30: Australia | C30: 9578.133666 | D30: 276.3688571 | E30: 12 | F30: 11
B31: Bélgica | C31: 26249.81134 | D31: 1525.492272 | E31: 6 | F31: 5
B32: Brasil | C32: 7161.173311 | D32: 259.67599 | E32: 14 | F32: 12
B33: Canadá | C33: 51946.27651 | D33: 2407.814339 | E33: 3 | F33: 4
B34: China | C34: 2305.519235 | D34: 235.1398702 | E34: 19 | F34: 13
B35: Colombia | C35: 2183.371105 | D35: 105.4879452 | E35: 20 | F35: 15
B36: Corea del Sur | C36: 10257.5978 | D36: 676.9188132 | E36: 11 | F36: 7
B37: España | C37: 56921.42361 | D37: -219.8104937 | E37: 2 | F37: 19
B38: Estados Unidos | C38: 243198.8341 | D38: 13717.39801 | E38: 1 | F38: 1
B39: Francia | C39: 11464.90209 | D39: -958.8528968 | E39: 10 | F39: 20
B40: Irlanda | C40: 3965.581209 | D40: 209.6734651 | E40: 17 | F40: 14
B41: Israel | C41: 2378.568598 | D41: 35.73798318 | E41: 18 | F41: 16
B42: Italia | C42: 7134.725457 | D42: -31.45272677 | E42: 15 | F42: 18
B43: Japón | C43: 33076.09061 | D43: 3082.033836 | E43: 5 | F43: 3
B44: Luxemburgo | C44: 5032.160361 | D44: 25.82210042 | E44: 16 | F44: 17
B45: Países Bajos | C45: 14213.45578 | D45: 587.5182075 | E45: 7 | F45: 8
B46: Reino Unido | C46: 12291.13233 | D46: 457.9336132 | E46: 8 | F46: 10
B47: Suiza | C47: 7338.399977 | D47: 530.9831105 | E47: 13 | F47: 9
B48: Fuente: Secretaría de Economía
A52: Flujos de IED en México por entidad federativa (millones de dólares)
B54: Entidad Federativa | C54: Monto | E54: Posición
C55: Enero 2006-junio 2024 | D55: Enero-junio 2024 | E55: Enero 2006-junio 2024 | F55: Enero-junio 2024
B56: Aguascalientes | C56: 10994.29912 | D56: 394.1288797 | E56: 17 | F56: 12
B57: Baja California | C57: 26935.86129 | D57: 1809.065877 | E57: 6 | F57: 3
B58: Baja California Sur | C58: 11622.21769 | D58: 366.9391433 | E58: 16 | F58: 15
B59: Campeche | C59: 3103.63714 | D59: 126.609792 | E59: 30 | F59: 25
B60: Chiapas | C60: 2593.59423 | D60: 101.2424761 | E60: 31 | F60: 27
B61: Chihuahua | C61: 33225.19193 | D61: 1076.27238 | E61: 5 | F61: 6
B62: Ciudad de México | C62: 133475.7001 | D62: 14184.37209 | E62: 1 | F62: 1
B63: Coahuila de Zaragoza | C63: 21715.53581 | D63: 391.9986958 | E63: 8 | F63: 13
B64: Colima | C64: 2377.170044 | D64: 245.3739839 | E64: 32 | F64: 19
B65: Durango | C65: 5841.698066 | D65: 134.9151989 | E65: 21 | F65: 24
B66: Estado de México | C66: 48862.17894 | D66: 1709.324524 | E66: 3 | F66: 4
B67: Guanajuato | C67: 23782.21782 | D67: 1351.015054 | E67: 7 | F67: 5
B68: Guerrero | C68: 5608.724194 | D68: 42.26662304 | E68: 23 | F68: 32
B69: Hidalgo | C69: 4895.353402 | D69: 210.8998216 | E69: 26 | F69: 20
B70: Jalisco | C70: 33739.34343 | D70: 892.9749245 | E70: 4 | F70: 9
B71: Michoacán de Ocampo | C71: 8893.150954 | D71: 201.2535414 | E71: 19 | F71: 21
B72: Morelos | C72: 5494.478006 | D72: 148.3961561 | E72: 25 | F72: 23
B73: Nayarit | C73: 4583.90002 | D73: 183.3387524 | E73: 27 | F73: 22
B74: Nuevo León | C74: 50915.49498 | D74: 2304.246096 | E74: 2 | F74: 2
B75: Oaxaca | C75: 5743.217045 | D75: 63.48258465 | E75: 22 | F75: 31
B76: Puebla | C76: 15176.17473 | D76: 933.350628 | E76: 14 | F76: 8
B77: Querétaro | C77: 18183.30054 | D77: 878.6282903 | E77: 10 | F77: 10
B78: Quintana Roo | C78: 9584.723066 | D78: 578.9732714 | E78: 18 | F78: 11
B79: San Luis Potosí | C79: 16822.08988 | D79: 1064.234274 | E79: 12 | F79: 7
B80: Sinaloa | C80: 7781.968547 | D80: 262.8427803 | E80: 20 | F80: 18
B81: Sonora | C81: 15697.63977 | D81: 105.0031041 | E81: 13 | F81: 26
B82: Tabasco | C82: 5525.798172 | D82: 390.8937523 | E82: 24 | F82: 14
B83: Tamaulipas | C83: 19389.47387 | D83: 341.6891778 | E83: 9 | F83: 17
B84: Tlaxcala | C84: 3283.25399 | D84: 69.66625764 | E84: 29 | F84: 30
B85: Veracruz de Ignacio de la Llave | C85: 17105.04475 | D85: 361.2842842 | E85: 11 | F85: 16
B86: Yucatán | C86: 3350.60861 | D86: 98.76019344 | E86: 28 | F86: 28
B87: Zacatecas | C87: 13221.99914 | D87: 72.88250504 | E87: 15 | F87: 29
B88: Fuente: Secretaría de Economía

Sheet Series Históricas (2) (hidden)
A12: IED por tipo de inversión (1980-2024) (millones de dólares/participación porcentual) Cifras de la Secretaría de Economía
A17: Tipo de inversión | B17: 1980 | D17: 1981 | F17: 1982 | H17: 1983 | J17: 1984 | L17: 1985 | N17: 1986 | P17: 1987 | R17: 1988 | T17: 1989 | V17: 1990 | X17: 1991 | Z17: 1992 | AB17: 1993 | AD17: 1994 | AF17: 1995 | AH17: 1996 | AJ17: 1997 | AL17: 1998 | AN17: 1999 | AP17: 2000 | AR17: 2001 | AT17: 2002 | AV17: 2003 | AX17: 2004 | AZ17: 2005 | BB17: 2006 | BD17: 2007 | BF17: 2008 | BH17: 2009 | BJ17: 2010 | BL17: 2011 | BN17: 2012 | BP17: 2013 | BR17: 2014 | BT17: 2015 | BV17: 2016 | BX17: 2017 | BZ17: 2018 | CB17: 2019 | CD17: 2020 | CF17: 2021 | CH17: 2022 | CJ17: 2023 | CL17: 2024
A18: Nuevas invesrsiones | B18: nd | C18: nd | D18: nd | E18: nd | F18: nd | G18: nd | H18: nd | I18: nd | J18: nd | K18: nd | L18: nd | M18: nd | N18: nd | O18: nd | P18: nd | Q18: nd | R18: nd | S18: nd | T18: nd | U18: nd | V18: nd | W18: nd | X18: nd | Y18: nd | Z18: nd | AA18: nd | AB18: nd | AC18: nd | AD18: 9752.1 | AE18: 64.78810117 | AF18: 7008.3 | AG18: 72.27883088 | AH18: 6431.4 | AI18: 63.75653833 | AJ18: 10465.3 | AK18: 73.80579962 | AL18: 6263 | AM18: 50.44239584 | AN18: 6606.934209 | AO18: =AN18/$AN$21*100 -> 47.32653144 | AP18: 8704.314254 | AQ18: =AP18/$AP$21*100 -> 47.69830066 | AR18: 23110.78134 | AS18: =AR18/$AR$21*100 -> 76.88943587 | AT18: 15637.68304 | AU18: =AT18/$AT$21*100 -> 64.88878887 | AV18: 8897.507294 | AW18: =AV18/$AV$21*100 -> 48.75354804 | AX18: 14715.80185 | AY18: =AX18/$AX$21*100 -> 58.82991677 | AZ18: 14011.18177 | BA18: =AZ18/$AZ$21*100 -> 54.31606668 | BB18: 6971.600531 | BC18: =BB18/$BB$21*100 -> 32.82993753 | BD18: 18026.99509 | BE18: =BD18/$BD$21*100 -> 55.64997542 | BF18: 13054.30613 | BG18: =BF18/$BF$21*100 -> 44.24693089 | BH18: 11008.9486 | BI18: =BH18/$BH$21*100 -> 61.67299209 | BJ18: 15636.7888 | BK18: =BJ18/$BJ$21*100 -> 57.50973855 | BL18: 9699.136043 | BM18: =BL18/$BL$21*100 -> 37.83917349 | BN18: 4316.069087 | BO18: =BN18/$BN$21*100 -> 19.82638252 | BP18: 22038.61673 | BQ18: =BP18/$BP$21*100 -> 45.57724822 | BR18: 5762.808464 | BS18: =BR18/$BR$21*100 -> 18.98703835 | BT18: 13449.06152 | BU18: =BT18/$BT$21*100 -> 37.41687349 | BV18: 10992.01731 | BW18: =BV18/$BV$21*100 -> 35.24275824 | BX18: 11940.01063 | BY18: =BX18/$BX$21*100 -> 35.09982847 | BZ18: 11323.8335 | CA18: =BZ18/$BZ$21*100 -> 33.20677932 | CB18: 13569.06188 | CC18: =CB18/$CB$21*100 -> 39.19759256 | CD18: 6741.563849 | CE18: =CD18/$CD$21*100 -> 23.89723559 | CF18: 15341.82073 | CG18: =CF18/$CF$21*100 -> 45.81453528 | CH18: 18151.5736 | CI18: =CH18/$CH$21*100 -> 49.98196548 | CJ18: 5031.720409 | CK18: =CJ18/$CJ$21*100 -> 13.86876187 | CL18: 599.3244457 | CM18: =CL18/$CL$21*100 -> 2.950497289
A19: Reinversiones | B19: nd | C19: nd | D19: nd | E19: nd | F19: nd | G19: nd | H19: nd | I19: nd | J19: nd | K19: nd | L19: nd | M19: nd | N19: nd | O19: nd | P19: nd | Q19: nd | R19: nd | S19: nd | T19: nd | U19: nd | V19: nd | W19: nd | X19: nd | Y19: nd | Z19: nd | AA19: nd | AB19: nd | AC19: nd | AD19: 2366.601 | AE19: 15.72251977 | AF19: 1572 | AG19: 16.21253687 | AH19: 2589.736 | AI19: 25.67288655 | AJ19: 2150 | AK19: 15.16272531 | AL19: 2864 | AM19: 23.06674464 | AN19: 2367.168675 | AO19: =AN19/$AN$21*100 -> 16.95640961 | AP19: 3906.76736 | AQ19: =AP19/$AP$21*100 -> 21.40848305 | AR19: 3900.080174 | AS19: =AR19/$AR$21*100 -> 12.97554419 | AT19: 2592.763463 | AU19: =AT19/$AT$21*100 -> 10.75870898 | AV19: 2257.277719 | AW19: =AV19/$AV$21*100 -> 12.3686662 | AX19: 2821.174987 | AY19: =AX19/$AX$21*100 -> 11.27831779 | AZ19: 4408.848962 | BA19: =AZ19/$AZ$21*100 -> 17.0914444 | BB19: 8102.918738 | BC19: =BB19/$BB$21*100 -> 38.1574238 | BD19: 8509.977966 | BE19: =BD19/$BD$21*100 -> 26.27060484 | BF19: 9328.889029 | BG19: =BF19/$BF$21*100 -> 31.6198122 | BH19: 5365.221117 | BI19: =BH19/$BH$21*100 -> 30.0563888 | BJ19: 5305.815165 | BK19: =BJ19/$BJ$21*100 -> 19.51398377 | BL19: 10756.3463 | BM19: =BL19/$BL$21*100 -> 41.96366069 | BN19: 10664.1304 | BO19: =BN19/$BN$21*100 -> 48.98696576 | BP19: 18496.59879 | BQ19: =BP19/$BP$21*100 -> 38.25213191 | BR19: 18036.72951 | BS19: =BR19/$BR$21*100 -> 59.42659332 | BT19: 11955.44229 | BU19: =BT19/$BT$21*100 -> 33.26144885 | BV19: 10682.51623 | BW19: =BV19/$BV$21*100 -> 34.25043158 | BX19: 11981.19456 | BY19: =BX19/$BX$21*100 -> 35.22089612 | BZ19: 13312.95874 | CA19: =BZ19/$BZ$21*100 -> 39.03982543 | CB19: 18178.99315 | CC19: =CB19/$CB$21*100 -> 52.51451966 | CD19: 16135.4123 | CE19: =CD19/$CD$21*100 -> 57.19618738 | CF19: 12913.13839 | CG19: =CF19/$CF$21*100 -> 38.56187898 | CH19: 16202.30091 | CI19: =CH19/$CH$21*100 -> 44.61447048 | CJ19: 26639.24931 | CK19: =CJ19/$CJ$21*100 -> 73.42486762 | CL19: 19614.77619 | CM19: =CL19/$CL$21*100 -> 96.56429731
A20: Cuentas | B20: nd | C20: nd | D20: nd | E20: nd | F20: nd | G20: nd | H20: nd | I20: nd | J20: nd | K20: nd | L20: nd | M20: nd | N20: nd | O20: nd | P20: nd | Q20: nd | R20: nd | S20: nd | T20: nd | U20: nd | V20: nd | W20: nd | X20: nd | Y20: nd | Z20: nd | AA20: nd | AB20: nd | AC20: nd | AD20: 2933.6 | AE20: 19.48937907 | AF20: 1115.9 | AG20: 11.50863225 | AH20: 1066.3 | AI20: 10.57057512 | AJ20: 1564.209 | AK20: 11.03147507 | AL20: 3289.143 | AM20: 26.49085952 | AN20: 4986.21495 | AO20: =AN20/$AN$21*100 -> 35.71705895 | AP20: 5637.606776 | AQ20: =AP20/$AP$21*100 -> 30.8932163 | AR20: 3046.299236 | AS20: =AR20/$AR$21*100 -> 10.13501994 | AT20: 5868.75971 | AU20: =AT20/$AT$21*100 -> 24.35250215 | AV20: 7095.183763 | AW20: =AV20/$AV$21*100 -> 38.87778576 | AX20: 7477.17014 | AY20: =AX20/$AX$21*100 -> 29.89176544 | AZ20: 7375.618008 | BA20: =AZ20/$AZ$21*100 -> 28.59248892 | BB20: 6160.97813 | BC20: =BB20/$BB$21*100 -> 29.01263867 | BD20: 5856.563432 | BE20: =BD20/$BD$21*100 -> 18.07941974 | BF20: 7120.10793 | BG20: =BF20/$BF$21*100 -> 24.13325691 | BH20: 1476.34836 | BI20: =BH20/$BH$21*100 -> 8.270619112 | BJ20: 6247.206308 | BK20: =BJ20/$BJ$21*100 -> 22.97627768 | BL20: 5177.04381 | BM20: =BL20/$BL$21*100 -> 20.19716581 | BN20: 6789.122686 | BO20: =BN20/$BN$21*100 -> 31.18665171 | BP20: 7819.210404 | BQ20: =BP20/$BP$21*100 -> 16.17061987 | BR20: 6551.738287 | BS20: =BR20/$BR$21*100 -> 21.58636833 | BT20: 10539.3372 | BU20: =BT20/$BT$21*100 -> 29.32167767 | BV20: 9514.901852 | BW20: =BV20/$BV$21*100 -> 30.50681019 | BX20: 10096.08534 | BY20: =BX20/$BX$21*100 -> 29.67927541 | BZ20: 9464.176689 | CA20: =BZ20/$BZ$21*100 -> 27.75339525 | CB20: 2869.024725 | CC20: =CB20/$CB$21*100 -> 8.287887786 | CD20: 5333.666971 | CE20: =CD20/$CD$21*100 -> 18.90657703 | CF20: 5231.838544 | CG20: =CF20/$CF$21*100 -> 15.62358574 | CH20: 1962.371617 | CI20: 5.40356404 | CJ20: 4609.993629 | CK20: 12.70637051 | CL20: 98.55811836 | CM20: =CL20/$CL$21*100 -> 0.485205406
A21: Total | B21: 1622.6 | C21: 100 | D21: 1701.1 | E21: 100 | F21: 626.5 | G21: 100 | H21: 683.7 | I21: 100 | J21: 1429.8 | K21: 100 | L21: 1729 | M21: 100 | N21: 2424.2 | O21: 100 | P21: 3877.2 | Q21: 100 | R21: 3157.1 | S21: 100 | T21: 2499.7 | U21: 100 | V21: 3722.4 | W21: 100 | X21: 3565 | Y21: 100 | Z21: 3599.6 | AA21: 100 | AB21: 4900.7 | AC21: 100 | AD21: 15052.301 | AE21: 100 | AF21: 9696.2 | AG21: 100 | AH21: 10087.436 | AI21: 100 | AJ21: 14179.509 | AK21: 100 | AL21: 12416.143 | AM21: 100 | AN21: 13960.31783 | AO21: =AN21/$AN$21*100 -> 100 | AP21: 18248.68839 | AQ21: =AP21/$AP$21*100 -> 100 | AR21: 30057.16075 | AS21: =AR21/$AR$21*100 -> 100 | AT21: 24099.20621 | AU21: =AT21/$AT$21*100 -> 100 | AV21: 18249.96878 | AW21: =AV21/$AV$21*100 -> 100 | AX21: 25014.14697 | AY21: =AX21/$AX$21*100 -> 100 | AZ21: 25795.64874 | BA21: =AZ21/$AZ$21*100 -> 100 | BB21: 21235.4974 | BC21: =BB21/$BB$21*100 -> 100 | BD21: 32393.53649 | BE21: =BD21/$BD$21*100 -> 100 | BF21: 29503.30309 | BG21: =BF21/$BF$21*100 -> 100 | BH21: 17850.51808 | BI21: =BH21/$BH$21*100 -> 100 | BJ21: 27189.81027 | BK21: =BJ21/$BJ$21*100 -> 100 | BL21: 25632.52616 | BM21: =BL21/$BL$21*100 -> 100 | BN21: 21769.32217 | BO21: =BN21/$BN$21*100 -> 100 | BP21: 48354.42592 | BQ21: =BP21/$BP$21*100 -> 100 | BR21: 30351.27627 | BS21: =BR21/$BR$21*100 -> 100 | BT21: 35943.84101 | BU21: =BT21/$BT$21*100 -> 100 | BV21: 31189.43539 | BW21: =BV21/$BV$21*100 -> 100 | BX21: 34017.29053 | BY21: =BX21/$BX$21*100 -> 100 | BZ21: 34100.96893 | CA21: =BZ21/$BZ$21*100 -> 100 | CB21: 34617.07975 | CC21: =CB21/$CB$21*100 -> 100 | CD21: 28210.64312 | CE21: =CD21/$CD$21*100 -> 100 | CF21: 33486.79766 | CG21: =CF21/$CF$21*100 -> 100 | CH21: 36316.24613 | CI21: 100 | CJ21: 36280.96335 | CK21: 100 | CL21: 20312.65875 | CM21: =CL21/$CL$21*100 -> 100
A22: nd: Dato no disponible
A23: Fuente: Secretaría de Economía
A24: IED por tipo de inversión (1980-2024) (millones de dólares/participación porcentual) Cifras del Banco de México
A29: Tipo de inversión | B29: 1980 | D29: 1981 | F29: 1982 | H29: 1983 | J29: 1984 | L29: 1985 | N29: 1986 | P29: 1987 | R29: 1988 | T29: 1989 | V29: 1990 | X29: 1991 | Z29: 1992 | AB29: 1993 | AD29: 1994 | AF29: 1995 | AH29: 1996 | AJ29: 1997 | AL29: 1998 | AN29: 1999 | AP29: 2000 | AR29: 2001 | AT29: 2002 | AV29: 2003 | AX29: 2004 | AZ29: 2005 | BB29: 2006 | BD29: 2007 | BF29: 2008 | BH29: 2009 | BJ29: 2010 | BL29: 2011 | BN29: 2012 | BP29: 2013 | BR29: 2014 | BT29: 2015 | BV29: 2016 | BX29: 2017 | BZ29: 2018 | CB29: 2019 | CD29: 2020 | CF29: 2021 | CH29: 2022 | CJ29: 2023 | CL29: 2024
A30: Nuevas invesrsiones | B30: 811.662 | C30: 38.83990673 | D30: 1515.099 | E30: 49.25709548 | F30: 1248.9 | G30: 65.72127108 | H30: 1810.699 | I30: 82.61999572 | J30: 1272.999 | K30: 82.60868437 | L30: 1535.201 | M30: 77.39468643 | N30: 1869.901 | O30: 77.88985625 | P30: 2318.4 | Q30: 87.99821149 | R30: 2204.898 | S30: 76.55906467 | T30: 1659.402 | U30: 52.25640057 | V30: 1114.739 | W30: 42.33339334 | X30: 3422.3 | Y30: 71.87443951 | Z30: 3012.3 | AA30: 68.57359055 | AB30: 3040.965 | AC30: 69.28919766 | AD30: 5672.3 | AE30: 51.69559793 | AF30: 6838.4 | AG30: 71.78442837 | AH30: 5529.415 | AI30: 60.19753412 | AJ30: 9115.347 | AK30: 71.04959049 | AL30: 6603.6215 | AM30: 51.76564559 | AN30: 6606.934209 | AO30: =AN30/$AN$33*100 -> 47.32653144 | AP30: 8704.314254 | AQ30: =AP30/$AP$33*100 -> 47.69830066 | AR30: 23110.78134 | AS30: =AR30/$AR$33*100 -> 76.88943587 | AT30: 15637.68304 | AU30: =AT30/$AT$33*100 -> 64.88878887 | AV30: 8897.507294 | AW30: =AV30/$AV$33*100 -> 48.75354804 | AX30: 14715.80185 | AY30: =AX30/$AX$33*100 -> 58.82991677 | AZ30: 14011.18177 | BA30: =AZ30/$AZ$33*100 -> 54.31606668 | BB30: 6968.525627 | BC30: =BB30/$BB$33*100 -> 32.82020989 | BD30: 18026.65586 | BE30: =BD30/$BD$33*100 -> 55.64951096 | BF30: 13053.19745 | BG30: =BF30/$BF$33*100 -> 44.24483572 | BH30: 11008.14727 | BI30: =BH30/$BH$33*100 -> 61.67127147 | BJ30: 15636.25891 | BK30: =BJ30/$BJ$33*100 -> 57.50891047 | BL30: 9698.982889 | BM30: =BL30/$BL$33*100 -> 37.83880208 | BN30: 4316.06516 | BO30: =BN30/$BN$33*100 -> 19.82636806 | BP30: 22038.60898 | BQ30: =BP30/$BP$33*100 -> 45.5772395 | BR30: 5762.630654 | BS30: =BR30/$BR$33*100 -> 18.98656374 | BT30: 13448.9739 | BU30: =BT30/$BT$33*100 -> 37.41672093 | BV30: 10991.55492 | BW30: =BV30/$BV$33*100 -> 35.24308368 | BX30: 11939.76423 | BY30: =BX30/$BX$33*100 -> 35.1041402 | BZ30: 11323.28881 | CA30: =BZ30/$BZ$33*100 -> 33.20882587 | CB30: 13527.7192 | CC30: =CB30/$CB$33*100 -> 39.13472695 | CD30: 6741.158419 | CE30: =CD30/$CD$33*100 -> 23.90893194 | CF30: 13653.19907 | CG30: =CF30/$CB$33*100 -> 39.49773126 | CH30: 16993.09778 | CI30: =CH30/$CD$33*100 -> 60.26958469 | CJ30: 4817.437436 | CK30: =CJ30/$CJ$33*100 -> 13.3602296 | CL30: 599.3244457 | CM30: =CL30/$CL$33*100 -> 2.950497289
A31: Reinversiones | B31: 938.2 | C31: 44.89504312 | D31: 1356.201 | E31: 44.09119282 | F31: 640.7 | G31: 33.71576458 | H31: 225.3 | I31: 10.2801653 | J31: 428.8 | K31: 27.82610501 | L31: 524.2 | M31: 26.42669893 | N31: 595.298 | O31: 24.79686125 | P31: 412.499 | Q31: 15.65699372 | R31: 691.898 | S31: 24.02426948 | T31: 1074.998 | U31: 33.85287356 | V31: 1069.999 | W31: 40.63434448 | X31: 1408 | Y31: 29.57052591 | Z31: 1020 | AA31: 23.21981953 | AB31: 1399.236 | AC31: 31.88196503 | AD31: 2366.601 | AE31: 21.56847377 | AF31: 1572 | AG31: 16.50168481 | AH31: 2589.736 | AI31: 28.19389053 | AJ31: 2150 | AK31: 16.75817932 | AL31: 2864 | AM31: 22.45083383 | AN31: 2367.168675 | AO31: =AN31/$AN$33*100 -> 16.95640961 | AP31: 3906.76736 | AQ31: =AP31/$AP$33*100 -> 21.40848305 | AR31: 3900.080174 | AS31: =AR31/$AR$33*100 -> 12.97554419 | AT31: 2592.763463 | AU31: =AT31/$AT$33*100 -> 10.75870898 | AV31: 2257.277719 | AW31: =AV31/$AV$33*100 -> 12.3686662 | AX31: 2821.174987 | AY31: =AX31/$AX$33*100 -> 11.27831779 | AZ31: 4408.848962 | BA31: =AZ31/$AZ$33*100 -> 17.0914444 | BB31: 8102.918738 | BC31: =BB31/$BB$33*100 -> 38.1629498 | BD31: 8509.977966 | BE31: =BD31/$BD$33*100 -> 26.27087996 | BF31: 9328.889029 | BG31: =BF31/$BF$33*100 -> 31.62100046 | BH31: 5365.221117 | BI31: =BH31/$BH$33*100 -> 30.05773813 | BJ31: 5305.815165 | BK31: =BJ31/$BJ$33*100 -> 19.51436408 | BL31: 10756.3463 | BM31: =BL31/$BL$33*100 -> 41.96391143 | BN31: 10664.1304 | BO31: =BN31/$BN$33*100 -> 48.9869746 | BP31: 18496.59879 | BQ31: =BP31/$BP$33*100 -> 38.25213804 | BR31: 18036.72951 | BS31: =BR31/$BR$33*100 -> 59.42694147 | BT31: 11955.44229 | BU31: =BT31/$BT$33*100 -> 33.26152993 | BV31: 10682.51623 | BW31: =BV31/$BV$33*100 -> 34.25218869 | BX31: 11976.56083 | BY31: =BX31/$BX$33*100 -> 35.21232599 | BZ31: 13309.76171 | CA31: =BZ31/$BZ$33*100 -> 39.03473331 | CB31: 18170.30242 | CC31: =CB31/$CB$33*100 -> 52.56538912 | CD31: 16125.18278 | CE31: =CD31/$CD$33*100 -> 57.19134216 | CF31: 12658.86867 | CG31: =CF31/$CB$33*100 -> 36.62120432 | CH31: 16027.79041 | CI31: =CH31/$CD$33*100 -> 56.84591969 | CJ31: 26630.61271 | CK31: =CJ31/$CJ$33*100 -> 73.85484603 | CL31: 19614.77619 | CM31: =CL31/$CL$33*100 -> 96.56429731
A32: Cuentas | B32: 339.901 | C32: 16.26505015 | D32: 204.6 | E32: 6.651711694 | F32: 10.698 | G32: 0.5629643351 | H32: 155.6 | I32: 7.099838976 | J32: -160.8 | K32: -10.43478938 | L32: -75.801 | M32: -3.82138536 | N32: -64.5 | O32: -2.686717494 | P32: -96.3 | Q32: -3.655205213 | R32: -16.8 | S32: -0.5833341435 | T32: 441.1 | U32: 13.89072587 | V32: 448.5 | W32: 17.03226218 | X32: -68.802 | Y32: -1.444965429 | Z32: 360.499 | AA32: 8.206589921 | AB32: -51.4 | AC32: -1.171162693 | AD32: 2933.6 | AE32: 26.7359283 | AF32: 1115.9 | AG32: 11.71388682 | AH32: 1066.3 | AI32: 11.60857534 | AJ32: 1564.209 | AK32: 12.19223019 | AL32: 3289.143 | AM32: 25.78352058 | AN32: 4986.21495 | AO32: =AN32/$AN$33*100 -> 35.71705895 | AP32: 5637.606776 | AQ32: =AP32/$AP$33*100 -> 30.8932163 | AR32: 3046.299236 | AS32: =AR32/$AR$33*100 -> 10.13501994 | AT32: 5868.75971 | AU32: =AT32/$AT$33*100 -> 24.35250215 | AV32: 7095.183763 | AW32: =AV32/$AV$33*100 -> 38.87778576 | AX32: 7477.17014 | AY32: =AX32/$AX$33*100 -> 29.89176544 | AZ32: 7375.618008 | BA32: =AZ32/$AZ$33*100 -> 28.59248892 | BB32: 6160.97813 | BC32: =BB32/$BB$33*100 -> 29.01684031 | BD32: 5856.563432 | BE32: =BD32/$BD$33*100 -> 18.07960908 | BF32: 7120.10793 | BG32: =BF32/$BF$33*100 -> 24.13416382 | BH32: 1476.34836 | BI32: =BH32/$BH$33*100 -> 8.270990406 | BJ32: 6247.206308 | BK32: =BJ32/$BJ$33*100 -> 22.97672546 | BL32: 5177.04381 | BM32: =BL32/$BL$33*100 -> 20.19728649 | BN32: 6789.122686 | BO32: =BN32/$BN$33*100 -> 31.18665734 | BP32: 7819.210404 | BQ32: =BP32/$BP$33*100 -> 16.17062246 | BR32: 6551.738287 | BS32: =BR32/$BR$33*100 -> 21.58649479 | BT32: 10539.3372 | BU32: =BT32/$BT$33*100 -> 29.32174914 | BV32: 9513.76424 | BW32: =BV32/$BV$33*100 -> 30.50472763 | BX32: 10096.08534 | BY32: =BX32/$BX$33*100 -> 29.68353381 | BZ32: 9464.176689 | CA32: =BZ32/$BZ$33*100 -> 27.75644081 | CB32: 2869.024725 | CC32: =CB32/$CB$33*100 -> 8.299883928 | CD32: 5328.80543 | CE32: =CD32/$CD$33*100 -> 18.8997259 | CF32: 5231.389711 | CG32: =CF32/$CB$33*100 -> 15.13403737 | CH32: 2270.730168 | CI32: =CH32/$CD$33*100 -> 8.05362071 | CJ32: 4609.993629 | CK32: =CJ32/$CJ$33*100 -> 12.78492438 | CL32: 98.55811836 | CM32: 0.485205406
A33: Total | B33: 2089.763 | C33: 100 | D33: 3075.9 | E33: 100 | F33: 1900.298 | G33: 100 | H33: 2191.599 | I33: 100 | J33: 1540.999 | K33: 100 | L33: 1983.6 | M33: 100 | N33: 2400.699 | O33: 100 | P33: 2634.599 | Q33: 100 | R33: 2879.996 | S33: 100 | T33: 3175.5 | U33: 100 | V33: 2633.238 | W33: 100 | X33: 4761.498 | Y33: 100 | Z33: 4392.799 | AA33: 100 | AB33: 4388.801 | AC33: 100 | AD33: 10972.501 | AE33: 100 | AF33: 9526.3 | AG33: 100 | AH33: 9185.451 | AI33: 100 | AJ33: 12829.556 | AK33: 100 | AL33: 12756.7645 | AM33: 100 | AN33: 13960.31783 | AO33: =AN33/$AN$33*100 -> 100 | AP33: 18248.68839 | AQ33: =AP33/$AP$33*100 -> 100 | AR33: 30057.16075 | AS33: =AR33/$AR$33*100 -> 100 | AT33: 24099.20621 | AU33: =AT33/$AT$33*100 -> 100 | AV33: 18249.96878 | AW33: =AV33/$AV$33*100 -> 100 | AX33: 25014.14697 | AY33: =AX33/$AX$33*100 -> 100 | AZ33: 25795.64874 | BA33: =AZ33/$AZ$33*100 -> 100 | BB33: 21232.4225 | BC33: =BB33/$BB$33*100 -> 100 | BD33: 32393.19726 | BE33: =BD33/$BD$33*100 -> 100 | BF33: 29502.19441 | BG33: =BF33/$BF$33*100 -> 100 | BH33: 17849.71675 | BI33: =BH33/$BH$33*100 -> 100 | BJ33: 27189.28039 | BK33: =BJ33/$BJ$33*100 -> 100 | BL33: 25632.373 | BM33: =BL33/$BL$33*100 -> 100 | BN33: 21769.31825 | BO33: =BN33/$BN$33*100 -> 100 | BP33: 48354.41818 | BQ33: =BP33/$BP$33*100 -> 100 | BR33: 30351.09846 | BS33: =BR33/$BR$33*100 -> 100 | BT33: 35943.75339 | BU33: =BT33/$BT$33*100 -> 100 | BV33: 31187.83539 | BW33: =BV33/$BV$33*100 -> 100 | BX33: 34012.41041 | BY33: =BX33/$BX$33*100 -> 100 | BZ33: 34097.22721 | CA33: =BZ33/$BZ$33*100 -> 100 | CB33: 34567.04635 | CC33: =CB33/$CB$33*100 -> 100 | CD33: 28195.14663 | CE33: =CD33/$CD$33*100 -> 100 | CF33: 31543.45746 | CG33: =CF33/$CF$33*100 -> 100 | CH33: 35291.61836 | CI33: =CH33/$CH$33*100 -> 100 | CJ33: 36058.04378 | CK33: =CJ33/$CJ$33*100 -> 100 | CL33: 20312.65875 | CM33: 100
A34: ND: Dato no disponible
A35: Fuente: Banco de México
A37: IED por país de origen (1980-2024) (millones de dólares/participación porcentual)
A41: País de origen | B41: 1980 | D41: 1981 | F41: 1982 | H41: 1983 | J41: 1984 | L41: 1985 | N41: 1986 | P41: 1987 | R41: 1988 | T41: 1989 | V41: 1990 | X41: 1991 | Z41: 1992 | AB41: 1993 | AD41: 1994* | AF41: 1995* | AH41: 1996* | AJ41: 1997* | AL41: 1998* | AN41: 1999** | AP41: 2000** | AR41: 2001** | AT41: 2002** | AV41: 2003** | AX41: 2004** | AZ41: 2005** | BB41: 2006 | BD41: 2007 | BF41: 2008 | BH41: 2009 | BJ41: 2010 | BL41: 2011 | BN41: 2012 | BP41: 2013 | BR41: 2014 | BT41: 2015 | BV41: 2016 | BX41: 2017 | BZ41: 2018 | CB41: 2019 | CD41: 2020 | CF41: 2021 | CH41: 2022 | CJ41: 2023 | CL41: 2024
A42: Estados Unidos | B42: 1078.6 | C42: 66.47356095 | D42: 1072.1 | E42: 63.0239257 | F42: 426.1 | G42: 68.01276935 | H42: 266.6 | I42: 38.99371069 | J42: 912 | K42: 63.78514478 | L42: 1326.8 | M42: 76.73799884 | N42: 1206.4 | O42: 49.76487089 | P42: 2669.6 | Q42: 68.85381203 | R42: 1241.6 | S42: 39.32723069 | T42: 1813.8 | U42: 72.56070728 | V42: 2308 | W42: 62.00300881 | X42: 2386.5 | Y42: 66.94249649 | Z42: 1651.7 | AA42: 45.88565396 | AB42: 3503.6 | AC42: 71.4918277 | AD42: 4951.067838 | AE42: 46.50243581 | AF42: 5518.342373 | AG42: 65.89380237 | AH42: 5328.541568 | AI42: 67.89767413 | AJ42: 7407.565965 | AK42: 60.98970791 | AL42: 5542.413049 | AM42: 66.18992117 | AN42: 6511.427162 | AO42: =AN42/$AN$54*100 -> 46.64239912 | AP42: 9173.528088 | AQ42: =AP42/$AP$54*100 -> 50.26952016 | AR42: 22372.20571 | AS42: =AR42/$AR$54*100 -> 74.43214859 | AT42: 13353.50453 | AU42: =AT42/$AT$54*100 -> 55.41055754 | AV42: 10493.26475 | AW42: =AV42/$AV$54*100 -> 57.49743945 | AX42: 9589.779048 | AY42: =AX42/$AX$54*100 -> 38.33524121 | AZ42: 13994.34659 | BA42: =AZ42/$AZ$54*100 -> 54.25043276 | BB42: =BB59 -> 12767.89586 | BC42: =BB42/$BB$54*100 -> 60.12524981 | BD42: =BC59 -> 14471.00537 | BE42: =BD42/$BD$54*100 -> 44.67250858 | BF42: =BD59 -> 11003.19099 | BG42: =BF42/$BF$54*100 -> 37.29477664 | BH42: =BE59 -> 7387.97402 | BI42: =BH42/$BH$54*100 -> 41.38800894 | BJ42: =BF59 -> 10205.65672 | BK42: =BJ42/$BJ$54*100 -> 37.53485817 | BL42: =BG59 -> 13129.93423 | BM42: =BL42/$BL$54*100 -> 51.22372314 | BN42: =BH59 -> 9102.561977 | BO42: =BN42/$BN$54*100 -> 41.81371337 | BP42: =BI59 -> 15710.07814 | BQ42: =BP42/$BP$54*100 -> 32.48943162 | BR42: =BJ59 -> 10522.30469 | BS42: =BR42/$BR$54*100 -> 43.09716882 | BT42: =BK59 -> 16887.43855 | BU42: =BT42/$BT$54*100 -> 46.98284345 | BV42: =BL59 -> 10512.5598 | BW42: =BV42/$BV$54*100 -> 33.70551492 | BX42: =BM59 -> 15361.82339 | BY42: =BX42/$BX$54*100 -> 45.15886819 | BZ42: =BN59 -> 11290.08205 | CA42: =BZ42/$BZ$54*100 -> 33.10780429 | CB42: =BO59 -> 12588.70376 | CC42: =CB42/$CB$54*100 -> 36.36558558 | CD42: =BP59 -> 9722.886838 | CE42: =CD42/$CD$54*100 -> 34.46531437 | CF42: =BQ59 -> 13754.59957 | CG42: =CF42/$CF$54*100 -> 41.07469371 | CH42: =BR59 -> 20222.00285 | CI42: =CH42/$CH$54*100 -> 55.68307578 | CJ42: =BS59 -> 13757.28159 | CK42: =CJ42/$CJ$54*100 -> 37.91873292 | CL42: =BT59 -> 10615.23239 | CM42: =CL42/$CJ$54*100 -> 29.25840829
A43: España | B43: 80 | C43: 4.930358684 | D43: 101.8 | E43: 5.984363059 | F43: 40.4 | G43: 6.448523543 | H43: 12.7 | I43: 1.857539857 | J43: 11.7 | K43: 0.8182962652 | L43: 14 | M43: 0.8097165992 | N43: 93.7 | O43: 3.865192641 | P43: 125.8 | Q43: 3.244609512 | R43: 34.1 | S43: 1.08010516 | T43: 44 | U43: 1.760211225 | V43: 10.4 | W43: 0.2793896411 | X43: 43.8 | Y43: 1.228611501 | Z43: 37.2 | AA43: 1.033448161 | AB43: 63.5 | AC43: 1.295733263 | AD43: 145.4702079 | AE43: 1.366315152 | AF43: 49.83656544 | AG43: 0.5950918903 | AH43: 78.90380925 | AI43: 1.005413031 | AJ43: 327.2986252 | AK43: 2.694791737 | AL43: 335.2179597 | AM43: 4.003319516 | AN43: 1032.535234 | AO43: =AN43/$AN$54*100 -> 7.396215804 | AP43: 3802.834607 | AQ43: =AP43/$AP$54*100 -> 20.83894758 | AR43: 2830.139642 | AS43: =AR43/$AR$54*100 -> 9.415851842 | AT43: 5344.33174 | AU43: =AT43/$AT$54*100 -> 22.1763808 | AV43: 1942.802918 | AW43: =AV43/$AV$54*100 -> 10.64551365 | AX43: 6451.562415 | AY43: =AX43/$AX$54*100 -> 25.79018767 | AZ43: 2463.52238 | BA43: =AZ43/$AZ$54*100 -> 9.550081841 | BB43: 2186.254158 | BC43: =BB43/$BB$54*100 -> 10.29528114 | BD43: 4170.131767 | BE43: =BD43/$BD$54*100 -> 12.87334517 | BF43: 4797.128047 | BG43: =BF43/$BF$54*100 -> 16.25963043 | BH43: 2400.270775 | BI43: =BH43/$BH$54*100 -> 13.44650482 | BJ43: 4340.31021 | BK43: =BJ43/$BJ$54*100 -> 15.96300293 | BL43: 2418.143591 | BM43: =BL43/$BL$54*100 -> 9.433887148 | BN43: -1032.471334 | BO43: =BN43/$BN$54*100 -> -4.742781267 | BP43: 221.8412571 | BQ43: =BP43/$BP$54*100 -> 0.4587816996 | BR43: 3734.166692 | BS43: =BR43/$BR$54*100 -> 15.29436916 | BT43: 4321.604337 | BU43: =BT43/$BT$54*100 -> 12.02321237 | BV43: 3451.278798 | BW43: =BV43/$BV$54*100 -> 11.06553791 | BX43: 2476.531804 | BY43: =BX43/$BX$54*100 -> 7.280214754 | BZ43: 4571.526717 | CA43: =BZ43/$BZ$54*100 -> 13.40585579 | CB43: 4437.330664 | CC43: =CB43/$CB$54*100 -> 12.81832753 | CD43: 3974.696222 | CE43: =CD43/$CD$54*100 -> 14.08934991 | CF43: 4749.57581 | CG43: =CF43/$CF$54*100 -> 14.18342792 | CH43: 2146.147523 | CI43: =CH43/$CH$54*100 -> 5.909607273 | CJ43: 3776.787696 | CK43: =CJ43/$CJ$54*100 -> 10.409833 | CL43: 350.6567939 | CM43: =CL43/$CJ$54*100 -> 0.9665035367
A44: Países Bajos | B44: 0 | C44: 0 | D44: 0 | E44: 0 | F44: 0 | G44: 0 | H44: 0 | I44: 0 | J44: 0 | K44: 0 | L44: 0 | M44: 0 | N44: 0 | O44: 0 | P44: 0 | Q44: 0 | R44: 218.2 | S44: 6.911406037 | T44: 47.8 | U44: 1.912229468 | V44: 126.1 | W44: 3.387599398 | X44: 119.5 | Y44: 3.352033661 | Z44: 83.1 | AA44: 2.308589843 | AB44: 88.3 | AC44: 1.801783419 | AD44: 783.1886612 | AE44: 7.356025333 | AF44: 743.7912887 | AG44: 8.881514205 | AH44: 427.8118158 | AI44: 5.451290355 | AJ44: 368.2726978 | AK44: 3.032149073 | AL44: 1051.67556 | AM44: 12.55956959 | AN44: 201.40755 | AO44: 1.442714646 | AP44: 1043.963568 | AQ44: 5.720759463 | AR44: 1187.095695 | AS44: 3.949457834 | AT44: 438.903061 | AU44: 1.821234514 | AV44: 501.7641505 | AW44: 2.74939731 | AX44: 350.687436 | AY44: 1.401876663 | AZ44: 452.945899 | BA44: 1.755888414 | BB44: 210.64981 | BC44: 0.9919702187 | BD44: 430.107314 | BE44: 1.327756585 | BF44: 279.941689 | BG44: 0.9488486363 | BH44: 259.73875 | BI44: 1.455076815 | BJ44: 5475.606182 | BK44: 20.13844939 | BL44: 263.1172529 | BM44: 1.02649755 | BN44: 417.4772638 | BO44: 1.917732029 | BP44: 1148.849867 | BQ44: 2.375893922 | BR44: 177.147947 | BS44: 0.7255611009 | BT44: 1131.635279 | BU44: 3.148342657 | BV44: 437.2157492 | BW44: 1.401807195 | BX44: 131.0640425 | BY44: 0.3852865424 | BZ44: 847.1115475 | CA44: 2.484127502 | CB44: 883.0817376 | CC44: 2.551000096 | CD44: 628.1419942 | CE44: 2.226613521 | CF44: 141.4080496 | CG44: 0.4222800012 | CH44: -116.9380561 | CI44: -0.3219992939 | CJ44: 878.414957 | CK44: 2.421145626 | CL44: 529.8837596 | CM44: 1.460500799
A45: Canadá | B45: 17.5 | C45: 1.078515962 | D45: 5.2 | E45: 0.3056845571 | F45: 8.1 | G45: 1.292897047 | H45: 22.1 | I45: 3.232411877 | J45: 32.5 | K45: 2.273045181 | L45: 34.9 | M45: 2.018507808 | N45: 40.6 | O45: 1.674779309 | P45: 19.3 | Q45: 0.4977819045 | R45: 33.9 | S45: 1.073770232 | T45: 37.5 | U45: 1.500180022 | V45: 56 | W45: 1.50440576 | X45: 74.2 | Y45: 2.081346424 | Z45: 88.5 | AA45: 2.458606512 | AB45: 74.2 | AC45: 1.514069419 | AD45: 739.1758025 | AE45: 6.942638726 | AF45: 170.3231248 | AG45: 2.03380609 | AH45: 547.1498534 | AI45: 6.971926928 | AJ45: 239.5939701 | AK45: 1.972681219 | AL45: 213.2534947 | AM45: 2.546766521 | AN45: 576.721781 | AO45: 4.131150793 | AP45: 540.629878 | AQ45: 2.962568413 | AR45: 830.6604932 | AS45: 2.763600784 | AT45: 371.1862049 | AU45: 1.540242453 | AV45: 375.6156634 | AW45: 2.05817154 | AX45: 797.3658132 | AY45: 3.187478109 | AZ45: 611.6908938 | BA45: 2.37127868 | BB45: 704.0228697 | BC45: 3.315311417 | BD45: 1954.045991 | BE45: 6.032209518 | BF45: 4638.040795 | BG45: 15.72041199 | BH45: 2028.081438 | BI45: 11.36147102 | BJ45: 1960.14132 | BK45: 7.209102603 | BL45: 1305.596038 | BM45: 5.093512944 | BN45: 1558.413781 | BO45: 7.158761164 | BP45: 5341.687087 | BQ45: 11.04694552 | BR45: 2871.280586 | BS45: 11.76016736 | BT45: 1364.48396 | BU45: 3.796155118 | BV45: 2575.401748 | BW45: 8.257288776 | BX45: 3887.094153 | BY45: 11.42681881 | BZ45: 4421.971101 | CA45: 12.96728873 | CB45: 2206.958542 | CC45: 6.375345807 | CD45: 3985.610594 | CE45: 14.12803876 | CF45: 2074.17984 | CG45: 6.194022675 | CH45: 3167.860439 | CI45: 8.722984274 | CJ45: 3490.491919 | CK45: 9.620725574 | CL45: 1705.095958 | CM45: 4.699698687
A46: Alemania | B46: 170.8 | C46: 10.52631579 | D46: 146.3 | E46: 8.600317442 | F46: 39.9 | G46: 6.368715084 | H46: 110 | I46: 16.08892789 | J46: 152.5 | K46: 10.66582739 | L46: 55.5 | M46: 3.209947947 | N46: 218.5 | O46: 9.013282732 | P46: 46.9 | Q46: 1.20963582 | R46: 136.7 | S46: 4.329923031 | T46: 84.7 | U46: 3.388406609 | V46: 288.2 | W46: 7.742316785 | X46: 84.7 | Y46: 2.375876578 | Z46: 84.9 | AA46: 2.358595399 | AB46: 111.4 | AC46: 2.273144653 | AD46: 306.8741051 | AE46: 2.882285972 | AF46: 547.9420918 | AG46: 6.542904637 | AH46: 203.2067124 | AI46: 2.589313222 | AJ46: 482.7232605 | AK46: 3.974470265 | AL46: 134.0166625 | AM46: 1.60048561 | AN46: 706.753089 | AO46: 5.062585948 | AP46: 326.7870906 | AQ46: 1.790742894 | AR46: 741.7046594 | AS46: 2.46764544 | AT46: 712.353185 | AU46: 2.955919704 | AV46: 479.318078 | AW46: 2.626404921 | AX46: 491.036012 | AY46: 1.962921551 | AZ46: 429.886389 | BA46: 1.666496002 | BB46: 774.8316907 | BC46: 3.648756966 | BD46: 885.6566146 | BE46: 2.734053489 | BF46: 734.2604524 | BG46: 2.488739821 | BH46: 305.9660995 | BI46: 1.714046047 | BJ46: 822.6654076 | BK46: 3.025638647 | BL46: 852.6187755 | BM46: 3.326315831 | BN46: 1361.398039 | BO46: 6.253745652 | BP46: 2096.634816 | BQ46: 4.335972924 | BR46: 2202.272234 | BS46: 9.020048461 | BT46: 1388.417644 | BU46: 3.862741446 | BV46: 3108.220403 | BW46: 9.965619333 | BX46: 2716.31346 | BY46: 7.985096454 | BZ46: 3142.870318 | CA46: 9.216366623 | CB46: 3814.416989 | CC46: 11.01888726 | CD46: 1591.877407 | CE46: 5.642825654 | CF46: 2309.747107 | CG46: 6.897485781 | CH46: -34.82568911 | CI46: -0.09589561923 | CJ46: 2444.528054 | CK46: 6.737770524 | CL46: 1740.134625 | CM46: 4.796274588
A47: Japón | B47: 123.1 | C47: 7.586589424 | D47: 212.1 | E47: 12.4684028 | F47: 65.4 | G47: 10.43894653 | H47: 3.8 | I47: 0.5557993272 | J47: 35.6 | K47: 2.489858721 | L47: 79.3 | M47: 4.586466165 | N47: 142.2 | O47: 5.865852652 | P47: 132.8 | Q47: 3.425152172 | R47: 148.8 | S47: 4.713186152 | T47: 15.7 | U47: 0.628075369 | V47: 120.8 | W47: 3.245218139 | X47: 73.5 | Y47: 2.06171108 | Z47: 86.9 | AA47: 2.414157129 | AB47: 73.6 | AC47: 1.50182627 | AD47: 629.9515828 | AE47: 5.916760586 | AF47: 155.6440001 | AG47: 1.858524587 | AH47: 145.1189277 | AI47: 1.849143436 | AJ47: 351.6862158 | AK47: 2.895585363 | AL47: 97.26059889 | AM47: 1.161528619 | AN47: 1520.886363 | AO47: 10.89435342 | AP47: 775.385756 | AQ47: 4.248994445 | AR47: 477.760803 | AS47: 1.589506352 | AT47: 464.660864 | AU47: 1.928116885 | AV47: 447.057954 | AW47: 2.449636816 | AX47: 880.932893 | AY47: 3.521538377 | AZ47: 334.688967 | BA47: 1.297454024 | BB47: 523.831232 | BC47: 2.466771661 | BD47: 736.406087 | BE47: 2.273311798 | BF47: 830.349595 | BG47: 2.814429261 | BH47: 747.7720196 | BI47: 4.189077405 | BJ47: 1146.898822 | BK47: 4.218119989 | BL47: 842.4410266 | BM47: 3.286609449 | BN47: 2033.879933 | BO47: 9.342872124 | BP47: 1635.254914 | BQ47: 3.381810212 | BR47: 2507.619521 | BS47: 10.27068736 | BT47: 2110.256259 | BU47: 5.870981509 | BV47: 1953.560978 | BW47: 6.263534282 | BX47: 2388.520576 | BY47: 7.021489774 | BZ47: 2265.993305 | CA47: 6.644952844 | CB47: 1697.967849 | CC47: 4.905000251 | CD47: 1313.719514 | CE47: 4.656822281 | CF47: 1454.356517 | CG47: 4.343074341 | CH47: 2303.368673 | CI47: 6.342529634 | CJ47: 2915.288601 | CK47: 8.035311999 | CL47: 1429.976377 | CM47: 3.941395832
A48: Reino Unido | B48: 48.6 | C48: 2.9951929 | D48: 40.9 | E48: 2.404326612 | F48: 7.4 | G48: 1.181165204 | H48: 49.2 | I48: 7.196138657 | J48: 44.3 | K48: 3.098335432 | L48: 56.3 | M48: 3.256217467 | N48: 104.3 | O48: 4.302450293 | P48: 430.9 | Q48: 11.11369029 | R48: 767.6 | S48: 24.31345222 | T48: 44.7 | U48: 1.788214586 | V48: 114.4 | W48: 3.073286052 | X48: 74.2 | Y48: 2.081346424 | Z48: 426.8 | AA48: 11.85687299 | AB48: 189.2 | AC48: 3.860672965 | AD48: 592.2008464 | AE48: 5.562190369 | AF48: 223.6282458 | AG48: 2.670315547 | AH48: 82.96851097 | AI48: 1.057206526 | AJ48: 1829.653182 | AK48: 15.06432932 | AL48: 165.7981652 | AM48: 1.980034217 | AN48: 839.6241685 | AO48: 6.014362843 | AP48: 883.69177 | AQ48: 4.84249471 | AR48: 77.83831549 | AS48: 0.25896745 | AT48: 1604.892618 | AU48: 6.659524816 | AV48: 1334.393145 | AW48: 7.31175577 | AX48: 3010.644481 | AY48: 12.03508254 | AZ48: 1938.499051 | BA48: 7.514778326 | BB48: 706.4428548 | BC48: 3.326707359 | BD48: 499.6985332 | BE48: 1.542587156 | BF48: 1053.838532 | BG48: 3.571934059 | BH48: 49.05248581 | BI48: 0.2747958664 | BJ48: 459.5662904 | BK48: 1.690215142 | BL48: 159.772085 | BM48: 0.6233177488 | BN48: 418.4340468 | BO48: 1.922127127 | BP48: 1484.84924 | BQ48: 3.0707618 | BR48: 230.3298793 | BS48: 0.9433832209 | BT48: 893.2831835 | BU48: 2.485219048 | BV48: 458.4996969 | BW48: 1.470048083 | BX48: 192.0764862 | BY48: 0.564643695 | BZ48: 320.4934255 | CA48: 0.9398367132 | CB48: 831.3423285 | CC48: 2.401538011 | CD48: 874.6807062 | CE48: 3.100534442 | CF48: 1176.89216 | CG48: 3.514495988 | CH48: 1199.99271 | CI48: 3.304286203 | CJ48: 825.3994827 | CK48: 2.275020856 | CL48: 142.0233643 | CM48: 0.3914542261
A49: Suiza | B49: 111.4 | C49: 6.865524467 | D49: 74.9 | E49: 4.403033331 | F49: 23.1 | G49: 3.687150838 | H49: 16.2 | I49: 2.36946029 | J49: 59.8 | K49: 4.182403133 | L49: 141.2 | M49: 8.166570272 | N49: 34.1 | O49: 1.406649616 | P49: 95.2 | Q49: 2.455380171 | R49: 86.3 | S49: 2.73352127 | T49: 194.4 | U49: 7.776933232 | V49: 148 | W49: 3.975929508 | X49: 68.5 | Y49: 1.921458626 | Z49: 315.3 | AA49: 8.75930659 | AB49: 101.7 | AC49: 2.075213745 | AD49: 53.72467172 | AE49: 0.5046038915 | AF49: 199.958646 | AG49: 2.38767996 | AH49: 83.76070802 | AI49: 1.067300909 | AJ49: 26.63356436 | AK49: 0.2192857031 | AL49: 51.56747783 | AM49: 0.6158413785 | AN49: 165.230906 | AO49: 1.183575531 | AP49: 169.2889616 | AQ49: 0.9276774197 | AR49: 215.5383505 | AS49: 0.7170943598 | AT49: 153.699468 | AU49: 0.6377781353 | AV49: 359.591329 | AW49: 1.970366818 | AX49: 1648.209362 | AY49: 6.58873402 | AZ49: 343.054875 | BA49: 1.329885273 | BB49: 652.372411 | BC49: 3.072084438 | BD49: 536.473436 | BE49: 1.656112589 | BF49: 343.586163 | BG49: 1.164568462 | BH49: 337.1342914 | BI49: 1.888652698 | BJ49: 93.80917967 | BK49: 0.3450159406 | BL49: 418.6048255 | BM49: 1.633100159 | BN49: 239.34796 | BO49: 1.099473645 | BP49: 592.39619 | BQ49: 1.225112652 | BR49: 440.4968979 | BS49: 1.804183563 | BT49: 755.2132041 | BU49: 2.1010921 | BV49: 366.2552052 | BW49: 1.174292515 | BX49: 341.4024408 | BY49: 1.003614443 | BZ49: 698.1304199 | CA49: 2.047245113 | CB49: 799.3034673 | CC49: 2.308985833 | CD49: 716.3741511 | CE49: 2.539375469 | CF49: 395.8886808 | CG49: 1.18222317 | CH49: 124.9229293 | CI49: 0.3439863494 | CJ49: 366.0896044 | CK49: 1.009040474 | CL49: 763.5803838 | CM49: 2.104630951
A50: Francia | B50: 19.5 | C50: 1.201774929 | D50: 10.3 | E50: 0.6054905649 | F50: 6.8 | G50: 1.085395052 | H50: 110 | I50: 16.08892789 | J50: 8.7 | K50: 0.60847671 | L50: 10.7 | M50: 0.6188548294 | N50: 316.9 | O50: 13.07235377 | P50: 31.2 | Q50: 0.8047044259 | R50: 152.4 | S50: 4.827214849 | T50: 16.5 | U50: 0.6600792095 | V50: 181 | W50: 4.862454331 | X50: 500.5 | Y50: 14.03927069 | Z50: 69 | AA50: 1.916879653 | AB50: 76.9 | AC50: 1.569163589 | AD50: 90.3210267 | AE50: 0.84833169 | AF50: 125.7390985 | AG50: 1.50143408 | AH50: 125.1179843 | AI50: 1.59428617 | AJ50: 90.73643913 | AK50: 0.7470725129 | AL50: 124.293316 | AM50: 1.484365151 | AN50: 401.059181 | AO50: 2.872851362 | AP50: 564.1107851 | AQ50: 3.091240165 | AR50: -149.1620974 | AS50: -0.4962610992 | AT50: 422.8256401 | AU50: 1.754521026 | AV50: 690.3109054 | AW50: 3.782531981 | AX50: 318.48799 | AY50: 1.273159043 | AZ50: 649.4387681 | BA50: 2.517611951 | BB50: 183.7545161 | BC50: 0.8653176924 | BD50: 352.9727564 | BE50: 1.089639461 | BF50: 835.4823056 | BG50: 2.831826332 | BH50: 635.614272 | BI50: 3.560760921 | BJ50: 400.0858377 | BK50: 1.471455055 | BL50: 694.5269931 | BM50: 2.709553436 | BN50: 891.9726867 | BO50: 4.09738383 | BP50: 957.4723505 | BQ50: 1.980113159 | BR50: 1139.75601 | BS50: 4.66820327 | BT50: 954.3350984 | BU50: 2.655072668 | BV50: 562.6628211 | BW50: 1.804017335 | BX50: 662.3996614 | BY50: 1.947244037 | BZ50: 688.1077891 | CA50: 2.017854069 | CB50: 1067.385702 | CC50: 3.083407699 | CD50: 440.5539935 | CE50: 1.561658809 | CF50: 630.4166487 | CG50: 1.882582668 | CH50: 813.1458784 | CI50: 2.239069191 | CJ50: 512.9121487 | CK50: 1.413722518 | CL50: -1263.606186 | CM50: -3.482835265
A51: Suecia | B51: 10.9 | C51: 0.6717613706 | D51: 15.3 | E51: 0.8994180236 | F51: -2 | G51: -0.3192338388 | H51: 29.1 | I51: 4.256252742 | J51: 61.1 | K51: 4.273324941 | L51: 5.5 | M51: 0.3181029497 | N51: 24.6 | O51: 1.014767758 | P51: 36.7 | Q51: 0.9465593727 | R51: 32.5 | S51: 1.029425739 | T51: 6.9 | U51: 0.276033124 | V51: 13.3 | W51: 0.3572963679 | X51: 13.9 | Y51: 0.3899018233 | Z51: 2 | AA51: 0.05556172908 | AB51: 2.4 | AC51: 0.04897259575 | AD51: 9.25636603 | AE51: 0.08693954137 | AF51: 60.98301244 | AG51: 0.7281901516 | AH51: 97.49683486 | AI51: 1.242330239 | AJ51: 7.20380358 | AK51: 0.05931204371 | AL51: 58.06559379 | AM51: 0.6934447219 | AN51: 704.994862 | AO51: 5.049991486 | AP51: -174.86176 | AQ51: -0.9582154962 | AR51: 94.49613 | AS51: 0.314387865 | AT51: -65.671904 | AU51: -0.2725065026 | AV51: 82.704 | AW51: 0.4531733781 | AX51: 438.389597 | AY51: 1.752466961 | AZ51: 162.266558 | BA51: 0.6290419448 | BB51: 69.162643 | BC51: 0.325693539 | BD51: 98.214809 | BE51: 0.3031926107 | BF51: 190.628483 | BG51: 0.6461259014 | BH51: 16.91623284 | BI51: 0.09476606092 | BJ51: -172.653277 | BK51: -0.6349925772 | BL51: 84.91682342 | BM51: 0.3312854258 | BN51: 251.9365654 | BO51: 1.157300918 | BP51: 245.9084876 | BQ51: 0.5085542491 | BR51: 145.7700432 | BS51: 0.5970437414 | BT51: 1.99513929 | BU51: 0.005550712539 | BV51: 77.50840402 | BW51: 0.2485085192 | BX51: 14.98237644 | BY51: 0.044043415 | BZ51: 237.4968247 | CA51: 0.6964518374 | CB51: 125.5892745 | CC51: 0.3627956933 | CD51: 258.3404132 | CE51: 0.9157551358 | CF51: -100.2306637 | CG51: -0.2993139706 | CH51: 154.7492263 | CI51: 0.4261156997 | CJ51: 172.0426423 | CK51: 0.4741953532 | CL51: -58.41235337 | CM51: -0.1610000066
A52: Italia | B52: -29.3 | C52: -1.805743868 | D52: 5.1 | E52: 0.2998060079 | F52: 1.9 | G52: 0.3032721468 | H52: 1 | I52: 0.1462629808 | J52: 0.5 | K52: 0.03496992586 | L52: 0.6 | M52: 0.03470213997 | N52: 4 | O52: 0.1650028876 | P52: 2.8 | Q52: 0.07221706386 | R52: 0 | S52: 0 | T52: 6.6 | U52: 0.2640316838 | V52: 4.6 | W52: 0.1235761874 | X52: 1.9 | Y52: 0.05329593268 | Z52: 7.5 | AA52: 0.2083564841 | AB52: 4.6 | AC52: 0.09386414186 | AD52: 2.503026719 | AE52: 0.02350944142 | AF52: 10.54482384 | AG52: 0.1259143582 | AH52: 18.6448915 | AI52: 0.2375780973 | AJ52: 29.29672902 | AK52: 0.2412126945 | AL52: 16.92162419 | AM52: 0.2020854384 | AN52: 92.70270976 | AO52: 0.6640444069 | AP52: 192.1805237 | AQ52: 1.053119652 | AR52: 237.8857663 | AS52: 0.7914440324 | AT52: 74.4837288 | AU52: 0.3090712953 | AV52: 60.11987934 | AW52: 0.32942456 | AX52: 83.48213463 | AY52: 0.3337206991 | AZ52: 124.6835245 | BA52: 0.4833476947 | BB52: 102.1614012 | BC52: 0.4810878655 | BD52: 77.2624202 | BE52: 0.2385118408 | BF52: 152.5456969 | BG52: 0.517046164 | BH52: 163.0262865 | BI52: 0.9132860218 | BJ52: 242.6305454 | BK52: 0.8923583614 | BL52: 430.7031969 | BM52: 1.680299453 | BN52: 600.5962041 | BO52: 2.758910908 | BP52: 465.3349867 | BQ52: 0.9623420769 | BR52: 444.1592885 | BS52: 1.819183952 | BT52: 790.9534731 | BU52: 2.200525739 | BV52: 430.2491574 | BW52: 1.379470811 | BX52: 768.8098143 | BY52: 2.260055996 | BZ52: 977.750998 | CA52: 2.867223509 | CB52: 1382.020082 | CC52: 3.992306953 | CD52: 539.2471982 | CE52: 1.911502676 | CF52: 204.9113258 | CG52: 0.6119167555 | CH52: 82.5558344 | CI52: 0.2273248014 | CJ52: -103.3237439 | CK52: -0.2847877631 | CL52: -30.00771057 | CM52: -0.08270924419
A53: Resto | B53: -8.5 | C53: -0.5238506101 | D53: 17.1 | E53: 1.005231909 | F53: 9.4 | G53: 1.500399042 | H53: 63 | I53: 9.214567793 | J53: 111.1 | K53: 7.770317527 | L53: 4.2 | M53: 0.2429149798 | N53: 238.9 | O53: 9.854797459 | P53: 286 | Q53: 7.376457237 | R53: 305 | S53: 9.660764626 | T53: 187.1 | U53: 7.484898188 | V53: 351.6 | W53: 9.44551902 | X53: 123.8 | Y53: 3.472650771 | Z53: 746.7 | AA53: 20.74397155 | AB53: 611.3 | AC53: 12.47372824 | AD53: 2343.190537 | AE53: 22.00819522 | AF53: 567.8253757 | AG53: 6.780328323 | AH53: 709.1390918 | AI53: 9.036036288 | AJ53: 984.9691122 | AK53: 8.109678502 | AL53: 582.983976 | AM53: 6.962249669 | AN53: 1206.974828 | AO53: 8.645754646 | AP53: 951.1491213 | AQ53: 5.212150599 | AR53: 1141.017651 | AS53: 3.796156553 | AT53: 1224.03708 | AU53: 5.079159326 | AV53: 1483.026006 | AW53: 8.126183799 | AX53: 954.9926825 | AY53: 3.817593154 | AZ53: 4290.800908 | BA53: 16.63370309 | BB53: 2354.117953 | BC53: 11.0857679 | BD53: 8181.561395 | BE53: 25.2567712 | BF53: 4644.310339 | BG53: 15.7416623 | BH53: 3518.97141 | BI53: 19.71355338 | BJ53: 2215.093032 | BK53: 8.146776345 | BL53: 5032.151316 | BM53: 19.63189771 | BN53: 5925.775051 | BO53: 27.2207605 | BP53: 18454.11858 | BQ53: 38.16428017 | BR53: 5935.972475 | BS53: 24.31250713 | BT53: 5344.224881 | BU53: 14.86826319 | BV53: 7256.022631 | BW53: 23.26436032 | BX53: 5076.272324 | BY53: 14.92262389 | BZ53: 4639.434426 | CA53: 13.60499297 | CB53: 4782.979352 | CC53: 13.81681929 | CD53: 4164.514089 | CE53: 14.76220897 | CF53: 6695.052613 | CG53: 19.99311096 | CH53: 6253.26381 | CI53: 17.21891571 | CJ53: 7245.050392 | CK53: 19.96928892 | CL53: 4388.101351 | CM53: 12.09477628
A54: Total | B54: 1622.6 | C54: 100 | D54: 1701.1 | E54: 100 | F54: 626.5 | G54: 100 | H54: 683.7 | I54: 100 | J54: 1429.8 | K54: 100 | L54: 1729 | M54: 100 | N54: 2424.2 | O54: 100 | P54: 3877.2 | Q54: 100 | R54: 3157.1 | S54: 100 | T54: 2499.7 | U54: 100 | V54: 3722.4 | W54: 100 | X54: 3565 | Y54: 100 | Z54: 3599.6 | AA54: 100 | AB54: 4900.7 | AC54: 100 | AD54: 10646.9 | AE54: 100 | AF54: 8374.6 | AG54: 100 | AH54: 7847.9 | AI54: 100 | AJ54: 12145.6 | AK54: 100 | AL54: 8373.5 | AM54: 100 | AN54: 13960.31783 | AO54: 100 | AP54: 18248.68839 | AQ54: 100 | AR54: 30057.18112 | AS54: 100 | AT54: 24099.20621 | AU54: 100 | AV54: 18249.96878 | AW54: 100 | AX54: 25015.56987 | AY54: 100 | AZ54: 25795.8248 | BA54: 100 | BB54: =SUM(BB42:BB53) -> 21235.4974 | BC54: 100 | BD54: =SUM(BD42:BD53) -> 32393.53649 | BE54: 100 | BF54: =SUM(BF42:BF53) -> 29503.30309 | BG54: 100 | BH54: =SUM(BH42:BH53) -> 17850.51808 | BI54: 100 | BJ54: =SUM(BJ42:BJ53) -> 27189.81027 | BK54: 100 | BL54: =SUM(BL42:BL53) -> 25632.52616 | BM54: 100 | BN54: =SUM(BN42:BN53) -> 21769.32217 | BO54: 100 | BP54: =SUM(BP42:BP53) -> 48354.42592 | BQ54: 100 | BR54: =SUM(BR42:BR52) -> 24415.30379 | BS54: 100 | BT54: =SUM(BT42:BT53) -> 35943.84101 | BU54: 100 | BV54: =SUM(BV42:BV53) -> 31189.43539 | BW54: 100 | BX54: =SUM(BX42:BX53) -> 34017.29053 | BY54: 100 | BZ54: =SUM(BZ42:BZ53) -> 34100.96893 | CA54: 100 | CB54: =SUM(CB42:CB53) -> 34617.07975 | CC54: 100 | CD54: =SUM(CD42:CD53) -> 28210.64312 | CE54: 100 | CF54: =SUM(CF42:CF53) -> 33486.79766 | CG54: 100 | CH54: =SUM(CH42:CH53) -> 36316.24613 | CI54: 100 | CJ54: =SUM(CJ42:CJ53) -> 36280.96335 | CK54: 100 | CL54: =SUM(CL42:CL53) -> 20312.65875 | CM54: 55.98709868
A55: * La diferencia entre el total de IED publicado por la Secretaría de Economía y la desagregación por país de origen, se debe a que esta última sólo incuye las nuevas inversiones reportadas al RNIE más el valor de la importación temporal de maquinaria y equipo de empresas maquiladoras.
A56: Fuente: Secretaría de Economía
A58: País de origen | B58: 1980 | D58: 1981 | F58: 1982 | H58: 1983 | J58: 1984 | L58: 1985 | N58: 1986 | P58: 1987 | R58: 1988 | T58: 1989 | V58: 1990 | X58: 1991 | Z58: 1992 | AB58: 1993 | AD58: 1994* | AF58: 1995* | AH58: 1996* | AJ58: 1997* | AL58: 1998* | AN58: 1999 | AP58: 2000 | AR58: 2001 | AT58: 2002 | AV58: 2003 | AX58: 2004 | AZ58: 2005 | BB58: 2006 | BC58: 2007 | BD58: 2008 | BE58: 2009 | BF58: 2010 | BG58: 2011 | BH58: 2012 | BI58: 2013 | BJ58: 2014 | BK58: 2015 | BL58: 2016 | BM58: 2017 | BN58: 2018 | BO58: 2019 | BP58: 2020 | BQ58: 2021 | BR58: 2022 | BS58: 2023 | BT58: 2024
A59: Estados Unidos | AN59: 6511.427162 | AP59: 9173.528088 | AR59: 22372.20571 | AT59: 13353.50453 | AV59: 10493.26475 | AX59: 9589.779048 | AZ59: 13994.34659 | BB59: 12767.89586 | BC59: 14471.00537 | BD59: 11003.19099 | BE59: 7387.97402 | BF59: 10205.65672 | BG59: 13129.93423 | BH59: 9102.561977 | BI59: 15710.07814 | BJ59: 10522.30469 | BK59: 16887.43855 | BL59: 10512.5598 | BM59: 15361.82339 | BN59: 11290.08205 | BO59: 12588.70376 | BP59: 9722.886838 | BQ59: 13754.59957 | BR59: 20222.00285 | BS59: 13757.28159 | BT59: 10615.23239
A60: España | AN60: 1032.535234 | AP60: 3802.834607 | AR60: 2830.139642 | AT60: 5344.33174 | AV60: 1942.802918 | AX60: 6451.562415 | AZ60: 2463.52238 | BB60: 2186.254158 | BC60: 4170.131767 | BD60: 4797.128047 | BE60: 2400.270775 | BF60: 4340.31021 | BG60: 2418.143591 | BH60: -1032.471334 | BI60: 221.8412571 | BJ60: 3734.166692 | BK60: 4321.604337 | BL60: 3451.278798 | BM60: 2476.531804 | BN60: 4571.526717 | BO60: 4437.330664 | BP60: 3974.696222 | BQ60: 4749.57581 | BR60: 2146.147523 | BS60: 3776.787696 | BT60: 350.6567939
A61: Países Bajos | AN61: 201.40755 | AP61: 1043.963568 | AR61: 1187.095695 | AT61: 438.903061 | AV61: 501.7641505 | AX61: 350.687436 | AZ61: 452.945899 | BB61: 210.64981 | BC61: 430.107314 | BD61: 279.941689 | BE61: 259.73875 | BF61: 5475.606182 | BG61: 263.1172529 | BH61: 417.4772638 | BI61: 1148.849867 | BJ61: 177.147947 | BK61: 1131.635279 | BL61: 437.2157492 | BM61: 131.0640425 | BN61: 847.1115475 | BO61: 883.0817376 | BP61: 628.1419942 | BQ61: 141.4080496 | BR61: -116.9380561 | BS61: 878.414957 | BT61: 529.8837596
A62: Canadá | AN62: 576.721781 | AP62: 540.629878 | AR62: 830.6604932 | AT62: 371.1862049 | AV62: 375.6156634 | AX62: 797.3658132 | AZ62: 611.6908938 | BB62: 704.0228697 | BC62: 1954.045991 | BD62: 4638.040795 | BE62: 2028.081438 | BF62: 1960.14132 | BG62: 1305.596038 | BH62: 1558.413781 | BI62: 5341.687087 | BJ62: 2871.280586 | BK62: 1364.48396 | BL62: 2575.401748 | BM62: 3887.094153 | BN62: 4421.971101 | BO62: 2206.958542 | BP62: 3985.610594 | BQ62: 2074.17984 | BR62: 3167.860439 | BS62: 3490.491919 | BT62: 1705.095958
A63: Alemania | AN63: 706.753089 | AP63: 326.7870906 | AR63: 741.7046594 | AT63: 712.353185 | AV63: 479.318078 | AX63: 491.036012 | AZ63: 429.886389 | BB63: 774.8316907 | BC63: 885.6566146 | BD63: 734.2604524 | BE63: 305.9660995 | BF63: 822.6654076 | BG63: 852.6187755 | BH63: 1361.398039 | BI63: 2096.634816 | BJ63: 2202.272234 | BK63: 1388.417644 | BL63: 3108.220403 | BM63: 2716.31346 | BN63: 3142.870318 | BO63: 3814.416989 | BP63: 1591.877407 | BQ63: 2309.747107 | BR63: -34.82568911 | BS63: 2444.528054 | BT63: 1740.134625
A64: Japón | AN64: 1520.886363 | AP64: 775.385756 | AR64: 477.760803 | AT64: 464.660864 | AV64: 447.057954 | AX64: 880.932893 | AZ64: 334.688967 | BB64: 523.831232 | BC64: 736.406087 | BD64: 830.349595 | BE64: 747.7720196 | BF64: 1146.898822 | BG64: 842.4410266 | BH64: 2033.879933 | BI64: 1635.254914 | BJ64: 2507.619521 | BK64: 2110.256259 | BL64: 1953.560978 | BM64: 2388.520576 | BN64: 2265.993305 | BO64: 1697.967849 | BP64: 1313.719514 | BQ64: 1454.356517 | BR64: 2303.368673 | BS64: 2915.288601 | BT64: 1429.976377
A65: Reino Unido | AN65: 839.6241685 | AP65: 883.69177 | AR65: 77.83831549 | AT65: 1604.892618 | AV65: 1334.393145 | AX65: 3010.644481 | AZ65: 1938.499051 | BB65: 706.4428548 | BC65: 499.6985332 | BD65: 1053.838532 | BE65: 49.05248581 | BF65: 459.5662904 | BG65: 159.772085 | BH65: 418.4340468 | BI65: 1484.84924 | BJ65: 230.3298793 | BK65: 893.2831835 | BL65: 458.4996969 | BM65: 192.0764862 | BN65: 320.4934255 | BO65: 831.3423285 | BP65: 874.6807062 | BQ65: 1176.89216 | BR65: 1199.99271 | BS65: 825.3994827 | BT65: 142.0233643
A66: Suiza | AN66: 165.230906 | AP66: 169.2889616 | AR66: 215.5383505 | AT66: 153.699468 | AV66: 359.591329 | AX66: 1648.209362 | AZ66: 343.054875 | BB66: 652.372411 | BC66: 536.473436 | BD66: 343.586163 | BE66: 337.1342914 | BF66: 93.80917967 | BG66: 418.6048255 | BH66: 239.34796 | BI66: 592.39619 | BJ66: 440.4968979 | BK66: 755.2132041 | BL66: 366.2552052 | BM66: 341.4024408 | BN66: 698.1304199 | BO66: 799.3034673 | BP66: 716.3741511 | BQ66: 395.8886808 | BR66: 124.9229293 | BS66: 366.0896044 | BT66: 763.5803838
A67: Francia | AN67: 401.059181 | AP67: 564.1107851 | AR67: -149.1620974 | AT67: 422.8256401 | AV67: 690.3109054 | AX67: 318.48799 | AZ67: 649.4387681 | BB67: 183.7545161 | BC67: 352.9727564 | BD67: 835.4823056 | BE67: 635.614272 | BF67: 400.0858377 | BG67: 694.5269931 | BH67: 891.9726867 | BI67: 957.4723505 | BJ67: 1139.75601 | BK67: 954.3350984 | BL67: 562.6628211 | BM67: 662.3996614 | BN67: 688.1077891 | BO67: 1067.385702 | BP67: 440.5539935 | BQ67: 630.4166487 | BR67: 813.1458784 | BS67: 512.9121487 | BT67: -1263.606186
A68: Suecia | AN68: 704.994862 | AP68: -174.86176 | AR68: 94.49613 | AT68: -65.671904 | AV68: 82.704 | AX68: 438.389597 | AZ68: 162.266558 | BB68: 69.162643 | BC68: 98.214809 | BD68: 190.628483 | BE68: 16.91623284 | BF68: -172.653277 | BG68: 84.91682342 | BH68: 251.9365654 | BI68: 245.9084876 | BJ68: 145.7700432 | BK68: 1.99513929 | BL68: 77.50840402 | BM68: 14.98237644 | BN68: 237.4968247 | BO68: 125.5892745 | BP68: 258.3404132 | BQ68: -100.2306637 | BR68: 154.7492263 | BS68: 172.0426423 | BT68: -58.41235337
A69: Italia | AN69: 92.70270976 | AP69: 192.1805237 | AR69: 237.8857663 | AT69: 74.4837288 | AV69: 60.11987934 | AX69: 83.48213463 | AZ69: 124.6835245 | BB69: 102.1614012 | BC69: 77.2624202 | BD69: 152.5456969 | BE69: 163.0262865 | BF69: 242.6305454 | BG69: 430.7031969 | BH69: 600.5962041 | BI69: 465.3349867 | BJ69: 444.1592885 | BK69: 790.9534731 | BL69: 430.2491574 | BM69: 768.8098143 | BN69: 977.750998 | BO69: 1382.020082 | BP69: 539.2471982 | BQ69: 204.9113258 | BR69: 82.5558344 | BS69: -103.3237439 | BT69: -30.00771057
A70: Resto | AN70: 1206.974828 | AP70: 951.1491213 | AR70: 1141.017651 | AT70: 1224.03708 | AV70: 1483.026006 | AX70: 954.9926825 | AZ70: 4290.800908 | BB70: 2354.117953 | BC70: 8181.561395 | BD70: 4644.310339 | BE70: 3518.97141 | BF70: 2215.093032 | BG70: 5032.151316 | BH70: 5925.775051 | BI70: 18454.11858 | BJ70: 5935.972475 | BK70: 5344.224881 | BL70: 7256.022631 | BM70: 5076.272324 | BN70: 4639.434426 | BO70: 4782.979352 | BP70: 4164.514089 | BQ70: 6695.052613 | BR70: 6253.26381 | BS70: 7245.050392 | BT70: 4388.101351
A71: Total | AN71: =SUM(AN59:AN70) -> 13960.31783 | AP71: =SUM(AP59:AP70) -> 18248.68839 | AR71: =SUM(AR59:AR70) -> 30057.18112 | AT71: =SUM(AT59:AT70) -> 24099.20621 | AV71: =SUM(AV59:AV70) -> 18249.96878 | AX71: =SUM(AX59:AX70) -> 25015.56987 | AZ71: =SUM(AZ59:AZ70) -> 25795.8248 | BB71: =SUM(BB59:BB70) -> 21235.4974 | BC71: 32393.53649 | BD71: 29503.30309 | BE71: 17850.51808 | BF71: 27189.81027 | BG71: 25632.52616 | BH71: 21769.32217 | BI71: 48354.42592 | BJ71: 30351.27627 | BK71: 35943.84101 | BL71: 31189.43539 | BM71: 34017.29053 | BN71: 34100.96893 | BO71: 34617.07975 | BP71: 28210.64312 | BQ71: 33486.79766 | BR71: 36316.24613 | BS71: 36280.96335 | BT71: 20312.65875
A74: IED por sector económico (1980-2024) (millones de dólares/participación porcentual)
A80: Sector económico | B80: 1980 | D80: 1981 | F80: 1982 | H80: 1983 | J80: 1984 | L80: 1985 | N80: 1986 | P80: 1987 | R80: 1988 | T80: 1989 | V80: 1990 | X80: 1991 | Z80: 1992 | AB80: 1993 | AD80: 1994* | AF80: 1995* | AH80: 1996* | AJ80: 1997* | AL80: 1998* | AN80: 1999** | AP80: 2000** | AR80: 2001** | AT80: 2002** | AV80: 2003** | AX80: 2004** | AZ80: 2005** | BB80: 2006 | BD80: 2007 | BF80: 2008 | BH80: 2009 | BJ80: 2010 | BL80: 2011 | BN80: 2012 | BP80: 2013 | BR80: 2014 | BT80: 2015 | BV80: 2016 | BX80: 2017 | BZ80: 2018 | CB80: 2019 | CD80: 2020 | CF80: 2021 | CH80: 2022 | CJ80: 2023 | CL80: 2024
A81: Agropecuario | B81: 0.9 | C81: 0.05546653519 | D81: -5.4 | E81: -0.3174416554 | F81: 1.8 | G81: 0.2873104549 | H81: 0.2 | I81: 0.02925259617 | J81: 0.8 | K81: 0.05595188138 | L81: 0.4 | M81: 0.02313475998 | N81: 0.2 | O81: 0.008250144378 | P81: 15.2 | Q81: 0.3920354895 | R81: -12 | S81: -0.3800956574 | T81: 19.3 | U81: 0.7720926511 | V81: 61.1 | W81: 1.641414141 | X81: 44.9 | Y81: 1.259467041 | Z81: 39.3 | AA81: 1.091787976 | AB81: 34.5 | AC81: 0.7039810639 | AD81: 10.26 | AE81: =AD81/$AD$86*100 -> 0.09636607839 | AF81: 9.99 | AG81: =AF81/$AF$86*100 -> 0.1192892795 | AH81: 31.73 | AI81: =AH81/$AH$86*100 -> 0.4043119815 | AJ81: 9.5 | AK81: =AJ81/$AJ$86*100 -> 0.07821762614 | AL81: 27.645 | AM81: =AL81/$AL$86*100 -> 0.3301486833 | AN81: =B92 -> 85.452906 | AO81: =AN81/$AN$86*100 -> 0.6121128975 | AP81: =C92 -> 96.443977 | AQ81: =AP81/$AP$86*100 -> 0.5284981306 | AR81: =D92 -> 82.895929 | AS81: =AR81/$AR$86*100 -> 0.2757940895 | AT81: =E92 -> 120.082339 | AU81: =AT81/$AT$86*100 -> 0.4982833789 | AV81: =F92 -> 10.339252 | AW81: =AV81/$AV$86*100 -> 0.05665353254 | AX81: =G92 -> 17.372926 | AY81: =AX81/$AX$86*100 -> 0.06944845188 | AZ81: =H92 -> 22.057418 | BA81: =AZ81/$AZ$86*100 -> 0.08550770588 | BB81: =I92 -> 1.492793 | BC81: =BB81/$BB$86*100 -> 0.007031220158 | BD81: =J92 -> -7.57690024 | BE81: =BD81/$BD$86*100 -> -0.02339146072 | BF81: =K92 -> 119.7409105 | BG81: =BF81/$BF$86*100 -> 0.4059111776 | BH81: =L92 -> -8.58940328 | BI81: =BH81/$BH$86*100 -> -0.04812450608 | BJ81: =M92 -> 134.0535427 | BK81: =BJ81/$BJ$86*100 -> 0.4930573728 | BL81: =N92 -> 173.485019 | BM81: =BL81/$BL$86*100 -> 0.6768954191 | BN81: =O92 -> 195.1788042 | BO81: =BN81/$BN$86*100 -> 0.8967133645 | BP81: =P92 -> 317.3250773 | BQ81: =BP81/$BP$86*100 -> 0.6562821445 | BR81: =Q92 -> 255.9040321 | BS81: =BR81/$BR$86*100 -> 0.8437005208 | BT81: =R92 -> 256.6743232 | BU81: =BT81/$BT$86*100 -> 0.7141678156 | BV81: =S92 -> 184.0163337 | BW81: =BV81/$BV$86*100 -> 0.5901040913 | BX81: =T92 -> 75.02885745 | BY81: =BX81/$BX$86*100 -> 0.2206735943 | BZ81: =U92 -> 27.66758178 | CA81: =BZ81/$BZ$86*100 -> 0.08114256338 | CB81: =V92 -> 119.348922 | CC81: =CB81/$CB$86*100 -> 0.3448212794 | CD81: =W92 -> 179.0864714 | CE81: =CD81/$CD$86*100 -> 0.634889273 | CF81: =X92 -> 155.7165463 | CG81: =CF81/$CF$86*100 -> 0.4651163206 | CH81: =Y92 -> 283.5457052 | CI81: =CH81/$CH$86*100 -> 0.7815835911 | CJ81: =Z92 -> 334.014797 | CK81: =CJ81/$CJ$86*100 -> 0.9202577696 | CL81: =AA92 -> 286.8036042 | CM81: =CL81/$CL$86*100 -> 0.9224134191
A82: Extractivo | B82: 86.7 | C82: 5.343276223 | D82: -189 | E82: -11.11045794 | F82: 6.7 | G82: 1.06943336 | H82: 15 | I82: 2.193944713 | J82: 5.7 | K82: 0.3986571548 | L82: 18 | M82: 1.041064199 | N82: 30.8 | O82: 1.270522234 | P82: 48.8 | Q82: 1.258640256 | R82: 24.9 | S82: 0.7886984891 | T82: 9.5 | U82: 0.3800456055 | V82: 93.9 | W82: 2.522566086 | X82: 31 | Y82: 0.8695652174 | Z82: 8.6 | AA82: 0.238915435 | AB82: 55.1 | AC82: 1.124329177 | AD82: 92.91 | AE82: =AD82/$AD$86*100 -> 0.8726483765 | AF82: 71.19 | AG82: =AF82/$AF$86*100 -> 0.8500704511 | AH82: 79.895 | AI82: =AH82/$AH$86*100 -> 1.018043043 | AJ82: 124.07 | AK82: =AJ82/$AJ$86*100 -> 1.021522197 | AL82: 46.93 | AM82: =AL82/$AL$86*100 -> 0.5604585896 | AN82: =B93 -> 237.703298 | AO82: 1.702706921 | AP82: =C93 -> 188.619887 | AQ82: 1.033607912 | AR82: =D93 -> 88.748773 | AS82: 0.2952664544 | AT82: =E93 -> 360.593156 | AU82: 1.496286445 | AV82: =F93 -> 347.0287 | AW82: 1.901530377 | AX82: =G93 -> 512.870739 | AY82: 2.050206099 | AZ82: =H93 -> 519.743487 | BA82: 2.014835699 | BB82: =I93 -> 554.674638 | BC82: 2.612578901 | BD82: =J93 -> 2154.834221 | BE82: 6.65241965 | BF82: =K93 -> 4778.838273 | BG82: 16.19984233 | BH82: =L93 -> 1360.791529 | BI82: 7.624210681 | BJ82: =M93 -> 1362.78748 | BK82: 5.01241818 | BL82: =N93 -> 1167.685262 | BM82: 4.556017629 | BN82: =O93 -> 3050.890166 | BO82: =BN82/$BN$86*100 -> 14.01675759 | BP82: =P93 -> 5593.912854 | BQ82: 11.56916168 | BR82: =Q93 -> 2857.417542 | BS82: 9.42073733 | BT82: =R93 -> 1737.294502 | BU82: 4.833829128 | BV82: =S93 -> 1274.063706 | BW82: 4.085671041 | BX82: =T93 -> 1906.989626 | BY82: 5.608805323 | BZ82: =U93 -> 1979.073036 | CA82: 5.80415956 | CB82: =V93 -> 2076.216202 | CC82: 5.998575568 | CD82: =W93 -> 1725.872857 | CE82: 6.118486532 | CF82: =X93 -> 4846.084113 | CG82: 14.47497305 | CH82: =Y93 -> 1780.710377 | CI82: =CH82/$CH$86*100 -> 4.908464442 | CJ82: =Z93 -> 3492.505267 | CK82: =CJ82/$CJ$86*100 -> 9.622343489 | CL82: =AA93 -> 2981.092696 | CM82: =CL82/$CL$86*100 -> 9.587745292
A83: Industrial | B83: 1285.7 | C83: 79.23702699 | D83: 1405.6 | E83: 82.62888719 | F83: 381.3 | G83: 60.86193136 | H83: 597 | I83: 87.31899956 | J83: 1269.6 | K83: 88.79563575 | L83: 1165.8 | M83: 67.42625795 | N83: 1918.9 | O83: 79.15601023 | P83: 2400.5 | Q83: 61.91323636 | R83: 1020 | S83: 32.30813088 | T83: 982.4 | U83: 39.30071609 | V83: 1192.9 | W83: 32.04652912 | X83: 963.6 | Y83: 27.02945302 | Z83: 1100.8 | AA83: 30.58117569 | AB83: 2320.5 | AC83: 47.35037852 | AD83: 6143.365 | AE83: 57.70097399 | AF83: 4422.06 | AG83: 52.80323836 | AH83: 4362.64 | AI83: 55.58990303 | AJ83: 6707.632 | AK83: 55.22684758 | AL83: 4912.925 | AM83: 58.67229952 | AN83: =SUM(B94+B95+B96) -> 9278.921693 | AO83: 66.46640716 | AP83: =SUM(C94+C95+C96) -> 11305.50456 | AQ83: 61.95242265 | AR83: =SUM(D94+D95+D96) -> 8481.459243 | AS83: 28.21774673 | AT83: =SUM(E94+E95+E96) -> 10379.79506 | AU83: 43.07110771 | AV83: =SUM(F94+F95+F96) -> 10094.75446 | AW83: 55.31381768 | AX83: =SUM(G94+G95+G96) -> 14353.13735 | AY83: 57.37681541 | AZ83: =SUM(H94+H95+H96) -> 16262.1614 | BA83: 63.04183538 | BB83: =SUM(I94+I95+I96) -> 11785.03036 | BC83: 55.50879661 | BD83: =SUM(J94+J95+J96) -> 18055.51667 | BE83: 55.74112047 | BF83: =SUM(K94+K95+K96) -> 10321.13288 | BG83: 34.98773463 | BH83: =SUM(L94+L95+L96) -> 9239.546497 | BI83: 51.76711316 | BJ83: =SUM(M94+M95+M96) -> 15339.6576 | BK83: 56.42022677 | BL83: =SUM(N94+N95+N96) -> 13408.91532 | BM83: 52.31825439 | BN83: =SUM(O94+O95+O96) -> 13549.41959 | BO83: 62.25033336 | BP83: =SUM(P94+P95+P96) -> 34859.70795 | BQ83: 72.09579553 | BR83: =SUM(Q94+Q95+Q96) -> 20333.2576 | BS83: 67.03755265 | BT83: =SUM(R94+R95+R96) -> 21699.92076 | BU83: 60.377621 | BV83: =SUM(S94+S95+S96) -> 20457.46037 | BW83: 65.60304087 | BX83: =SUM(T94+T95+T96) -> 21919.82953 | BY83: 64.47022831 | BZ83: =SUM(U94+U95+U96) -> 23004.50579 | CA83: 67.46684925 | CB83: =SUM(V94+V95+V96) -> 18635.0783 | CC83: 53.84021437 | CD83: =SUM(W94+W95+W96) -> 12449.80412 | CE83: 44.1364835 | CF83: =SUM(X94+X95+X96) -> 15286.69414 | CG83: 45.66047154 | CH83: =SUM(Y94+Y95+Y96) -> 15434.73322 | CI83: 42.54528988 | CJ83: =SUM(Z94+Z95+Z96) -> 18280.55852 | CK83: 50.36551125 | CL83: =SUM(AA94+AA95+AA96) -> 15746.16594 | CM83: =CL83/$CL$86*100 -> 50.64258101
A84: Comercio | B84: 118 | C84: 7.272279058 | D84: 170.1 | E84: 9.999412145 | F84: 1.2 | G84: 0.1915403033 | H84: 58.6 | I84: 8.571010677 | J84: 31.5 | K84: 2.203105329 | L84: 109.5 | M84: 6.333140544 | N84: 151.2 | O84: 6.237109149 | P84: -21.2 | Q84: -0.5467863407 | R84: 246.8 | S84: 7.817300687 | T84: 386.3 | U84: 15.45385446 | V84: 171.4 | W84: 4.6045562 | X84: 387.5 | Y84: 10.86956522 | Z84: 750.9 | AA84: 20.86065118 | AB84: 759.9 | AC84: 15.50594813 | AD84: 1189.02 | AE84: 11.16775775 | AF84: 911.25 | AG84: 10.88111671 | AH84: 676.98 | AI84: 8.626256706 | AJ84: 1768.1895 | AK84: 14.55827213 | AL84: 986.575 | AM84: 11.78211023 | AN84: =SUM(B97+B98) -> 1288.994544 | AO84: 9.233275056 | AP84: =SUM(C97+C98) -> 2087.244073 | AQ84: 11.43777585 | AR84: =SUM(D97+D98) -> 1914.966533 | AS84: 6.371078263 | AT84: =SUM(E97+E98) -> 1461.862085 | AU84: 6.066017579 | AV84: =SUM(F97+F98) -> 1231.871879 | AW84: 6.749994446 | AX84: =SUM(G97+G98) -> 1189.784567 | AY84: 4.756176145 | AZ84: =SUM(H97+H98) -> 1817.617672 | BA84: 7.046170015 | BB84: =SUM(I97+I98) -> 112.1761325 | BC84: 0.5283619925 | BD84: =SUM(J97+J98) -> 1031.133338 | BE84: 3.183322232 | BF84: =SUM(K97+K98) -> 1714.638064 | BG84: 5.812472552 | BH84: =SUM(L97+L98) -> 1160.720536 | BI84: 6.503257637 | BJ84: =SUM(M97+M98) -> 2752.771293 | BK84: 10.12486619 | BL84: =SUM(N97+N98) -> 2873.198761 | BM84: 11.21050734 | BN84: =SUM(O97+O98) -> 2236.0082 | BO84: 10.27293124 | BP84: =SUM(P97+P98) -> 1199.663846 | BQ84: 2.481108547 | BR84: =SUM(Q97+Q98) -> 1849.283982 | BS84: 6.096980362 | BT84: =SUM(R97+R98) -> 2186.557796 | BU84: 6.083854377 | BV84: =SUM(S97+S98) -> 1795.375888 | BW84: 5.757416396 | BX84: =SUM(T97+T98) -> 2099.458305 | BY84: 6.174890918 | BZ84: =SUM(U97+U98) -> 2180.589489 | CA84: 6.395160307 | CB84: =SUM(V97+V98) -> 2928.844015 | CC84: 8.46197623 | CD84: =SUM(W97+W98) -> 1217.133083 | CE84: 4.314925257 | CF84: =SUM(X97+X98) -> 1910.302152 | CG84: 5.70596208 | CH84: =SUM(Y97+Y98) -> 1362.867333 | CI84: 3.75669504 | CJ84: =SUM(Z97+Z98) -> 1355.50106 | CK84: 3.734596173 | CL84: =SUM(AA97+AA98) -> 2351.451679 | CM84: 7.562703366
A85: Servicios | B85: 131.3 | C85: 8.091951189 | D85: 319.8 | E85: 18.79960026 | F85: 235.5 | G85: 37.58978452 | H85: 12.9 | I85: 1.886792453 | J85: 122.2 | K85: 8.546649881 | L85: 435.3 | M85: 25.17640254 | N85: 323.1 | O85: 13.32810824 | P85: 1433.9 | Q85: 36.98287424 | R85: 1877.4 | S85: 59.4659656 | T85: 1102.2 | U85: 44.09329119 | V85: 2203.1 | W85: 59.18493445 | X85: 2138 | Y85: 59.97194951 | Z85: 1700 | AA85: 47.22746972 | AB85: 1730.7 | AC85: 35.31536311 | AD85: 3211.345 | AE85: 30.1622538 | AF85: 2960.11 | AG85: 35.3462852 | AH85: 2696.655 | AI85: 34.36148524 | AJ85: 3536.2085 | AK85: 29.11514046 | AL85: 2399.425 | AM85: 28.65498298 | AN85: =SUM(B99+B100+B101+B102+B103+B105+B106+B107+B108+B109+B110) -> 3069.245393 | AO85: 21.98549796 | AP85: =SUM(C99+C100+C101+C102+C103+C105+C106+C107+C108+C109+C110) -> 4570.875894 | AQ85: 25.04769546 | AR85: =SUM(D99+D100+D101+D102+D103+D105+D106+D107+D108+D109+D110) -> 19489.11064 | AS85: 64.84011446 | AT85: =SUM(E99+E100+E101+E102+E103+E105+E106+E107+E108+E109+E110) -> 11776.87357 | AU85: 48.86830489 | AV85: =SUM(F99+F100+F101+F102+F103+F105+F106+F107+F108+F109+F110) -> 6565.97449 | AW85: 35.97800397 | AX85: =SUM(G99+G100+G101+G102+G103+G105+G106+G107+G108+G109+G110) -> 8942.404288 | AY85: 35.74735389 | AZ85: =SUM(H99+H100+H101+H102+H103+H105+H106+H107+H108+H109+H110) -> 7174.244819 | BA85: 27.8116512 | BB85: =SUM(I99+I100+I101+I102+I103+I105+I106+I107+I108+I109+I110) -> 8777.549964 | BC85: 41.34323128 | BD85: =SUM(J99+J100+J101+J102+J103+J105+J106+J107+J108+J109+J110) -> 11157.82882 | BE85: 34.44652911 | BF85: =SUM(K99+K100+K101+K102+K103+K105+K106+K107+K108+K109+K110) -> 12564.93867 | BG85: 42.59403932 | BH85: =SUM(L99+L100+L101+L102+L103+L105+L106+L107+L108+L109+L110) -> 6095.824734 | BI85: 34.15354303 | BJ85: =SUM(M99+M100+M101+M102+M103+M105+M106+M107+M108+M109+M110) -> 7598.954022 | BK85: 27.94943149 | BL85: =SUM(N99+N100+N101+N102+N103+N105+N106+N107+N108+N109+N110) -> 8006.231525 | BM85: 31.23832522 | BN85: =SUM(O99+O100+O101+O102+O103+O105+O106+O107+O108+O109+O110) -> 2734.522567 | BO85: 12.56326445 | BP85: =SUM(P99+P100+P101+P102+P103+P105+P106+P107+P108+P109+P110) -> 6381.319386 | BQ85: 13.1976521 | BR85: =SUM(Q99+Q100+Q101+Q102+Q103+Q105+Q106+Q107+Q108+Q109+Q110) -> 5035.282293 | BS85: 16.60102914 | BT85: =SUM(R99+R100+R101+R102+R103+R105+R106+R107+R108+R109+R110) -> 10059.89011 | BU85: 27.99052768 | BV85: =SUM(S99+S100+S101+S102+S103+S105+S106+S107+S108+S109+S110) -> 7472.791191 | BW85: 23.9637676 | BX85: =SUM(T99+T100+T101+T102+T103+T105+T106+T107+T108+T109+AL110) -> 7998.619081 | BY85: 23.52540186 | BZ85: =SUM(U99+U100+U101+U102+U103+U105+U106+U107+U108+U109+U110) -> 6905.65946 | CA85: 20.25268832 | CB85: =SUM(V99+V100+V101+V102+V103+V105+V106+V107+V108+V109+V110) -> 10852.33296 | CC85: 31.35441255 | CD85: =SUM(W99+W100+W101+W102+W103+W105+W106+W107+W108+W109+W110) -> 12635.61602 | CE85: 44.79521544 | CF85: =SUM(X99+X100+X101+X102+X103+X105+X106+X107+X108+X109+X110) -> 11280.25752 | CG85: 33.693477 | CH85: =SUM(Y99+Y100+Y101+Y102+Y103+Y105+Y106+Y107+Y108+Y109+Y110) -> 17416.50289 | CI85: 48.00796705 | CJ85: =SUM(Z99+Z100+Z101+Z102+Z103+Z105+Z106+Z107+Z108+Z109+Z110) -> 12833.20704 | CK85: 35.35729132 | CL85: =SUM(AA99+AA100+AA101+AA102+AA103+AA105+AA106+AA107+AA108+AA109+AA110) -> 9727.225877 | CM85: 31.28455692
A86: Total | B86: =SUM(B81:B85) -> 1622.6 | C86: 100 | D86: =SUM(D81:D85) -> 1701.1 | E86: 100 | F86: =SUM(F81:F85) -> 626.5 | G86: 100 | H86: =SUM(H81:H85) -> 683.7 | I86: 100 | J86: =SUM(J81:J85) -> 1429.8 | K86: 100 | L86: =SUM(L81:L85) -> 1729 | M86: 100 | N86: =SUM(N81:N85) -> 2424.2 | O86: 100 | P86: =SUM(P81:P85) -> 3877.2 | Q86: 100 | R86: =SUM(R81:R85) -> 3157.1 | S86: 100 | T86: =SUM(T81:T85) -> 2499.7 | U86: 100 | V86: =SUM(V81:V85) -> 3722.4 | W86: 100 | X86: =SUM(X81:X85) -> 3565 | Y86: 100 | Z86: =SUM(Z81:Z85) -> 3599.6 | AA86: 100 | AB86: =SUM(AB81:AB85) -> 4900.7 | AC86: 100 | AD86: =SUM(AD81:AD85) -> 10646.9 | AE86: 100 | AF86: =SUM(AF81:AF85) -> 8374.6 | AG86: 100 | AH86: =SUM(AH81:AH85) -> 7847.9 | AI86: 100 | AJ86: =SUM(AJ81:AJ85) -> 12145.6 | AK86: 100 | AL86: =SUM(AL81:AL85) -> 8373.5 | AM86: 100 | AN86: =SUM(AN81:AN85) -> 13960.31783 | AO86: 100 | AP86: =SUM(AP81:AP85) -> 18248.68839 | AQ86: 100 | AR86: =SUM(AR81:AR85) -> 30057.18112 | AS86: 100 | AT86: =SUM(AT81:AT85) -> 24099.20621 | AU86: 100 | AV86: =SUM(AV81:AV85) -> 18249.96878 | AW86: 100 | AX86: =SUM(AX81:AX85) -> 25015.56987 | AY86: 100 | AZ86: =SUM(AZ81:AZ85) -> 25795.8248 | BA86: 100 | BB86: =SUM(BB81:BB85) -> 21230.92389 | BC86: 100 | BD86: =SUM(BD81:BD85) -> 32391.73615 | BE86: 100 | BF86: =SUM(BF81:BF85) -> 29499.2888 | BG86: 100 | BH86: =SUM(BH81:BH85) -> 17848.29389 | BI86: 100 | BJ86: =SUM(BJ81:BJ85) -> 27188.22394 | BK86: 100 | BL86: =SUM(BL81:BL85) -> 25629.51589 | BM86: 100 | BN86: =SUM(BN81:BN85) -> 21766.01933 | BO86: 100 | BP86: =SUM(BP81:BP85) -> 48351.92911 | BQ86: 100 | BR86: =SUM(BR81:BR85) -> 30331.14545 | BS86: 100 | BT86: =SUM(BT81:BT85) -> 35940.33749 | BU86: 100 | BV86: =SUM(BV81:BV85) -> 31183.70749 | BW86: 100 | BX86: =SUM(BX81:BX85) -> 33999.9254 | BY86: 100 | BZ86: =SUM(BZ81:BZ85) -> 34097.49535 | CA86: 100 | CB86: =SUM(CB81:CB85) -> 34611.8204 | CC86: 100 | CD86: =SUM(CD81:CD85) -> 28207.51255 | CE86: 100 | CF86: =SUM(CF81:CF85) -> 33479.05446 | CG86: 100 | CH86: =SUM(CH81:CH85) -> 36278.35952 | CI86: 100 | CJ86: =SUM(CJ81:CJ85) -> 36295.78668 | CK86: =CJ86/$CJ$86*100 -> 100 | CL86: =SUM(CL81:CL85) -> 31092.73979 | CM86: =CL86/$CL$86*100 -> 100
A87: * La diferencia entre el total de IED publicado por la Secretaría de Economía y la desagregación por país de origen, se debe a que esta última sólo incuye las nuevas inversiones reportadas al RNIE más el valor de la importación temporal de maquinaria y equipo de empresas maquiladoras.
A88: Fuente: Secretaría de Economía
A91: Sector | B91: 1999** | C91: 2000** | D91: 2001** | E91: 2002** | F91: 2003** | G91: 2004** | H91: 2005** | I91: 2006 | J91: 2007 | K91: 2008 | L91: 2009 | M91: 2010 | N91: 2011 | O91: 2012 | P91: 2013 | Q91: 2014 | R91: 2015 | S91: 2016 | T91: 2017 | U91: 2018 | V91: 2019 | W91: 2020 | X91: 2021 | Y91: 2022 | Z91: 2023 | AA91: 2024
A92: 11 Agricultura, cría y explotación de animales, aprovechamiento forestal, pesca y caza | B92: 85.452906 | C92: 96.443977 | D92: 82.895929 | E92: 120.082339 | F92: 10.339252 | G92: 17.372926 | H92: 22.057418 | I92: 1.492793 | J92: -7.57690024 | K92: 119.7409105 | L92: -8.58940328 | M92: 134.0535427 | N92: 173.485019 | O92: 195.1788042 | P92: 317.3250773 | Q92: 255.9040321 | R92: 256.6743232 | S92: 184.0163337 | T92: 75.02885745 | U92: 27.66758178 | V92: 119.348922 | W92: 179.0864714 | X92: 155.7165463 | Y92: 283.5457052 | Z92: 334.014797 | AA92: 286.8036042
A93: 21 Minería | B93: 237.703298 | C93: 188.619887 | D93: 88.748773 | E93: 360.593156 | F93: 347.0287 | G93: 512.870739 | H93: 519.743487 | I93: 554.674638 | J93: 2154.834221 | K93: 4778.838273 | L93: 1360.791529 | M93: 1362.78748 | N93: 1167.685262 | O93: 3050.890166 | P93: 5593.912854 | Q93: 2857.417542 | R93: 1737.294502 | S93: 1274.063706 | T93: 1906.989626 | U93: 1979.073036 | V93: 2076.216202 | W93: 1725.872857 | X93: 4846.084113 | Y93: 1780.710377 | Z93: 3492.505267 | AA93: 2981.092696
A94: 22 Generación, transmisión, distribución y comercialización de energía eléctrica, suministro de agua y de gas natural por ductos al consumidor final | B94: 308.845509 | C94: 167.45272 | D94: 419.331156 | E94: 315.983861 | F94: 125.379986 | G94: 131.148546 | H94: 240.586562 | I94: 37.043835 | J94: 1150.070412 | K94: 677.939676 | L94: 62.675997 | M94: 617.6968573 | N94: 286.9382484 | O94: 761.1588436 | P94: 1430.804114 | Q94: 490.262457 | R94: 797.8835102 | S94: 800.8506773 | T94: 1672.664076 | U94: 4124.589044 | V94: 964.7502232 | W94: 578.5056158 | X94: 326.4960268 | Y94: 878.7652041 | Z94: -93.00952075 | AA94: 153.2256332
A95: 23 Construcción | B95: 167.982539 | C95: 314.5550751 | D95: 461.1996022 | E95: 734.684169 | F95: 465.247519 | G95: 535.312135 | H95: 492.3247567 | I95: 552.3138884 | J95: 1964.011261 | K95: 755.1765773 | L95: 1085.047926 | M95: 638.9785257 | N95: 975.6040657 | O95: 2253.497337 | P95: 1329.454886 | Q95: 1034.674249 | R95: 2310.989394 | S95: 1400.375516 | T95: 3368.149408 | U95: 2608.76505 | V95: 1059.636365 | W95: 223.18214 | X95: 384.3220207 | Y95: 464.2057452 | Z95: 257.9086988 | AA95: -1059.941317
A96: 31-33 Industrias manufactureras | B96: 8802.093645 | C96: 10823.49676 | D96: 7600.928485 | E96: 9329.127034 | F96: 9504.12695 | G96: 13686.67666 | H96: 15529.25009 | I96: 11195.67263 | J96: 14941.435 | K96: 8888.016629 | L96: 8091.822574 | M96: 14082.98222 | N96: 12146.37301 | O96: 10534.76341 | P96: 32099.44895 | Q96: 18808.32089 | R96: 18591.04785 | S96: 18256.23418 | T96: 16879.01605 | U96: 16271.15169 | V96: 16610.69171 | W96: 11648.11637 | X96: 14575.87609 | Y96: 14091.76227 | Z96: 18115.65934 | AA96: 16652.88162
A97: 43 Comercio al por mayor | B97: 909.493581 | C97: 825.6486758 | D97: 656.2250874 | E97: 783.570317 | F97: 323.4646151 | G97: 500.4396101 | H97: 542.599801 | I97: 287.5537535 | J97: 288.4040418 | K97: 708.8825863 | L97: 336.6272882 | M97: 514.1483845 | N97: 1213.747609 | O97: 533.629113 | P97: 644.0368849 | Q97: 696.7534323 | R97: 540.7205565 | S97: 1021.969595 | T97: 911.5230744 | U97: 863.6671827 | V97: 1652.146498 | W97: 245.4384853 | X97: 454.6806775 | Y97: 326.3671466 | Z97: 916.3587404 | AA97: 1252.253103
A98: 46 Comercio al por menor | B98: 379.5009634 | C98: 1261.595397 | D98: 1258.741446 | E98: 678.2917681 | F98: 908.4072637 | G98: 689.3449565 | H98: 1275.017871 | I98: -175.377621 | J98: 742.7292965 | K98: 1005.755478 | L98: 824.0932475 | M98: 2238.622908 | N98: 1659.451152 | O98: 1702.379087 | P98: 555.626961 | Q98: 1152.530549 | R98: 1645.837239 | S98: 773.4062931 | T98: 1187.935231 | U98: 1316.922306 | V98: 1276.697517 | W98: 971.6945981 | X98: 1455.621475 | Y98: 1036.500186 | Z98: 439.1423199 | AA98: 1099.198576
A99: 48-49 Transporte, correos y almacenamiento | B99: 457.5857177 | C99: 274.0996281 | D99: 95.82418858 | E99: 341.859901 | F99: 177.187513 | G99: 251.105318 | H99: 1553.317823 | I99: 293.177189 | J99: 573.7791908 | K99: 1531.782988 | L99: -146.9074676 | M99: 682.2511902 | N99: 94.42097121 | O99: 1301.948246 | P99: 1591.105589 | Q99: 2025.717306 | R99: 2795.876437 | S99: 1673.297026 | T99: 3305.330349 | U99: 1298.691711 | V99: 1127.643347 | W99: 612.2558783 | X99: 2973.92238 | Y99: 3684.760478 | Z99: 2283.47043 | AA99: 2497.076342
A100: 51 Información en medios masivos | B100: 976.336896 | C100: -2022.196308 | D100: 2884.956761 | E100: 4065.784829 | F100: 2197.104307 | G100: 1665.539972 | H100: 1584.25226 | I100: 680.550539 | J100: 13.020461 | K100: 1197.50681 | L100: 557.0449508 | M100: 2438.645912 | N100: 1680.145109 | O100: 999.4763567 | P100: 3277.485735 | Q100: -3593.085957 | R100: 2270.411766 | S100: 750.2358214 | T100: 579.2920133 | U100: 1379.224891 | V100: 1623.683466 | W100: 1259.576944 | X100: 571.0019436 | Y100: 5419.1136 | Z100: -250.1913744 | AA100: 424.1270162
A101: 52 Servicios financieros y de seguros | B101: 353.13405 | C101: 4620.37065 | D101: 15588.11916 | E101: 6210.526888 | F101: 1705.549519 | G101: 5492.08233 | H101: 562.5211393 | I101: 4920.758316 | J101: 6396.911726 | K101: 7360.225943 | L101: 3185.66484 | M101: 2646.85371 | N101: 3386.684332 | O101: -2059.154233 | P101: -840.5183139 | Q101: 5061.191303 | R101: 3795.353645 | S101: 3387.756812 | T101: 1878.554309 | U101: 2238.323815 | V101: 5592.524622 | W101: 8804.507698 | X101: 5222.225221 | Y101: 5214.830818 | Z101: 7205.762673 | AA101: 4797.123075
A102: 53 Servicios inmobiliarios y de alquiler de bienes muebles e intangibles | B102: 276.2978741 | C102: 366.5116654 | D102: 215.8793144 | E102: 186.509279 | F102: 1323.423985 | G102: 443.7052323 | H102: 1366.635299 | I102: 1126.406663 | J102: 1183.68775 | K102: 1324.281948 | L102: 1103.25334 | M102: 373.7809343 | N102: 978.0566011 | O102: 465.1261114 | P102: 259.0236669 | Q102: 642.1487253 | R102: 357.2137237 | S102: 590.889802 | T102: 455.9002951 | U102: 336.9068158 | V102: 929.264739 | W102: 395.504034 | X102: 300.844241 | Y102: 451.7807645 | Z102: 360.1218781 | AA102: 272.0937076
A103: 54 Servicios profesionales, científicos y técnicos | B103: 61.37120843 | C103: 148.0895472 | D103: -61.44300746 | E103: 112.7691248 | F103: 211.5698236 | G103: 114.485116 | H103: 4.659825476 | I103: 138.2607461 | J103: 247.4661739 | K103: 152.65621 | L103: 174.6456447 | M103: 197.7643279 | N103: 274.7451726 | O103: 357.6377117 | P103: 598.628567 | Q103: 6.977922255 | R103: 158.3011252 | S103: 242.8740063 | T103: 212.642544 | U103: 115.5937013 | V103: 230.0123106 | W103: 397.807242 | X103: 186.2201687 | Y103: 36.04890991 | Z103: 528.397588 | AA103: 371.9270282
A104: 55 Dirección y administración de grupos empresariales o corporativos | I104: 4.828067 | J104: 1.800337 | K104: 4.014288 | L104: 2.224189 | M104: 1.586335 | N104: 3.010269 | O104: 3.308966 | P104: 2.500572 | Q104: 20.13638 | R104: 3.509616 | S104: 5.727899 | T104: 3.710410839 | U104: 3.473574785 | V104: 5.267647582 | W104: 3.66686965 | X104: 8.077389997 | Y104: 20.52681897 | Z104: -13.70788952 | AA104: 3.585315536
A105: 56 Servicios de apoyo a los negocios y manejo de residuos, y servicios de remediación | B105: 261.0819641 | C105: 332.1754834 | D105: 241.2548968 | E105: 304.43308 | F105: 212.3919306 | G105: 149.1294964 | H105: 676.6748737 | I105: -49.498973 | J105: 146.3792925 | K105: 232.426039 | L105: 551.4666396 | M105: 178.1772992 | N105: 73.01817254 | O105: 119.8835298 | P105: 132.9750148 | Q105: 90.74113358 | R105: 11.36051839 | S105: 105.7527615 | T105: 281.2059546 | U105: 111.8138811 | V105: 137.605333 | W105: 34.5417719 | X105: 151.3449569 | Y105: 223.572354 | Z105: -1.944826877 | AA105: 72.74113119
A106: 61 Servicios educativos | B106: 2.689915 | C106: 57.010053 | D106: 5.07549385 | E106: -19.120276 | F106: 1.579927 | G106: 3.634075 | H106: 17.57813 | I106: 52.430648 | J106: 39.358284 | K106: 168.784725 | L106: 1.6394833 | M106: 6.344492 | N106: 13.22975332 | O106: 9.18462251 | P106: 14.340039 | Q106: 0.09693146 | R106: 24.83995709 | S106: 0.01839301 | T106: 30.17531193 | U106: 72.83080806 | V106: -5.66134804 | W106: 1.34501877 | X106: 32.28484113 | Y106: 29.49125101 | Z106: 15.99885664 | AA106: 6.060464
A107: 62 Servicios de salud y de asistencia social | B107: 10.19237 | C107: 1.128847 | D107: -0.04626975 | E107: 2.06758 | F107: 12.65043444 | G107: 8.73045 | H107: 3.23973057 | I107: 4.894029 | J107: 21.859256 | K107: 20.708203 | L107: 3.05388839 | M107: 5.04514896 | N107: 23.22515885 | O107: 36.811961 | P107: 12.23448199 | Q107: -1.40833173 | R107: 47.61389929 | S107: 8.07938925 | T107: 8.23254722 | U107: 4.293945212 | V107: 24.13833015 | W107: 13.84110846 | X107: 9.114489824 | Y107: -13.07835957 | Z107: 0.5802586823 | AA107: 7.907382757
A108: 71 Servicios de esparcimiento culturales y deportivos, y otros servicios recreativos | B108: 72.864599 | C108: 27.490407 | D108: 2.64652735 | E108: 5.077879 | F108: 18.631951 | G108: 3.095471 | H108: 38.522173 | I108: 42.535069 | J108: 280.354677 | K108: 10.23963471 | L108: 70.68125237 | M108: 40.29731235 | N108: 174.9752275 | O108: 9.2032689 | P108: 38.08811726 | Q108: 104.7888413 | R108: 110.347524 | S108: 38.13728867 | T108: 217.8486776 | U108: 33.95720062 | V108: 7.99792526 | W108: -20.47176421 | X108: 85.99756063 | Y108: 51.81409072 | Z108: 18.99269423 | AA108: 22.86968826
A109: 72 Servicios de alojamiento temporal y de preparación de alimentos y bebidas | B109: 587.0567058 | C109: 719.9284329 | D109: 531.0752224 | E109: 571.1279899 | F109: 611.2059618 | G109: 785.7144776 | H109: 1355.310827 | I109: 1577.519451 | J109: 2211.20378 | K109: 565.954579 | L109: 592.5994378 | M109: 1017.375445 | N109: 1091.789105 | O109: 1508.972058 | P109: 1257.437818 | Q109: 657.4621422 | R109: 494.332405 | S109: 663.1969834 | T109: 1029.437079 | U109: 1281.688168 | V109: 1179.259807 | W109: 1093.740713 | X109: 1720.451565 | Y109: 2323.526026 | Z109: 2646.470062 | AA109: 1232.022037
A110: 81 Otros servicios excepto actividades gubernamentales | B110: 10.634093 | C110: 46.267488 | D110: -14.231641 | E110: -4.162707 | F110: 94.679138 | G110: 25.18235 | H110: 11.53273767 | I110: -9.483714 | J110: 43.80823246 | K110: 0.37159 | L110: 2.68272497 | M110: 12.41825018 | N110: 215.9419231 | O110: -14.5670659 | P110: 40.51867101 | Q110: 40.65227771 | R110: -5.76088602 | S110: 12.55290774 | T110: 13.97662439 | U110: 32.33452302 | V110: 5.864428144 | W110: 42.9673738 | X110: 26.8501492 | Y110: -5.357046589 | Z110: 25.54879575 | AA110: 23.27800424
A111: Total | B111: =SUM(B92:B110) -> 13960.31783 | C111: 18248.68839 | D111: 30057.18112 | E111: 24099.20621 | F111: 18249.96878 | G111: 25015.56987 | H111: 25795.8248 | I111: 21235.75195 | J111: 32393.53649 | K111: 29503.30309 | L111: 17850.51808 | M111: 27189.81027 | N111: 25632.52616 | O111: 21769.32829 | P111: 48354.42968 | Q111: 30351.28183 | R111: 35943.84711 | S111: 31189.43539 | T111: 34017.61243 | U111: 34100.96893 | V111: 34617.08805 | W111: 28211.17942 | X111: 33487.13185 | Y111: 36298.88634 | Z111: 36282.07879 | AA111: 31096.32511
A113: Agropecuario (11 Agricultura)
A115: Extractivo (21 Minería)
A117: Industrial (22 Generación de energía, 23 Construcción y 31-33 Manufacturas)
A119: Comercio
A121: Servicios (48-49, 51, 52, 53, 54, 56, 61, 62, 71, 72, 81, 93)
A123: Ninguno
A127: IED por entidad federativa (1980-2024) (millones de dólares/participación porcentual)
A131: Entidad federativa | B131: 1980 | D131: 1981 | F131: 1982 | H131: 1983 | J131: 1984 | L131: 1985 | N131: 1986 | P131: 1987 | R131: 1988 | T131: 1989 | V131: 1990 | X131: 1991 | Z131: 1992 | AB131: 1993 | AD131: 1994* | AF131: 1995* | AH131: 1996* | AJ131: 1997* | AL131: 1998* | AN131: 1999** | AP131: 2000** | AR131: 2001** | AT131: 2002** | AV131: 2003** | AX131: 2004** | AZ131: 2005** | BB131: 2006 | BD131: 2007 | BF131: 2008 | BH131: 2009 | BJ131: 2010 | BL131: 2011 | BN131: 2012 | BP131: 2013 | BR131: 2014 | BT131: 2015 | BV131: 2016 | BX131: 2017 | BZ131: 2018 | CB131: 2019 | CD131: 2020 | CF131: 2021 | CH131: 2022 | CJ131: 2023 | CL131: 2024
A132: Aguascalientes | B132: nd | C132: nd | D132: nd | E132: nd | F132: nd | G132: nd | H132: nd | I132: nd | J132: nd | K132: nd | L132: nd | M132: nd | N132: nd | O132: nd | P132: nd | Q132: nd | R132: nd | S132: nd | T132: 0.4 | U132: 0.01600192023 | V132: 0 | W132: 0 | X132: 61.8 | Y132: 1.733471712 | Z132: 31.5 | AA132: 0.875097233 | AB132: 9.3 | AC132: 0.1897688085 | AD132: 28.5 | AE132: 0.2676835511 | AF132: 27.1 | AG132: 0.323597545 | AH132: 34.8 | AI132: 0.4434307267 | AJ132: 18.1 | AK132: 0.1490251614 | AL132: 69.1 | AM132: 0.8252224279 | AN132: 818.846072 | AO132: =AN132/$AN$164*100 -> 5.865525998 | AP132: 288.2483511 | AQ132: =AP132/$AP$164*100 -> 1.579556541 | AR132: 254.5625875 | AS132: =AR132/$AR$164*100 -> 0.8469276823 | AT132: 115.1542767 | AU132: =AT132/$AT$164*100 -> 0.4778343141 | AV132: 119.8299376 | AW132: =AV132/$AV$164*100 -> 0.6566035211 | AX132: 441.5118119 | AY132: =AX132/$AX$164*100 -> 1.764948048 | AZ132: 133.876424 | BA132: =AZ132/$AZ$164*100 -> 0.5189848552 | BB132: 140.5939138 | BC132: =BB132/$BB$164*100 -> 0.6620702645 | BD132: 410.573807 | BE132: =BD132/$BD$164*100 -> 1.267455954 | BF132: 337.4852046 | BG132: =BF132/$BF$164*100 -> 1.143889562 | BH132: 342.2060574 | BI132: =BH132/$BH$164*100 -> 1.917065128 | BJ132: 333.1545323 | BK132: =BJ132/$BJ$164*100 -> 1.225291861 | BL132: 236.8051773 | BM132: =BL132/$BL$164*100 -> 0.9238464281 | BN132: 355.209503 | BO132: =BN132/$BN$164*100 -> 1.631697579 | BP132: 69.13988341 | BQ132: =BP132/$BP$164*100 -> 0.1429856359 | BR132: 978.7988459 | BS132: =BR132/$BR$164*100 -> 3.224901771 | BT132: 812.5841424 | BU132: =BT132/$BT$164*100 -> 2.260704809 | BV132: 594.8797316 | BW132: =BV132/$BV$164*100 -> 1.90731164 | BX132: 1576.337274 | BY132: =BX132/$BX$164*100 -> 4.633929537 | BZ132: 1196.980198 | CA132: =BZ132/$BZ$164*100 -> 3.510106123 | CB132: 452.1233792 | CC132: =CB132/$CB$164*100 -> 1.306070248 | CD132: 743.6596702 | CE132: =CD132/$CD$164*100 -> 2.636096125 | CF132: 42.17143676 | CG132: =CF132/$CF$164*100 -> 0.1259345166 | CH132: 598.2991969 | CI132: =CH132/$CH$164*100 -> 1.647469826 | CJ132: 1379.158643 | CK132: =CJ132/$CJ$164*100 -> 3.801328618 | CL132: -89.58034744 | CM132: =CL132/$CJ$164*100 -> -0.2469073012
A133: Baja California | B133: nd | C133: nd | D133: nd | E133: nd | F133: nd | G133: nd | H133: nd | I133: nd | J133: nd | K133: nd | L133: nd | M133: nd | N133: nd | O133: nd | P133: nd | Q133: nd | R133: nd | S133: nd | T133: 84.1 | U133: 3.364403728 | V133: 36.6 | W133: 0.9832102082 | X133: 62.8 | Y133: 1.761521416 | Z133: 98.3 | AA133: 2.730858984 | AB133: 189.6 | AC133: 3.868835064 | AD133: 227.1 | AE133: 2.133015244 | AF133: 538.1 | AG133: 6.425381511 | AH133: 427.7 | AI133: 5.449865569 | AJ133: 679.4 | AK133: 5.593795284 | AL133: 726.2 | AM133: 8.672598077 | AN133: 1238.714183 | AO133: =AN133/$AN$164*100 -> 8.873108745 | AP133: 1054.188852 | AQ133: =AP133/$AP$164*100 -> 5.776792446 | AR133: 1326.086279 | AS133: =AR133/$AR$164*100 -> 4.411878393 | AT133: 1535.124825 | AU133: =AT133/$AT$164*100 -> 6.370022362 | AV133: 1084.765864 | AW133: =AV133/$AV$164*100 -> 5.943932712 | AX133: 1365.615627 | AY133: =AX133/$AX$164*100 -> 5.459062635 | AZ133: 1334.936478 | BA133: =AZ133/$AZ$164*100 -> 5.175009864 | BB133: 1340.69161 | BC133: =BB133/$BB$164*100 -> 6.313445758 | BD133: 1790.829226 | BE133: =BD133/$BD$164*100 -> 5.528353555 | BF133: 1454.140673 | BG133: =BF133/$BF$164*100 -> 4.92873855 | BH133: 829.5231895 | BI133: =BH133/$BH$164*100 -> 4.64705386 | BJ133: 1414.82295 | BK133: =BJ133/$BJ$164*100 -> 5.203504311 | BL133: 766.3223272 | BM133: =BL133/$BL$164*100 -> 2.989648084 | BN133: 1018.518951 | BO133: =BN133/$BN$164*100 -> 4.678689315 | BP133: 1290.826481 | BQ133: =BP133/$BP$164*100 -> 2.669510507 | BR133: 1223.344367 | BS133: =BR133/$BR$164*100 -> 4.030619196 | BT133: 1167.272348 | BU133: =BT133/$BT$164*100 -> 3.247489181 | BV133: 1567.130437 | BW133: =BV133/$BV$164*100 -> 5.024555327 | BX133: 1678.626997 | BY133: =BX133/$BX$164*100 -> 4.934628744 | BZ133: 1631.150229 | CA133: =BZ133/$BZ$164*100 -> 4.783295843 | CB133: 1183.728077 | CC133: =CB133/$CB$164*100 -> 3.419491435 | CD133: 1195.390076 | CE133: =CD133/$CD$164*100 -> 4.237372649 | CF133: 2222.726169 | CG133: =CF133/$CF$164*100 -> 6.637619373 | CH133: 1873.747769 | CI133: =CH133/$CH$164*100 -> 5.159530427 | CJ133: 1475.593716 | CK133: =CJ133/$CJ$164*100 -> 4.06712937 | CL133: 1082.632868 | CM133: =CL133/$CJ$164*100 -> 2.984024589
A134: Baja California Sur | B134: nd | C134: nd | D134: nd | E134: nd | F134: nd | G134: nd | H134: nd | I134: nd | J134: nd | K134: nd | L134: nd | M134: nd | N134: nd | O134: nd | P134: nd | Q134: nd | R134: nd | S134: nd | T134: 324.8 | U134: 12.99355923 | V134: 31.4 | W134: 0.8435191404 | X134: 13.1 | Y134: 0.3674511234 | Z134: 46.8 | AA134: 1.30014446 | AB134: 147.6 | AC134: 3.011814639 | AD134: 8.3 | AE134: 0.077956964 | AF134: 20.9 | AG134: 0.2495641583 | AH134: 34.6 | AI134: 0.4408822742 | AJ134: 42.5 | AK134: 0.349920959 | AL134: 46.8 | AM134: 0.5589060727 | AN134: 135.1224975 | AO134: 0.9679041632 | AP134: 173.5108817 | AQ134: 0.9508128911 | AR134: 243.1485498 | AS134: 0.8089532707 | AT134: 330.8221803 | AU134: 1.372751357 | AV134: 149.4772055 | AW134: 0.8190545824 | AX134: 229.2353715 | AY134: 0.9163707754 | AZ134: 741.023564 | BA134: 2.872649236 | BB134: 591.5703159 | BC134: 2.785761524 | BD134: 819.2910718 | BE134: 2.529180696 | BF134: 810.4964768 | BG134: 2.74713809 | BH134: 449.5262604 | BI134: 2.518281309 | BJ134: 517.5682143 | BK134: 1.903537425 | BL134: 711.2789782 | BM134: 2.774907841 | BN134: 720.6296192 | BO134: 3.310298839 | BP134: 421.3367491 | BQ134: 0.871350949 | BR134: 228.7008201 | BS134: 0.7535130255 | BT134: 352.014288 | BU134: 0.9793452177 | BV134: 510.7854987 | BW134: 1.637687545 | BX134: 568.9393561 | BY134: 1.672500505 | BZ134: 443.0643325 | CA134: 1.299271975 | CB134: 464.9731838 | CC134: 1.343190088 | CD134: 607.8694713 | CE134: 2.154752264 | CF134: 1085.031477 | CG134: 3.240176883 | CH134: 818.4783847 | CI134: 2.253752719 | CJ134: 1141.11867 | CK134: 3.145227043 | CL134: 174.3235055 | CM134: 0.4804820198
A135: Campeche | B135: nd | C135: nd | D135: nd | E135: nd | F135: nd | G135: nd | H135: nd | I135: nd | J135: nd | K135: nd | L135: nd | M135: nd | N135: nd | O135: nd | P135: nd | Q135: nd | R135: nd | S135: nd | T135: 0 | U135: 0 | V135: 0 | W135: 0 | X135: 0 | Y135: 0 | Z135: 0.3 | AA135: 0.008334259362 | AB135: 5.2 | AC135: 0.1061072908 | AD135: 2.1 | AE135: 0.01972405113 | AF135: 0.5 | AG135: 0.005970434409 | AH135: 0 | AI135: 0 | AJ135: 1.8 | AK135: 0.01482018179 | AL135: 0.1 | AM135: 0.001194243745 | AN135: 30.505075 | AO135: 0.2185127542 | AP135: 25.308216 | AQ135: 0.1386851233 | AR135: 51.634708 | AS135: 0.1717882585 | AT135: 190.918863 | AU135: 0.7922205459 | AV135: 65.706121 | AW135: 0.3600341557 | AX135: 149.047489 | AY135: 0.5958188832 | AZ135: 129.300058 | BA135: 0.5012441316 | BB135: 30.41914107 | BC135: 0.1432466615 | BD135: 134.523132 | BE135: 0.415277696 | BF135: 150.0526385 | BG135: 0.5085960649 | BH135: 26.16739962 | BI135: 0.1465918216 | BJ135: 73.20354795 | BK135: 0.2692315511 | BL135: 24.79756059 | BM135: 0.09674255451 | BN135: 209.6683149 | BO135: 0.963136625 | BP135: 278.4169567 | BQ135: 0.5757838118 | BR135: 218.5742756 | BS135: 0.720148549 | BT135: 543.0071556 | BU135: 1.510709875 | BV135: 142.1679444 | BW135: 0.4558208337 | BX135: 328.3459964 | BY135: 0.9652326546 | BZ135: 123.4906007 | CA135: 0.3621322344 | CB135: 151.8657313 | CC135: 0.4387017403 | CD135: 209.1451006 | CE135: 0.7413694886 | CF135: 218.4180737 | CG135: 0.652251302 | CH135: 40.24158793 | CI135: 0.1108087763 | CJ135: 74.52219042 | CK135: 0.205403009 | CL135: 12.59820999 | CM135: 0.03472402282
A136: Chiapas | B136: nd | C136: nd | D136: nd | E136: nd | F136: nd | G136: nd | H136: nd | I136: nd | J136: nd | K136: nd | L136: nd | M136: nd | N136: nd | O136: nd | P136: nd | Q136: nd | R136: nd | S136: nd | T136: 0.9 | U136: 0.03600432052 | V136: 0 | W136: 0 | X136: 2.3 | Y136: 0.06451431937 | Z136: 19.8 | AA136: 0.5500611179 | AB136: 4.2 | AC136: 0.08570204257 | AD136: 0.4 | AE136: 0.00375696212 | AF136: 0.4 | AG136: 0.004776347527 | AH136: 1 | AI136: 0.01274226226 | AJ136: 0.4 | AK136: 0.003293373732 | AL136: 0.4 | AM136: 0.004776974981 | AN136: 34.01038882 | AO136: 0.2436218804 | AP136: 43.472612 | AQ136: 0.238223214 | AR136: 199.301561 | AS136: 0.6630746915 | AT136: 207.626804 | AU136: 0.8615503854 | AV136: 114.2917081 | AW136: 0.6262570063 | AX136: 232.204182 | AY136: 0.928238626 | AZ136: 142.076015 | BA136: 0.5507713597 | BB136: 89.256227 | BC136: 0.4203161589 | BD136: 186.876594 | BE136: 0.5768946964 | BF136: 63.203183 | BG136: 0.2142240915 | BH136: 91.88158019 | BI136: 0.5147278066 | BJ136: 157.6758362 | BK136: 0.5799078205 | BL136: 92.80881925 | BM136: 0.3620744155 | BN136: 121.0916849 | BO136: 0.5562492206 | BP136: 182.4139759 | BQ136: 0.3772435975 | BR136: 36.56443398 | BS136: 0.1204708285 | BT136: 270.0755851 | BU136: 0.7513820935 | BV136: 139.7876584 | BW136: 0.4481891278 | BX136: 217.0865223 | BY136: 0.6381652356 | BZ136: 70.22050105 | CA136: 0.205919372 | CB136: 256.6473096 | CC136: 0.7413892547 | CD136: 133.1424006 | CE136: 0.471958048 | CF136: 157.0403179 | CG136: 0.4689618861 | CH136: 186.7404323 | CI136: 0.5142063187 | CJ136: 39.83869197 | CK136: 0.1098060479 | CL136: 9.418437331 | CM136: 0.0259597223
A137: Chihuahua | B137: nd | C137: nd | D137: nd | E137: nd | F137: nd | G137: nd | H137: nd | I137: nd | J137: nd | K137: nd | L137: nd | M137: nd | N137: nd | O137: nd | P137: nd | Q137: nd | R137: nd | S137: nd | T137: 77.8 | U137: 3.112373485 | V137: 24.1 | W137: 0.6474143721 | X137: 17.8 | Y137: 0.4992847325 | Z137: 95.3 | AA137: 2.647516391 | AB137: 27.2 | AC137: 0.5550227519 | AD137: 308.4 | AE137: 2.896617795 | AF137: 528.7 | AG137: 6.313137344 | AH137: 536.7 | AI137: 6.838772156 | AJ137: 504 | AK137: 4.149650902 | AL137: 620 | AM137: 7.40431122 | AN137: 635.015674 | AO137: 4.548719317 | AP137: 1387.364799 | AQ137: 7.602545288 | AR137: 1076.448629 | AS137: 3.581335938 | AT137: 1362.675931 | AU137: 5.654443216 | AV137: 1120.02145 | AW137: 6.137114334 | AX137: 1459.538949 | AY137: 5.834522086 | AZ137: 1692.013764 | BA137: 6.559254364 | BB137: 1948.818072 | BC137: 9.177171768 | BD137: 2267.159666 | BE137: 6.998802575 | BF137: 2625.23309 | BG137: 8.898098907 | BH137: 1424.710974 | BI137: 7.981342433 | BJ137: 1847.780537 | BK137: 6.795856678 | BL137: 1218.112005 | BM137: 4.752212083 | BN137: 1186.894459 | BO137: 5.452142466 | BP137: 2311.449933 | BQ137: 4.780224124 | BR137: 1936.579717 | BS137: 6.380554479 | BT137: 2524.517071 | BU137: 7.023503889 | BV137: 1986.065345 | BW137: 6.367750236 | BX137: 1825.311644 | BY137: 5.365834889 | BZ137: 1241.944623 | CA137: 3.641962859 | CB137: 1406.994063 | CC137: 4.064450476 | CD137: 641.0634074 | CE137: 2.272416849 | CF137: 1907.594107 | CG137: 5.696555777 | CH137: 1868.607757 | CI137: 5.145376949 | CJ137: 1980.082366 | CK137: 5.457634483 | CL137: 683.0573548 | CM137: 1.882688032
A138: Ciudad de México | B138: nd | C138: nd | D138: nd | E138: nd | F138: nd | G138: nd | H138: nd | I138: nd | J138: nd | K138: nd | L138: nd | M138: nd | N138: nd | O138: nd | P138: nd | Q138: nd | R138: nd | S138: nd | T138: 1292.3 | U138: 51.69820378 | V138: 2226.02 | W138: 59.79905977 | X138: 2389.4 | Y138: 67.02196292 | Z138: 2028.6 | AA138: 56.35626181 | AB138: 3088.89 | AC138: 63.0295672 | AD138: 7602.9 | AE138: 71.40951826 | AF138: 4486.4 | AG138: 53.57151386 | AH138: 4777 | AI138: 60.86978682 | AJ138: 6643.8 | AK138: 54.701291 | AL138: 4000.6 | AM138: 47.77691527 | AN138: 3640.473033 | AO138: 26.07729334 | AP138: 5311.350189 | AQ138: 29.10538048 | AR138: 10219.45417 | AS138: 34.00004187 | AT138: 6504.409522 | AU138: 26.99014011 | AV138: 3521.352366 | AW138: 19.29511447 | AX138: 5573.048248 | AY138: 22.27831818 | AZ138: 5984.294464 | BA138: 23.19869401 | BB138: 5671.130318 | BC138: 26.7058982 | BD138: 6931.542673 | BE138: 21.39791892 | BF138: 7724.065395 | BG138: 26.18034114 | BH138: 5254.643944 | BI138: 29.43692682 | BJ138: 4064.564035 | BK138: 14.9488503 | BL138: 7507.596454 | BM138: 29.28933499 | BN138: 1337.453098 | BO138: 6.143751688 | BP138: 5835.332902 | BQ138: 12.06783617 | BR138: 6126.781376 | BS138: 20.18623969 | BT138: 5909.157065 | BU138: 16.43997107 | BV138: 6750.140502 | BW138: 21.64239403 | BX138: 5106.31046 | BY138: 15.01092644 | BZ138: 5836.89894 | CA138: 17.11651934 | CB138: 8777.881885 | CC138: 25.35708369 | CD138: 6993.828978 | CE138: 24.79145529 | CF138: 7162.767263 | CG138: 21.38982454 | CH138: 11122.91207 | CI138: 30.62792347 | CJ138: 11199.64092 | CK138: 30.86919388 | CL138: 12042.99368 | CM138: 33.19369876
A139: Coahuila de Zaragoza | B139: nd | C139: nd | D139: nd | E139: nd | F139: nd | G139: nd | H139: nd | I139: nd | J139: nd | K139: nd | L139: nd | M139: nd | N139: nd | O139: nd | P139: nd | Q139: nd | R139: nd | S139: nd | T139: 17.2 | U139: 0.6880825699 | V139: 3.2 | W139: 0.08596373405 | X139: 24 | Y139: 0.6731928978 | Z139: 7.7 | AA139: 0.213912657 | AB139: 30.8 | AC139: 0.6284816455 | AD139: 102.3 | AE139: 0.9608430623 | AF139: 120.4 | AG139: 1.437680606 | AH139: 147.6 | AI139: 1.88075791 | AJ139: 114.4 | AK139: 0.9419048874 | AL139: 134.6 | AM139: 1.607452081 | AN139: 481.6971304 | AO139: 3.450473951 | AP139: 511.216768 | AQ139: 2.801389103 | AR139: 1129.868729 | AS139: 3.75906418 | AT139: 885.79995 | AU139: 3.67563953 | AV139: 824.4513931 | AW139: 4.517549609 | AX139: 841.530276 | AY139: 3.364026007 | AZ139: 642.152013 | BA139: 2.489364143 | BB139: 608.277464 | BC139: 2.864437091 | BD139: 666.2903059 | BE139: 2.056861887 | BF139: 583.083045 | BG139: 1.976331407 | BH139: 381.2102947 | BI139: 2.13556992 | BJ139: 751.2012138 | BK139: 2.762804176 | BL139: 647.1415265 | BM139: 2.524688837 | BN139: 539.3666573 | BO139: 2.47764562 | BP139: 1804.578936 | BQ139: 3.731982961 | BR139: 1625.461787 | BS139: 5.355497321 | BT139: 1367.224338 | BU139: 3.803779172 | BV139: 1209.584445 | BW139: 3.87818641 | BX139: 2672.544098 | BY139: 7.85642847 | BZ139: 3290.191669 | CA139: 9.64838177 | CB139: 1492.108579 | CC139: 4.310324817 | CD139: 852.1101183 | CE139: 3.020527092 | CF139: 1039.080088 | CG139: 3.10295448 | CH139: 872.633699 | CI139: 2.402874173 | CJ139: 921.443746 | CK139: 2.539744431 | CL139: 6.2494393 | CM139: 0.01722511952
A140: Colima | B140: nd | C140: nd | D140: nd | E140: nd | F140: nd | G140: nd | H140: nd | I140: nd | J140: nd | K140: nd | L140: nd | M140: nd | N140: nd | O140: nd | P140: nd | Q140: nd | R140: nd | S140: nd | T140: 33.9 | U140: 1.35616274 | V140: 22.6 | W140: 0.6071188717 | X140: 18.7 | Y140: 0.5245294662 | Z140: 128.3 | AA140: 3.564284921 | AB140: 18.3 | AC140: 0.3734160426 | AD140: 102.9 | AE140: 0.9664785055 | AF140: 3 | AG140: 0.03582260645 | AH140: 4 | AI140: 0.05096904904 | AJ140: 3.5 | AK140: 0.02881702016 | AL140: 4.1 | AM140: 0.04896399355 | AN140: 31.64576 | AO140: 0.2266836642 | AP140: 15.85637245 | AQ140: 0.08689047734 | AR140: 94.618385 | AS140: 0.3147946064 | AT140: 65.52592756 | AU140: 0.2719007713 | AV140: 74.740079 | AW140: 0.4095353801 | AX140: 156.7449724 | AY140: 0.6265896531 | AZ140: 52.147011 | BA140: 0.202152912 | BB140: 106.4999816 | BC140: 0.5015186579 | BD140: 118.7007917 | BE140: 0.3664335684 | BF140: 187.5431177 | BG140: 0.6356682068 | BH140: 134.864699 | BI140: 0.7555226036 | BJ140: 264.8388771 | BK140: 0.9740372385 | BL140: 154.6133261 | BM140: 0.603191918 | BN140: 60.45569382 | BO140: 0.2777105017 | BP140: 167.7873814 | BQ140: 0.3469948784 | BR140: 195.635703 | BS140: 0.6445715866 | BT140: 165.322271 | BU140: 0.4599460335 | BV140: -24.22497056 | BW140: -0.07767043635 | BX140: 132.2200718 | BY140: 0.3886849002 | BZ140: 90.6961999 | CA140: 0.2659637035 | CB140: 41.36634316 | CC140: 0.1194969173 | CD140: 92.06589544 | CE140: 0.3263516363 | CF140: 90.1802131 | CG140: 0.2693007973 | CH140: 95.06728025 | CI140: 0.2617761756 | CJ140: 57.37672597 | CK140: 0.1581455416 | CL140: 65.19356865 | CM140: 0.1796908423
A141: Durango | B141: nd | C141: nd | D141: nd | E141: nd | F141: nd | G141: nd | H141: nd | I141: nd | J141: nd | K141: nd | L141: nd | M141: nd | N141: nd | O141: nd | P141: nd | Q141: nd | R141: nd | S141: nd | T141: 22.1 | U141: 0.8841060927 | V141: 11.2 | W141: 0.3008730692 | X141: 133.5 | Y141: 3.744635494 | Z141: 1.2 | AA141: 0.03333703745 | AB141: 7.9 | AC141: 0.161201461 | AD141: 21.5 | AE141: 0.201936714 | AF141: 41 | AG141: 0.4895756215 | AH141: 20.2 | AI141: 0.2573936977 | AJ141: 75.2 | AK141: 0.6191542616 | AL141: 61.9 | AM141: 0.7392368782 | AN141: 166.064998 | AO141: 1.189550266 | AP141: 131.615137 | AQ141: 0.721230667 | AR141: 288.855449 | AS141: 0.961019757 | AT141: 172.520536 | AU141: 0.7158764255 | AV141: 306.408175 | AW141: 1.678951777 | AX141: -82.368549 | AY141: -0.329269129 | AZ141: 76.630701 | BA141: 0.297066295 | BB141: 10.77438 | BC141: 0.05073759186 | BD141: 421.617602 | BE141: 1.301548542 | BF141: 488.132089 | BG141: 1.654499795 | BH141: 127.3688294 | BI141: 0.7135301553 | BJ141: 414.0637624 | BK141: 1.522863743 | BL141: 228.6192869 | BM141: 0.8919108693 | BN141: 268.3888163 | BO141: 1.232876312 | BP141: 482.4867997 | BQ141: 0.9978131071 | BR141: 155.8836222 | BS141: 0.513598245 | BT141: 231.0989554 | BU141: 0.6429445182 | BV141: 275.9363663 | BW141: 0.8847110019 | BX141: 131.1131911 | BY141: 0.3854310236 | BZ141: 391.0602771 | CA141: 1.146771747 | CB141: 178.5304772 | CC141: 0.5157294564 | CD141: 496.5417118 | CE141: 1.760121915 | CF141: 461.8363757 | CG141: 1.379159573 | CH141: 565.5010184 | CI141: 1.557157137 | CJ141: 377.8293061 | CK141: 1.041398219 | CL141: 106.7115066 | CM141: 0.2941253396
A142: Estado de México | B142: nd | C142: nd | D142: nd | E142: nd | F142: nd | G142: nd | H142: nd | I142: nd | J142: nd | K142: nd | L142: nd | M142: nd | N142: nd | O142: nd | P142: nd | Q142: nd | R142: nd | S142: nd | T142: 186.1 | U142: 7.444893387 | V142: 212.2 | W142: 5.700470114 | X142: 312.3 | Y142: 8.759922583 | Z142: 314.1 | AA142: 8.725969552 | AB142: 291.9 | AC142: 5.956291958 | AD142: 340.5 | AE142: 3.198114005 | AF142: 611.2 | AG142: 7.298259021 | AH142: 412.1 | AI142: 5.251086278 | AJ142: 290.4 | AK142: 2.390989329 | AL142: 747 | AM142: 8.921000776 | AN142: 1129.508219 | AO142: 8.090848879 | AP142: 1312.366772 | AQ142: 7.191567658 | AR142: 2355.957129 | AS142: 7.838250431 | AT142: 1934.040601 | AU142: 8.025329066 | AV142: 1493.458753 | AW142: 8.183349636 | AX142: 3935.615017 | AY142: 15.73266185 | AZ142: 2560.63178 | BA142: 9.926535785 | BB142: 2403.104284 | BC142: 11.31644924 | BD142: 2220.916188 | BE142: 6.856047314 | BF142: 2345.891904 | BG142: 7.951285648 | BH142: 1592.380484 | BI142: 8.920640158 | BJ142: 2028.378809 | BK142: 7.460069743 | BL142: 2712.080342 | BM142: 10.5806206 | BN142: 3119.578797 | BO142: 14.33016045 | BP142: 4608.438045 | BQ142: 9.530540291 | BR142: 3581.423824 | BS142: 11.79991178 | BT142: 2959.656233 | BU142: 8.234112297 | BV142: 2407.818872 | BW142: 7.719982239 | BX142: 3761.430412 | BY142: 11.05740743 | BZ142: 2333.819493 | CA142: 6.843850971 | CB142: 2933.014743 | CC142: 8.472738788 | CD142: 2385.284617 | CE142: 8.455264938 | CF142: 1535.538832 | CG142: 4.585505153 | CH142: 2292.698493 | CI142: 6.31314835 | CJ142: 1931.338081 | CK142: 5.323282246 | CL142: 674.8054806 | CM142: 1.859943669
A143: Guanajuato | B143: nd | C143: nd | D143: nd | E143: nd | F143: nd | G143: nd | H143: nd | I143: nd | J143: nd | K143: nd | L143: nd | M143: nd | N143: nd | O143: nd | P143: nd | Q143: nd | R143: nd | S143: nd | T143: 10.4 | U143: 0.416049926 | V143: 24.2 | W143: 0.6501007388 | X143: 5.2 | Y143: 0.1458584612 | Z143: 50.9 | AA143: 1.414046005 | AB143: 36.5 | AC143: 0.7447915604 | AD143: 27.4 | AE143: 0.2573519052 | AF143: 6.3 | AG143: 0.07522747355 | AH143: 9.8 | AI143: 0.1248741702 | AJ143: 41 | AK143: 0.3375708075 | AL143: 10.6 | AM143: 0.126589837 | AN143: 309.164243 | AO143: 2.214593154 | AP143: 307.371787 | AQ143: 1.684350022 | AR143: 857.237812 | AS143: 2.85202331 | AT143: 739.250864 | AU143: 3.067532007 | AV143: 722.169528 | AW143: 3.957100074 | AX143: 689.201802 | AY143: 2.755091352 | AZ143: 781.88629 | BA143: 3.03105753 | BB143: 596.469222 | BC143: 2.808830944 | BD143: 1091.994075 | BE143: 3.371024571 | BF143: 751.784794 | BG143: 2.548137718 | BH143: 508.597999 | BI143: 2.849205814 | BJ143: 399.2738735 | BK143: 1.468468774 | BL143: 1424.685597 | BM143: 5.558116231 | BN143: 1321.193332 | BO143: 6.069060494 | BP143: 2621.382919 | BQ143: 5.42118507 | BR143: 1317.88567 | BS143: 4.342109566 | BT143: 1752.81333 | BU143: 4.876533171 | BV143: 1332.59015 | BW143: 4.272569008 | BX143: 1677.917202 | BY143: 4.932542174 | BZ143: 2469.795662 | CA143: 7.242596736 | CB143: 796.0336179 | CC143: 2.299540064 | CD143: 199.4531093 | CE143: 0.7070136915 | CF143: 1798.073833 | CG143: 5.369500696 | CH143: 1562.938146 | CI143: 4.303688603 | CJ143: 808.212136 | CK143: 2.227647949 | CL143: 596.7792253 | CM143: 1.644882523
A144: Guerrero | B144: nd | C144: nd | D144: nd | E144: nd | F144: nd | G144: nd | H144: nd | I144: nd | J144: nd | K144: nd | L144: nd | M144: nd | N144: nd | O144: nd | P144: nd | Q144: nd | R144: nd | S144: nd | T144: 3 | U144: 0.1200144017 | V144: 153.7 | W144: 4.128945601 | X144: 3.5 | Y144: 0.09817396426 | Z144: 6.6 | AA144: 0.183353706 | AB144: 4.7 | AC144: 0.09590466668 | AD144: 7.1 | AE144: 0.06668607764 | AF144: 62.6 | AG144: 0.747498388 | AH144: 9.6 | AI144: 0.1223257177 | AJ144: 4.5 | AK144: 0.03705045449 | AL144: 2.6 | AM144: 0.03105033737 | AN144: 36.01426692 | AO144: 0.2579759813 | AP144: 49.84095088 | AQ144: 0.2731207296 | AR144: 216.7365331 | AS144: 0.7210807036 | AT144: 302.3429455 | AU144: 1.254576366 | AV144: 159.647213 | AW144: 0.8747807457 | AX144: 219.8927307 | AY144: 0.8790234716 | AZ144: 237.0806048 | BA144: 0.919065805 | BB144: 164.0267976 | BC144: 0.7724179686 | BD144: 112.3540048 | BE144: 0.3468408114 | BF144: 574.9460351 | BG144: 1.948751411 | BH144: 136.0141081 | BI144: 0.7619616834 | BJ144: 139.5511816 | BK144: 0.5132480888 | BL144: 241.8040872 | BM144: 0.9433486412 | BN144: 164.2846046 | BO144: 0.7546610929 | BP144: 1088.173729 | BQ144: 2.250411847 | BR144: 479.4057614 | BS144: 1.579524226 | BT144: 164.0899057 | BU144: 0.4565174479 | BV144: 180.6682375 | BW144: 0.5792610069 | BX144: 410.4140071 | BY144: 1.206486468 | BZ144: 402.1671796 | CA144: 1.179342383 | CB144: 275.5350094 | CC144: 0.7959510491 | CD144: 296.7729988 | CE144: 1.051989483 | CF144: 669.1022214 | CG144: 1.998107517 | CH144: 245.9366087 | CI144: 0.6772082328 | CJ144: -178.7894696 | CK144: -0.4927914067 | CL144: 12.23876595 | CM144: 0.0337332993
A145: Hidalgo | B145: nd | C145: nd | D145: nd | E145: nd | F145: nd | G145: nd | H145: nd | I145: nd | J145: nd | K145: nd | L145: nd | M145: nd | N145: nd | O145: nd | P145: nd | Q145: nd | R145: nd | S145: nd | T145: 0.2 | U145: 0.008000960115 | V145: 0.1 | W145: 0.002686366689 | X145: 5.2 | Y145: 0.1458584612 | Z145: 0.1 | AA145: 0.002778086454 | AB145: 3.5 | AC145: 0.0714183688 | AD145: 0.1 | AE145: 0.0009392405301 | AF145: 48.3 | AG145: 0.5767439639 | AH145: 60.2 | AI145: 0.7670841881 | AJ145: 2.4 | AK145: 0.01976024239 | AL145: 7.6 | AM145: 0.09076252463 | AN145: 6.662873 | AO145: 0.04772722999 | AP145: -84.997926 | AQ145: -0.4657755351 | AR145: 336.061288 | AS145: 1.118073204 | AT145: 157.107461 | AU145: 0.6519196509 | AV145: 98.257579 | AW145: 0.5383986143 | AX145: 213.6198544 | AY145: 0.8539475837 | AZ145: 111.399544 | BA145: 0.4318510645 | BB145: 194.382045 | BC145: 0.9153637485 | BD145: 87.068187 | BE145: 0.2687825919 | BF145: 121.744071 | BG145: 0.4126455626 | BH145: 111.455124 | BI145: 0.6243803317 | BJ145: 380.346931 | BK145: 1.398858349 | BL145: 265.525408 | BM145: 1.035892469 | BN145: 178.8089958 | BO145: 0.8213806308 | BP145: 470.0206862 | BQ145: 0.9720323987 | BR145: -66.07296627 | BS145: -0.2176941941 | BT145: 523.7255703 | BU145: 1.457066233 | BV145: 444.573819 | BW145: 1.42539874 | BX145: 349.3611539 | BY145: 1.027010525 | BZ145: 186.4781398 | CA145: 0.546841177 | CB145: 283.8744769 | CC145: 0.8200416643 | CD145: 278.7175237 | CE145: 0.9879871313 | CF145: 176.2685344 | CG145: 0.5263821765 | CH145: 412.7400177 | CI145: 1.136516192 | CJ145: 285.4347256 | CK145: 0.7867341417 | CL145: 136.2877936 | CM145: 0.3756454654
A146: Jalisco | B146: nd | C146: nd | D146: nd | E146: nd | F146: nd | G146: nd | H146: nd | I146: nd | J146: nd | K146: nd | L146: nd | M146: nd | N146: nd | O146: nd | P146: nd | Q146: nd | R146: nd | S146: nd | T146: 73 | U146: 2.920350442 | V146: 109.8 | W146: 2.949630625 | X146: 216.6 | Y146: 6.075565903 | Z146: 163.8 | AA146: 4.550505612 | AB146: 117.3 | AC146: 2.393535617 | AD146: 64.3 | AE146: 0.6039316609 | AF146: 114.4 | AG146: 1.366035393 | AH146: 185.6 | AI146: 2.364963876 | AJ146: 202.5 | AK146: 1.667270452 | AL146: 362.1 | AM146: 4.324356601 | AN146: 766.7881903 | AO146: 5.492627026 | AP146: 1404.398142 | AQ146: 7.695885381 | AR146: 1736.119726 | AS146: 5.776056374 | AT146: 1170.848904 | AU146: 4.858454232 | AV146: 1258.674388 | AW146: 6.896857759 | AX146: 1422.232963 | AY146: 5.685391021 | AZ146: 827.8291362 | BA146: 3.209159399 | BB146: 992.7387848 | BC146: 4.674902434 | BD146: 1837.718096 | BE146: 5.673101165 | BF146: 1040.673447 | BG146: 3.527311649 | BH146: 1005.721114 | BI146: 5.634128427 | BJ146: 2210.295162 | BK146: 8.129130507 | BL146: 1036.265968 | BM146: 4.042777375 | BN146: 1415.26239 | BO146: 6.501178028 | BP146: 2937.916386 | BQ146: 6.075796228 | BR146: 1684.598038 | BS146: 5.550336741 | BT146: 3138.397229 | BU146: 8.731390804 | BV146: 2102.260823 | BW146: 6.740297787 | BX146: 1552.88953 | BY146: 4.565000639 | BZ146: 1014.794082 | CA146: 2.975851168 | CB146: 1570.62978 | CC146: 4.537152734 | CD146: 2133.985879 | CE146: 7.564470862 | CF146: 2141.544169 | CG146: 6.395189504 | CH146: 2980.352411 | CI146: 8.206664313 | CJ146: 2049.867891 | CK146: 5.649981979 | CL146: 593.3560341 | CM146: 1.635447296
A147: Michoacán de Ocampo | B147: nd | C147: nd | D147: nd | E147: nd | F147: nd | G147: nd | H147: nd | I147: nd | J147: nd | K147: nd | L147: nd | M147: nd | N147: nd | O147: nd | P147: nd | Q147: nd | R147: nd | S147: nd | T147: 0.4 | U147: 0.01600192023 | V147: 91.5 | W147: 2.45802552 | X147: 2.3 | Y147: 0.06451431937 | Z147: 352.2 | AA147: 9.784420491 | AB147: 36.6 | AC147: 0.7468320852 | AD147: 8.5 | AE147: 0.07983544506 | AF147: 48.8 | AG147: 0.5827143983 | AH147: 1.2 | AI147: 0.01529071471 | AJ147: 4 | AK147: 0.03293373732 | AL147: 4.3 | AM147: 0.05135248104 | AN147: 25.452083 | AO147: 0.1823173605 | AP147: 28.331434 | AQ147: 0.155251892 | AR147: 319.039813 | AS147: 1.061442893 | AT147: 204.587823 | AU147: 0.8489400904 | AV147: 134.760294 | AW147: 0.7384138332 | AX147: 368.007294 | AY147: 1.471112975 | AZ147: 247.997934 | BA147: 0.9613878832 | BB147: 63.35109658 | BC147: 0.2983264079 | BD147: 1860.910894 | BE147: 5.744698158 | BF147: 187.211323 | BG147: 0.634543605 | BH147: 156.4753051 | BI147: 0.8765869115 | BJ147: 158.1951429 | BK147: 0.5818177518 | BL147: 150.6824344 | BM147: 0.5878563566 | BN147: 335.970228 | BO147: 1.543319655 | BP147: 2247.67341 | BQ147: 4.648330256 | BR147: 211.4790526 | BS147: 0.696771532 | BT147: 419.0265978 | BU147: 1.165781358 | BV147: 193.9155376 | BW147: 0.6217346842 | BX147: 294.6867248 | BY147: 0.8662851162 | BZ147: 437.0615174 | CA147: 1.281668912 | CB147: 298.0067727 | CC147: 0.8608662974 | CD147: 272.7985003 | CE147: 0.9670056055 | CF147: 1033.728079 | CG147: 3.086972034 | CH147: 166.8554744 | CI147: 0.4594513259 | CJ147: 198.3854857 | CK147: 0.5468032471 | CL147: 167.544687 | CM147: 0.4617977903
A148: Morelos | B148: nd | C148: nd | D148: nd | E148: nd | F148: nd | G148: nd | H148: nd | I148: nd | J148: nd | K148: nd | L148: nd | M148: nd | N148: nd | O148: nd | P148: nd | Q148: nd | R148: nd | S148: nd | T148: 3.2 | U148: 0.1280153618 | V148: 178.8 | W148: 4.80322364 | X148: 16.9 | Y148: 0.4740399989 | Z148: 16.3 | AA148: 0.452828092 | AB148: 18.4 | AC148: 0.3754565674 | AD148: 19.4 | AE148: 0.1822126628 | AF148: 67.6 | AG148: 0.8072027321 | AH148: 51.2 | AI148: 0.6524038278 | AJ148: 27.4 | AK148: 0.2255961006 | AL148: 60.8 | AM148: 0.7261001971 | AN148: 456.570548 | AO148: 3.270488204 | AP148: 132.424613 | AQ148: 0.7256664708 | AR148: 251.499354 | AS148: 0.8367363292 | AT148: 192.469832 | AU148: 0.7986563139 | AV148: 96.118116 | AW148: 0.5266755093 | AX148: 467.853608 | AY148: 1.870249651 | AZ148: 176.277503 | BA148: 0.6833567229 | BB148: 173.947325 | BC148: 0.8191346863 | BD148: 393.498015 | BE148: 1.214742376 | BF148: 284.792855 | BG148: 0.9652914257 | BH148: 121.6918864 | BI148: 0.681727476 | BJ148: 199.379236 | BK148: 0.7332866025 | BL148: 102.4587569 | BM148: 0.3997216517 | BN148: 274.3174821 | BO148: 1.260110351 | BP148: 451.1553229 | BQ148: 0.9330176386 | BR148: 356.5158873 | BS148: 1.174632276 | BT148: 484.803179 | BU148: 1.348779555 | BV148: 234.8683602 | BW148: 0.7530381915 | BX148: 603.0703841 | BY148: 1.772834857 | BZ148: 251.8669739 | CA148: 0.7385918401 | CB148: 655.6204728 | CC148: 1.893921953 | CD148: 386.6837293 | CE148: 1.370701574 | CF148: 94.7685623 | CG148: 0.283002762 | CH148: 81.12928789 | CI148: 0.2233966793 | CJ148: 195.5141342 | CK148: 0.5388890376 | CL148: -42.1972485 | CM148: -0.1163068579
A149: Nayarit | B149: nd | C149: nd | D149: nd | E149: nd | F149: nd | G149: nd | H149: nd | I149: nd | J149: nd | K149: nd | L149: nd | M149: nd | N149: nd | O149: nd | P149: nd | Q149: nd | R149: nd | S149: nd | T149: 0.8 | U149: 0.03200384046 | V149: 0.2 | W149: 0.005372733378 | X149: 0.1 | Y149: 0.002804970408 | Z149: 7.5 | AA149: 0.2083564841 | AB149: 0.1 | AC149: 0.002040524823 | AD149: 5.6 | AE149: 0.05259746969 | AF149: 2 | AG149: 0.02388173764 | AH149: 3.6 | AI149: 0.04587214414 | AJ149: 7.6 | AK149: 0.06257410091 | AL149: 6.1 | AM149: 0.07284886845 | AN149: 40.030777 | AO149: 0.2867468884 | AP149: 54.95860281 | AQ149: 0.3011646735 | AR149: 114.8750473 | AS149: 0.3821883589 | AT149: 105.0111405 | AU149: 0.4357452259 | AV149: 146.9001025 | AW149: 0.8049334457 | AX149: 162.7448177 | AY149: 0.6505740966 | AZ149: 146.8101696 | BA149: 0.5691237659 | BB149: 246.4878026 | BC149: 1.160734773 | BD149: 244.5930472 | BE149: 0.7550674414 | BF149: 155.1396096 | BG149: 0.5258381042 | BH149: 104.0133355 | BI149: 0.5826908496 | BJ149: 178.1276531 | BK149: 0.6551265027 | BL149: 147.6603455 | BM149: 0.5760663018 | BN149: 157.2573861 | BO149: 0.7223807195 | BP149: 535.4329246 | BQ149: 1.10730903 | BR149: 105.8003987 | BS149: 0.3485863256 | BT149: 99.04417468 | BU149: 0.2755525617 | BV149: 85.58025394 | BW149: 0.2743885963 | BX149: 103.1492609 | BY149: 0.3032259751 | BZ149: 188.5684784 | CA149: 0.5529710278 | CB149: 170.4003597 | CC149: 0.4922436002 | CD149: 782.3461773 | CE149: 2.773230564 | CF149: 302.867509 | CG149: 0.9044385553 | CH149: 474.8268205 | CI149: 1.307477702 | CJ149: 319.1025425 | CK149: 0.879531614 | CL149: 11.36730734 | CM149: 0.03133132721
A150: Nuevo León | B150: nd | C150: nd | D150: nd | E150: nd | F150: nd | G150: nd | H150: nd | I150: nd | J150: nd | K150: nd | L150: nd | M150: nd | N150: nd | O150: nd | P150: nd | Q150: nd | R150: nd | S150: nd | T150: 94.5 | U150: 3.780453654 | V150: 493.6 | W150: 13.25990598 | X150: 21.3 | Y150: 0.5974586968 | Z150: 32.6 | AA150: 0.905656184 | AB150: 353.8 | AC150: 7.219376824 | AD150: 937.4 | AE150: 8.804440729 | AF150: 704.5 | AG150: 8.412342082 | AH150: 358.4 | AI150: 4.566826794 | AJ150: 2371.4 | AK150: 19.52476617 | AL150: 672.9 | AM150: 8.036066161 | AN150: 1767.665973 | AO150: 12.66207542 | AP150: 2283.589274 | AQ150: 12.51371729 | AR150: 3106.018915 | AS150: 10.33369996 | AT150: 2583.367061 | AU150: 10.71971848 | AV150: 2331.750869 | AW150: 12.77673895 | AX150: 1408.460097 | AY150: 5.630333846 | AZ150: 4835.90768 | BA150: 18.74686201 | BB150: 1727.215635 | BC150: 8.133624576 | BD150: 3593.201468 | BE150: 11.09234081 | BF150: 1670.879112 | BG150: 5.663362868 | BH150: 952.5564223 | BI150: 5.336295664 | BJ150: 4841.88555 | BK150: 17.80772098 | BL150: 1679.237423 | BM150: 6.551197539 | BN150: 1281.124893 | BO150: 5.885001302 | BP150: 2214.573366 | BQ150: 4.579877279 | BR150: 1578.6628 | BS150: 5.201306153 | BT150: 3362.49033 | BU150: 9.354844211 | BV150: 3346.026187 | BW150: 10.72807553 | BX150: 1996.236427 | BY150: 5.868299314 | BZ150: 3675.73639 | CA150: 10.77897933 | CB150: 3274.642198 | CC150: 9.459614218 | CD150: 3142.641696 | CE150: 11.13991511 | CF150: 3291.675384 | CG150: 9.829770578 | CH150: 4429.333112 | CI150: 12.196561 | CJ150: 2553.08541 | CK150: 7.036983517 | CL150: 1350.721627 | CM150: 3.722948627
A151: Oaxaca | B151: nd | C151: nd | D151: nd | E151: nd | F151: nd | G151: nd | H151: nd | I151: nd | J151: nd | K151: nd | L151: nd | M151: nd | N151: nd | O151: nd | P151: nd | Q151: nd | R151: nd | S151: nd | T151: 6.4 | U151: 0.2560307237 | V151: 0 | W151: 0 | X151: 1.2 | Y151: 0.03365964489 | Z151: 1.5 | AA151: 0.04167129681 | AB151: 5.6 | AC151: 0.1142693901 | AD151: 0.1 | AE151: 0.0009392405301 | AF151: -2 | AG151: -0.02388173764 | AH151: 0.3 | AI151: 0.003822678678 | AJ151: 6.1 | AK151: 0.05022394941 | AL151: 0.4 | AM151: 0.004776974981 | AN151: 46.902999 | AO151: 0.3359737189 | AP151: 16.690637 | AQ151: 0.0914621185 | AR151: 144.346271 | AS151: 0.4802388834 | AT151: 147.720108 | AU151: 0.6129666957 | AV151: 111.506719 | AW151: 0.6109967659 | AX151: 144.643148 | AY151: 0.5782124844 | AZ151: 126.588184 | BA151: 0.4907312907 | BB151: 110.280779 | BC151: 0.5193227965 | BD151: 172.7584606 | BE151: 0.5333115162 | BF151: 201.1799768 | BG151: 0.6818896725 | BH151: 235.9279753 | BI151: 1.321686991 | BJ151: 117.5691321 | BK151: 0.4324014436 | BL151: 178.1169857 | BM151: 0.6948865853 | BN151: 353.7004505 | BO151: 1.624765565 | BP151: 1942.551064 | BQ151: 4.017318016 | BR151: 482.7963974 | BS151: 1.590695538 | BT151: 297.1991825 | BU151: 0.8268431368 | BV151: 195.5256068 | BW151: 0.6268969103 | BX151: 484.8065274 | BY151: 1.425176784 | BZ151: 487.8192672 | CA151: 1.430514389 | CB151: 56.61707199 | CC151: 0.1635524209 | CD151: 244.3184903 | CE151: 0.8660507643 | CF151: -92.60179789 | CG151: -0.2765322586 | CH151: 157.5600633 | CI151: 0.4338555882 | CJ151: 53.21100473 | CK151: 0.1466637041 | CL151: 6.781134595 | CM151: 0.0186906134
A152: Puebla | B152: nd | C152: nd | D152: nd | E152: nd | F152: nd | G152: nd | H152: nd | I152: nd | J152: nd | K152: nd | L152: nd | M152: nd | N152: nd | O152: nd | P152: nd | Q152: nd | R152: nd | S152: nd | T152: 10.1 | U152: 0.4040484858 | V152: 13.5 | W152: 0.362659503 | X152: 15.4 | Y152: 0.4319654428 | Z152: 8.5 | AA152: 0.2361373486 | AB152: 59.7 | AC152: 1.218193319 | AD152: 29.9 | AE152: 0.2808329185 | AF152: 25.9 | AG152: 0.3092685024 | AH152: 39.2 | AI152: 0.4994966806 | AJ152: 379.3 | AK152: 3.122941641 | AL152: 37.9 | AM152: 0.4526183794 | AN152: 296.482464 | AO152: 2.123751533 | AP152: 382.0075262 | AQ152: 2.093342371 | AR152: 778.0410464 | AS152: 2.588536307 | AT152: 708.9985271 | AU152: 2.941999504 | AV152: 458.4920979 | AW152: 2.512289766 | AX152: 638.4262457 | AY152: 2.552115539 | AZ152: 782.8723621 | BA152: 3.034880133 | BB152: 424.9798124 | BC152: 2.001270817 | BD152: 662.70076 | BE152: 2.045780831 | BF152: 381.1317123 | BG152: 1.291827261 | BH152: 182.5483941 | BI152: 1.022650398 | BJ152: 772.9024023 | BK152: 2.842617858 | BL152: 594.4525029 | BM152: 2.319133507 | BN152: 775.324596 | BO152: 3.561546794 | BP152: 1504.514629 | BQ152: 3.111431063 | BR152: 1057.162873 | BS152: 3.483091991 | BT152: 791.4572466 | BU152: 2.201927296 | BV152: 1166.539609 | BW152: 3.740175462 | BX152: 953.566361 | BY152: 2.8031814 | BZ152: 643.9282611 | CA152: 1.888299017 | CB152: 2043.985091 | CC152: 5.904556669 | CD152: 583.0419922 | CE152: 2.066744773 | CF152: 627.8019507 | CG152: 1.874774522 | CH152: 798.1524633 | CI152: 2.197783494 | CJ152: 278.5841378 | CK152: 0.7678520969 | CL152: 362.4627083 | CM152: 0.9990437819
A153: Querétaro | B153: nd | C153: nd | D153: nd | E153: nd | F153: nd | G153: nd | H153: nd | I153: nd | J153: nd | K153: nd | L153: nd | M153: nd | N153: nd | O153: nd | P153: nd | Q153: nd | R153: nd | S153: nd | T153: 37.3 | U153: 1.492179061 | V153: 10.1 | W153: 0.2713230356 | X153: 42.1 | Y153: 1.180892542 | Z153: 70.5 | AA153: 1.95855095 | AB153: 61.3 | AC153: 1.250841716 | AD153: 141.1 | AE153: 1.325268388 | AF153: 42 | AG153: 0.5015164903 | AH153: 69.8 | AI153: 0.8894099058 | AJ153: 73.2 | AK153: 0.602687393 | AL153: 125.1 | AM153: 1.493998925 | AN153: 255.193758 | AO153: 1.827993897 | AP153: 628.2089449 | AQ153: 3.442488202 | AR153: 838.6784883 | AS153: 2.790276589 | AT153: 654.15458 | AU153: 2.714423763 | AV153: 271.2228046 | AW153: 1.486154896 | AX153: 456.0213479 | AY153: 1.822950068 | AZ153: 594.7610011 | BA153: 2.30564832 | BB153: 750.580545 | BC153: 3.534555988 | BD153: 815.2668775 | BE153: 2.516757865 | BF153: 1071.503836 | BG153: 3.631809743 | BH153: 1131.613685 | BI153: 6.33938847 | BJ153: 852.0334155 | BK153: 3.133649727 | BL153: 1054.787516 | BM153: 4.115035363 | BN153: 105.4047042 | BO153: 0.4841891878 | BP153: 926.5999158 | BQ153: 1.916267018 | BR153: 1128.731131 | BS153: 3.718891822 | BT153: 1442.468949 | BU153: 4.013118545 | BV153: 1075.46587 | BW153: 3.448173576 | BX153: 985.9967149 | BY153: 2.898516312 | BZ153: 1227.646784 | CA153: 3.600034904 | CB153: 1169.073992 | CC153: 3.377159484 | CD153: 861.0290143 | CE153: 3.052142451 | CF153: 879.6675406 | CG153: 2.626908519 | CH153: 719.4251164 | CI153: 1.981000773 | CJ153: 1107.352056 | CK153: 3.052157258 | CL153: 489.3142179 | CM153: 1.348680335
A154: Quintana Roo | B154: nd | C154: nd | D154: nd | E154: nd | F154: nd | G154: nd | H154: nd | I154: nd | J154: nd | K154: nd | L154: nd | M154: nd | N154: nd | O154: nd | P154: nd | Q154: nd | R154: nd | S154: nd | T154: 7.7 | U154: 0.3080369644 | V154: 9.3 | W154: 0.2498321021 | X154: 15.4 | Y154: 0.4319654428 | Z154: 39 | AA154: 1.083453717 | AB154: 1.01 | AC154: 0.02060930071 | AD154: 38.6 | AE154: 0.3625468446 | AF154: 24.6 | AG154: 0.2937453729 | AH154: 25.5 | AI154: 0.3249276877 | AJ154: 129.2 | AK154: 1.063759715 | AL154: 43.8 | AM154: 0.5230787604 | AN154: 133.384221 | AO154: 0.9554526093 | AP154: 201.4203372 | AQ154: 1.103752406 | AR154: 411.2790252 | AS154: 1.368322011 | AT154: 246.524557 | AU154: 1.022957166 | AV154: 273.5352545 | AW154: 1.498825876 | AX154: 271.182644 | AY154: 1.084055432 | AZ154: 351.7567363 | BA154: 1.363618876 | BB154: 412.1093647 | BC154: 1.940662641 | BD154: 1001.720007 | BE154: 3.092345311 | BF154: 297.5620876 | BG154: 1.008572114 | BH154: 290.4827907 | BI154: 1.627307339 | BJ154: 296.6994921 | BK154: 1.09121575 | BL154: 504.6000534 | BM154: 1.968592757 | BN154: 583.7038787 | BO154: 2.68131398 | BP154: 930.2926884 | BQ154: 1.923903905 | BR154: 223.9353056 | BS154: 0.7378118258 | BT154: 325.2849398 | BU154: 0.9049810222 | BV154: 296.5133674 | BW154: 0.9506852679 | BX154: 479.3342013 | BY154: 1.409089889 | BZ154: 591.4735 | CA154: 1.734477109 | CB154: 664.1432219 | CC154: 1.918542022 | CD154: 160.8540919 | CE154: 0.5701893828 | CF154: 471.2875509 | CG154: 1.407383159 | CH154: 456.2775071 | CI154: 1.256400525 | CJ154: 1021.593913 | CK154: 2.815784971 | CL154: 82.90759301 | CM154: 0.2285154124
A155: San Luis Potosí | B155: nd | C155: nd | D155: nd | E155: nd | F155: nd | G155: nd | H155: nd | I155: nd | J155: nd | K155: nd | L155: nd | M155: nd | N155: nd | O155: nd | P155: nd | Q155: nd | R155: nd | S155: nd | T155: 23.8 | U155: 0.9521142537 | V155: 14 | W155: 0.3760913365 | X155: 25.2 | Y155: 0.7068525427 | Z155: 3.4 | AA155: 0.09445493944 | AB155: 78.1 | AC155: 1.593649887 | AD155: 14.8 | AE155: 0.1390075985 | AF155: 135.3 | AG155: 1.615599551 | AH155: 89.1 | AI155: 1.135335567 | AJ155: 1.1 | AK155: 0.009056777763 | AL155: 6.1 | AM155: 0.07284886845 | AN155: 255.417118 | AO155: 1.82959386 | AP155: 312.281535 | AQ155: 1.711254685 | AR155: 429.456201 | AS155: 1.428797329 | AT155: 265.304132 | AU155: 1.100883281 | AV155: 444.802608 | AW155: 2.437278734 | AX155: 292.248836 | AY155: 1.168267753 | AZ155: 462.367013 | BA155: 1.79241027 | BB155: 198.717272 | BC155: 0.9357787494 | BD155: 523.921987 | BE155: 1.61736582 | BF155: 460.727327 | BG155: 1.561612697 | BH155: 85.025897 | BI155: 0.4763217326 | BJ155: 473.494727 | BK155: 1.74144182 | BL155: 268.2640268 | BM155: 1.046576624 | BN155: 880.3243566 | BO155: 4.043875825 | BP155: 2008.126459 | BQ155: 4.152932065 | BR155: 1064.819352 | BS155: 3.508318211 | BT155: 1899.056326 | BU155: 5.283398415 | BV155: 814.9289544 | BW155: 2.612836508 | BX155: 1405.862446 | BY155: 4.132787837 | BZ155: 1766.425384 | CA155: 5.179985906 | CB155: 853.8282108 | CC155: 2.466494046 | CD155: 913.2152233 | CE155: 3.237130112 | CF155: 702.3223746 | CG155: 2.09731125 | CH155: 323.1358434 | CI155: 0.8897831627 | CJ155: 1115.658461 | CK155: 3.075051922 | CL155: 663.5655104 | CM155: 1.828963316
A156: Sinaloa | B156: nd | C156: nd | D156: nd | E156: nd | F156: nd | G156: nd | H156: nd | I156: nd | J156: nd | K156: nd | L156: nd | M156: nd | N156: nd | O156: nd | P156: nd | Q156: nd | R156: nd | S156: nd | T156: 3.4 | U156: 0.136016322 | V156: 5.6 | W156: 0.1504365346 | X156: 25.4 | Y156: 0.7124624835 | Z156: 1.8 | AA156: 0.05000555617 | AB156: 0.8 | AC156: 0.01632419858 | AD156: 46.2 | AE156: 0.4339291249 | AF156: 94.1 | AG156: 1.123635756 | AH156: 28.7 | AI156: 0.3657029269 | AJ156: 36 | AK156: 0.2964036359 | AL156: 13.6 | AM156: 0.1624171493 | AN156: 81.125646 | AO156: 0.5811160388 | AP156: 31.74318307 | AQ156: 0.1739477512 | AR156: 387.1472791 | AS156: 1.288035886 | AT156: 149.9335197 | AU156: 0.6221512792 | AV156: 140.3619506 | AW156: 0.7691078944 | AX156: 234.5691879 | AY156: 0.9376927616 | AZ156: 104.7665836 | BA156: 0.4061377547 | BB156: 146.6563713 | BC156: 0.6906189599 | BD156: 278.2076613 | BE156: 0.8588369514 | BF156: 175.9162188 | BG156: 0.5962594027 | BH156: 149.9618404 | BI156: 0.8400979721 | BJ156: 217.6156725 | BK156: 0.8003574513 | BL156: 230.9441679 | BM156: 0.9009809119 | BN156: 432.5046789 | BO156: 1.986762268 | BP156: 605.4279996 | BQ156: 1.252063256 | BR156: 399.9885181 | BS156: 1.317863917 | BT156: 428.6680565 | BU156: 1.192605032 | BV156: 434.8697193 | BW156: 1.394285321 | BX156: 761.5658971 | BY156: 2.238761186 | BZ156: 414.9616111 | CA156: 1.216861644 | CB156: 262.5858449 | CC156: 0.7585441833 | CD156: 743.2499602 | CE156: 2.634643801 | CF156: 543.1376101 | CG156: 1.621945507 | CH156: 870.8630063 | CI156: 2.397998414 | CJ156: 416.373746 | CK156: 1.147636963 | CL156: 141.7585613 | CM156: 0.3907243585
A157: Sonora | B157: nd | C157: nd | D157: nd | E157: nd | F157: nd | G157: nd | H157: nd | I157: nd | J157: nd | K157: nd | L157: nd | M157: nd | N157: nd | O157: nd | P157: nd | Q157: nd | R157: nd | S157: nd | T157: 12.1 | U157: 0.484058087 | V157: 25.1 | W157: 0.674278039 | X157: 6.7 | Y157: 0.1879330173 | Z157: 11.1 | AA157: 0.3083675964 | AB157: 89.6 | AC157: 1.828310241 | AD157: 107.1 | AE157: 1.005926608 | AF157: 155.4 | AG157: 1.855611014 | AH157: 108.3 | AI157: 1.379987003 | AJ157: 159.7 | AK157: 1.314879463 | AL157: 171.1 | AM157: 2.043351048 | AN157: 321.3973149 | AO157: 2.302220614 | AP157: 651.091086 | AQ157: 3.567878809 | AR157: 513.823934 | AS157: 1.709488098 | AT157: 671.0869954 | AU157: 2.784685062 | AV157: 586.2905776 | AW157: 3.212556607 | AX157: 1265.902754 | AY157: 5.06045939 | AZ157: 656.0542571 | BA157: 2.543257532 | BB157: 458.5084812 | BC157: 2.159160544 | BD157: 961.136627 | BE157: 2.967062973 | BF157: 1577.22335 | BG157: 5.345921253 | BH157: 358.4186978 | BI157: 2.00788961 | BJ157: 1109.37024 | BK157: 4.080095555 | BL157: 304.1383039 | BM157: 1.186532697 | BN157: 1172.855866 | BO157: 5.387654502 | BP157: 2088.716284 | BQ157: 4.319596901 | BR157: 815.2924712 | BS157: 2.686188429 | BT157: 609.9534083 | BU157: 1.696962236 | BV157: 506.3913493 | BW157: 1.623598962 | BX157: 368.1286512 | BY157: 1.082180989 | BZ157: 155.0995603 | CA157: 0.4548244967 | CB157: 449.6398056 | CC157: 1.298895831 | CD157: 582.332223 | CE157: 2.064228811 | CF157: 899.240062 | CG157: 2.685356991 | CH157: 464.1839759 | CI157: 1.278171687 | CJ157: 2711.77665 | CK157: 7.474378847 | CL157: 63.86277212 | CM157: 0.1760228126
A158: Tabasco | B158: nd | C158: nd | D158: nd | E158: nd | F158: nd | G158: nd | H158: nd | I158: nd | J158: nd | K158: nd | L158: nd | M158: nd | N158: nd | O158: nd | P158: nd | Q158: nd | R158: nd | S158: nd | T158: 0 | U158: 0 | V158: 0 | W158: 0 | X158: 0 | Y158: 0 | Z158: 1.6 | AA158: 0.04444938326 | AB158: 2.5 | AC158: 0.05101312057 | AD158: 0.6 | AE158: 0.005635443181 | AF158: 1.2 | AG158: 0.01432904258 | AH158: 0 | AI158: 0 | AJ158: 7.6 | AK158: 0.06257410091 | AL158: 0.4 | AM158: 0.004776974981 | AN158: 32.160021 | AO158: 0.2303673984 | AP158: 79.638677 | AQ158: 0.4364076765 | AR158: 231.553504 | AS158: 0.7703766466 | AT158: 201.495179 | AU158: 0.83610712 | AV158: 140.3494706 | AW158: 0.769039511 | AX158: 284.450151 | AY158: 1.137092429 | AZ158: 158.086737 | BA158: 0.612838466 | BB158: 82.408777 | BC158: 0.3880708582 | BD158: 179.600399 | BE158: 0.5544328235 | BF158: 135.0834019 | BG158: 0.4578585709 | BH158: 90.36613927 | BI158: 0.5062381879 | BJ158: 141.2624873 | BK158: 0.5195420118 | BL158: 233.2425913 | BM158: 0.9099477355 | BN158: 325.4679448 | BO158: 1.495076154 | BP158: 323.9347567 | BQ158: 0.6699174907 | BR158: 241.6646183 | BS158: 0.7962255564 | BT158: 737.4853953 | BU158: 2.051771248 | BV158: 112.7536675 | BW158: 0.3615123716 | BX158: 400.3783564 | BY158: 1.176984851 | BZ158: 530.2928506 | CA158: 1.555066813 | CB158: 490.5901884 | CC158: 1.417191144 | CD158: 464.8217699 | CE158: 1.647682288 | CF158: 300.413416 | CG158: 0.8971100165 | CH158: 27.25821882 | CI158: 0.07505791958 | CJ158: 317.8794408 | CK158: 0.8761604198 | CL158: 48.07141389 | CM158: 0.1324976226
A159: Tamaulipas | B159: nd | C159: nd | D159: nd | E159: nd | F159: nd | G159: nd | H159: nd | I159: nd | J159: nd | K159: nd | L159: nd | M159: nd | N159: nd | O159: nd | P159: nd | Q159: nd | R159: nd | S159: nd | T159: 112.6 | U159: 4.504540545 | V159: 4.38 | W159: 0.117662861 | X159: 60.8 | Y159: 1.705422008 | Z159: 37.5 | AA159: 1.04178242 | AB159: 52.9 | AC159: 1.079437631 | AD159: 362.4 | AE159: 3.403807681 | AF159: 393.7 | AG159: 4.701120053 | AH159: 334.3 | AI159: 4.259738274 | AJ159: 283.7 | AK159: 2.335825319 | AL159: 345.7 | AM159: 4.128500627 | AN159: 582.576922 | AO159: 4.173092109 | AP159: 1017.561787 | AQ159: 5.576081772 | AR159: 973.1262403 | AS159: 3.23758318 | AT159: 1097.123938 | AU159: 4.552531434 | AV159: 1011.52508 | AW159: 5.542612661 | AX159: 785.717812 | AY159: 3.140915103 | AZ159: 967.8063617 | BA159: 3.751794599 | BB159: 854.093666 | BC159: 4.022009233 | BD159: 877.436518 | BE159: 2.708677758 | BF159: 932.4279434 | BG159: 3.160418821 | BH159: 603.1635742 | BI159: 3.378969571 | BJ159: 1035.875733 | BK159: 3.809793897 | BL159: 842.8687682 | BM159: 3.288278194 | BN159: 1051.421968 | BO159: 4.829833283 | BP159: 1732.418431 | BQ159: 3.582750489 | BR159: 723.8956521 | BS159: 2.38505836 | BT159: 1103.242395 | BU159: 3.069350308 | BV159: 1149.501229 | BW159: 3.685546771 | BX159: 1543.211227 | BY159: 4.53654951 | BZ159: 1514.463468 | CA159: 4.441115651 | CB159: 1629.863377 | CC159: 4.708263635 | CD159: 707.6998916 | CE159: 2.508627289 | CF159: 1273.208975 | CG159: 3.802122221 | CH159: 979.2401151 | CI159: 2.696424381 | CJ159: 493.7515882 | CK159: 1.360910909 | CL159: 104.1051078 | CM159: 0.2869414101
A160: Tlaxcala | B160: nd | C160: nd | D160: nd | E160: nd | F160: nd | G160: nd | H160: nd | I160: nd | J160: nd | K160: nd | L160: nd | M160: nd | N160: nd | O160: nd | P160: nd | Q160: nd | R160: nd | S160: nd | T160: 12.6 | U160: 0.5040604873 | V160: 5.4 | W160: 0.1450638012 | X160: 1.1 | Y160: 0.03085467448 | Z160: 0 | AA160: 0 | AB160: 2 | AC160: 0.04081049646 | AD160: 19.3 | AE160: 0.1812734223 | AF160: 11.2 | AG160: 0.1337377308 | AH160: 7.3 | AI160: 0.09301851451 | AJ160: 3.9 | AK160: 0.03211039389 | AL160: 8.8 | AM160: 0.1050934496 | AN160: 55.006034 | AO160: 0.3940170607 | AP160: 56.027533 | AQ160: 0.3070222462 | AR160: 84.614862 | AS160: 0.2815129658 | AT160: 134.545704 | AU160: 0.5582993183 | AV160: 202.190724 | AW160: 1.107896274 | AX160: 318.045857 | AY160: 1.271391612 | AZ160: 194.353854 | BA160: 0.753431439 | BB160: 242.225978 | BC160: 1.140665431 | BD160: 92.695589 | BE160: 0.2861545822 | BF160: 123.709811 | BG160: 0.419308342 | BH160: 72.191991 | BI160: 0.4044251863 | BJ160: 91.1712334 | BK160: 0.3353139742 | BL160: 251.2297042 | BM160: 0.9801207367 | BN160: 79.50908357 | BO160: 0.3652345394 | BP160: 80.73515841 | BQ160: 0.1669653954 | BR160: 120.7129363 | BS160: 0.3977194741 | BT160: 152.5185184 | BU160: 0.4243244854 | BV160: 253.119961 | BW160: 0.811556727 | BX160: 168.048451 | BY160: 0.4940089243 | BZ160: 143.0563367 | CA160: 0.4195081289 | CB160: 345.7211787 | CC160: 0.9987011648 | CD160: 359.7538334 | CE160: 1.275241517 | CF160: 50.80516687 | CG160: 0.1517170062 | CH160: 275.0260216 | CI160: 0.7573085076 | CJ160: 311.3567795 | CK160: 0.8581822277 | CL160: 33.33748029 | CM160: 0.09188697658
A161: Veracruz de Ignacio de la Llave | B161: nd | C161: nd | D161: nd | E161: nd | F161: nd | G161: nd | H161: nd | I161: nd | J161: nd | K161: nd | L161: nd | M161: nd | N161: nd | O161: nd | P161: nd | Q161: nd | R161: nd | S161: nd | T161: 4.3 | U161: 0.1720206425 | V161: 10.3 | W161: 0.276695769 | X161: 63.2 | Y161: 1.772741298 | Z161: 9.6 | AA161: 0.2666962996 | AB161: 152.8 | AC161: 3.11792193 | AD161: 10.2 | AE161: 0.09580253407 | AF161: 29 | AG161: 0.3462851957 | AH161: 10.4 | AI161: 0.1325195275 | AJ161: 3.7 | AK161: 0.03046370702 | AL161: 38.2 | AM161: 0.4562011106 | AN161: 56.007422 | AO161: 0.4011901639 | AP161: 311.501464 | AQ161: 1.706980016 | AR161: 796.567839 | AS161: 2.650174798 | AT161: 640.317856 | AU161: 2.657008079 | AV161: 473.222924 | AW161: 2.59300676 | AX161: 652.4933724 | AY161: 2.608349024 | AZ161: 484.710835 | BA161: 1.879028249 | BB161: 252.740391 | BC161: 1.190178814 | BD161: 577.9367113 | BE161: 1.784111196 | BF161: 607.7801862 | BG161: 2.060041157 | BH161: 518.4131771 | BI161: 2.90419121 | BJ161: 1230.772751 | BK161: 4.526595583 | BL161: 1189.117356 | BM161: 4.639095456 | BN161: 1061.320845 | BO161: 4.875304964 | BP161: 1702.750026 | BQ161: 3.521394357 | BR161: 1271.254203 | BS161: 4.188470335 | BT161: 1589.121548 | BU161: 4.421123349 | BV161: 1045.512964 | BW161: 3.352138156 | BX161: 914.9217883 | BY161: 2.689578664 | BZ161: 962.0664319 | CA161: 2.821229021 | CB161: 1080.613338 | CC161: 3.121618998 | CD161: 1000.696635 | CE161: 3.547230849 | CF161: 935.3469883 | CG161: 2.793181354 | CH161: 0.00790756199 | CI161: 2.177417226e-05 | CJ161: 803.3835847 | CK161: 2.214339176 | CL161: 684.8841549 | CM161: 1.88772318
A162: Yucatán | B162: nd | C162: nd | D162: nd | E162: nd | F162: nd | G162: nd | H162: nd | I162: nd | J162: nd | K162: nd | L162: nd | M162: nd | N162: nd | O162: nd | P162: nd | Q162: nd | R162: nd | S162: nd | T162: 44.3 | U162: 1.772212666 | V162: 5.6 | W162: 0.1504365346 | X162: 1.6 | Y162: 0.04487952652 | Z162: 7 | AA162: 0.1944660518 | AB162: 1.9 | AC162: 0.03876997164 | AD162: 48.1 | AE162: 0.451774695 | AF162: 19.8 | AG162: 0.2364292026 | AH162: 48.6 | AI162: 0.6192739459 | AJ162: 14.2 | AK162: 0.1169147675 | AL162: 31 | AM162: 0.370215561 | AN162: 64.12119901 | AO162: 0.4593104525 | AP162: 82.88950203 | AQ162: 0.4542216967 | AR162: 228.9732465 | AS162: 0.7617921505 | AT162: 212.4142565 | AU162: 0.8814159879 | AV162: 194.4810556 | AW162: 1.065651443 | AX162: 184.3538557 | AY162: 0.7369564505 | AZ162: 91.23024645 | BA162: 0.3536628395 | BB162: 105.3094414 | BC162: 0.4959122898 | BD162: 192.9766391 | BE162: 0.5957257529 | BF162: 146.0968711 | BG162: 0.495188185 | BH162: 79.87859641 | BI162: 0.4474861516 | BJ162: 94.81755758 | BK162: 0.3487246017 | BL162: 165.5354327 | BM162: 0.6458022579 | BN162: 127.9209779 | BO162: 0.5876203996 | BP162: 516.6635074 | BQ162: 1.068492692 | BR162: 86.08559134 | BS162: 0.2836308779 | BT162: 213.4897891 | BU162: 0.5939537432 | BV162: 125.1417127 | BW162: 0.4012310935 | BX162: 107.842177 | BY162: 0.3170216537 | BZ162: 86.01460711 | CA162: 0.2522350825 | CB162: 159.9513485 | CC162: 0.4620590461 | CD162: 151.6577699 | CE162: 0.5375906152 | CF162: 145.545818 | CG162: 0.4346364185 | CH162: 547.3720942 | CI162: 1.507237538 | CJ162: 199.3502624 | CK162: 0.5494624289 | CL162: 48.55354116 | CM162: 0.1338264938
A163: Zacatecas | B163: nd | C163: nd | D163: nd | E163: nd | F163: nd | G163: nd | H163: nd | I163: nd | J163: nd | K163: nd | L163: nd | M163: nd | N163: nd | O163: nd | P163: nd | Q163: nd | R163: nd | S163: nd | T163: 0 | U163: 0 | V163: 0 | W163: 0 | X163: 0.2 | Y163: 0.005609940815 | Z163: 6.2 | AA163: 0.1722413602 | AB163: 0.7 | AC163: 0.01428367376 | AD163: 13.8 | AE163: 0.1296151932 | AF163: 12.2 | AG163: 0.1456785996 | AH163: 11.1 | AI163: 0.1414391111 | AJ163: 13.6 | AK163: 0.1119747069 | AL163: 13.6 | AM163: 0.1624171493 | AN163: 30.590731 | AO163: 0.2191263219 | AP163: 47.210349 | AQ163: 0.2587054367 | AR163: 62.048525 | AS163: 0.2064349439 | AT163: 209.981412 | AU163: 0.8713208649 | AV163: 119.206368 | AW163: 0.6531866956 | AX163: 233.778092 | AY163: 0.9345303475 | AZ163: -33.800504 | BA163: -0.1310309101 | BB163: 97.132104 | BC163: 0.4574044214 | BD163: 867.519411 | BE163: 2.678063296 | BF163: 1836.462303 | BG163: 6.22459898 | BH163: 301.516316 | BI163: 1.689118011 | BJ163: 381.918385 | BK163: 1.404637918 | BL163: 466.7329255 | BM163: 1.820861989 | BN163: 754.3879178 | BO163: 3.465371645 | BP163: 3973.158215 | BQ163: 8.216741569 | BR163: 758.9138019 | BS163: 2.500434563 | BT163: 107.5754891 | BU163: 0.2992876834 | BV163: 532.6161787 | BW163: 1.707681374 | BX163: 457.6370232 | BY163: 1.345307095 | BZ163: 301.7353761 | CA163: 0.8848293335 | CB163: 746.4906225 | CC163: 2.156422864 | CD163: -405.5288343 | CE163: -1.437502976 | CF163: 1320.209359 | CG163: 3.94247719 | CH163: 8.704230122 | CI163: 0.02396786851 | CJ163: 641.9358122 | CK163: 1.769346106 | CL163: -11.44733844 | CM163: -0.03155191423
A164: Total | B164: 1622.6 | C164: 100 | D164: 1701.1 | E164: 100 | F164: 626.5 | G164: 100 | H164: 683.7 | I164: 100 | J164: 1429.8 | K164: 100 | L164: 1729 | M164: 100 | N164: 2424.2 | O164: 100 | P164: 3877.2 | Q164: 100 | R164: 3157.1 | S164: 100 | T164: 2499.7 | U164: 100 | V164: 3722.5 | W164: 100 | X164: 3565.1 | Y164: 100 | Z164: 3599.6 | AA164: 100 | AB164: 4900.7 | AC164: 100 | AD164: 10646.9 | AE164: 100 | AF164: 8374.6 | AG164: 100 | AH164: 7847.9 | AI164: 100 | AJ164: 12145.6 | AK164: 100 | AL164: 8373.5 | AM164: 100 | AN164: 13960.31783 | AO164: 100 | AP164: 18248.68839 | AQ164: 100 | AR164: 30057.18112 | AS164: 100 | AT164: 24099.20621 | AU164: 100 | AV164: 18249.96878 | AW164: 100 | AX164: 25015.56987 | AY164: 100 | AZ164: 25795.8248 | BA164: 100 | BB164: 21235.4974 | BC164: 100 | BD164: 32393.53649 | BE164: 100 | BF164: 29503.30309 | BG164: 100 | BH164: 17850.51808 | BI164: 100 | BJ164: 27189.81027 | BK164: 100 | BL164: 25632.52616 | BM164: 100 | BN164: 21769.32217 | BO164: 100 | BP164: 48354.42592 | BQ164: 100 | BR164: 30351.27627 | BS164: 100 | BT164: 35943.84101 | BU164: 100 | BV164: 31189.43539 | BW164: 100 | BX164: 34017.29053 | BY164: 100 | BZ164: 34100.96893 | CA164: 100 | CB164: 34617.07975 | CC164: 100 | CD164: 28210.64312 | CE164: 100 | CF164: 33486.79766 | CG164: 100 | CH164: 36316.24613 | CI164: 100 | CJ164: 36280.96335 | CK164: 100 | CL164: 20312.65875 | CM164: 55.98709868
A165: * La diferencia entre el total de IED publicado por la Secretaría de Economía y la desagregación por país de origen, se debe a que esta última sólo incuye las nuevas inversiones reportadas al RNIE más el valor de la importación temporal de maquinaria y equipo de empresas maquiladoras.
A166: nd: Dato no disponible
A167: Fuente: Secretaría de Economía

Sheet Series Históricas
A1: SERIES HISTÓRICAS DE LA IED EN MÉXICO
A6: CONTENIDO
A7: * Nota Metodológica
A8: * IED por tipo de inversión (1980-2024), de acuerdo a los datos publicados por la Secretaría de Economía
A9: * IED por tipo de inversión (1980-2024), de acuerdo a los datos publicados por el Banco de México
A10: * IED por país de origen (1980-2024), de acuerdo a los datos publicados por la Secretaría de Economía
A11: * IED por sector económico (1980-2024), de acuerdo a los datos publicados por la Secretaría de Economía
A12: * IED por entidad federativa (1989-2024), de acuerdo a los datos publicados por la Secretaría de Economía
B68: IED por tipo de inversión (1980-2024) (millones de dólares/participación porcentual) Cifras de la Secretaría de Economía
B73: Tipo de inversión | C73: 1980 | E73: 1981 | G73: 1982 | I73: 1983 | K73: 1984 | M73: 1985 | O73: 1986 | Q73: 1987 | S73: 1988 | U73: 1989 | W73: 1990 | Y73: 1991 | AA73: 1992 | AC73: 1993 | AE73: 1994* | AG73: 1995* | AI73: 1996* | AK73: 1997* | AM73: 1998* | AO73: 1999** | AQ73: 2000** | AS73: 2001** | AU73: 2002** | AW73: 2003** | AY73: 2004** | BA73: 2005** | BC73: 2006 | BE73: 2007 | BG73: 2008 | BI73: 2009 | BK73: 2010 | BM73: 2011 | BO73: 2012 | BQ73: 2013 | BS73: 2014 | BU73: 2015 | BW73: 2016 | BY73: 2017 | CA73: 2018 | CC73: 2019 | CE73: 2020 | CG73: 2021 | CI73: 2022 | CK73: 2023 | CM73: 2T 2024
B74: Cuentas entre compañías | C74: nd | D74: nd | E74: nd | F74: nd | G74: nd | H74: nd | I74: nd | J74: nd | K74: nd | L74: nd | M74: nd | N74: nd | O74: nd | P74: nd | Q74: nd | R74: nd | S74: nd | T74: nd | U74: nd | V74: nd | W74: nd | X74: nd | Y74: nd | Z74: nd | AA74: nd | AB74: nd | AC74: nd | AD74: nd | AE74: 2933.6 | AF74: 19.48937907 | AG74: 1115.9 | AH74: 11.50863225 | AI74: 1066.3 | AJ74: 10.57057512 | AK74: 1564.209 | AL74: 11.03147507 | AM74: 3289.143 | AN74: 26.49085952 | AO74: 4986.21495 | AP74: 35.71705895 | AQ74: 5637.606776 | AR74: 30.8932163 | AS74: 3046.299236 | AT74: 10.13501994 | AU74: 5868.75971 | AV74: 24.35250215 | AW74: 7095.183763 | AX74: 38.87778576 | AY74: 7477.17014 | AZ74: 29.89176544 | BA74: 7375.618008 | BB74: 28.59248892 | BC74: 6160.97813 | BD74: =BC74/BC$91*100 -> 29.01263867 | BE74: 5856.563432 | BF74: =BE74/BE$91*100 -> 18.07941974 | BG74: 7120.10793 | BH74: =BG74/BG$91*100 -> 24.1332569 | BI74: 1476.34836 | BJ74: =BI74/BI$91*100 -> 8.270619103 | BK74: 6247.206308 | BL74: =BK74/BK$91*100 -> 22.97627765 | BM74: 5177.04381 | BN74: =BM74/BM$91*100 -> 20.19716578 | BO74: 6789.122686 | BP74: =BO74/BO$91*100 -> 31.18665167 | BQ74: 7819.210404 | BR74: =BQ74/BQ$91*100 -> 16.17061991 | BS74: 6551.738287 | BT74: =BS74/BS$91*100 -> 21.5863683 | BU74: 10539.3372 | BV74: =BU74/BU$91*100 -> 29.32167768 | BW74: 9514.901852 | BX74: =BW74/BW$91*100 -> 30.50681017 | BY74: 10096.08534 | BZ74: =BY74/BY$91*100 -> 29.67927544 | CA74: 9464.176689 | CB74: =CA74/CA$91*100 -> 27.75339527 | CC74: 2869.024725 | CD74: =CC74/CC$91*100 -> 8.287887774 | CE74: 5333.666971 | CF74: =CE74/CE$91*100 -> 18.90621749 | CG74: 5231.838544 | CH74: =CG74/CG$91*100 -> 15.62342975 | CI74: 1942.255832 | CJ74: =CI74/CI$91*100 -> 5.350731193 | CK74: 4609.993629 | CL74: =CK74/CK$91*100 -> 12.70597991 | CM74: -100.5849742 | CN74: =CM74/CM$91*100 -> -0.3234625259
B75: Nuevas inversiones | C75: nd | D75: nd | E75: nd | F75: nd | G75: nd | H75: nd | I75: nd | J75: nd | K75: nd | L75: nd | M75: nd | N75: nd | O75: nd | P75: nd | Q75: nd | R75: nd | S75: nd | T75: nd | U75: nd | V75: nd | W75: nd | X75: nd | Y75: nd | Z75: nd | AA75: nd | AB75: nd | AC75: nd | AD75: nd | AE75: 9752.1 | AF75: 64.78810117 | AG75: 7008.3 | AH75: 72.27883088 | AI75: 6431.4 | AJ75: 63.75653833 | AK75: 10465.3 | AL75: 73.80579962 | AM75: 6263 | AN75: 50.44239584 | AO75: 6606.934209 | AP75: 47.32653144 | AQ75: 8704.314254 | AR75: 47.69830066 | AS75: 23110.78134 | AT75: 76.88943587 | AU75: 15637.68304 | AV75: 64.88878887 | AW75: 8897.507294 | AX75: 48.75354804 | AY75: 14715.80185 | AZ75: 58.82991677 | BA75: 14011.18177 | BB75: 54.31606668 | BC75: 6971.855084 | BD75: =BC75/BC$91*100 -> 32.83113624 | BE75: 18026.99509 | BF75: =BE75/BE$91*100 -> 55.6499754 | BG75: 13054.30613 | BH75: =BG75/BG$91*100 -> 44.24693087 | BI75: 11008.9486 | BJ75: =BI75/BI$91*100 -> 61.67299202 | BK75: 15636.7888 | BL75: =BK75/BK$91*100 -> 57.5097385 | BM75: 9699.136043 | BN75: =BM75/BM$91*100 -> 37.83917343 | BO75: 4316.075206 | BP75: =BO75/BO$91*100 -> 19.82641061 | BQ75: 22038.62049 | BR75: =BQ75/BQ$91*100 -> 45.57725611 | BS75: 5762.814026 | BT75: =BS75/BS$91*100 -> 18.98705665 | BU75: 13449.06761 | BV75: =BU75/BU$91*100 -> 37.41689046 | BW75: 10992.01731 | BX75: =BW75/BW$91*100 -> 35.24275822 | BY75: 11940.33253 | BZ75: =BY75/BY$91*100 -> 35.10077479 | CA75: 11323.8335 | CB75: =CA75/CA$91*100 -> 33.20677935 | CC75: 13569.07018 | CD75: =CC75/CC$91*100 -> 39.19761648 | CE75: 6742.100151 | CF75: =CE75/CE$91*100 -> 23.89868218 | CG75: 15342.15492 | CH75: =CG75/CG$91*100 -> 45.81507584 | CI75: 18154.3296 | CJ75: =CI75/CI$91*100 -> 50.01346171 | CK75: 5032.835856 | CL75: =CK75/CK$91*100 -> 13.8714099 | CM75: 909.3070721 | CN75: =CM75/CM$91*100 -> 2.924162031
B76: Reinversión de utilidades | C76: nd | D76: nd | E76: nd | F76: nd | G76: nd | H76: nd | I76: nd | J76: nd | K76: nd | L76: nd | M76: nd | N76: nd | O76: nd | P76: nd | Q76: nd | R76: nd | S76: nd | T76: nd | U76: nd | V76: nd | W76: nd | X76: nd | Y76: nd | Z76: nd | AA76: nd | AB76: nd | AC76: nd | AD76: nd | AE76: 2366.601 | AF76: 15.72251977 | AG76: 1572 | AH76: 16.21253687 | AI76: 2589.736 | AJ76: 25.67288655 | AK76: 2150 | AL76: 15.16272531 | AM76: 2864 | AN76: 23.06674464 | AO76: 2367.168675 | AP76: 16.95640961 | AQ76: 3906.76736 | AR76: 21.40848305 | AS76: 3900.080174 | AT76: 12.97554419 | AU76: 2592.763463 | AV76: 10.75870898 | AW76: 2257.277719 | AX76: 12.3686662 | AY76: 2821.174987 | AZ76: 11.27831779 | BA76: 4408.848962 | BB76: 17.0914444 | BC76: 8102.918738 | BD76: 38.1574238 | BE76: 8509.977966 | BF76: 26.27060483 | BG76: 9328.889029 | BH76: 31.61981219 | BI76: 5365.221117 | BJ76: 30.05638877 | BK76: 5305.815165 | BL76: 19.51398375 | BM76: 10756.3463 | BN76: 41.96366062 | BO76: 10664.1304 | BP76: 48.9869657 | BQ76: 18496.59879 | BR76: 38.25213201 | BS76: 18036.72951 | BT76: 59.42659326 | BU76: 11955.44229 | BV76: 33.26144886 | BW76: 10682.51623 | BX76: 34.25043157 | BY76: 11981.19456 | BZ76: 35.22089616 | CA76: 13312.95874 | CB76: 39.03982546 | CC76: 18178.99315 | CD76: 52.51451958 | CE76: 16135.4123 | CF76: 57.19509971 | CG76: 12913.13839 | CH76: 38.56149397 | CI76: 16202.30091 | CJ76: 44.63580722 | CK76: 26639.24931 | CL76: 73.42261045 | CM76: 30287.60301 | CN76: 97.39928509
B77: Total | C77: 1622.6 | D77: 100 | E77: 1701.1 | F77: 100 | G77: 626.5 | H77: 100 | I77: 683.7 | J77: 100 | K77: 1429.8 | L77: 100 | M77: 1729 | N77: 100 | O77: 2424.2 | P77: 100 | Q77: 3877.2 | R77: 100 | S77: 3157.1 | T77: 100 | U77: 2499.7 | V77: 100 | W77: 3722.4 | X77: 100 | Y77: 3565 | Z77: 100 | AA77: 3599.6 | AB77: 100 | AC77: 4900.7 | AD77: 100 | AE77: 15052.301 | AF77: 100 | AG77: 9696.2 | AH77: 100 | AI77: 10087.436 | AJ77: 100 | AK77: 14179.509 | AL77: 100 | AM77: 12416.143 | AN77: 100 | AO77: 13960.31783 | AP77: 100 | AQ77: 18248.68839 | AR77: 100 | AS77: 30057.16075 | AT77: 100 | AU77: 24099.20621 | AV77: 100 | AW77: 18249.96878 | AX77: 100 | AY77: 25014.14697 | AZ77: 100 | BA77: 25795.64874 | BB77: 100 | BC77: 21235.75195 | BD77: 100.0011987 | BE77: 32393.53649 | BF77: 99.99999997 | BG77: 29503.30309 | BH77: 99.99999995 | BI77: 17850.51808 | BJ77: 99.9999999 | BK77: 27189.81027 | BL77: 99.99999991 | BM77: 25632.52616 | BN77: 99.99999983 | BO77: 21769.32829 | BP77: 100.000028 | BQ77: 48354.42968 | BR77: 100.000008 | BS77: 30351.28183 | BT77: 100.0000182 | BU77: 35943.84711 | BV77: 100.000017 | BW77: 31189.43539 | BX77: 99.99999996 | BY77: 34017.61243 | BZ77: 100.0009464 | CA77: 34100.96893 | CB77: 100.0000001 | CC77: 34617.08805 | CD77: 100.0000238 | CE77: 28211.17942 | CF77: 99.99999937 | CG77: 33487.13185 | CH77: 99.99999957 | CI77: 36298.88634 | CJ77: 100.0000001 | CK77: 36282.07879 | CL77: 100.0000003 | CM77: 31096.32511 | CN77: 99.99998459
B78: nd: Dato no disponible
B79: * La diferencia entre el total de IED publicado por la Secretaría de Economía y la desagregación por país de origen, se debe a que esta última sólo incuye las nuevas inversiones reportadas al RNIE más el valor de la importación temporal de maquinaria y equipo de empresas maquiladoras.
B80: ** De 1999 a 2005 los datos no cambian
B81: Fuente: Secretaría de Economía
B82: IED por tipo de inversión (1980-2024) (millones de dólares/participación porcentual) Cifras del Banco de México
B87: Tipo de inversión | C87: 1980 | E87: 1981 | G87: 1982 | I87: 1983 | K87: 1984 | M87: 1985 | O87: 1986 | Q87: 1987 | S87: 1988 | U87: 1989 | W87: 1990 | Y87: 1991 | AA87: 1992 | AC87: 1993 | AE87: 1994 | AG87: 1995 | AI87: 1996 | AK87: 1997 | AM87: 1998 | AO87: 1999 | AQ87: 2000 | AS87: 2001 | AU87: 2002 | AW87: 2003 | AY87: 2004 | BA87: 2005 | BC87: 2006 | BE87: 2007 | BG87: 2008 | BI87: 2009 | BK87: 2010 | BM87: 2011 | BO87: 2012 | BQ87: 2013 | BS87: 2014 | BU87: 2015 | BW87: 2016 | BY87: 2017 | CA87: 2018 | CC87: 2019 | CE87: 2020 | CG87: 2021 | CI87: 2022 | CK87: 2023 | CM87: 2T 2024
B88: Nuevas inversiones | C88: 811.662 | D88: =C88/C$91*100 -> 38.83990673 | E88: 1515.099 | F88: =E88/E$91*100 -> 49.25709548 | G88: 1248.9 | H88: =G88/G$91*100 -> 65.72127108 | I88: 1810.699 | J88: =I88/I$91*100 -> 82.61999572 | K88: 1272.999 | L88: =K88/K$91*100 -> 82.60868437 | M88: 1535.201 | N88: =M88/M$91*100 -> 77.39468643 | O88: 1869.901 | P88: =O88/O$91*100 -> 77.88985625 | Q88: 2318.4 | R88: =Q88/Q$91*100 -> 87.99821149 | S88: 2204.898 | T88: =S88/S$91*100 -> 76.55906467 | U88: 1659.402 | V88: =U88/U$91*100 -> 52.25640057 | W88: 1114.739 | X88: =W88/W$91*100 -> 42.33339334 | Y88: 3422.3 | Z88: =Y88/Y$91*100 -> 71.87443951 | AA88: 3012.3 | AB88: =AA88/AA$91*100 -> 68.57359055 | AC88: 3040.965 | AD88: =AC88/AC$91*100 -> 69.28919766 | AE88: 5672.3 | AF88: =AE88/AE$91*100 -> 51.69559793 | AG88: 6838.4 | AH88: =AG88/AG$91*100 -> 71.78442837 | AI88: 5529.415 | AJ88: =AI88/AI$91*100 -> 60.19753412 | AK88: 9115.347 | AL88: =AK88/AK$91*100 -> 71.04959049 | AM88: 6603.6215 | AN88: =AM88/AM$91*100 -> 51.76564559 | AO88: 6606.9341 | AP88: =AO88/AO$91*100 -> 47.32653078 | AQ88: 8704.3143 | AR88: =AQ88/AQ$91*100 -> 47.69830088 | AS88: 23110.8018 | AT88: =AS88/AS$91*100 -> 76.88945163 | AU88: 15637.683 | AV88: =AU88/AU$91*100 -> 64.88878847 | AW88: 8897.5074 | AX88: =AW88/AW$91*100 -> 48.75354855 | AY88: 14717.2247 | AZ88: =AY88/AY$91*100 -> 58.8322583 | BA88: 14011.3579 | BB88: =BA88/BA$91*100 -> 54.31637854 | BC88: 6971.6005 | BD88: =BC88/BC$91*100 -> 32.82993739 | BE88: 18026.9952 | BF88: =BE88/BE$91*100 -> 55.64997573 | BG88: 13054.3062 | BH88: =BG88/BG$91*100 -> 44.24693112 | BI88: 11008.9486 | BJ88: =BI88/BI$91*100 -> 61.672992 | BK88: 15636.7889 | BL88: =BK88/BK$91*100 -> 57.50973886 | BM88: 9699.1361 | BN88: =BM88/BM$91*100 -> 37.83917365 | BO88: 4316.0691 | BP88: =BO88/BO$91*100 -> 19.82638256 | BQ88: 22038.6167 | BR88: =BQ88/BQ$91*100 -> 45.57724828 | BS88: 5762.8084 | BT88: =BS88/BS$91*100 -> 18.98703812 | BU88: 13449.0614 | BV88: =BU88/BU$91*100 -> 37.41687317 | BW88: 10992.0172 | BX88: =BW88/BW$91*100 -> 35.24275787 | BY88: 11940.0106 | BZ88: =BY88/BY$91*100 -> 35.09982842 | CA88: 11323.8335 | CB88: =CA88/CA$91*100 -> 33.20677935 | CC88: 13569.0619 | CD88: =CC88/CC$91*100 -> 39.19759257 | CE88: 6742.1002 | CF88: =CE88/CE$91*100 -> 23.89868235 | CG88: 15342.155 | CH88: =CG88/CG$91*100 -> 45.81507607 | CI88: 18154.3296 | CJ88: =CI88/CI$91*100 -> 50.01346171 | CK88: 5032.8359 | CL88: =CK88/CK$91*100 -> 13.87141002 | CM88: 909.3118 | CN88: =CM88/CM$91*100 -> 2.924177235
B89: Reinversiones | C89: 938.2 | D89: =C89/C$91*100 -> 44.89504312 | E89: 1356.201 | F89: 44.09119282 | G89: 640.7 | H89: =G89/G$91*100 -> 33.71576458 | I89: 225.3 | J89: =I89/I$91*100 -> 10.2801653 | K89: 428.8 | L89: 27.82610501 | M89: 524.2 | N89: =M89/M$91*100 -> 26.42669893 | O89: 595.298 | P89: =O89/O$91*100 -> 24.79686125 | Q89: 412.499 | R89: =Q89/Q$91*100 -> 15.65699372 | S89: 691.898 | T89: =S89/S$91*100 -> 24.02426948 | U89: 1074.998 | V89: =U89/U$91*100 -> 33.85287356 | W89: 1069.999 | X89: =W89/W$91*100 -> 40.63434448 | Y89: 1408 | Z89: =Y89/Y$91*100 -> 29.57052591 | AA89: 1020 | AB89: =AA89/AA$91*100 -> 23.21981953 | AC89: 1399.236 | AD89: =AC89/AC$91*100 -> 31.88196503 | AE89: 2366.601 | AF89: =AE89/AE$91*100 -> 21.56847377 | AG89: 1572 | AH89: =AG89/AG$91*100 -> 16.50168481 | AI89: 2589.736 | AJ89: =AI89/AI$91*100 -> 28.19389053 | AK89: 2150 | AL89: =AK89/AK$91*100 -> 16.75817932 | AM89: 2864 | AN89: =AM89/AM$91*100 -> 22.45083383 | AO89: 2367.1687 | AP89: 16.95640983 | AQ89: 3906.7674 | AR89: 21.40848325 | AS89: 3900.0801 | AT89: 12.97553511 | AU89: 2592.7635 | AV89: 10.75870909 | AW89: 2257.2777 | AX89: 12.36866608 | AY89: 2821.175 | AZ89: 11.27767631 | BA89: 4408.849 | BB89: 17.09132783 | BC89: 8102.9187 | BD89: 38.15742362 | BE89: 8509.978 | BF89: 26.27060494 | BG89: 9328.8891 | BH89: 31.61981243 | BI89: 5365.2212 | BJ89: 30.05638923 | BK89: 5305.8151 | BL89: 19.51398352 | BM89: 10756.3464 | BN89: 41.963661 | BO89: 10664.1304 | BP89: 48.9869657 | BQ89: 18496.5987 | BR89: 38.25213182 | BS89: 18036.7295 | BT89: 59.42659321 | BU89: 11955.4423 | BV89: 33.26144888 | BW89: 10682.5163 | BX89: 34.2504318 | BY89: 11981.1945 | BZ89: 35.22089597 | CA89: 13312.9587 | CB89: 39.03982535 | CC89: 18178.9931 | CD89: 52.51451944 | CE89: 16135.4123 | CF89: 57.1950997 | CG89: 12913.1384 | CH89: 38.56149401 | CI89: 16202.3009 | CJ89: 44.63580719 | CK89: 26639.2493 | CL89: 73.42261043 | CM89: 30287.6031 | CN89: 97.39928537
B90: Cuentas | C90: 339.901 | D90: 16.26505015 | E90: 204.6 | F90: 6.651711694 | G90: 10.698 | H90: =G90/G$91*100 -> 0.5629643351 | I90: 155.6 | J90: =I90/I$91*100 -> 7.099838976 | K90: -160.8 | L90: -10.43478938 | M90: -75.801 | N90: =M90/M$91*100 -> -3.82138536 | O90: -64.5 | P90: =O90/O$91*100 -> -2.686717494 | Q90: -96.3 | R90: =Q90/Q$91*100 -> -3.655205213 | S90: -16.8 | T90: =S90/S$91*100 -> -0.5833341435 | U90: 441.1 | V90: =U90/U$91*100 -> 13.89072587 | W90: 448.5 | X90: =W90/W$91*100 -> 17.03226218 | Y90: -68.802 | Z90: =Y90/Y$91*100 -> -1.444965429 | AA90: 360.499 | AB90: =AA90/AA$91*100 -> 8.206589921 | AC90: -51.4 | AD90: =AC90/AC$91*100 -> -1.171162693 | AE90: 2933.6 | AF90: =AE90/AE$91*100 -> 26.7359283 | AG90: 1115.9 | AH90: =AG90/AG$91*100 -> 11.71388682 | AI90: 1066.3 | AJ90: =AI90/AI$91*100 -> 11.60857534 | AK90: 1564.209 | AL90: =AK90/AK$91*100 -> 12.19223019 | AM90: 3289.143 | AN90: =AM90/AM$91*100 -> 25.78352058 | AO90: 4986.2149 | AP90: 35.71705868 | AQ90: 5637.6067 | AR90: 30.89321587 | AS90: 3046.2992 | AT90: 10.13501293 | AU90: 5868.7597 | AV90: 24.35250202 | AW90: 7095.1838 | AX90: 38.87778592 | AY90: 7477.17 | AZ90: 29.89006459 | BA90: 7375.618 | BB90: 28.59229363 | BC90: 6160.9782 | BD90: 29.012639 | BE90: 5856.5634 | BF90: 18.07941964 | BG90: 7120.1078 | BH90: 24.13325646 | BI90: 1476.3484 | BJ90: 8.270619327 | BK90: 6247.2063 | BL90: 22.97627762 | BM90: 5177.0439 | BN90: 20.19716613 | BO90: 6789.1226 | BP90: 31.18665128 | BQ90: 7819.2104 | BR90: 16.1706199 | BS90: 6551.7383 | BT90: 21.58636835 | BU90: 10539.3372 | BV90: 29.32167767 | BW90: 9514.9019 | BX90: 30.50681033 | BY90: 10096.0854 | BZ90: 29.6792756 | CA90: 9464.1767 | CB90: 27.7533953 | CC90: 2869.0247 | CD90: 8.287887703 | CE90: 5333.6671 | CF90: 18.90621794 | CG90: 5231.8386 | CH90: 15.62342992 | CI90: 1942.2558 | CJ90: 5.350731105 | CK90: 4609.9935 | CL90: 12.70597955 | CM90: -100.585 | CN90: -0.323462609
B91: Total | C91: 2089.763 | D91: 100 | E91: 3075.9 | F91: 100 | G91: 1900.298 | H91: =G91/G$91*100 -> 100 | I91: 2191.599 | J91: =I91/I$91*100 -> 100 | K91: 1540.999 | L91: 100 | M91: 1983.6 | N91: =M91/M$91*100 -> 100 | O91: 2400.699 | P91: =O91/O$91*100 -> 100 | Q91: 2634.599 | R91: =Q91/Q$91*100 -> 100 | S91: 2879.996 | T91: =S91/S$91*100 -> 100 | U91: 3175.5 | V91: =U91/U$91*100 -> 100 | W91: 2633.238 | X91: =W91/W$91*100 -> 100 | Y91: 4761.498 | Z91: =Y91/Y$91*100 -> 100 | AA91: 4392.799 | AB91: =AA91/AA$91*100 -> 100 | AC91: 4388.801 | AD91: =AC91/AC$91*100 -> 100 | AE91: 10972.501 | AF91: =AE91/AE$91*100 -> 100 | AG91: 9526.3 | AH91: =AG91/AG$91*100 -> 100 | AI91: 9185.451 | AJ91: =AI91/AI$91*100 -> 100 | AK91: 12829.556 | AL91: =AK91/AK$91*100 -> 100 | AM91: 12756.7645 | AN91: =AM91/AM$91*100 -> 100 | AO91: 13960.3178 | AP91: 100 | AQ91: 18248.6884 | AR91: 100 | AS91: 30057.1812 | AT91: 100 | AU91: 24099.2063 | AV91: 100 | AW91: 18249.9688 | AX91: 100 | AY91: 25015.5699 | AZ91: 100 | BA91: 25795.8249 | BB91: 100 | BC91: 21235.4974 | BD91: 100 | BE91: 32393.5365 | BF91: 100 | BG91: 29503.3031 | BH91: 100 | BI91: 17850.5181 | BJ91: 100 | BK91: 27189.8103 | BL91: 100 | BM91: 25632.5262 | BN91: 100 | BO91: 21769.3222 | BP91: 100 | BQ91: 48354.4258 | BR91: 100 | BS91: 30351.2763 | BT91: 100 | BU91: 35943.841 | BV91: 100 | BW91: 31189.4354 | BX91: 100 | BY91: 34017.2905 | BZ91: 100 | CA91: 34100.9689 | CB91: 100 | CC91: 34617.0798 | CD91: 100 | CE91: 28211.1796 | CF91: 100 | CG91: 33487.132 | CH91: 100 | CI91: 36298.8863 | CJ91: 100 | CK91: 36282.0787 | CL91: 100 | CM91: 31096.3299 | CN91: 100
B92: ND: Dato no disponible
B93: Fuente: Banco de México
B95: IED por país de origen (1980-2024) (millones de dólares/participación porcentual)
B99: País de origen | C99: 1980 | E99: 1981 | G99: 1982 | I99: 1983 | K99: 1984 | M99: 1985 | O99: 1986 | Q99: 1987 | S99: 1988 | U99: 1989 | W99: 1990 | Y99: 1991 | AA99: 1992 | AC99: 1993 | AE99: 1994* | AG99: 1995* | AI99: 1996* | AK99: 1997* | AM99: 1998* | AO99: 1999** | AQ99: 2000** | AS99: 2001** | AU99: 2002** | AW99: 2003** | AY99: 2004** | BA99: 2005** | BC99: 2006 | BE99: 2007 | BG99: 2008 | BI99: 2009 | BK99: 2010 | BM99: 2011 | BO99: 2012 | BQ99: 2013 | BS99: 2014 | BU99: 2015 | BW99: 2016 | BY99: 2017 | CA99: 2018 | CC99: 2019 | CE99: 2020 | CG99: 2021 | CI99: 2022 | CK99: 2023 | CM99: 2T 2024
B100: Estados Unidos | C100: 1078.6 | D100: 66.47356095 | E100: 1072.1 | F100: 63.0239257 | G100: 426.1 | H100: 68.01276935 | I100: 266.6 | J100: 38.99371069 | K100: 912 | L100: 63.78514478 | M100: 1326.8 | N100: 76.73799884 | O100: 1206.4 | P100: 49.76487089 | Q100: 2669.6 | R100: 68.85381203 | S100: 1241.6 | T100: 39.32723069 | U100: 1813.8 | V100: 72.56070728 | W100: 2308 | X100: 62.00300881 | Y100: 2386.5 | Z100: 66.94249649 | AA100: 1651.7 | AB100: 45.88565396 | AC100: 3503.6 | AD100: 71.4918277 | AE100: 4951.067838 | AF100: 46.50243581 | AG100: 5518.342373 | AH100: 65.89380237 | AI100: 5328.541568 | AJ100: 67.89767413 | AK100: 7407.565965 | AL100: 60.98970791 | AM100: 5542.413049 | AN100: 66.18992117 | AO100: 6413.710496 | AP100: 45.94243894 | AQ100: 9022.897785 | AR100: 49.44408931 | AS100: 22034.33093 | AT100: 73.30804189 | AU100: 13193.27808 | AV100: 54.74569562 | AW100: 10449.28735 | AX100: 57.25646703 | AY100: 9384.144097 | AZ100: 37.51321336 | BA100: 12120.52541 | BB100: 46.98638444 | BC100: 12765.03439 | BD100: 60.11105432 | BE100: 14525.90498 | BF100: 44.84198564 | BG100: 11007.12001 | BH100: 37.30809387 | BI100: 7537.745339 | BJ100: 42.2270396 | BK100: 10238.51588 | BL100: 37.65570915 | BM100: 13379.89421 | BN100: 52.19889031 | BO100: 9113.065029 | BP100: 41.86194864 | BQ100: 15750.09869 | BR100: 32.57219409 | BS100: 10522.31476 | BT100: 34.66843616 | BU100: 17241.22252 | BV100: 47.96710397 | BW100: 10512.60374 | BX100: 33.70565581 | BY100: 15362.1453 | BZ100: 45.15938714 | CA100: 11412.68914 | CB100: 33.46734565 | CC100: 12579.93129 | CD100: 36.34023541 | CE100: 9796.058808 | CF100: 34.72403143 | CG100: 13754.78732 | CH100: 41.07484446 | CI100: 20224.16909 | CJ100: 55.71567374 | CK100: 13758.13555 | CL100: 37.91992083 | CM100: 13717.39801 | CN100: 44.11260159
B101: España | C101: 80 | D101: 4.930358684 | E101: 101.8 | F101: 5.984363059 | G101: 40.4 | H101: 6.448523543 | I101: 12.7 | J101: 1.857539857 | K101: 11.7 | L101: 0.8182962652 | M101: 14 | N101: 0.8097165992 | O101: 93.7 | P101: 3.865192641 | Q101: 125.8 | R101: 3.244609512 | S101: 34.1 | T101: 1.08010516 | U101: 44 | V101: 1.760211225 | W101: 10.4 | X101: 0.2793896411 | Y101: 43.8 | Z101: 1.228611501 | AA101: 37.2 | AB101: 1.033448161 | AC101: 63.5 | AD101: 1.295733263 | AE101: 145.4702079 | AF101: 1.366315152 | AG101: 49.83656544 | AH101: 0.5950918903 | AI101: 78.90380925 | AJ101: 1.005413031 | AK101: 327.2986252 | AL101: 2.694791737 | AM101: 335.2179597 | AN101: 4.003319516 | AO101: 833.800193 | AP101: 5.97264477 | AQ101: 3711.433729 | AR101: 20.33808485 | AS101: 2728.45926 | AT101: 9.077562028 | AU101: 5274.512444 | AV101: 21.88666464 | AW101: 1900.647186 | AX101: 10.41452295 | AY101: 6553.162447 | AZ101: 26.19633485 | BA101: 2072.027134 | BB101: 8.032412803 | BC101: 2186.254158 | BD101: 10.29515773 | BE101: 4170.131767 | BF101: 12.87334517 | BG101: 4797.081541 | BH101: 16.2594728 | BI101: 2400.270775 | BJ101: 13.44650482 | BK101: 4340.31021 | BL101: 15.96300293 | BM101: 2418.143591 | BN101: 9.433887148 | BO101: -1032.471334 | BP101: -4.742779934 | BQ101: 221.8412571 | BR101: 0.4587816639 | BS101: 3734.166692 | BT101: 12.30315976 | BU101: 4321.604337 | BV101: 12.02321033 | BW101: 3451.278798 | BX101: 11.06553791 | BY101: 2476.531243 | BZ101: 7.280144214 | CA101: 4571.526717 | CB101: 13.40585579 | CC101: 4437.330664 | CD101: 12.81832446 | CE101: 3974.696222 | CF101: 14.08908207 | CG101: 4749.713468 | CH101: 14.18369745 | CI101: 2146.14869 | CJ101: 5.912436734 | CK101: 3776.675312 | CL101: 10.40920322 | CM101: -219.8104937 | CN101: -0.7068696797
B102: Países Bajos | C102: 0 | D102: 0 | E102: 0 | F102: 0 | G102: 0 | H102: 0 | I102: 0 | J102: 0 | K102: 0 | L102: 0 | M102: 0 | N102: 0 | O102: 0 | P102: 0 | Q102: 0 | R102: 0 | S102: 218.2 | T102: 6.911406037 | U102: 47.8 | V102: 1.912229468 | W102: 126.1 | X102: 3.387599398 | Y102: 119.5 | Z102: 3.352033661 | AA102: 83.1 | AB102: 2.308589843 | AC102: 88.3 | AD102: 1.801783419 | AE102: 783.1886612 | AF102: 7.356025333 | AG102: 743.7912887 | AH102: 8.881514205 | AI102: 427.8118158 | AJ102: 5.451290355 | AK102: 368.2726978 | AL102: 3.032149073 | AM102: 1051.67556 | AN102: 12.55956959 | AO102: 202.200652 | AP102: 1.448395763 | AQ102: 1113.892103 | AR102: 6.103957058 | AS102: 1086.568047 | AT102: 3.615003159 | AU102: 451.926685 | AV102: 1.875276227 | AW102: 462.0826486 | AX102: 2.53196405 | AY102: 240.2107 | AZ102: 0.9602447647 | BA102: 333.45243 | BB102: 1.29266047 | BC102: 210.64981 | BD102: 0.991958328 | BE102: 430.107314 | BF102: 1.327756585 | BG102: 279.941689 | BH102: 0.9488486363 | BI102: 259.73875 | BJ102: 1.455076815 | BK102: 5475.606182 | BL102: 20.13844939 | BM102: 259.9625999 | BN102: 1.014190323 | BO102: 417.4772638 | BP102: 1.91773149 | BQ102: 1148.849867 | BR102: 2.375893738 | BS102: 177.147947 | BT102: 0.5836588648 | BU102: 1131.635279 | BV102: 3.148342123 | BW102: 437.2154172 | BX102: 1.40180613 | BY102: 131.0640425 | BZ102: 0.3852828965 | CA102: 843.4020299 | CB102: 2.47324946 | CC102: 891.8542113 | CD102: 2.576340939 | CE102: 628.1418484 | CF102: 2.226570676 | CG102: 141.4080496 | CH102: 0.422275787 | CI102: -116.9380561 | CJ102: -0.3221532887 | CK102: 878.6733322 | CL102: 2.421783319 | CM102: 587.5182075 | CN102: 1.889349322
B103: Canadá | C103: 17.5 | D103: 1.078515962 | E103: 5.2 | F103: 0.3056845571 | G103: 8.1 | H103: 1.292897047 | I103: 22.1 | J103: 3.232411877 | K103: 32.5 | L103: 2.273045181 | M103: 34.9 | N103: 2.018507808 | O103: 40.6 | P103: 1.674779309 | Q103: 19.3 | R103: 0.4977819045 | S103: 33.9 | T103: 1.073770232 | U103: 37.5 | V103: 1.500180022 | W103: 56 | X103: 1.50440576 | Y103: 74.2 | Z103: 2.081346424 | AA103: 88.5 | AB103: 2.458606512 | AC103: 74.2 | AD103: 1.514069419 | AE103: 739.1758025 | AF103: 6.942638726 | AG103: 170.3231248 | AH103: 2.03380609 | AI103: 547.1498534 | AJ103: 6.971926928 | AK103: 239.5939701 | AL103: 1.972681219 | AM103: 213.2534947 | AN103: 2.546766521 | AO103: 389.514008 | AP103: 2.790151432 | AQ103: 420.491175 | AR103: 2.304226835 | AS103: 850.7813732 | AT103: 2.83054279 | AU103: 222.9221929 | AV103: 0.92501882 | AW103: 340.7702464 | AX103: 1.867237422 | AY103: 551.1269102 | AZ103: 2.20313554 | BA103: 2262.690446 | BB103: 8.771537499 | BC103: 704.0228697 | BD103: 3.315271676 | BE103: 1954.045991 | BF103: 6.032209518 | BG103: 4638.040795 | BH103: 15.72041199 | BI103: 2028.081438 | BJ103: 11.36147102 | BK103: 1960.14132 | BL103: 7.209102603 | BM103: 1305.596038 | BN103: 5.093512944 | BO103: 1558.413781 | BP103: 7.158759152 | BQ103: 5341.687087 | BR103: 11.04694466 | BS103: 2871.280586 | BT103: 9.460162514 | BU103: 1364.48396 | BV103: 3.796154474 | BW103: 2575.401748 | BX103: 8.257288776 | BY103: 3887.094153 | BZ103: 11.42671068 | CA103: 4421.971101 | CB103: 12.96728873 | CC103: 2206.958542 | CD103: 6.375344279 | CE103: 3986.015448 | CF103: 14.12920527 | CG103: 2074.17984 | CH103: 6.19396086 | CI103: 3168.41612 | CJ103: 8.728686854 | CK103: 3492.631352 | CL103: 9.626326463 | CM103: 2407.814339 | CN103: 7.743083245
B104: Alemania | C104: 170.8 | D104: 10.52631579 | E104: 146.3 | F104: 8.600317442 | G104: 39.9 | H104: 6.368715084 | I104: 110 | J104: 16.08892789 | K104: 152.5 | L104: 10.66582739 | M104: 55.5 | N104: 3.209947947 | O104: 218.5 | P104: 9.013282732 | Q104: 46.9 | R104: 1.20963582 | S104: 136.7 | T104: 4.329923031 | U104: 84.7 | V104: 3.388406609 | W104: 288.2 | X104: 7.742316785 | Y104: 84.7 | Z104: 2.375876578 | AA104: 84.9 | AB104: 2.358595399 | AC104: 111.4 | AD104: 2.273144653 | AE104: 306.8741051 | AF104: 2.882285972 | AG104: 547.9420918 | AH104: 6.542904637 | AI104: 203.2067124 | AJ104: 2.589313222 | AK104: 482.7232605 | AL104: 3.974470265 | AM104: 134.0166625 | AN104: 1.60048561 | AO104: 787.966201 | AP104: 5.64432852 | AQ104: 418.0401799 | AR104: 2.29079576 | AS104: 1004.943793 | AT104: 3.343439923 | AU104: 696.016376 | AV104: 2.888129882 | AW104: 561.348673 | AX104: 3.075888402 | AY104: 658.849392 | AZ104: 2.633757278 | BA104: 743.451303 | BB104: 2.8820606 | BC104: 774.7372227 | BD104: 3.648268375 | BE104: 885.6566146 | BF104: 2.734053489 | BG104: 734.2604524 | BH104: 2.488739821 | BI104: 305.9660995 | BJ104: 1.714046047 | BK104: 822.6654076 | BL104: 3.025638647 | BM104: 855.1435985 | BN104: 3.336165906 | BO104: 1360.010406 | BP104: 6.247369637 | BQ104: 2096.376819 | BR104: 4.335439033 | BS104: 2200.98691 | BT104: 7.251709902 | BU104: 1388.417644 | BV104: 3.86274079 | BW104: 3108.220403 | BX104: 9.965619333 | BY104: 2716.31346 | BZ104: 7.985020893 | CA104: 3141.205355 | CB104: 9.211484173 | CC104: 3814.416989 | CD104: 11.01888461 | CE104: 1571.69734 | CF104: 5.571186218 | CG104: 2309.747107 | CH104: 6.897416946 | CI104: -37.80550487 | CJ104: -0.1041505916 | CK104: 2420.955773 | CL104: 6.672593892 | CM104: 4167.185806 | CN104: 13.40089477
B105: Japón | C105: 123.1 | D105: 7.586589424 | E105: 212.1 | F105: 12.4684028 | G105: 65.4 | H105: 10.43894653 | I105: 3.8 | J105: 0.5557993272 | K105: 35.6 | L105: 2.489858721 | M105: 79.3 | N105: 4.586466165 | O105: 142.2 | P105: 5.865852652 | Q105: 132.8 | R105: 3.425152172 | S105: 148.8 | T105: 4.713186152 | U105: 15.7 | V105: 0.628075369 | W105: 120.8 | X105: 3.245218139 | Y105: 73.5 | Z105: 2.06171108 | AA105: 86.9 | AB105: 2.414157129 | AC105: 73.6 | AD105: 1.50182627 | AE105: 629.9515828 | AF105: 5.916760586 | AG105: 155.6440001 | AH105: 1.858524587 | AI105: 145.1189277 | AJ105: 1.849143436 | AK105: 351.6862158 | AL105: 2.895585363 | AM105: 97.26059889 | AN105: 1.161528619 | AO105: 1590.910275 | AP105: 11.39594595 | AQ105: 834.489262 | AR105: 4.572872549 | AS105: 594.351242 | AT105: 1.977401805 | AU105: 464.441769 | AV105: 1.927207747 | AW105: 407.326077 | AX105: 2.231927528 | AY105: 886.616219 | AZ105: 3.544257532 | BA105: 398.564556 | BB105: 1.545073899 | BC105: 561.373259 | BD105: 2.64352899 | BE105: 787.075515 | BF105: 2.429730126 | BG105: 837.277006 | BH105: 2.837909381 | BI105: 772.8901896 | BJ105: 4.32979136 | BK105: 1169.990546 | BL105: 4.303047849 | BM105: 886.9791586 | BN105: 3.46036576 | BO105: 2132.088556 | BP105: 9.794002494 | BQ105: 1682.125657 | BR105: 3.478741591 | BS105: 2537.915583 | BT105: 8.361806917 | BU105: 2174.303073 | BV105: 6.049166264 | BW105: 2006.903087 | BX105: 6.434560491 | BY105: 2472.143304 | BZ105: 7.267245191 | CA105: 2287.142585 | CB105: 6.706972432 | CC105: 1698.951214 | CD105: 4.907839768 | CE105: 1313.719514 | CF105: 4.656733754 | CG105: 1454.356517 | CH105: 4.343030998 | CI105: 2303.368673 | CJ105: 6.345562922 | CK105: 2915.45334 | CL105: 8.035519014 | CM105: 3082.033836 | CN105: 9.911247793
B106: Reino Unido | C106: 48.6 | D106: 2.9951929 | E106: 40.9 | F106: 2.404326612 | G106: 7.4 | H106: 1.181165204 | I106: 49.2 | J106: 7.196138657 | K106: 44.3 | L106: 3.098335432 | M106: 56.3 | N106: 3.256217467 | O106: 104.3 | P106: 4.302450293 | Q106: 430.9 | R106: 11.11369029 | S106: 767.6 | T106: 24.31345222 | U106: 44.7 | V106: 1.788214586 | W106: 114.4 | X106: 3.073286052 | Y106: 74.2 | Z106: 2.081346424 | AA106: 426.8 | AB106: 11.85687299 | AC106: 189.2 | AD106: 3.860672965 | AE106: 592.2008464 | AF106: 5.562190369 | AG106: 223.6282458 | AH106: 2.670315547 | AI106: 82.96851097 | AJ106: 1.057206526 | AK106: 1829.653182 | AL106: 15.06432932 | AM106: 165.7981652 | AN106: 1.980034217 | AO106: 755.2970315 | AP106: 5.410314009 | AQ106: 836.655958 | AR106: 4.584745709 | AS106: 30.39848535 | AT106: 0.1011355164 | AU106: 1680.868988 | AV106: 6.974789847 | AW106: 1314.791297 | AX106: 7.2043482 | AY106: 2957.960393 | AZ106: 11.82447735 | BA106: 1979.361781 | BB106: 7.673186635 | BC106: 706.4427118 | BD106: 3.326666809 | BE106: 499.6985332 | BF106: 1.542587156 | BG106: 1053.838532 | BH106: 3.571934059 | BI106: 49.05248581 | BJ106: 0.2747958664 | BK106: 459.5662904 | BL106: 1.690215142 | BM106: 159.772085 | BN106: 0.6233177488 | BO106: 418.4340468 | BP106: 1.922126586 | BQ106: 1484.84924 | BR106: 3.070761561 | BS106: 230.3298793 | BT106: 0.7588802364 | BU106: 893.2831835 | BV106: 2.485218627 | BW106: 458.4996969 | BX106: 1.470048083 | BY106: 192.0764862 | BZ106: 0.5646383519 | CA106: 320.4934255 | CB106: 0.9398367132 | CC106: 831.3423285 | CD106: 2.401537435 | CE106: 874.6807062 | CF106: 3.1004755 | CG106: 1176.89216 | CH106: 3.514460914 | CI106: 1199.99271 | CJ106: 3.305866464 | CK106: 823.9542124 | CL106: 2.270967485 | CM106: 457.9336132 | CN106: 1.472629359
B107: Suiza | C107: 111.4 | D107: 6.865524467 | E107: 74.9 | F107: 4.403033331 | G107: 23.1 | H107: 3.687150838 | I107: 16.2 | J107: 2.36946029 | K107: 59.8 | L107: 4.182403133 | M107: 141.2 | N107: 8.166570272 | O107: 34.1 | P107: 1.406649616 | Q107: 95.2 | R107: 2.455380171 | S107: 86.3 | T107: 2.73352127 | U107: 194.4 | V107: 7.776933232 | W107: 148 | X107: 3.975929508 | Y107: 68.5 | Z107: 1.921458626 | AA107: 315.3 | AB107: 8.75930659 | AC107: 101.7 | AD107: 2.075213745 | AE107: 53.72467172 | AF107: 0.5046038915 | AG107: 199.958646 | AH107: 2.38767996 | AI107: 83.76070802 | AJ107: 1.067300909 | AK107: 26.63356436 | AL107: 0.2192857031 | AM107: 51.56747783 | AN107: 0.6158413785 | AO107: 249.816976 | AP107: 1.789479143 | AQ107: 226.7070292 | AR107: 1.242319581 | AS107: 236.0170046 | AT107: 0.7852266771 | AU107: 130.003393 | AV107: 0.539450934 | AW107: 352.677823 | AX107: 1.932484528 | AY107: 1632.452017 | AZ107: 6.52574387 | BA107: 330.18531 | BB107: 1.279995164 | BC107: 610.257791 | BD107: 2.873728194 | BE107: 360.966044 | BF107: 1.114315024 | BG107: 343.265708 | BH107: 1.163482295 | BI107: 187.5426696 | BJ107: 1.05062872 | BK107: -118.4642989 | BL107: -0.4356937313 | BM107: 179.6878975 | BN107: 0.7010151725 | BO107: 243.949208 | BP107: 1.120609716 | BQ107: 562.930314 | BR107: 1.164175273 | BS107: 441.7811229 | BT107: 1.455560017 | BU107: 396.5247389 | BV107: 1.103178348 | BW107: 366.2115942 | BX107: 1.174152689 | BY107: 341.4022824 | BZ107: 1.00360448 | CA107: 580.8978132 | CB107: 1.703464246 | CC107: 782.8197001 | CD107: 2.261367851 | CE107: 666.2741443 | CF107: 2.361737999 | CG107: 367.9252827 | CH107: 1.098706465 | CI107: 103.8985075 | CJ107: 0.2862305652 | CK107: 389.5463472 | CL107: 1.073660496 | CM107: 530.9831105 | CN107: 1.707542961
B108: Francia | C108: 19.5 | D108: 1.201774929 | E108: 10.3 | F108: 0.6054905649 | G108: 6.8 | H108: 1.085395052 | I108: 110 | J108: 16.08892789 | K108: 8.7 | L108: 0.60847671 | M108: 10.7 | N108: 0.6188548294 | O108: 316.9 | P108: 13.07235377 | Q108: 31.2 | R108: 0.8047044259 | S108: 152.4 | T108: 4.827214849 | U108: 16.5 | V108: 0.6600792095 | W108: 181 | X108: 4.862454331 | Y108: 500.5 | Z108: 14.03927069 | AA108: 69 | AB108: 1.916879653 | AC108: 76.9 | AD108: 1.569163589 | AE108: 90.3210267 | AF108: 0.84833169 | AG108: 125.7390985 | AH108: 1.50143408 | AI108: 125.1179843 | AJ108: 1.59428617 | AK108: 90.73643913 | AL108: 0.7470725129 | AM108: 124.293316 | AN108: 1.484365151 | AO108: 402.322219 | AP108: 2.881898706 | AQ108: 510.54905 | AR108: 2.797730111 | AS108: -159.8866444 | AT108: -0.5319415808 | AU108: 456.4768781 | AV108: 1.894157318 | AW108: 570.9735574 | AX108: 3.128627585 | AY108: 340.8098458 | AZ108: 1.362390894 | BA108: 527.7961874 | BB108: 2.046052768 | BC108: 183.7545161 | BD108: 0.8653073199 | BE108: 352.9727564 | BF108: 1.089639461 | BG108: 835.4823056 | BH108: 2.831826332 | BI108: 635.614272 | BJ108: 3.560760921 | BK108: 400.0858377 | BL108: 1.471455055 | BM108: 694.5269931 | BN108: 2.709553436 | BO108: 891.9764882 | BP108: 4.097400141 | BQ108: 957.4723505 | BR108: 1.980113005 | BS108: 1139.75601 | BT108: 3.755215402 | BU108: 954.3350984 | BV108: 2.655072217 | BW108: 562.6628211 | BX108: 1.804017335 | BY108: 662.3996614 | BZ108: 1.947225611 | CA108: 688.1077891 | CB108: 2.017854069 | CC108: 1067.385702 | CD108: 3.083406959 | CE108: 440.5539935 | CF108: 1.561629122 | CG108: 630.4166487 | CH108: 1.88256388 | CI108: 813.1458784 | CJ108: 2.240140016 | CK108: 513.1058603 | CL108: 1.41421296 | CM108: -958.8528968 | CN108: -3.083492643
B109: Suecia | C109: 10.9 | D109: 0.6717613706 | E109: 15.3 | F109: 0.8994180236 | G109: -2 | H109: -0.3192338388 | I109: 29.1 | J109: 4.256252742 | K109: 61.1 | L109: 4.273324941 | M109: 5.5 | N109: 0.3181029497 | O109: 24.6 | P109: 1.014767758 | Q109: 36.7 | R109: 0.9465593727 | S109: 32.5 | T109: 1.029425739 | U109: 6.9 | V109: 0.276033124 | W109: 13.3 | X109: 0.3572963679 | Y109: 13.9 | Z109: 0.3899018233 | AA109: 2 | AB109: 0.05556172908 | AC109: 2.4 | AD109: 0.04897259575 | AE109: 9.25636603 | AF109: 0.08693954137 | AG109: 60.98301244 | AH109: 0.7281901516 | AI109: 97.49683486 | AJ109: 1.242330239 | AK109: 7.20380358 | AL109: 0.05931204371 | AM109: 58.06559379 | AN109: 0.6934447219 | AO109: 729.835921 | AP109: 5.227931983 | AQ109: -197.040109 | AR109: -1.079749431 | AS109: 115.506202 | AT109: 0.3842882056 | AU109: -26.666063 | AV109: -0.1106512089 | AW109: 97.377967 | AX109: 0.5335788143 | AY109: 420.348754 | AZ109: 1.680348504 | BA109: 170.68566 | BB109: 0.6616794048 | BC109: 69.162643 | BD109: 0.3256896349 | BE109: 98.214809 | BF109: 0.3031926107 | BG109: 190.628483 | BH109: 0.6461259014 | BI109: 16.91623284 | BJ109: 0.09476606092 | BK109: -172.653277 | BL109: -0.6349925772 | BM109: 84.91682342 | BN109: 0.3312854258 | BO109: 251.9365654 | BP109: 1.157300593 | BQ109: 245.9084876 | BR109: 0.5085542095 | BS109: 145.7700432 | BT109: 0.4802763984 | BU109: 1.99513929 | BV109: 0.005550711597 | BW109: 77.50840402 | BX109: 0.2485085192 | BY109: 14.98237644 | BZ109: 0.04404299822 | CA109: 237.4968247 | CB109: 0.6964518374 | CC109: 125.5892745 | CD109: 0.3627956063 | CE109: 258.3404132 | CF109: 0.915737727 | CG109: -100.2306637 | CH109: -0.2993109835 | CI109: 154.7492263 | CJ109: 0.4263194877 | CK109: 172.0426423 | CL109: 0.4741807746 | CM109: -65.44932442 | CN109: -0.2104728587
B110: Italia | C110: -29.3 | D110: -1.805743868 | E110: 5.1 | F110: 0.2998060079 | G110: 1.9 | H110: 0.3032721468 | I110: 1 | J110: 0.1462629808 | K110: 0.5 | L110: 0.03496992586 | M110: 0.6 | N110: 0.03470213997 | O110: 4 | P110: 0.1650028876 | Q110: 2.8 | R110: 0.07221706386 | S110: 0 | T110: 0 | U110: 6.6 | V110: 0.2640316838 | W110: 4.6 | X110: 0.1235761874 | Y110: 1.9 | Z110: 0.05329593268 | AA110: 7.5 | AB110: 0.2083564841 | AC110: 4.6 | AD110: 0.09386414186 | AE110: 2.503026719 | AF110: 0.02350944142 | AG110: 10.54482384 | AH110: 0.1259143582 | AI110: 18.6448915 | AJ110: 0.2375780973 | AK110: 29.29672902 | AL110: 0.2412126945 | AM110: 16.92162419 | AN110: 0.2020854384 | AO110: 66.99717209 | AP110: 0.4799115098 | AQ110: 171.5066363 | AR110: 0.9398299351 | AS110: 159.2367803 | AT110: 0.5297794881 | AU110: 55.1749918 | AV110: 0.2289494157 | AW110: 98.21407134 | AX110: 0.5381602157 | AY110: 71.24798222 | AZ110: 0.2848145479 | BA110: 53.4207125 | BB110: 0.2070905385 | BC110: 64.61937416 | BD110: 0.3042952013 | BE110: 26.5929922 | BF110: 0.08209351334 | BG110: 145.6182859 | BH110: 0.4935660439 | BI110: 137.9081165 | BJ110: 0.7725720667 | BK110: 219.5388214 | BL110: 0.8074305014 | BM110: 386.1650649 | BN110: 1.506543142 | BO110: 502.3875811 | BP110: 2.307777136 | BQ110: 418.4642437 | BR110: 0.8654103593 | BS110: 413.8687893 | BT110: 1.363595751 | BU110: 726.9066591 | BV110: 2.022339615 | BW110: 376.9070484 | BX110: 1.208444602 | BY110: 685.1870867 | BZ110: 2.014212749 | CA110: 956.6017176 | CB110: 2.805203922 | CC110: 1382.020082 | CD110: 3.992305996 | CE110: 539.2471982 | CF110: 1.911466338 | CG110: 204.9113258 | CH110: 0.6119106487 | CI110: 82.5558344 | CJ110: 0.2274335185 | CK110: -103.3220377 | CL110: -0.284774305 | CM110: -31.45272677 | CN110: -0.1011461215
B111: Resto | C111: -8.5 | D111: -0.5238506101 | E111: 17.1 | F111: 1.005231909 | G111: 9.4 | H111: 1.500399042 | I111: 63 | J111: 9.214567793 | K111: 111.1 | L111: 7.770317527 | M111: 4.2 | N111: 0.2429149798 | O111: 238.9 | P111: 9.854797459 | Q111: 286 | R111: 7.376457237 | S111: 305 | T111: 9.660764626 | U111: 187.1 | V111: 7.484898188 | W111: 351.6 | X111: 9.44551902 | Y111: 123.8 | Z111: 3.472650771 | AA111: 746.7 | AB111: 20.74397155 | AC111: 611.3 | AD111: 12.47372824 | AE111: 2343.190537 | AF111: 22.00819522 | AG111: 567.8253757 | AH111: 6.780328323 | AI111: 709.1390918 | AJ111: 9.036036288 | AK111: 984.9691122 | AL111: 8.109678502 | AM111: 582.983976 | AN111: 6.962249669 | AO111: 1537.946689 | AP111: 11.01655928 | AQ111: 1179.065591 | AR111: 6.46109773 | AS111: 1376.474652 | AT111: 4.579520102 | AU111: 1500.250478 | AV111: 6.225310762 | AW111: 1694.471875 | AX111: 9.284793282 | AY111: 1318.641107 | AZ111: 5.271281503 | BA111: 4803.663872 | BB111: 18.62186578 | BC111: 2399.443205 | BD111: 11.29907342 | BE111: 8302.169172 | BF111: 25.6290917 | BG111: 4640.748277 | BH111: 15.72958887 | BI111: 3518.791713 | BJ111: 19.7125467 | BK111: 2394.507358 | BL111: 8.806635035 | BM111: 5021.738094 | BN111: 19.59127268 | BO111: 5912.060701 | BP111: 27.15775435 | BQ111: 18443.82567 | BR111: 38.14299082 | BS111: 5935.963502 | BT111: 19.55753808 | BU111: 5349.135481 | BV111: 14.88192253 | BW111: 7256.022631 | BX111: 23.26436032 | BY111: 5076.273043 | BZ111: 14.92248479 | CA111: 4639.434426 | CB111: 13.60499297 | CC111: 4798.488053 | CD111: 13.86161669 | CE111: 4161.753786 | CF111: 14.7521439 | CG111: 6723.024795 | CH111: 20.07644257 | CI111: 6257.185175 | CJ111: 17.23795357 | CK111: 7244.227105 | CL111: 19.96640586 | CM111: 7421.023633 | CN111: 23.86463226
B112: Total | C112: 1622.6 | D112: 100 | E112: 1701.1 | F112: 100 | G112: 626.5 | H112: 100 | I112: 683.7 | J112: 100 | K112: 1429.8 | L112: 100 | M112: 1729 | N112: 100 | O112: 2424.2 | P112: 100 | Q112: 3877.2 | R112: 100 | S112: 3157.1 | T112: 100 | U112: 2499.7 | V112: 100 | W112: 3722.4 | X112: 100 | Y112: 3565 | Z112: 100 | AA112: 3599.6 | AB112: 100 | AC112: 4900.7 | AD112: 100 | AE112: 10646.9 | AF112: 100 | AG112: 8374.6 | AH112: 100 | AI112: 7847.9 | AJ112: 100 | AK112: 12145.6 | AL112: 100 | AM112: 8373.5 | AN112: 100 | AO112: 13960.31783 | AP112: 100 | AQ112: 18248.68839 | AR112: 100 | AS112: 30057.18112 | AT112: 100 | AU112: 24099.20621 | AV112: 100 | AW112: 18249.96878 | AX112: 100 | AY112: 25015.56987 | AZ112: 100 | BA112: 25795.8248 | BB112: 100 | BC112: 21235.75195 | BD112: 100 | BE112: 32393.53649 | BF112: 100 | BG112: 29503.30309 | BH112: 100 | BI112: 17850.51808 | BJ112: 100 | BK112: 27189.81027 | BL112: 100 | BM112: 25632.52616 | BN112: 100 | BO112: 21769.32829 | BP112: 100 | BQ112: 48354.42968 | BR112: 100 | BS112: 30351.28183 | BT112: 100 | BU112: 35943.84711 | BV112: 100 | BW112: 31189.43539 | BX112: 100 | BY112: 34017.61243 | BZ112: 100 | CA112: 34100.96893 | CB112: 100 | CC112: 34617.08805 | CD112: 100 | CE112: 28211.17942 | CF112: 100 | CG112: 33487.13185 | CH112: 100 | CI112: 36298.88634 | CJ112: 100 | CK112: 36282.07879 | CL112: 100 | CM112: 31096.32511 | CN112: 100
B113: * La diferencia entre el total de IED publicado por la Secretaría de Economía y la desagregación por país de origen, se debe a que esta última sólo incuye las nuevas inversiones reportadas al RNIE más el valor de la importación temporal de maquinaria y equipo de empresas maquiladoras.
B114: ** De 1999 a 2005 los datos no cambian
B115: Fuente: Secretaría de Economía
B118: IED por sector económico (1980-2024) (millones de dólares/participación porcentual)
B122: Sector económico | C122: 1980 | E122: 1981 | G122: 1982 | I122: 1983 | K122: 1984 | M122: 1985 | O122: 1986 | Q122: 1987 | S122: 1988 | U122: 1989 | W122: 1990 | Y122: 1991 | AA122: 1992 | AC122: 1993 | AE122: 1994* | AG122: 1995* | AI122: 1996* | AK122: 1997* | AM122: 1998* | AO122: 1999** | AQ122: 2000** | AS122: 2001** | AU122: 2002** | AW122: 2003** | AY122: 2004** | BA122: 2005** | BC122: 2006 | BE122: 2007 | BG122: 2008 | BI122: 2009 | BK122: 2010 | BM122: 2011 | BO122: 2012 | BQ122: 2013 | BS122: 2014 | BU122: 2015 | BW122: 2016 | BY122: 2017 | CA122: 2018 | CC122: 2019 | CE122: 2020 | CG122: 2021 | CI122: 2022 | CK122: 2023 | CM122: 2T 2024
B123: Agropecuario | C123: 0.9 | D123: 0.05546653519 | E123: -5.4 | F123: -0.3174416554 | G123: 1.8 | H123: 0.2873104549 | I123: 0.2 | J123: 0.02925259617 | K123: 0.8 | L123: 0.05595188138 | M123: 0.4 | N123: 0.02313475998 | O123: 0.2 | P123: 0.008250144378 | Q123: 15.2 | R123: 0.3920354895 | S123: -12 | T123: -0.3800956574 | U123: 19.3 | V123: 0.7720926511 | W123: 61.1 | X123: 1.641414141 | Y123: 44.9 | Z123: 1.259467041 | AA123: 39.3 | AB123: 1.091787976 | AC123: 34.5 | AD123: 0.7039810639 | AE123: 10.26 | AF123: 0.09636607839 | AG123: 9.99 | AH123: 0.1192892795 | AI123: 31.73 | AJ123: 0.4043119815 | AK123: 9.5 | AL123: 0.07821762614 | AM123: 27.645 | AN123: 0.3301486833 | AO123: 85.452906 | AP123: 0.6121128975 | AQ123: 96.443977 | AR123: 0.5284981306 | AS123: 82.895929 | AT123: 0.2757940895 | AU123: 120.082339 | AV123: 0.4982833789 | AW123: 10.339252 | AX123: 0.05665353254 | AY123: 17.372926 | AZ123: 0.06944845188 | BA123: 22.057418 | BB123: 0.08550770588 | BC123: 1.492793 | BD123: 0.007031220158 | BE123: -7.57690024 | BF123: -0.02339146072 | BG123: 119.7409105 | BH123: 0.4059111776 | BI123: -8.58940328 | BJ123: -0.04812450608 | BK123: 134.0535427 | BL123: 0.4930573728 | BM123: 173.485019 | BN123: 0.6768954191 | BO123: 195.1788042 | BP123: 0.8967133645 | BQ123: 317.3250773 | BR123: 0.6562821445 | BS123: 255.9040321 | BT123: 0.8437005208 | BU123: 256.6743232 | BV123: 0.7141678156 | BW123: 184.0163337 | BX123: 0.5901040913 | BY123: 75.02885745 | BZ123: 0.2206735943 | CA123: 27.66758178 | CB123: 0.08114256338 | CC123: 119.348922 | CD123: 0.3448212794 | CE123: 179.0864714 | CF123: 0.634889273 | CG123: 155.7165463 | CH123: 0.4651163206 | CI123: 283.5457052 | CJ123: 0.7815835911 | CK123: 334.014797 | CL123: 0.9202577696 | CM123: 286.8036042 | CN123: 0.9224134191
B124: Extractivo | C124: 86.7 | D124: 5.343276223 | E124: -189 | F124: -11.11045794 | G124: 6.7 | H124: 1.06943336 | I124: 15 | J124: 2.193944713 | K124: 5.7 | L124: 0.3986571548 | M124: 18 | N124: 1.041064199 | O124: 30.8 | P124: 1.270522234 | Q124: 48.8 | R124: 1.258640256 | S124: 24.9 | T124: 0.7886984891 | U124: 9.5 | V124: 0.3800456055 | W124: 93.9 | X124: 2.522566086 | Y124: 31 | Z124: 0.8695652174 | AA124: 8.6 | AB124: 0.238915435 | AC124: 55.1 | AD124: 1.124329177 | AE124: 92.91 | AF124: 0.8726483765 | AG124: 71.19 | AH124: 0.8500704511 | AI124: 79.895 | AJ124: 1.018043043 | AK124: 124.07 | AL124: 1.021522197 | AM124: 46.93 | AN124: 0.5604585896 | AO124: 237.703298 | AP124: 1.702706921 | AQ124: 188.619887 | AR124: 1.033607912 | AS124: 88.748773 | AT124: 0.2952664544 | AU124: 360.593156 | AV124: 1.496286445 | AW124: 347.0287 | AX124: 1.901530377 | AY124: 512.870739 | AZ124: 2.050206099 | BA124: 519.743487 | BB124: 2.014835699 | BC124: 554.674638 | BD124: 2.612578901 | BE124: 2154.834221 | BF124: 6.65241965 | BG124: 4778.838273 | BH124: 16.19984233 | BI124: 1360.791529 | BJ124: 7.624210681 | BK124: 1362.78748 | BL124: 5.01241818 | BM124: 1167.685262 | BN124: 4.556017629 | BO124: 3050.890166 | BP124: 14.01675759 | BQ124: 5593.912854 | BR124: 11.56916168 | BS124: 2857.417542 | BT124: 9.42073733 | BU124: 1737.294502 | BV124: 4.833829128 | BW124: 1274.063706 | BX124: 4.085671041 | BY124: 1906.989626 | BZ124: 5.608805323 | CA124: 1979.073036 | CB124: 5.80415956 | CC124: 2076.216202 | CD124: 5.998575568 | CE124: 1725.872857 | CF124: 6.118486532 | CG124: 4846.084113 | CH124: 14.47497305 | CI124: 1780.710377 | CJ124: 4.908464442 | CK124: 3492.505267 | CL124: 9.622343489 | CM124: 2981.092696 | CN124: 9.587745292
B125: Industrial | C125: 1285.7 | D125: 79.23702699 | E125: 1405.6 | F125: 82.62888719 | G125: 381.3 | H125: 60.86193136 | I125: 597 | J125: 87.31899956 | K125: 1269.6 | L125: 88.79563575 | M125: 1165.8 | N125: 67.42625795 | O125: 1918.9 | P125: 79.15601023 | Q125: 2400.5 | R125: 61.91323636 | S125: 1020 | T125: 32.30813088 | U125: 982.4 | V125: 39.30071609 | W125: 1192.9 | X125: 32.04652912 | Y125: 963.6 | Z125: 27.02945302 | AA125: 1100.8 | AB125: 30.58117569 | AC125: 2320.5 | AD125: 47.35037852 | AE125: 6143.365 | AF125: 57.70097399 | AG125: 4422.06 | AH125: 52.80323836 | AI125: 4362.64 | AJ125: 55.58990303 | AK125: 6707.632 | AL125: 55.22684758 | AM125: 4912.925 | AN125: 58.67229952 | AO125: 9278.921693 | AP125: 66.46640716 | AQ125: 11305.50456 | AR125: 61.95242265 | AS125: 8481.459243 | AT125: 28.21774673 | AU125: 10379.79506 | AV125: 43.07110771 | AW125: 10094.75446 | AX125: 55.31381768 | AY125: 14353.13735 | AZ125: 57.37681541 | BA125: 16262.1614 | BB125: 63.04183538 | BC125: 11785.03036 | BD125: 55.50879661 | BE125: 18055.51667 | BF125: 55.74112047 | BG125: 10321.13288 | BH125: 34.98773463 | BI125: 9239.546497 | BJ125: 51.76711316 | BK125: 15339.6576 | BL125: 56.42022677 | BM125: 13408.91532 | BN125: 52.31825439 | BO125: 13549.41959 | BP125: 62.25033336 | BQ125: 34859.70795 | BR125: 72.09579553 | BS125: 20333.2576 | BT125: 67.03755265 | BU125: 21699.92076 | BV125: 60.377621 | BW125: 20457.46037 | BX125: 65.60304087 | BY125: 21919.82953 | BZ125: 64.47022831 | CA125: 23004.50579 | CB125: 67.46684925 | CC125: 18635.0783 | CD125: 53.84021437 | CE125: 12449.80412 | CF125: 44.1364835 | CG125: 15286.69414 | CH125: 45.66047154 | CI125: 15434.73322 | CJ125: 42.54528988 | CK125: 18280.55852 | CL125: 50.36551125 | CM125: 15746.16594 | CN125: 50.64258101
B126: Comercio | C126: 118 | D126: 7.272279058 | E126: 170.1 | F126: 9.999412145 | G126: 1.2 | H126: 0.1915403033 | I126: 58.6 | J126: 8.571010677 | K126: 31.5 | L126: 2.203105329 | M126: 109.5 | N126: 6.333140544 | O126: 151.2 | P126: 6.237109149 | Q126: -21.2 | R126: -0.5467863407 | S126: 246.8 | T126: 7.817300687 | U126: 386.3 | V126: 15.45385446 | W126: 171.4 | X126: 4.6045562 | Y126: 387.5 | Z126: 10.86956522 | AA126: 750.9 | AB126: 20.86065118 | AC126: 759.9 | AD126: 15.50594813 | AE126: 1189.02 | AF126: 11.16775775 | AG126: 911.25 | AH126: 10.88111671 | AI126: 676.98 | AJ126: 8.626256706 | AK126: 1768.1895 | AL126: 14.55827213 | AM126: 986.575 | AN126: 11.78211023 | AO126: 1288.994544 | AP126: 9.233275056 | AQ126: 2087.244073 | AR126: 11.43777585 | AS126: 1914.966533 | AT126: 6.371078263 | AU126: 1461.862085 | AV126: 6.066017579 | AW126: 1231.871879 | AX126: 6.749994446 | AY126: 1189.784567 | AZ126: 4.756176145 | BA126: 1817.617672 | BB126: 7.046170015 | BC126: 112.1761325 | BD126: 0.5283619925 | BE126: 1031.133338 | BF126: 3.183322232 | BG126: 1714.638064 | BH126: 5.812472552 | BI126: 1160.720536 | BJ126: 6.503257637 | BK126: 2752.771293 | BL126: 10.12486619 | BM126: 2873.198761 | BN126: 11.21050734 | BO126: 2236.0082 | BP126: 10.27293124 | BQ126: 1199.663846 | BR126: 2.481108547 | BS126: 1849.283982 | BT126: 6.096980362 | BU126: 2186.557796 | BV126: 6.083854377 | BW126: 1795.375888 | BX126: 5.757416396 | BY126: 2099.458305 | BZ126: 6.174890918 | CA126: 2180.589489 | CB126: 6.395160307 | CC126: 2928.844015 | CD126: 8.46197623 | CE126: 1217.133083 | CF126: 4.314925257 | CG126: 1910.302152 | CH126: 5.70596208 | CI126: 1362.867333 | CJ126: 3.75669504 | CK126: 1355.50106 | CL126: 3.734596173 | CM126: 2351.451679 | CN126: 7.562703366
B127: Servicios | C127: 131.3 | D127: 8.091951189 | E127: 319.8 | F127: 18.79960026 | G127: 235.5 | H127: 37.58978452 | I127: 12.9 | J127: 1.886792453 | K127: 122.2 | L127: 8.546649881 | M127: 435.3 | N127: 25.17640254 | O127: 323.1 | P127: 13.32810824 | Q127: 1433.9 | R127: 36.98287424 | S127: 1877.4 | T127: 59.4659656 | U127: 1102.2 | V127: 44.09329119 | W127: 2203.1 | X127: 59.18493445 | Y127: 2138 | Z127: 59.97194951 | AA127: 1700 | AB127: 47.22746972 | AC127: 1730.7 | AD127: 35.31536311 | AE127: 3211.345 | AF127: 30.1622538 | AG127: 2960.11 | AH127: 35.3462852 | AI127: 2696.655 | AJ127: 34.36148524 | AK127: 3536.2085 | AL127: 29.11514046 | AM127: 2399.425 | AN127: 28.65498298 | AO127: 3069.245393 | AP127: 21.98549796 | AQ127: 4570.875894 | AR127: 25.04769546 | AS127: 19489.11064 | AT127: 64.84011446 | AU127: 11776.87357 | AV127: 48.86830489 | AW127: 6565.97449 | AX127: 35.97800397 | AY127: 8942.404288 | AZ127: 35.74735389 | BA127: 7174.244819 | BB127: 27.8116512 | BC127: 8777.549964 | BD127: 41.34323128 | BE127: 11157.82882 | BF127: 34.44652911 | BG127: 12564.93867 | BH127: 42.59403932 | BI127: 6095.824734 | BJ127: 34.15354303 | BK127: 7598.954022 | BL127: 27.94943149 | BM127: 8006.231525 | BN127: 31.23832522 | BO127: 2734.522567 | BP127: 12.56326445 | BQ127: 6381.319386 | BR127: 13.1976521 | BS127: 5035.282293 | BT127: 16.60102914 | BU127: 10059.89011 | BV127: 27.99052768 | BW127: 7472.791191 | BX127: 23.9637676 | BY127: 7998.619081 | BZ127: 23.52540186 | CA127: 6905.65946 | CB127: 20.25268832 | CC127: 10852.33296 | CD127: 31.35441255 | CE127: 12635.61602 | CF127: 44.79521544 | CG127: 11280.25752 | CH127: 33.693477 | CI127: 17416.50289 | CJ127: 48.00796705 | CK127: 12833.20704 | CL127: 35.35729132 | CM127: 9727.225877 | CN127: 31.28455692
B128: Total | C128: 1622.6 | D128: 100 | E128: 1701.1 | F128: 100 | G128: 626.5 | H128: 100 | I128: 683.7 | J128: 100 | K128: 1429.8 | L128: 100 | M128: 1729 | N128: 100 | O128: 2424.2 | P128: 100 | Q128: 3877.2 | R128: 100 | S128: 3157.1 | T128: 100 | U128: 2499.7 | V128: 100 | W128: 3722.4 | X128: 100 | Y128: 3565 | Z128: 100 | AA128: 3599.6 | AB128: 100 | AC128: 4900.7 | AD128: 100 | AE128: 10646.9 | AF128: 100 | AG128: 8374.6 | AH128: 100 | AI128: 7847.9 | AJ128: 100 | AK128: 12145.6 | AL128: 100 | AM128: 8373.5 | AN128: 100 | AO128: 13960.31783 | AP128: 100 | AQ128: 18248.68839 | AR128: 100 | AS128: 30057.18112 | AT128: 100 | AU128: 24099.20621 | AV128: 100 | AW128: 18249.96878 | AX128: 100 | AY128: 25015.56987 | AZ128: 100 | BA128: 25795.8248 | BB128: 100 | BC128: 21230.92389 | BD128: 100 | BE128: 32391.73615 | BF128: 100 | BG128: 29499.2888 | BH128: 100 | BI128: 17848.29389 | BJ128: 100 | BK128: 27188.22394 | BL128: 100 | BM128: 25629.51589 | BN128: 100 | BO128: 21766.01933 | BP128: 100 | BQ128: 48351.92911 | BR128: 100 | BS128: 30331.14545 | BT128: 100 | BU128: 35940.33749 | BV128: 100 | BW128: 31183.70749 | BX128: 100 | BY128: 33999.9254 | BZ128: 100 | CA128: 34097.49535 | CB128: 100 | CC128: 34611.8204 | CD128: 100 | CE128: 28207.51255 | CF128: 100 | CG128: 33479.05446 | CH128: 100 | CI128: 36278.35952 | CJ128: 100 | CK128: 36295.78668 | CL128: 100 | CM128: 31092.73979 | CN128: 100
B129: * La diferencia entre el total de IED publicado por la Secretaría de Economía y la desagregación por país de origen, se debe a que esta última sólo incuye las nuevas inversiones reportadas al RNIE más el valor de la importación temporal de maquinaria y equipo de empresas maquiladoras.
B130: ** De 1999 a 2005 los datos no cambian
B131: Fuente: Secretaría de Economía
B133: IED por entidad federativa (1980-2024) (millones de dólares/participación porcentual)
B137: Entidad federativa | C137: 1980 | E137: 1981 | G137: 1982 | I137: 1983 | K137: 1984 | M137: 1985 | O137: 1986 | Q137: 1987 | S137: 1988 | U137: 1989 | W137: 1990 | Y137: 1991 | AA137: 1992 | AC137: 1993 | AE137: 1994* | AG137: 1995* | AI137: 1996* | AK137: 1997* | AM137: 1998* | AO137: 1999** | AQ137: 2000** | AS137: 2001** | AU137: 2002** | AW137: 2003** | AY137: 2004** | BA137: 2005** | BC137: 2006 | BE137: 2007 | BG137: 2008 | BI137: 2009 | BK137: 2010 | BM137: 2011 | BO137: 2012 | BQ137: 2013 | BS137: 2014 | BU137: 2015 | BW137: 2016 | BY137: 2017 | CA137: 2018 | CC137: 2019 | CE137: 2020 | CG137: 2021 | CI137: 2022 | CK137: 2023 | CM137: 2T 2024
B138: Aguascalientes | C138: nd | D138: nd | E138: nd | F138: nd | G138: nd | H138: nd | I138: nd | J138: nd | K138: nd | L138: nd | M138: nd | N138: nd | O138: nd | P138: nd | Q138: nd | R138: nd | S138: nd | T138: nd | U138: 0.4 | V138: 0.01600192023 | W138: 0 | X138: 0 | Y138: 61.8 | Z138: 1.733471712 | AA138: 31.5 | AB138: 0.875097233 | AC138: 9.3 | AD138: 0.1897688085 | AE138: 28.5 | AF138: 0.2676835511 | AG138: 27.1 | AH138: 0.323597545 | AI138: 34.8 | AJ138: 0.4434307267 | AK138: 18.1 | AL138: 0.1490251614 | AM138: 69.1 | AN138: 0.8252224279 | AO138: 818.846072 | AP138: 5.865525998 | AQ138: 288.2483511 | AR138: 1.579556541 | AS138: 254.5625875 | AT138: 0.8469276823 | AU138: 115.1542767 | AV138: 0.4778343141 | AW138: 119.8299376 | AX138: 0.6566035211 | AY138: 441.5118119 | AZ138: 1.764948048 | BA138: 133.876424 | BB138: 0.5189848552 | BC138: 140.5939138 | BD138: =BC138/BC$170*100 -> 0.6620623282 | BE138: 410.573807 | BF138: =BE138/BE$170*100 -> 1.267455954 | BG138: 337.4852046 | BH138: =BG138/BG$170*100 -> 1.143889562 | BI138: 342.2060574 | BJ138: =BI138/BI$170*100 -> 1.917065128 | BK138: 333.1545323 | BL138: =BK138/BK$170*100 -> 1.225291861 | BM138: 236.8051773 | BN138: =BM138/BM$170*100 -> 0.9238464281 | BO138: 355.2095029 | BP138: =BO138/BO$170*100 -> 1.631697121 | BQ138: 69.13988341 | BR138: =BQ138/BQ$170*100 -> 0.1429856248 | BS138: 978.7988459 | BT138: =BS138/BS$170*100 -> 3.22490118 | BU138: 812.5841424 | BV138: =BU138/BU$170*100 -> 2.260704426 | BW138: 594.8797316 | BX138: =BW138/BW$170*100 -> 1.90731164 | BY138: 1576.337274 | BZ138: =BY138/BY$170*100 -> 4.633885687 | CA138: 1196.980198 | CB138: =CA138/CA$170*100 -> 3.510106123 | CC138: 452.1233792 | CD138: =CC138/CC$170*100 -> 1.306069934 | CE138: 743.6596702 | CF138: =CE138/CE$170*100 -> 2.636046012 | CG138: 42.17143676 | CH138: =CG138/CG$170*100 -> 0.1259332598 | CI138: 598.2991969 | CJ138: =CI138/CI$170*100 -> 1.648257721 | CK138: 1379.168289 | CL138: =CK138/CK$170*100 -> 3.801238339 | CM138: 394.1288797 | CN138: =CM138/CM$170*100 -> 1.267445199
B139: Baja California | C139: nd | D139: nd | E139: nd | F139: nd | G139: nd | H139: nd | I139: nd | J139: nd | K139: nd | L139: nd | M139: nd | N139: nd | O139: nd | P139: nd | Q139: nd | R139: nd | S139: nd | T139: nd | U139: 84.1 | V139: 3.364403728 | W139: 36.6 | X139: 0.9832102082 | Y139: 62.8 | Z139: 1.761521416 | AA139: 98.3 | AB139: 2.730858984 | AC139: 189.6 | AD139: 3.868835064 | AE139: 227.1 | AF139: 2.133015244 | AG139: 538.1 | AH139: 6.425381511 | AI139: 427.7 | AJ139: 5.449865569 | AK139: 679.4 | AL139: 5.593795284 | AM139: 726.2 | AN139: 8.672598077 | AO139: 1238.714183 | AP139: 8.873108745 | AQ139: 1054.188852 | AR139: 5.776792446 | AS139: 1326.086279 | AT139: 4.411878393 | AU139: 1535.124825 | AV139: 6.370022362 | AW139: 1084.765864 | AX139: 5.943932712 | AY139: 1365.615627 | AZ139: 5.459062635 | BA139: 1334.936478 | BB139: 5.175009864 | BC139: 1340.69161 | BD139: =BC139/BC$170*100 -> 6.313370079 | BE139: 1790.829226 | BF139: 5.528353555 | BG139: 1454.140673 | BH139: =BG139/BG$170*100 -> 4.92873855 | BI139: 829.5231895 | BJ139: =BI139/BI$170*100 -> 4.64705386 | BK139: 1414.82295 | BL139: =BK139/BK$170*100 -> 5.203504311 | BM139: 766.3223272 | BN139: =BM139/BM$170*100 -> 2.989648084 | BO139: 1018.518951 | BP139: =BO139/BO$170*100 -> 4.678688 | BQ139: 1290.826481 | BR139: =BQ139/BQ$170*100 -> 2.6695103 | BS139: 1223.344367 | BT139: =BS139/BS$170*100 -> 4.030618457 | BU139: 1167.278445 | BV139: =BU139/BU$170*100 -> 3.247505593 | BW139: 1567.130437 | BX139: =BW139/BW$170*100 -> 5.024555327 | BY139: 1678.948897 | BZ139: =BY139/BY$170*100 -> 4.935528325 | CA139: 1631.150229 | CB139: =CA139/CA$170*100 -> 4.783295843 | CC139: 1183.728077 | CD139: =CC139/CC$170*100 -> 3.419490615 | CE139: 1195.390076 | CF139: =CE139/CE$170*100 -> 4.237292096 | CG139: 2222.726169 | CH139: =CG139/CG$170*100 -> 6.637553131 | CI139: 1874.377235 | CJ139: =CI139/CI$170*100 -> 5.163732069 | CK139: 1477.046078 | CL139: =CK139/CK$170*100 -> 4.071007305 | CM139: 1809.065877 | CN139: =CM139/CM$170*100 -> 5.817619512
B140: Baja California Sur | C140: nd | D140: nd | E140: nd | F140: nd | G140: nd | H140: nd | I140: nd | J140: nd | K140: nd | L140: nd | M140: nd | N140: nd | O140: nd | P140: nd | Q140: nd | R140: nd | S140: nd | T140: nd | U140: 324.8 | V140: 12.99355923 | W140: 31.4 | X140: 0.8435191404 | Y140: 13.1 | Z140: 0.3674511234 | AA140: 46.8 | AB140: 1.30014446 | AC140: 147.6 | AD140: 3.011814639 | AE140: 8.3 | AF140: 0.077956964 | AG140: 20.9 | AH140: 0.2495641583 | AI140: 34.6 | AJ140: 0.4408822742 | AK140: 42.5 | AL140: 0.349920959 | AM140: 46.8 | AN140: 0.5589060727 | AO140: 135.1224975 | AP140: 0.9679041632 | AQ140: 173.5108817 | AR140: 0.9508128911 | AS140: 243.1485498 | AT140: 0.8089532707 | AU140: 330.8221803 | AV140: 1.372751357 | AW140: 149.4772055 | AX140: 0.8190545824 | AY140: 229.2353715 | AZ140: 0.9163707754 | BA140: 741.023564 | BB140: 2.872649236 | BC140: 591.5703159 | BD140: 2.785728131 | BE140: 819.2910718 | BF140: 2.529180696 | BG140: 810.4964768 | BH140: =BG140/BG$170*100 -> 2.74713809 | BI140: 449.5262604 | BJ140: =BI140/BI$170*100 -> 2.518281309 | BK140: 517.5682143 | BL140: =BK140/BK$170*100 -> 1.903537425 | BM140: 711.2789782 | BN140: =BM140/BM$170*100 -> 2.774907841 | BO140: 720.6296192 | BP140: =BO140/BO$170*100 -> 3.310297909 | BQ140: 421.3367491 | BR140: =BQ140/BQ$170*100 -> 0.8713508812 | BS140: 228.70082 | BT140: =BS140/BS$170*100 -> 0.7535128873 | BU140: 352.014288 | BV140: =BU140/BU$170*100 -> 0.9793450516 | BW140: 510.7854987 | BX140: =BW140/BW$170*100 -> 1.637687545 | BY140: 568.9393561 | BZ140: =BY140/BY$170*100 -> 1.672484679 | CA140: 443.0643325 | CB140: =CA140/CA$170*100 -> 1.299271975 | CC140: 464.9731838 | CD140: =CC140/CC$170*100 -> 1.343189766 | CE140: 607.8694713 | CF140: =CE140/CE$170*100 -> 2.154711301 | CG140: 1085.031625 | CH140: =CG140/CG$170*100 -> 3.240144989 | CI140: 818.4808209 | CJ140: =CI140/CI$170*100 -> 2.254837278 | CK140: 1133.721461 | CL140: =CK140/CK$170*100 -> 3.124742294 | CM140: 366.9391433 | CN140: =CM140/CM$170*100 -> 1.180008062
B141: Campeche | C141: nd | D141: nd | E141: nd | F141: nd | G141: nd | H141: nd | I141: nd | J141: nd | K141: nd | L141: nd | M141: nd | N141: nd | O141: nd | P141: nd | Q141: nd | R141: nd | S141: nd | T141: nd | U141: 0 | V141: 0 | W141: 0 | X141: 0 | Y141: 0 | Z141: 0 | AA141: 0.3 | AB141: 0.008334259362 | AC141: 5.2 | AD141: 0.1061072908 | AE141: 2.1 | AF141: 0.01972405113 | AG141: 0.5 | AH141: 0.005970434409 | AI141: 0 | AJ141: 0 | AK141: 1.8 | AL141: 0.01482018179 | AM141: 0.1 | AN141: 0.001194243745 | AO141: 30.505075 | AP141: 0.2185127542 | AQ141: 25.308216 | AR141: 0.1386851233 | AS141: 51.634708 | AT141: 0.1717882585 | AU141: 190.918863 | AV141: 0.7922205459 | AW141: 65.706121 | AX141: 0.3600341557 | AY141: 149.047489 | AZ141: 0.5958188832 | BA141: 129.300058 | BB141: 0.5012441316 | BC141: 30.41914107 | BD141: 0.1432449444 | BE141: 134.523132 | BF141: 0.415277696 | BG141: 150.0526385 | BH141: =BG141/BG$170*100 -> 0.5085960649 | BI141: 26.16739962 | BJ141: =BI141/BI$170*100 -> 0.1465918216 | BK141: 73.20354795 | BL141: =BK141/BK$170*100 -> 0.2692315511 | BM141: 24.79756059 | BN141: =BM141/BM$170*100 -> 0.09674255451 | BO141: 209.6683149 | BP141: =BO141/BO$170*100 -> 0.9631363543 | BQ141: 278.4169567 | BR141: =BQ141/BQ$170*100 -> 0.575783767 | BS141: 218.5742756 | BT141: =BS141/BS$170*100 -> 0.720148417 | BU141: 543.0071556 | BV141: =BU141/BU$170*100 -> 1.510709619 | BW141: 142.1679444 | BX141: =BW141/BW$170*100 -> 0.4558208337 | BY141: 328.3459964 | BZ141: =BY141/BY$170*100 -> 0.9652235208 | CA141: 123.4906007 | CB141: =CA141/CA$170*100 -> 0.3621322344 | CC141: 151.8657313 | CD141: =CC141/CC$170*100 -> 0.4387016351 | CE141: 209.1451006 | CF141: =CE141/CE$170*100 -> 0.741355395 | CG141: 218.4180737 | CH141: =CG141/CG$170*100 -> 0.6522447927 | CI141: 40.24158793 | CJ141: =CI141/CI$170*100 -> 0.1108617701 | CK141: 74.52219042 | CL141: =CK141/CK$170*100 -> 0.2053966942 | CM141: 126.609792 | CN141: =CM141/CM$170*100 -> 0.4071535514
B142: Chiapas | C142: nd | D142: nd | E142: nd | F142: nd | G142: nd | H142: nd | I142: nd | J142: nd | K142: nd | L142: nd | M142: nd | N142: nd | O142: nd | P142: nd | Q142: nd | R142: nd | S142: nd | T142: nd | U142: 0.9 | V142: 0.03600432052 | W142: 0 | X142: 0 | Y142: 2.3 | Z142: 0.06451431937 | AA142: 19.8 | AB142: 0.5500611179 | AC142: 4.2 | AD142: 0.08570204257 | AE142: 0.4 | AF142: 0.00375696212 | AG142: 0.4 | AH142: 0.004776347527 | AI142: 1 | AJ142: 0.01274226226 | AK142: 0.4 | AL142: 0.003293373732 | AM142: 0.4 | AN142: 0.004776974981 | AO142: 34.01038882 | AP142: 0.2436218804 | AQ142: 43.472612 | AR142: 0.238223214 | AS142: 199.301561 | AT142: 0.6630746915 | AU142: 207.626804 | AV142: 0.8615503854 | AW142: 114.2917081 | AX142: 0.6262570063 | AY142: 232.204182 | AZ142: 0.928238626 | BA142: 142.076015 | BB142: 0.5507713597 | BC142: 89.256227 | BD142: 0.4203111206 | BE142: 186.876594 | BF142: 0.5768946964 | BG142: 63.203183 | BH142: =BG142/BG$170*100 -> 0.2142240915 | BI142: 91.88158019 | BJ142: =BI142/BI$170*100 -> 0.5147278066 | BK142: 157.6758362 | BL142: =BK142/BK$170*100 -> 0.5799078205 | BM142: 92.80881925 | BN142: =BM142/BM$170*100 -> 0.3620744155 | BO142: 121.0916849 | BP142: =BO142/BO$170*100 -> 0.5562490643 | BQ142: 182.4139759 | BR142: =BQ142/BQ$170*100 -> 0.3772435681 | BS142: 36.56443398 | BT142: =BS142/BS$170*100 -> 0.1204708064 | BU142: 270.0755851 | BV142: =BU142/BU$170*100 -> 0.7513819661 | BW142: 139.7876584 | BX142: =BW142/BW$170*100 -> 0.4481891278 | BY142: 217.0865223 | BZ142: =BY142/BY$170*100 -> 0.6381591968 | CA142: 70.22050105 | CB142: =CA142/CA$170*100 -> 0.205919372 | CC142: 256.6473096 | CD142: =CC142/CC$170*100 -> 0.741389077 | CE142: 133.1424006 | CF142: =CE142/CE$170*100 -> 0.471949076 | CG142: 157.0403179 | CH142: =CG142/CG$170*100 -> 0.468957206 | CI142: 186.7404323 | CJ142: =CI142/CI$170*100 -> 0.5144522357 | CK142: 39.83869197 | CL142: =CK142/CK$170*100 -> 0.109802672 | CM142: 101.2424761 | CN142: =CM142/CM$170*100 -> 0.3255769797
B143: Chihuahua | C143: nd | D143: nd | E143: nd | F143: nd | G143: nd | H143: nd | I143: nd | J143: nd | K143: nd | L143: nd | M143: nd | N143: nd | O143: nd | P143: nd | Q143: nd | R143: nd | S143: nd | T143: nd | U143: 77.8 | V143: 3.112373485 | W143: 24.1 | X143: 0.6474143721 | Y143: 17.8 | Z143: 0.4992847325 | AA143: 95.3 | AB143: 2.647516391 | AC143: 27.2 | AD143: 0.5550227519 | AE143: 308.4 | AF143: 2.896617795 | AG143: 528.7 | AH143: 6.313137344 | AI143: 536.7 | AJ143: 6.838772156 | AK143: 504 | AL143: 4.149650902 | AM143: 620 | AN143: 7.40431122 | AO143: 635.015674 | AP143: 4.548719317 | AQ143: 1387.364799 | AR143: 7.602545288 | AS143: 1076.448629 | AT143: 3.581335938 | AU143: 1362.675931 | AV143: 5.654443216 | AW143: 1120.02145 | AX143: 6.137114334 | AY143: 1459.538949 | AZ143: 5.834522086 | BA143: 1692.013764 | BB143: 6.559254364 | BC143: 1948.818072 | BD143: 9.177061761 | BE143: 2267.159666 | BF143: 6.998802575 | BG143: 2625.23309 | BH143: =BG143/BG$170*100 -> 8.898098907 | BI143: 1424.710974 | BJ143: =BI143/BI$170*100 -> 7.981342433 | BK143: 1847.780537 | BL143: =BK143/BK$170*100 -> 6.795856678 | BM143: 1218.112005 | BN143: =BM143/BM$170*100 -> 4.752212083 | BO143: 1186.894459 | BP143: =BO143/BO$170*100 -> 5.452140933 | BQ143: 2311.449933 | BR143: =BQ143/BQ$170*100 -> 4.780223752 | BS143: 1936.579717 | BT143: =BS143/BS$170*100 -> 6.380553309 | BU143: 2524.517071 | BV143: =BU143/BU$170*100 -> 7.023502697 | BW143: 1986.065345 | BX143: =BW143/BW$170*100 -> 6.367750236 | BY143: 1825.311644 | BZ143: =BY143/BY$170*100 -> 5.365784114 | CA143: 1241.944623 | CB143: =CA143/CA$170*100 -> 3.641962859 | CC143: 1406.994063 | CD143: =CC143/CC$170*100 -> 4.064449501 | CE143: 641.0634074 | CF143: =CE143/CE$170*100 -> 2.272373649 | CG143: 1907.594107 | CH143: =CG143/CG$170*100 -> 5.696498926 | CI143: 1868.607903 | CJ143: =CI143/CI$170*100 -> 5.147838107 | CK143: 1980.082935 | CL143: =CK143/CK$170*100 -> 5.457468262 | CM143: 1076.27238 | CN143: =CM143/CM$170*100 -> 3.461091868
B144: Ciudad de México | C144: nd | D144: nd | E144: nd | F144: nd | G144: nd | H144: nd | I144: nd | J144: nd | K144: nd | L144: nd | M144: nd | N144: nd | O144: nd | P144: nd | Q144: nd | R144: nd | S144: nd | T144: nd | U144: 1292.3 | V144: 51.69820378 | W144: 2226.02 | X144: 59.79905977 | Y144: 2389.4 | Z144: 67.02196292 | AA144: 2028.6 | AB144: 56.35626181 | AC144: 3088.89 | AD144: 63.0295672 | AE144: 7602.9 | AF144: 71.40951826 | AG144: 4486.4 | AH144: 53.57151386 | AI144: 4777 | AJ144: 60.86978682 | AK144: 6643.8 | AL144: 54.701291 | AM144: 4000.6 | AN144: 47.77691527 | AO144: 3640.473033 | AP144: 26.07729334 | AQ144: 5311.350189 | AR144: 29.10538048 | AS144: 10219.45417 | AT144: 34.00004187 | AU144: 6504.409522 | AV144: 26.99014011 | AW144: 3521.352366 | AX144: 19.29511447 | AY144: 5573.048248 | AZ144: 22.27831818 | BA144: 5984.294464 | BB144: 23.19869401 | BC144: 5671.130318 | BD144: 26.70557808 | BE144: 6931.542673 | BF144: 21.39791892 | BG144: 7724.065395 | BH144: =BG144/BG$170*100 -> 26.18034114 | BI144: 5254.643944 | BJ144: =BI144/BI$170*100 -> 29.43692682 | BK144: 4064.564035 | BL144: =BK144/BK$170*100 -> 14.9488503 | BM144: 7507.596454 | BN144: =BM144/BM$170*100 -> 29.28933499 | BO144: 1337.459217 | BP144: =BO144/BO$170*100 -> 6.143778068 | BQ144: 5835.336662 | BR144: =BQ144/BQ$170*100 -> 12.06784301 | BS144: 6126.781376 | BT144: =BS144/BS$170*100 -> 20.18623599 | BU144: 5909.157065 | BV144: =BU144/BU$170*100 -> 16.43996828 | BW144: 6750.140502 | BX144: =BW144/BW$170*100 -> 21.64239403 | BY144: 5106.31046 | BZ144: =BY144/BY$170*100 -> 15.0107844 | CA144: 5836.89894 | CB144: =CA144/CA$170*100 -> 17.11651934 | CC144: 8777.882405 | CD144: =CC144/CC$170*100 -> 25.35707912 | CE144: 6993.849735 | CF144: =CE144/CE$170*100 -> 24.79105758 | CG144: 7162.907719 | CH144: =CG144/CG$170*100 -> 21.39003051 | CI144: 11103.00455 | CJ144: =CI144/CI$170*100 -> 30.58772781 | CK144: 11198.05654 | CL144: =CK144/CK$170*100 -> 30.86387801 | CM144: 14184.37209 | CN144: =CM144/CM$170*100 -> 45.61430342
B145: Coahuila de Zaragoza | C145: nd | D145: nd | E145: nd | F145: nd | G145: nd | H145: nd | I145: nd | J145: nd | K145: nd | L145: nd | M145: nd | N145: nd | O145: nd | P145: nd | Q145: nd | R145: nd | S145: nd | T145: nd | U145: 17.2 | V145: 0.6880825699 | W145: 3.2 | X145: 0.08596373405 | Y145: 24 | Z145: 0.6731928978 | AA145: 7.7 | AB145: 0.213912657 | AC145: 30.8 | AD145: 0.6284816455 | AE145: 102.3 | AF145: 0.9608430623 | AG145: 120.4 | AH145: 1.437680606 | AI145: 147.6 | AJ145: 1.88075791 | AK145: 114.4 | AL145: 0.9419048874 | AM145: 134.6 | AN145: 1.607452081 | AO145: 481.6971304 | AP145: 3.450473951 | AQ145: 511.216768 | AR145: 2.801389103 | AS145: 1129.868729 | AT145: 3.75906418 | AU145: 885.79995 | AV145: 3.67563953 | AW145: 824.4513931 | AX145: 4.517549609 | AY145: 841.530276 | AZ145: 3.364026007 | BA145: 642.152013 | BB145: 2.489364143 | BC145: 608.277464 | BD145: 2.864402755 | BE145: 666.2903059 | BF145: 2.056861887 | BG145: 583.083045 | BH145: =BG145/BG$170*100 -> 1.976331407 | BI145: 381.2102947 | BJ145: =BI145/BI$170*100 -> 2.13556992 | BK145: 751.2012138 | BL145: =BK145/BK$170*100 -> 2.762804176 | BM145: 647.1415265 | BN145: =BM145/BM$170*100 -> 2.524688837 | BO145: 539.3666573 | BP145: =BO145/BO$170*100 -> 2.477644923 | BQ145: 1804.578936 | BR145: =BQ145/BQ$170*100 -> 3.73198267 | BS145: 1625.461787 | BT145: =BS145/BS$170*100 -> 5.35549634 | BU145: 1367.224338 | BV145: =BU145/BU$170*100 -> 3.803778527 | BW145: 1209.584445 | BX145: =BW145/BW$170*100 -> 3.87818641 | BY145: 2672.544098 | BZ145: =BY145/BY$170*100 -> 7.856354127 | CA145: 3290.191669 | CB145: =CA145/CA$170*100 -> 9.64838177 | CC145: 1492.108579 | CD145: =CC145/CC$170*100 -> 4.310323783 | CE145: 852.1101183 | CF145: =CE145/CE$170*100 -> 3.020469671 | CG145: 1039.080088 | CH145: =CG145/CG$170*100 -> 3.102923514 | CI145: 872.633699 | CJ145: =CI145/CI$170*100 -> 2.404023338 | CK145: 921.4488512 | CL145: =CK145/CK$170*100 -> 2.53968042 | CM145: 391.9986958 | CN145: =CM145/CM$170*100 -> 1.260594924
B146: Colima | C146: nd | D146: nd | E146: nd | F146: nd | G146: nd | H146: nd | I146: nd | J146: nd | K146: nd | L146: nd | M146: nd | N146: nd | O146: nd | P146: nd | Q146: nd | R146: nd | S146: nd | T146: nd | U146: 33.9 | V146: 1.35616274 | W146: 22.6 | X146: 0.6071188717 | Y146: 18.7 | Z146: 0.5245294662 | AA146: 128.3 | AB146: 3.564284921 | AC146: 18.3 | AD146: 0.3734160426 | AE146: 102.9 | AF146: 0.9664785055 | AG146: 3 | AH146: 0.03582260645 | AI146: 4 | AJ146: 0.05096904904 | AK146: 3.5 | AL146: 0.02881702016 | AM146: 4.1 | AN146: 0.04896399355 | AO146: 31.64576 | AP146: 0.2266836642 | AQ146: 15.85637245 | AR146: 0.08689047734 | AS146: 94.618385 | AT146: 0.3147946064 | AU146: 65.52592756 | AV146: 0.2719007713 | AW146: 74.740079 | AX146: 0.4095353801 | AY146: 156.7449724 | AZ146: 0.6265896531 | BA146: 52.147011 | BB146: 0.202152912 | BC146: 106.4999816 | BD146: 0.5015126462 | BE146: 118.7007917 | BF146: 0.3664335684 | BG146: 187.5431177 | BH146: =BG146/BG$170*100 -> 0.6356682068 | BI146: 134.864699 | BJ146: =BI146/BI$170*100 -> 0.7555226036 | BK146: 264.8388771 | BL146: =BK146/BK$170*100 -> 0.9740372385 | BM146: 154.6133261 | BN146: =BM146/BM$170*100 -> 0.603191918 | BO146: 60.45569382 | BP146: =BO146/BO$170*100 -> 0.2777104236 | BQ146: 167.7873814 | BR146: =BQ146/BQ$170*100 -> 0.3469948514 | BS146: 195.635703 | BT146: =BS146/BS$170*100 -> 0.6445714685 | BU146: 165.322271 | BV146: =BU146/BU$170*100 -> 0.4599459555 | BW146: -24.22497056 | BX146: =BW146/BW$170*100 -> -0.07767043635 | BY146: 132.2200718 | BZ146: =BY146/BY$170*100 -> 0.3886812222 | CA146: 90.6961999 | CB146: =CA146/CA$170*100 -> 0.2659637035 | CC146: 41.36634316 | CD146: =CC146/CC$170*100 -> 0.1194968886 | CE146: 92.06589544 | CF146: =CE146/CE$170*100 -> 0.3263454323 | CG146: 90.1802131 | CH146: =CG146/CG$170*100 -> 0.2692981098 | CI146: 95.06728025 | CJ146: =CI146/CI$170*100 -> 0.261901369 | CK146: 58.16318502 | CL146: =CK146/CK$170*100 -> 0.1603083036 | CM146: 245.3739839 | CN146: =CM146/CM$170*100 -> 0.7890771113
B147: Durango | C147: nd | D147: nd | E147: nd | F147: nd | G147: nd | H147: nd | I147: nd | J147: nd | K147: nd | L147: nd | M147: nd | N147: nd | O147: nd | P147: nd | Q147: nd | R147: nd | S147: nd | T147: nd | U147: 22.1 | V147: 0.8841060927 | W147: 11.2 | X147: 0.3008730692 | Y147: 133.5 | Z147: 3.744635494 | AA147: 1.2 | AB147: 0.03333703745 | AC147: 7.9 | AD147: 0.161201461 | AE147: 21.5 | AF147: 0.201936714 | AG147: 41 | AH147: 0.4895756215 | AI147: 20.2 | AJ147: 0.2573936977 | AK147: 75.2 | AL147: 0.6191542616 | AM147: 61.9 | AN147: 0.7392368782 | AO147: 166.064998 | AP147: 1.189550266 | AQ147: 131.615137 | AR147: 0.721230667 | AS147: 288.855449 | AT147: 0.961019757 | AU147: 172.520536 | AV147: 0.7158764255 | AW147: 306.408175 | AX147: 1.678951777 | AY147: -82.368549 | AZ147: -0.329269129 | BA147: 76.630701 | BB147: 0.297066295 | BC147: 10.77438 | BD147: 0.05073698367 | BE147: 421.617602 | BF147: 1.301548542 | BG147: 488.132089 | BH147: =BG147/BG$170*100 -> 1.654499795 | BI147: 127.3688294 | BJ147: =BI147/BI$170*100 -> 0.7135301553 | BK147: 414.0637624 | BL147: =BK147/BK$170*100 -> 1.522863743 | BM147: 228.6192869 | BN147: =BM147/BM$170*100 -> 0.8919108693 | BO147: 268.3888163 | BP147: =BO147/BO$170*100 -> 1.232875965 | BQ147: 482.4867997 | BR147: =BQ147/BQ$170*100 -> 0.9978130295 | BS147: 155.8836222 | BT147: =BS147/BS$170*100 -> 0.5135981509 | BU147: 231.0989554 | BV147: =BU147/BU$170*100 -> 0.6429444091 | BW147: 275.9363663 | BX147: =BW147/BW$170*100 -> 0.8847110019 | BY147: 131.1131911 | BZ147: =BY147/BY$170*100 -> 0.3854273763 | CA147: 391.0602771 | CB147: =CA147/CA$170*100 -> 1.146771747 | CC147: 178.5304772 | CD147: =CC147/CC$170*100 -> 0.5157293328 | CE147: 496.5417118 | CF147: =CE147/CE$170*100 -> 1.760088454 | CG147: 461.8363757 | CH147: =CG147/CG$170*100 -> 1.379145809 | CI147: 565.5010184 | CJ147: =CI147/CI$170*100 -> 1.557901841 | CK147: 377.8293061 | CL147: =CK147/CK$170*100 -> 1.041366203 | CM147: 134.9151989 | CN147: =CM147/CM$170*100 -> 0.4338621956
B148: Estado de México | C148: nd | D148: nd | E148: nd | F148: nd | G148: nd | H148: nd | I148: nd | J148: nd | K148: nd | L148: nd | M148: nd | N148: nd | O148: nd | P148: nd | Q148: nd | R148: nd | S148: nd | T148: nd | U148: 186.1 | V148: 7.444893387 | W148: 212.2 | X148: 5.700470114 | Y148: 312.3 | Z148: 8.759922583 | AA148: 314.1 | AB148: 8.725969552 | AC148: 291.9 | AD148: 5.956291958 | AE148: 340.5 | AF148: 3.198114005 | AG148: 611.2 | AH148: 7.298259021 | AI148: 412.1 | AJ148: 5.251086278 | AK148: 290.4 | AL148: 2.390989329 | AM148: 747 | AN148: 8.921000776 | AO148: 1129.508219 | AP148: 8.090848879 | AQ148: 1312.366772 | AR148: 7.191567658 | AS148: 2355.957129 | AT148: 7.838250431 | AU148: 1934.040601 | AV148: 8.025329066 | AW148: 1493.458753 | AX148: 8.183349636 | AY148: 3935.615017 | AZ148: 15.73266185 | BA148: 2560.63178 | BB148: 9.926535785 | BC148: 2403.104284 | BD148: 11.31631359 | BE148: 2220.916188 | BF148: 6.856047314 | BG148: 2345.891904 | BH148: =BG148/BG$170*100 -> 7.951285648 | BI148: 1592.380484 | BJ148: =BI148/BI$170*100 -> 8.920640158 | BK148: 2028.378809 | BL148: =BK148/BK$170*100 -> 7.460069743 | BM148: 2712.080342 | BN148: =BM148/BM$170*100 -> 10.5806206 | BO148: 3119.578797 | BP148: =BO148/BO$170*100 -> 14.33015643 | BQ148: 4608.438045 | BR148: =BQ148/BQ$170*100 -> 9.53053955 | BS148: 3581.429387 | BT148: =BS148/BS$170*100 -> 11.79992795 | BU148: 2959.656233 | BV148: =BU148/BU$170*100 -> 8.2341109 | BW148: 2407.818872 | BX148: =BW148/BW$170*100 -> 7.719982239 | BY148: 3761.430412 | BZ148: =BY148/BY$170*100 -> 11.0573028 | CA148: 2333.819493 | CB148: =CA148/CA$170*100 -> 6.843850971 | CC148: 2933.014743 | CD148: =CC148/CC$170*100 -> 8.472736757 | CE148: 2385.284617 | CF148: =CE148/CE$170*100 -> 8.455104202 | CG148: 1535.538832 | CH148: =CG148/CG$170*100 -> 4.58545939 | CI148: 2292.723589 | CJ148: =CI148/CI$170*100 -> 6.316236722 | CK148: 1931.369387 | CL148: =CK148/CK$170*100 -> 5.323204876 | CM148: 1709.324524 | CN148: =CM148/CM$170*100 -> 5.496869865
B149: Guanajuato | C149: nd | D149: nd | E149: nd | F149: nd | G149: nd | H149: nd | I149: nd | J149: nd | K149: nd | L149: nd | M149: nd | N149: nd | O149: nd | P149: nd | Q149: nd | R149: nd | S149: nd | T149: nd | U149: 10.4 | V149: 0.416049926 | W149: 24.2 | X149: 0.6501007388 | Y149: 5.2 | Z149: 0.1458584612 | AA149: 50.9 | AB149: 1.414046005 | AC149: 36.5 | AD149: 0.7447915604 | AE149: 27.4 | AF149: 0.2573519052 | AG149: 6.3 | AH149: 0.07522747355 | AI149: 9.8 | AJ149: 0.1248741702 | AK149: 41 | AL149: 0.3375708075 | AM149: 10.6 | AN149: 0.126589837 | AO149: 309.164243 | AP149: 2.214593154 | AQ149: 307.371787 | AR149: 1.684350022 | AS149: 857.237812 | AT149: 2.85202331 | AU149: 739.250864 | AV149: 3.067532007 | AW149: 722.169528 | AX149: 3.957100074 | AY149: 689.201802 | AZ149: 2.755091352 | BA149: 781.88629 | BB149: 3.03105753 | BC149: 596.469222 | BD149: 2.808797274 | BE149: 1091.994075 | BF149: 3.371024571 | BG149: 751.784794 | BH149: =BG149/BG$170*100 -> 2.548137718 | BI149: 508.597999 | BJ149: =BI149/BI$170*100 -> 2.849205814 | BK149: 399.2738735 | BL149: =BK149/BK$170*100 -> 1.468468774 | BM149: 1424.685597 | BN149: =BM149/BM$170*100 -> 5.558116231 | BO149: 1321.193332 | BP149: =BO149/BO$170*100 -> 6.069058788 | BQ149: 2621.382919 | BR149: =BQ149/BQ$170*100 -> 5.421184648 | BS149: 1317.88567 | BT149: =BS149/BS$170*100 -> 4.34210877 | BU149: 1752.81333 | BV149: =BU149/BU$170*100 -> 4.876532343 | BW149: 1332.59015 | BX149: =BW149/BW$170*100 -> 4.272569008 | BY149: 1677.917202 | BZ149: =BY149/BY$170*100 -> 4.932495499 | CA149: 2469.795662 | CB149: =CA149/CA$170*100 -> 7.242596736 | CC149: 796.036211 | CD149: =CC149/CC$170*100 -> 2.299547004 | CE149: 199.4531093 | CF149: =CE149/CE$170*100 -> 0.707000251 | CG149: 1798.073833 | CH149: =CG149/CG$170*100 -> 5.369447109 | CI149: 1563.039673 | CJ149: =CI149/CI$170*100 -> 4.306026522 | CK149: 808.2161171 | CL149: =CK149/CK$170*100 -> 2.227590436 | CM149: 1351.015054 | CN149: =CM149/CM$170*100 -> 4.344613226
B150: Guerrero | C150: nd | D150: nd | E150: nd | F150: nd | G150: nd | H150: nd | I150: nd | J150: nd | K150: nd | L150: nd | M150: nd | N150: nd | O150: nd | P150: nd | Q150: nd | R150: nd | S150: nd | T150: nd | U150: 3 | V150: 0.1200144017 | W150: 153.7 | X150: 4.128945601 | Y150: 3.5 | Z150: 0.09817396426 | AA150: 6.6 | AB150: 0.183353706 | AC150: 4.7 | AD150: 0.09590466668 | AE150: 7.1 | AF150: 0.06668607764 | AG150: 62.6 | AH150: 0.747498388 | AI150: 9.6 | AJ150: 0.1223257177 | AK150: 4.5 | AL150: 0.03705045449 | AM150: 2.6 | AN150: 0.03105033737 | AO150: 36.01426692 | AP150: 0.2579759813 | AQ150: 49.84095088 | AR150: 0.2731207296 | AS150: 216.7365331 | AT150: 0.7210807036 | AU150: 302.3429455 | AV150: 1.254576366 | AW150: 159.647213 | AX150: 0.8747807457 | AY150: 219.8927307 | AZ150: 0.8790234716 | BA150: 237.0806048 | BB150: 0.919065805 | BC150: 164.0267976 | BD150: 0.7724087096 | BE150: 112.3540048 | BF150: 0.3468408114 | BG150: 574.9460351 | BH150: =BG150/BG$170*100 -> 1.948751411 | BI150: 136.0141081 | BJ150: =BI150/BI$170*100 -> 0.7619616834 | BK150: 139.5511816 | BL150: =BK150/BK$170*100 -> 0.5132480888 | BM150: 241.8040872 | BN150: =BM150/BM$170*100 -> 0.9433486412 | BO150: 164.2846046 | BP150: =BO150/BO$170*100 -> 0.7546608808 | BQ150: 1088.173729 | BR150: =BQ150/BQ$170*100 -> 2.250411672 | BS150: 479.4057614 | BT150: =BS150/BS$170*100 -> 1.579523936 | BU150: 164.0899057 | BV150: =BU150/BU$170*100 -> 0.4565173705 | BW150: 180.6682375 | BX150: =BW150/BW$170*100 -> 0.5792610069 | BY150: 410.4140071 | BZ150: =BY150/BY$170*100 -> 1.206475051 | CA150: 402.1671796 | CB150: =CA150/CA$170*100 -> 1.179342383 | CC150: 275.5350094 | CD150: =CC150/CC$170*100 -> 0.7959508583 | CE150: 296.7729989 | CF150: =CE150/CE$170*100 -> 1.051969485 | CG150: 669.1022214 | CH150: =CG150/CG$170*100 -> 1.998087577 | CI150: 245.9366087 | CJ150: =CI150/CI$170*100 -> 0.6775321048 | CK150: -178.7889066 | CL150: =CK150/CK$170*100 -> -0.4927747045 | CM150: 42.26662304 | CN150: =CM150/CM$170*100 -> 0.1359216013
B151: Hidalgo | C151: nd | D151: nd | E151: nd | F151: nd | G151: nd | H151: nd | I151: nd | J151: nd | K151: nd | L151: nd | M151: nd | N151: nd | O151: nd | P151: nd | Q151: nd | R151: nd | S151: nd | T151: nd | U151: 0.2 | V151: 0.008000960115 | W151: 0.1 | X151: 0.002686366689 | Y151: 5.2 | Z151: 0.1458584612 | AA151: 0.1 | AB151: 0.002778086454 | AC151: 3.5 | AD151: 0.0714183688 | AE151: 0.1 | AF151: 0.0009392405301 | AG151: 48.3 | AH151: 0.5767439639 | AI151: 60.2 | AJ151: 0.7670841881 | AK151: 2.4 | AL151: 0.01976024239 | AM151: 7.6 | AN151: 0.09076252463 | AO151: 6.662873 | AP151: 0.04772722999 | AQ151: -84.997926 | AR151: -0.4657755351 | AS151: 336.061288 | AT151: 1.118073204 | AU151: 157.107461 | AV151: 0.6519196509 | AW151: 98.257579 | AX151: 0.5383986143 | AY151: 213.6198544 | AZ151: 0.8539475837 | BA151: 111.399544 | BB151: 0.4318510645 | BC151: 194.382045 | BD151: 0.915352776 | BE151: 87.068187 | BF151: 0.2687825919 | BG151: 121.744071 | BH151: =BG151/BG$170*100 -> 0.4126455626 | BI151: 111.455124 | BJ151: =BI151/BI$170*100 -> 0.6243803317 | BK151: 380.346931 | BL151: =BK151/BK$170*100 -> 1.398858349 | BM151: 265.525408 | BN151: =BM151/BM$170*100 -> 1.035892469 | BO151: 178.8089958 | BP151: =BO151/BO$170*100 -> 0.8213803999 | BQ151: 470.0206862 | BR151: =BQ151/BQ$170*100 -> 0.9720323231 | BS151: -66.07296627 | BT151: =BS151/BS$170*100 -> -0.2176941542 | BU151: 523.7255703 | BV151: =BU151/BU$170*100 -> 1.457065986 | BW151: 444.573819 | BX151: =BW151/BW$170*100 -> 1.42539874 | BY151: 349.3611539 | BZ151: =BY151/BY$170*100 -> 1.027000806 | CA151: 186.4781398 | CB151: =CA151/CA$170*100 -> 0.546841177 | CC151: 283.8744769 | CD151: =CC151/CC$170*100 -> 0.8200414677 | CE151: 278.7175237 | CF151: =CE151/CE$170*100 -> 0.9879683494 | CG151: 176.2685344 | CH151: =CG151/CG$170*100 -> 0.5263769234 | CI151: 412.7400177 | CJ151: =CI151/CI$170*100 -> 1.137059726 | CK151: 285.435863 | CL151: =CK151/CK$170*100 -> 0.7867130894 | CM151: 210.8998216 | CN151: =CM151/CM$170*100 -> 0.6782146148
B152: Jalisco | C152: nd | D152: nd | E152: nd | F152: nd | G152: nd | H152: nd | I152: nd | J152: nd | K152: nd | L152: nd | M152: nd | N152: nd | O152: nd | P152: nd | Q152: nd | R152: nd | S152: nd | T152: nd | U152: 73 | V152: 2.920350442 | W152: 109.8 | X152: 2.949630625 | Y152: 216.6 | Z152: 6.075565903 | AA152: 163.8 | AB152: 4.550505612 | AC152: 117.3 | AD152: 2.393535617 | AE152: 64.3 | AF152: 0.6039316609 | AG152: 114.4 | AH152: 1.366035393 | AI152: 185.6 | AJ152: 2.364963876 | AK152: 202.5 | AL152: 1.667270452 | AM152: 362.1 | AN152: 4.324356601 | AO152: 766.7881903 | AP152: 5.492627026 | AQ152: 1404.398142 | AR152: 7.695885381 | AS152: 1736.119726 | AT152: 5.776056374 | AU152: 1170.848904 | AV152: 4.858454232 | AW152: 1258.674388 | AX152: 6.896857759 | AY152: 1422.232963 | AZ152: 5.685391021 | BA152: 827.8291362 | BB152: 3.209159399 | BC152: 992.7387848 | BD152: 4.674846396 | BE152: 1837.718096 | BF152: 5.673101165 | BG152: 1040.673447 | BH152: =BG152/BG$170*100 -> 3.527311649 | BI152: 1005.721114 | BJ152: =BI152/BI$170*100 -> 5.634128427 | BK152: 2210.295162 | BL152: =BK152/BK$170*100 -> 8.129130507 | BM152: 1036.265968 | BN152: =BM152/BM$170*100 -> 4.042777375 | BO152: 1415.26239 | BP152: =BO152/BO$170*100 -> 6.501176201 | BQ152: 2937.916386 | BR152: =BQ152/BQ$170*100 -> 6.075795755 | BS152: 1684.598038 | BT152: =BS152/BS$170*100 -> 5.550335724 | BU152: 3138.397229 | BV152: =BU152/BU$170*100 -> 8.731389323 | BW152: 2102.260823 | BX152: =BW152/BW$170*100 -> 6.740297787 | BY152: 1552.88953 | BZ152: =BY152/BY$170*100 -> 4.564957441 | CA152: 1014.794082 | CB152: =CA152/CA$170*100 -> 2.975851168 | CC152: 1570.62978 | CD152: =CC152/CC$170*100 -> 4.537151646 | CE152: 2133.985879 | CF152: =CE152/CE$170*100 -> 7.564327059 | CG152: 2141.544169 | CH152: =CG152/CG$170*100 -> 6.395125682 | CI152: 2980.766415 | CJ152: =CI152/CI$170*100 -> 8.211729656 | CK152: 2049.911218 | CL152: =CK152/CK$170*100 -> 5.649927696 | CM152: 892.9749245 | CN152: =CM152/CM$170*100 -> 2.871641332
B153: Michoacán de Ocampo | C153: nd | D153: nd | E153: nd | F153: nd | G153: nd | H153: nd | I153: nd | J153: nd | K153: nd | L153: nd | M153: nd | N153: nd | O153: nd | P153: nd | Q153: nd | R153: nd | S153: nd | T153: nd | U153: 0.4 | V153: 0.01600192023 | W153: 91.5 | X153: 2.45802552 | Y153: 2.3 | Z153: 0.06451431937 | AA153: 352.2 | AB153: 9.784420491 | AC153: 36.6 | AD153: 0.7468320852 | AE153: 8.5 | AF153: 0.07983544506 | AG153: 48.8 | AH153: 0.5827143983 | AI153: 1.2 | AJ153: 0.01529071471 | AK153: 4 | AL153: 0.03293373732 | AM153: 4.3 | AN153: 0.05135248104 | AO153: 25.452083 | AP153: 0.1823173605 | AQ153: 28.331434 | AR153: 0.155251892 | AS153: 319.039813 | AT153: 1.061442893 | AU153: 204.587823 | AV153: 0.8489400904 | AW153: 134.760294 | AX153: 0.7384138332 | AY153: 368.007294 | AZ153: 1.471112975 | BA153: 247.997934 | BB153: 0.9613878832 | BC153: 63.35109658 | BD153: 0.2983228318 | BE153: 1860.910894 | BF153: 5.744698158 | BG153: 187.211323 | BH153: =BG153/BG$170*100 -> 0.634543605 | BI153: 156.4753051 | BJ153: =BI153/BI$170*100 -> 0.8765869115 | BK153: 158.1951429 | BL153: =BK153/BK$170*100 -> 0.5818177518 | BM153: 150.6824344 | BN153: =BM153/BM$170*100 -> 0.5878563566 | BO153: 335.970228 | BP153: =BO153/BO$170*100 -> 1.543319222 | BQ153: 2247.67341 | BR153: =BQ153/BQ$170*100 -> 4.648329895 | BS153: 211.4790526 | BT153: =BS153/BS$170*100 -> 0.6967714043 | BU153: 419.0265978 | BV153: =BU153/BU$170*100 -> 1.16578116 | BW153: 193.9155376 | BX153: =BW153/BW$170*100 -> 0.6217346842 | BY153: 294.6867248 | BZ153: =BY153/BY$170*100 -> 0.8662769188 | CA153: 437.0615174 | CB153: =CA153/CA$170*100 -> 1.281668912 | CC153: 298.0067727 | CD153: =CC153/CC$170*100 -> 0.860866091 | CE153: 272.7985003 | CF153: =CE153/CE$170*100 -> 0.9669872225 | CG153: 1033.728079 | CH153: =CG153/CG$170*100 -> 3.086941227 | CI153: 166.8554744 | CJ153: =CI153/CI$170*100 -> 0.4596710565 | CK153: 203.8693217 | CL153: =CK153/CK$170*100 -> 0.5619008846 | CM153: 201.2535414 | CN153: =CM153/CM$170*100 -> 0.6471939712
B154: Morelos | C154: nd | D154: nd | E154: nd | F154: nd | G154: nd | H154: nd | I154: nd | J154: nd | K154: nd | L154: nd | M154: nd | N154: nd | O154: nd | P154: nd | Q154: nd | R154: nd | S154: nd | T154: nd | U154: 3.2 | V154: 0.1280153618 | W154: 178.8 | X154: 4.80322364 | Y154: 16.9 | Z154: 0.4740399989 | AA154: 16.3 | AB154: 0.452828092 | AC154: 18.4 | AD154: 0.3754565674 | AE154: 19.4 | AF154: 0.1822126628 | AG154: 67.6 | AH154: 0.8072027321 | AI154: 51.2 | AJ154: 0.6524038278 | AK154: 27.4 | AL154: 0.2255961006 | AM154: 60.8 | AN154: 0.7261001971 | AO154: 456.570548 | AP154: 3.270488204 | AQ154: 132.424613 | AR154: 0.7256664708 | AS154: 251.499354 | AT154: 0.8367363292 | AU154: 192.469832 | AV154: 0.7986563139 | AW154: 96.118116 | AX154: 0.5266755093 | AY154: 467.853608 | AZ154: 1.870249651 | BA154: 176.277503 | BB154: 0.6833567229 | BC154: 173.947325 | BD154: 0.8191248673 | BE154: 393.498015 | BF154: 1.214742376 | BG154: 284.792855 | BH154: =BG154/BG$170*100 -> 0.9652914257 | BI154: 121.6918864 | BJ154: =BI154/BI$170*100 -> 0.681727476 | BK154: 199.379236 | BL154: =BK154/BK$170*100 -> 0.7332866025 | BM154: 102.4587569 | BN154: =BM154/BM$170*100 -> 0.3997216517 | BO154: 274.3174821 | BP154: =BO154/BO$170*100 -> 1.260109997 | BQ154: 451.1553229 | BR154: =BQ154/BQ$170*100 -> 0.9330175661 | BS154: 356.5158873 | BT154: =BS154/BS$170*100 -> 1.174632061 | BU154: 484.803179 | BV154: =BU154/BU$170*100 -> 1.348779327 | BW154: 234.8683602 | BX154: =BW154/BW$170*100 -> 0.7530381915 | BY154: 603.0703841 | BZ154: =BY154/BY$170*100 -> 1.772818081 | CA154: 251.8669739 | CB154: =CA154/CA$170*100 -> 0.7385918401 | CC154: 655.6204728 | CD154: =CC154/CC$170*100 -> 1.893921499 | CE154: 386.6837293 | CF154: =CE154/CE$170*100 -> 1.370675517 | CG154: 94.7685623 | CH154: =CG154/CG$170*100 -> 0.2829999377 | CI154: 81.12928789 | CJ154: =CI154/CI$170*100 -> 0.2235035178 | CK154: 195.5141342 | CL154: =CK154/CK$170*100 -> 0.5388724702 | CM154: 148.3961561 | CN154: =CM154/CM$170*100 -> 0.4772144475
B155: Nayarit | C155: nd | D155: nd | E155: nd | F155: nd | G155: nd | H155: nd | I155: nd | J155: nd | K155: nd | L155: nd | M155: nd | N155: nd | O155: nd | P155: nd | Q155: nd | R155: nd | S155: nd | T155: nd | U155: 0.8 | V155: 0.03200384046 | W155: 0.2 | X155: 0.005372733378 | Y155: 0.1 | Z155: 0.002804970408 | AA155: 7.5 | AB155: 0.2083564841 | AC155: 0.1 | AD155: 0.002040524823 | AE155: 5.6 | AF155: 0.05259746969 | AG155: 2 | AH155: 0.02388173764 | AI155: 3.6 | AJ155: 0.04587214414 | AK155: 7.6 | AL155: 0.06257410091 | AM155: 6.1 | AN155: 0.07284886845 | AO155: 40.030777 | AP155: 0.2867468884 | AQ155: 54.95860281 | AR155: 0.3011646735 | AS155: 114.8750473 | AT155: 0.3821883589 | AU155: 105.0111405 | AV155: 0.4357452259 | AW155: 146.9001025 | AX155: 0.8049334457 | AY155: 162.7448177 | AZ155: 0.6505740966 | BA155: 146.8101696 | BB155: 0.5691237659 | BC155: 246.4878026 | BD155: 1.16072086 | BE155: 244.5930472 | BF155: 0.7550674414 | BG155: 155.1396096 | BH155: =BG155/BG$170*100 -> 0.5258381042 | BI155: 104.0133355 | BJ155: =BI155/BI$170*100 -> 0.5826908496 | BK155: 178.1276531 | BL155: =BK155/BK$170*100 -> 0.6551265027 | BM155: 147.6603455 | BN155: =BM155/BM$170*100 -> 0.5760663018 | BO155: 157.2573861 | BP155: =BO155/BO$170*100 -> 0.7223805164 | BQ155: 535.4329246 | BR155: =BQ155/BQ$170*100 -> 1.107308944 | BS155: 105.8003987 | BT155: =BS155/BS$170*100 -> 0.3485862617 | BU155: 99.04417468 | BV155: =BU155/BU$170*100 -> 0.275552515 | BW155: 85.58025394 | BX155: =BW155/BW$170*100 -> 0.2743885963 | BY155: 103.1492609 | BZ155: =BY155/BY$170*100 -> 0.3032231058 | CA155: 188.5684784 | CB155: =CA155/CA$170*100 -> 0.5529710278 | CC155: 170.4003597 | CD155: =CC155/CC$170*100 -> 0.4922434822 | CE155: 782.3461773 | CF155: =CE155/CE$170*100 -> 2.773177844 | CG155: 302.867509 | CH155: =CG155/CG$170*100 -> 0.9044295292 | CI155: 474.8268205 | CJ155: =CI155/CI$170*100 -> 1.308102998 | CK155: 319.26573 | CL155: =CK155/CK$170*100 -> 0.8799543482 | CM155: 183.3387524 | CN155: =CM155/CM$170*100 -> 0.5895833407
B156: Nuevo León | C156: nd | D156: nd | E156: nd | F156: nd | G156: nd | H156: nd | I156: nd | J156: nd | K156: nd | L156: nd | M156: nd | N156: nd | O156: nd | P156: nd | Q156: nd | R156: nd | S156: nd | T156: nd | U156: 94.5 | V156: 3.780453654 | W156: 493.6 | X156: 13.25990598 | Y156: 21.3 | Z156: 0.5974586968 | AA156: 32.6 | AB156: 0.905656184 | AC156: 353.8 | AD156: 7.219376824 | AE156: 937.4 | AF156: 8.804440729 | AG156: 704.5 | AH156: 8.412342082 | AI156: 358.4 | AJ156: 4.566826794 | AK156: 2371.4 | AL156: 19.52476617 | AM156: 672.9 | AN156: 8.036066161 | AO156: 1767.665973 | AP156: 12.66207542 | AQ156: 2283.589274 | AR156: 12.51371729 | AS156: 3106.018915 | AT156: 10.33369996 | AU156: 2583.367061 | AV156: 10.71971848 | AW156: 2331.750869 | AX156: 12.77673895 | AY156: 1408.460097 | AZ156: 5.630333846 | BA156: 4835.90768 | BB156: 18.74686201 | BC156: 1727.215635 | BD156: 8.133527078 | BE156: 3593.201468 | BF156: 11.09234081 | BG156: 1670.879112 | BH156: =BG156/BG$170*100 -> 5.663362868 | BI156: 952.5564223 | BJ156: =BI156/BI$170*100 -> 5.336295664 | BK156: 4841.88555 | BL156: =BK156/BK$170*100 -> 17.80772098 | BM156: 1679.237423 | BN156: =BM156/BM$170*100 -> 6.551197539 | BO156: 1281.124893 | BP156: =BO156/BO$170*100 -> 5.884999648 | BQ156: 2214.573366 | BR156: =BQ156/BQ$170*100 -> 4.579876923 | BS156: 1578.6628 | BT156: =BS156/BS$170*100 -> 5.2013052 | BU156: 3362.49033 | BV156: =BU156/BU$170*100 -> 9.354842624 | BW156: 3346.026187 | BX156: =BW156/BW$170*100 -> 10.72807553 | BY156: 1996.236427 | BZ156: =BY156/BY$170*100 -> 5.868243783 | CA156: 3675.73639 | CB156: =CA156/CA$170*100 -> 10.77897933 | CC156: 3274.642198 | CD156: =CC156/CC$170*100 -> 9.45961195 | CE156: 3142.641696 | CF156: =CE156/CE$170*100 -> 11.13970334 | CG156: 3291.681369 | CH156: =CG156/CG$170*100 -> 9.829690352 | CI156: 4429.333112 | CJ156: =CI156/CI$170*100 -> 12.20239395 | CK156: 2553.124506 | CL156: =CK156/CK$170*100 -> 7.036874929 | CM156: 2304.246096 | CN156: =CM156/CM$170*100 -> 7.410027031
B157: Oaxaca | C157: nd | D157: nd | E157: nd | F157: nd | G157: nd | H157: nd | I157: nd | J157: nd | K157: nd | L157: nd | M157: nd | N157: nd | O157: nd | P157: nd | Q157: nd | R157: nd | S157: nd | T157: nd | U157: 6.4 | V157: 0.2560307237 | W157: 0 | X157: 0 | Y157: 1.2 | Z157: 0.03365964489 | AA157: 1.5 | AB157: 0.04167129681 | AC157: 5.6 | AD157: 0.1142693901 | AE157: 0.1 | AF157: 0.0009392405301 | AG157: -2 | AH157: -0.02388173764 | AI157: 0.3 | AJ157: 0.003822678678 | AK157: 6.1 | AL157: 0.05022394941 | AM157: 0.4 | AN157: 0.004776974981 | AO157: 46.902999 | AP157: 0.3359737189 | AQ157: 16.690637 | AR157: 0.0914621185 | AS157: 144.346271 | AT157: 0.4802388834 | AU157: 147.720108 | AV157: 0.6129666957 | AW157: 111.506719 | AX157: 0.6109967659 | AY157: 144.643148 | AZ157: 0.5782124844 | BA157: 126.588184 | BB157: 0.4907312907 | BC157: 110.2807789 | BD157: 0.5193165714 | BE157: 172.7584606 | BF157: 0.5333115162 | BG157: 201.1799768 | BH157: =BG157/BG$170*100 -> 0.6818896725 | BI157: 235.9279753 | BJ157: =BI157/BI$170*100 -> 1.321686991 | BK157: 117.5691321 | BL157: =BK157/BK$170*100 -> 0.4324014436 | BM157: 178.1169857 | BN157: =BM157/BM$170*100 -> 0.6948865853 | BO157: 353.7004505 | BP157: =BO157/BO$170*100 -> 1.624765109 | BQ157: 1942.551064 | BR157: =BQ157/BQ$170*100 -> 4.017317704 | BS157: 482.7963974 | BT157: =BS157/BS$170*100 -> 1.590695247 | BU157: 297.1991825 | BV157: =BU157/BU$170*100 -> 0.8268429965 | BW157: 195.5256068 | BX157: =BW157/BW$170*100 -> 0.6268969103 | BY157: 484.8065274 | BZ157: =BY157/BY$170*100 -> 1.425163298 | CA157: 487.8192672 | CB157: =CA157/CA$170*100 -> 1.430514389 | CC157: 56.61707199 | CD157: =CC157/CC$170*100 -> 0.1635523817 | CE157: 244.3184903 | CF157: =CE157/CE$170*100 -> 0.8660343004 | CG157: -92.60179789 | CH157: =CG157/CG$170*100 -> -0.2765294988 | CI157: 157.9533006 | CJ157: =CI157/CI$170*100 -> 0.4351464093 | CK157: 53.21558956 | CL157: =CK157/CK$170*100 -> 0.1466718317 | CM157: 63.48258465 | CN157: =CM157/CM$170*100 -> 0.2041481893
B158: Puebla | C158: nd | D158: nd | E158: nd | F158: nd | G158: nd | H158: nd | I158: nd | J158: nd | K158: nd | L158: nd | M158: nd | N158: nd | O158: nd | P158: nd | Q158: nd | R158: nd | S158: nd | T158: nd | U158: 10.1 | V158: 0.4040484858 | W158: 13.5 | X158: 0.362659503 | Y158: 15.4 | Z158: 0.4319654428 | AA158: 8.5 | AB158: 0.2361373486 | AC158: 59.7 | AD158: 1.218193319 | AE158: 29.9 | AF158: 0.2808329185 | AG158: 25.9 | AH158: 0.3092685024 | AI158: 39.2 | AJ158: 0.4994966806 | AK158: 379.3 | AL158: 3.122941641 | AM158: 37.9 | AN158: 0.4526183794 | AO158: 296.482464 | AP158: 2.123751533 | AQ158: 382.0075262 | AR158: 2.093342371 | AS158: 778.0410464 | AT158: 2.588536307 | AU158: 708.9985271 | AV158: 2.941999504 | AW158: 458.4920979 | AX158: 2.512289766 | AY158: 638.4262457 | AZ158: 2.552115539 | BA158: 782.8723621 | BB158: 3.034880133 | BC158: 424.9798124 | BD158: 2.001246828 | BE158: 662.70076 | BF158: 2.045780831 | BG158: 381.1317123 | BH158: =BG158/BG$170*100 -> 1.291827261 | BI158: 182.5483941 | BJ158: =BI158/BI$170*100 -> 1.022650398 | BK158: 772.9024023 | BL158: =BK158/BK$170*100 -> 2.842617858 | BM158: 594.4525029 | BN158: =BM158/BM$170*100 -> 2.319133507 | BO158: 775.324596 | BP158: =BO158/BO$170*100 -> 3.561545793 | BQ158: 1504.514629 | BR158: =BQ158/BQ$170*100 -> 3.111430821 | BS158: 1057.162873 | BT158: =BS158/BS$170*100 -> 3.483091353 | BU158: 791.4572466 | BV158: =BU158/BU$170*100 -> 2.201926923 | BW158: 1166.539609 | BX158: =BW158/BW$170*100 -> 3.740175462 | BY158: 953.566361 | BZ158: =BY158/BY$170*100 -> 2.803154874 | CA158: 643.9282611 | CB158: =CA158/CA$170*100 -> 1.888299017 | CC158: 2043.985091 | CD158: =CC158/CC$170*100 -> 5.904555253 | CE158: 583.0419922 | CF158: =CE158/CE$170*100 -> 2.066705484 | CG158: 627.8019507 | CH158: =CG158/CG$170*100 -> 1.874755812 | CI158: 798.1524633 | CJ158: =CI158/CI$170*100 -> 2.198834575 | CK158: 278.6334421 | CL158: =CK158/CK$170*100 -> 0.7679643819 | CM158: 933.350628 | CN158: =CM158/CM$170*100 -> 3.001482087
B159: Querétaro | C159: nd | D159: nd | E159: nd | F159: nd | G159: nd | H159: nd | I159: nd | J159: nd | K159: nd | L159: nd | M159: nd | N159: nd | O159: nd | P159: nd | Q159: nd | R159: nd | S159: nd | T159: nd | U159: 37.3 | V159: 1.492179061 | W159: 10.1 | X159: 0.2713230356 | Y159: 42.1 | Z159: 1.180892542 | AA159: 70.5 | AB159: 1.95855095 | AC159: 61.3 | AD159: 1.250841716 | AE159: 141.1 | AF159: 1.325268388 | AG159: 42 | AH159: 0.5015164903 | AI159: 69.8 | AJ159: 0.8894099058 | AK159: 73.2 | AL159: 0.602687393 | AM159: 125.1 | AN159: 1.493998925 | AO159: 255.193758 | AP159: 1.827993897 | AQ159: 628.2089449 | AR159: 3.442488202 | AS159: 838.6784883 | AT159: 2.790276589 | AU159: 654.15458 | AV159: 2.714423763 | AW159: 271.2228046 | AX159: 1.486154896 | AY159: 456.0213479 | AZ159: 1.822950068 | BA159: 594.7610011 | BB159: 2.30564832 | BC159: 750.580545 | BD159: 3.53451362 | BE159: 815.2668775 | BF159: 2.516757865 | BG159: 1071.503836 | BH159: =BG159/BG$170*100 -> 3.631809743 | BI159: 1131.613685 | BJ159: =BI159/BI$170*100 -> 6.33938847 | BK159: 852.0334155 | BL159: =BK159/BK$170*100 -> 3.133649727 | BM159: 1054.787516 | BN159: =BM159/BM$170*100 -> 4.115035363 | BO159: 105.4047042 | BP159: =BO159/BO$170*100 -> 0.4841890517 | BQ159: 926.5999158 | BR159: =BQ159/BQ$170*100 -> 1.916266869 | BS159: 1128.731131 | BT159: =BS159/BS$170*100 -> 3.718891141 | BU159: 1442.468949 | BV159: =BU159/BU$170*100 -> 4.013117864 | BW159: 1075.46587 | BX159: =BW159/BW$170*100 -> 3.448173576 | BY159: 985.9967149 | BZ159: =BY159/BY$170*100 -> 2.898488884 | CA159: 1227.646784 | CB159: =CA159/CA$170*100 -> 3.600034904 | CC159: 1169.079178 | CD159: =CC159/CC$170*100 -> 3.377173656 | CE159: 861.0290143 | CF159: =CE159/CE$170*100 -> 3.052084429 | CG159: 879.6675406 | CH159: =CG159/CG$170*100 -> 2.626882303 | CI159: 719.4251164 | CJ159: =CI159/CI$170*100 -> 1.981948178 | CK159: 1107.371457 | CL159: =CK159/CK$170*100 -> 3.052116895 | CM159: 878.6282903 | CN159: =CM159/CM$170*100 -> 2.825505224
B160: Quintana Roo | C160: nd | D160: nd | E160: nd | F160: nd | G160: nd | H160: nd | I160: nd | J160: nd | K160: nd | L160: nd | M160: nd | N160: nd | O160: nd | P160: nd | Q160: nd | R160: nd | S160: nd | T160: nd | U160: 7.7 | V160: 0.3080369644 | W160: 9.3 | X160: 0.2498321021 | Y160: 15.4 | Z160: 0.4319654428 | AA160: 39 | AB160: 1.083453717 | AC160: 1.01 | AD160: 0.02060930071 | AE160: 38.6 | AF160: 0.3625468446 | AG160: 24.6 | AH160: 0.2937453729 | AI160: 25.5 | AJ160: 0.3249276877 | AK160: 129.2 | AL160: 1.063759715 | AM160: 43.8 | AN160: 0.5230787604 | AO160: 133.384221 | AP160: 0.9554526093 | AQ160: 201.4203372 | AR160: 1.103752406 | AS160: 411.2790252 | AT160: 1.368322011 | AU160: 246.524557 | AV160: 1.022957166 | AW160: 273.5352545 | AX160: 1.498825876 | AY160: 271.182644 | AZ160: 1.084055432 | BA160: 351.7567363 | BB160: 1.363618876 | BC160: 412.1093647 | BD160: 1.940639379 | BE160: 1001.720007 | BF160: 3.092345311 | BG160: 297.5620876 | BH160: =BG160/BG$170*100 -> 1.008572114 | BI160: 290.4827907 | BJ160: =BI160/BI$170*100 -> 1.627307339 | BK160: 296.6994921 | BL160: =BK160/BK$170*100 -> 1.09121575 | BM160: 504.6000534 | BN160: =BM160/BM$170*100 -> 1.968592757 | BO160: 583.7038787 | BP160: =BO160/BO$170*100 -> 2.681313226 | BQ160: 930.2926884 | BR160: =BQ160/BQ$170*100 -> 1.923903755 | BS160: 223.9353056 | BT160: =BS160/BS$170*100 -> 0.7378116906 | BU160: 325.2849398 | BV160: =BU160/BU$170*100 -> 0.9049808687 | BW160: 296.5133674 | BX160: =BW160/BW$170*100 -> 0.9506852679 | BY160: 479.3342013 | BZ160: =BY160/BY$170*100 -> 1.409076555 | CA160: 591.4735 | CB160: =CA160/CA$170*100 -> 1.734477109 | CC160: 664.1432219 | CD160: =CC160/CC$170*100 -> 1.918541562 | CE160: 160.8540919 | CF160: =CE160/CE$170*100 -> 0.5701785433 | CG160: 471.2875509 | CH160: =CG160/CG$170*100 -> 1.407369114 | CI160: 456.2776594 | CJ160: =CI160/CI$170*100 -> 1.257001813 | CK160: 1019.475594 | CL160: =CK160/CK$170*100 -> 2.809859931 | CM160: 578.9732714 | CN160: =CM160/CM$170*100 -> 1.861870396
B161: San Luis Potosí | C161: nd | D161: nd | E161: nd | F161: nd | G161: nd | H161: nd | I161: nd | J161: nd | K161: nd | L161: nd | M161: nd | N161: nd | O161: nd | P161: nd | Q161: nd | R161: nd | S161: nd | T161: nd | U161: 23.8 | V161: 0.9521142537 | W161: 14 | X161: 0.3760913365 | Y161: 25.2 | Z161: 0.7068525427 | AA161: 3.4 | AB161: 0.09445493944 | AC161: 78.1 | AD161: 1.593649887 | AE161: 14.8 | AF161: 0.1390075985 | AG161: 135.3 | AH161: 1.615599551 | AI161: 89.1 | AJ161: 1.135335567 | AK161: 1.1 | AL161: 0.009056777763 | AM161: 6.1 | AN161: 0.07284886845 | AO161: 255.417118 | AP161: 1.82959386 | AQ161: 312.281535 | AR161: 1.711254685 | AS161: 429.456201 | AT161: 1.428797329 | AU161: 265.304132 | AV161: 1.100883281 | AW161: 444.802608 | AX161: 2.437278734 | AY161: 292.248836 | AZ161: 1.168267753 | BA161: 462.367013 | BB161: 1.79241027 | BC161: 198.717272 | BD161: 0.9357675323 | BE161: 523.921987 | BF161: 1.61736582 | BG161: 460.727327 | BH161: =BG161/BG$170*100 -> 1.561612697 | BI161: 85.025897 | BJ161: =BI161/BI$170*100 -> 0.4763217326 | BK161: 473.494727 | BL161: =BK161/BK$170*100 -> 1.74144182 | BM161: 268.2640268 | BN161: =BM161/BM$170*100 -> 1.046576624 | BO161: 880.3243566 | BP161: =BO161/BO$170*100 -> 4.043874688 | BQ161: 2008.126459 | BR161: =BQ161/BQ$170*100 -> 4.152931742 | BS161: 1064.819352 | BT161: =BS161/BS$170*100 -> 3.508317568 | BU161: 1899.056326 | BV161: =BU161/BU$170*100 -> 5.283397519 | BW161: 814.9289544 | BX161: =BW161/BW$170*100 -> 2.612836508 | BY161: 1405.862446 | BZ161: =BY161/BY$170*100 -> 4.132748729 | CA161: 1766.425384 | CB161: =CA161/CA$170*100 -> 5.179985906 | CC161: 853.8282108 | CD161: =CC161/CC$170*100 -> 2.466493454 | CE161: 913.2152233 | CF161: =CE161/CE$170*100 -> 3.237068574 | CG161: 702.3223746 | CH161: =CG161/CG$170*100 -> 2.097290319 | CI161: 323.1358434 | CJ161: =CI161/CI$170*100 -> 0.8902086978 | CK161: 1115.659439 | CL161: =CK161/CK$170*100 -> 3.07496008 | CM161: 1064.234274 | CN161: =CM161/CM$170*100 -> 3.422379558
B162: Sinaloa | C162: nd | D162: nd | E162: nd | F162: nd | G162: nd | H162: nd | I162: nd | J162: nd | K162: nd | L162: nd | M162: nd | N162: nd | O162: nd | P162: nd | Q162: nd | R162: nd | S162: nd | T162: nd | U162: 3.4 | V162: 0.136016322 | W162: 5.6 | X162: 0.1504365346 | Y162: 25.4 | Z162: 0.7124624835 | AA162: 1.8 | AB162: 0.05000555617 | AC162: 0.8 | AD162: 0.01632419858 | AE162: 46.2 | AF162: 0.4339291249 | AG162: 94.1 | AH162: 1.123635756 | AI162: 28.7 | AJ162: 0.3657029269 | AK162: 36 | AL162: 0.2964036359 | AM162: 13.6 | AN162: 0.1624171493 | AO162: 81.125646 | AP162: 0.5811160388 | AQ162: 31.74318307 | AR162: 0.1739477512 | AS162: 387.1472791 | AT162: 1.288035886 | AU162: 149.9335197 | AV162: 0.6221512792 | AW162: 140.3619506 | AX162: 0.7691078944 | AY162: 234.5691879 | AZ162: 0.9376927616 | BA162: 104.7665836 | BB162: 0.4061377547 | BC162: 146.6563713 | BD162: 0.6906106814 | BE162: 278.2076613 | BF162: 0.8588369514 | BG162: 175.9162188 | BH162: =BG162/BG$170*100 -> 0.5962594027 | BI162: 149.9618404 | BJ162: =BI162/BI$170*100 -> 0.8400979721 | BK162: 217.6156725 | BL162: =BK162/BK$170*100 -> 0.8003574513 | BM162: 230.9441679 | BN162: =BM162/BM$170*100 -> 0.9009809119 | BO162: 432.5046789 | BP162: =BO162/BO$170*100 -> 1.986761709 | BQ162: 605.4279996 | BR162: =BQ162/BQ$170*100 -> 1.252063159 | BS162: 399.9885181 | BT162: =BS162/BS$170*100 -> 1.317863675 | BU162: 428.6680565 | BV162: =BU162/BU$170*100 -> 1.192604829 | BW162: 434.8697193 | BX162: =BW162/BW$170*100 -> 1.394285321 | BY162: 761.5658972 | BZ162: =BY162/BY$170*100 -> 2.238740002 | CA162: 414.9616111 | CB162: =CA162/CA$170*100 -> 1.216861644 | CC162: 262.5858449 | CD162: =CC162/CC$170*100 -> 0.7585440014 | CE162: 743.7655045 | CF162: =CE162/CE$170*100 -> 2.636421163 | CG162: 543.325215 | CH162: =CG162/CG$170*100 -> 1.62248955 | CI162: 871.8446717 | CJ162: =CI162/CI$170*100 -> 2.401849642 | CK162: 420.3161175 | CL162: =CK162/CK$170*100 -> 1.158467573 | CM162: 262.8427803 | CN162: =CM162/CM$170*100 -> 0.8452535127
B163: Sonora | C163: nd | D163: nd | E163: nd | F163: nd | G163: nd | H163: nd | I163: nd | J163: nd | K163: nd | L163: nd | M163: nd | N163: nd | O163: nd | P163: nd | Q163: nd | R163: nd | S163: nd | T163: nd | U163: 12.1 | V163: 0.484058087 | W163: 25.1 | X163: 0.674278039 | Y163: 6.7 | Z163: 0.1879330173 | AA163: 11.1 | AB163: 0.3083675964 | AC163: 89.6 | AD163: 1.828310241 | AE163: 107.1 | AF163: 1.005926608 | AG163: 155.4 | AH163: 1.855611014 | AI163: 108.3 | AJ163: 1.379987003 | AK163: 159.7 | AL163: 1.314879463 | AM163: 171.1 | AN163: 2.043351048 | AO163: 321.3973149 | AP163: 2.302220614 | AQ163: 651.091086 | AR163: 3.567878809 | AS163: 513.823934 | AT163: 1.709488098 | AU163: 671.0869954 | AV163: 2.784685062 | AW163: 586.2905776 | AX163: 3.212556607 | AY163: 1265.902754 | AZ163: 5.06045939 | BA163: 656.0542571 | BB163: 2.543257532 | BC163: 458.7630341 | BD163: 2.160333362 | BE163: 961.136627 | BF163: 2.967062973 | BG163: 1577.22335 | BH163: =BG163/BG$170*100 -> 5.345921253 | BI163: 358.4186978 | BJ163: =BI163/BI$170*100 -> 2.00788961 | BK163: 1109.37024 | BL163: =BK163/BK$170*100 -> 4.080095555 | BM163: 304.1383039 | BN163: =BM163/BM$170*100 -> 1.186532697 | BO163: 1172.855866 | BP163: =BO163/BO$170*100 -> 5.387652988 | BQ163: 2088.716284 | BR163: =BQ163/BQ$170*100 -> 4.319596565 | BS163: 815.2924712 | BT163: =BS163/BS$170*100 -> 2.686187937 | BU163: 609.9534083 | BV163: =BU163/BU$170*100 -> 1.696961948 | BW163: 506.3913493 | BX163: =BW163/BW$170*100 -> 1.623598962 | BY163: 368.1286512 | BZ163: =BY163/BY$170*100 -> 1.082170749 | CA163: 155.0995603 | CB163: =CA163/CA$170*100 -> 0.4548244967 | CC163: 449.6398056 | CD163: =CC163/CC$170*100 -> 1.298895519 | CE163: 582.332223 | CF163: =CE163/CE$170*100 -> 2.064189569 | CG163: 899.240062 | CH163: =CG163/CG$170*100 -> 2.685330192 | CI163: 464.1839759 | CJ163: =CI163/CI$170*100 -> 1.278782967 | CK163: 2711.752757 | CL163: =CK163/CK$170*100 -> 7.474083205 | CM163: 105.0031041 | CN163: =CM163/CM$170*100 -> 0.3376704603
B164: Tabasco | C164: nd | D164: nd | E164: nd | F164: nd | G164: nd | H164: nd | I164: nd | J164: nd | K164: nd | L164: nd | M164: nd | N164: nd | O164: nd | P164: nd | Q164: nd | R164: nd | S164: nd | T164: nd | U164: 0 | V164: 0 | W164: 0 | X164: 0 | Y164: 0 | Z164: 0 | AA164: 1.6 | AB164: 0.04444938326 | AC164: 2.5 | AD164: 0.05101312057 | AE164: 0.6 | AF164: 0.005635443181 | AG164: 1.2 | AH164: 0.01432904258 | AI164: 0 | AJ164: 0 | AK164: 7.6 | AL164: 0.06257410091 | AM164: 0.4 | AN164: 0.004776974981 | AO164: 32.160021 | AP164: 0.2303673984 | AQ164: 79.638677 | AR164: 0.4364076765 | AS164: 231.553504 | AT164: 0.7703766466 | AU164: 201.495179 | AV164: 0.83610712 | AW164: 140.3494706 | AX164: 0.769039511 | AY164: 284.450151 | AZ164: 1.137092429 | BA164: 158.086737 | BB164: 0.612838466 | BC164: 82.408777 | BD164: 0.3880662064 | BE164: 179.600399 | BF164: 0.5544328235 | BG164: 135.0834019 | BH164: =BG164/BG$170*100 -> 0.4578585709 | BI164: 90.36613927 | BJ164: =BI164/BI$170*100 -> 0.5062381879 | BK164: 141.2624873 | BL164: =BK164/BK$170*100 -> 0.5195420118 | BM164: 233.2425913 | BN164: =BM164/BM$170*100 -> 0.9099477355 | BO164: 325.4679448 | BP164: =BO164/BO$170*100 -> 1.495075734 | BQ164: 323.9347567 | BR164: =BQ164/BQ$170*100 -> 0.6699174386 | BS164: 241.6646183 | BT164: =BS164/BS$170*100 -> 0.7962254105 | BU164: 737.4853953 | BV164: =BU164/BU$170*100 -> 2.0517709 | BW164: 112.7536675 | BX164: =BW164/BW$170*100 -> 0.3615123716 | BY164: 400.3783564 | BZ164: =BY164/BY$170*100 -> 1.176973714 | CA164: 530.2928506 | CB164: =CA164/CA$170*100 -> 1.555066813 | CC164: 490.5901884 | CD164: =CC164/CC$170*100 -> 1.417190804 | CE164: 464.8217699 | CF164: =CE164/CE$170*100 -> 1.647650965 | CG164: 300.413416 | CH164: =CG164/CG$170*100 -> 0.8971010635 | CI164: 27.25821882 | CJ164: =CI164/CI$170*100 -> 0.07509381571 | CK164: 317.8794408 | CL164: =CK164/CK$170*100 -> 0.8761334834 | CM164: 390.8937523 | CN164: =CM164/CM$170*100 -> 1.257041631
B165: Tamaulipas | C165: nd | D165: nd | E165: nd | F165: nd | G165: nd | H165: nd | I165: nd | J165: nd | K165: nd | L165: nd | M165: nd | N165: nd | O165: nd | P165: nd | Q165: nd | R165: nd | S165: nd | T165: nd | U165: 112.6 | V165: 4.504540545 | W165: 4.38 | X165: 0.117662861 | Y165: 60.8 | Z165: 1.705422008 | AA165: 37.5 | AB165: 1.04178242 | AC165: 52.9 | AD165: 1.079437631 | AE165: 362.4 | AF165: 3.403807681 | AG165: 393.7 | AH165: 4.701120053 | AI165: 334.3 | AJ165: 4.259738274 | AK165: 283.7 | AL165: 2.335825319 | AM165: 345.7 | AN165: 4.128500627 | AO165: 582.576922 | AP165: 4.173092109 | AQ165: 1017.561787 | AR165: 5.576081772 | AS165: 973.1262403 | AT165: 3.23758318 | AU165: 1097.123938 | AV165: 4.552531434 | AW165: 1011.52508 | AX165: 5.542612661 | AY165: 785.717812 | AZ165: 3.140915103 | BA165: 967.8063617 | BB165: 3.751794599 | BC165: 854.093666 | BD165: 4.021961021 | BE165: 877.436518 | BF165: 2.708677758 | BG165: 932.4279434 | BH165: =BG165/BG$170*100 -> 3.160418821 | BI165: 603.1635742 | BJ165: =BI165/BI$170*100 -> 3.378969571 | BK165: 1035.875733 | BL165: =BK165/BK$170*100 -> 3.809793897 | BM165: 842.8687682 | BN165: =BM165/BM$170*100 -> 3.288278194 | BO165: 1051.421968 | BP165: =BO165/BO$170*100 -> 4.829831925 | BQ165: 1732.418431 | BR165: =BQ165/BQ$170*100 -> 3.58275021 | BS165: 723.8956521 | BT165: =BS165/BS$170*100 -> 2.385057923 | BU165: 1103.242395 | BV165: =BU165/BU$170*100 -> 3.069349787 | BW165: 1149.501229 | BX165: =BW165/BW$170*100 -> 3.685546771 | BY165: 1543.211227 | BZ165: =BY165/BY$170*100 -> 4.536506582 | CA165: 1514.463468 | CB165: =CA165/CA$170*100 -> 4.441115651 | CC165: 1629.863377 | CD165: =CC165/CC$170*100 -> 4.708262506 | CE165: 707.6998916 | CF165: =CE165/CE$170*100 -> 2.508579599 | CG165: 1273.208975 | CH165: =CG165/CG$170*100 -> 3.802084277 | CI165: 979.2401151 | CJ165: =CI165/CI$170*100 -> 2.697713935 | CK165: 493.7517574 | CL165: =CK165/CK$170*100 -> 1.360869536 | CM165: 341.6891778 | CN165: =CM165/CM$170*100 -> 1.098808867
B166: Tlaxcala | C166: nd | D166: nd | E166: nd | F166: nd | G166: nd | H166: nd | I166: nd | J166: nd | K166: nd | L166: nd | M166: nd | N166: nd | O166: nd | P166: nd | Q166: nd | R166: nd | S166: nd | T166: nd | U166: 12.6 | V166: 0.5040604873 | W166: 5.4 | X166: 0.1450638012 | Y166: 1.1 | Z166: 0.03085467448 | AA166: 0 | AB166: 0 | AC166: 2 | AD166: 0.04081049646 | AE166: 19.3 | AF166: 0.1812734223 | AG166: 11.2 | AH166: 0.1337377308 | AI166: 7.3 | AJ166: 0.09301851451 | AK166: 3.9 | AL166: 0.03211039389 | AM166: 8.8 | AN166: 0.1050934496 | AO166: 55.006034 | AP166: 0.3940170607 | AQ166: 56.027533 | AR166: 0.3070222462 | AS166: 84.614862 | AT166: 0.2815129658 | AU166: 134.545704 | AV166: 0.5582993183 | AW166: 202.190724 | AX166: 1.107896274 | AY166: 318.045857 | AZ166: 1.271391612 | BA166: 194.353854 | BB166: 0.753431439 | BC166: 242.225978 | BD166: 1.140651758 | BE166: 92.695589 | BF166: 0.2861545822 | BG166: 123.709811 | BH166: =BG166/BG$170*100 -> 0.419308342 | BI166: 72.191991 | BJ166: =BI166/BI$170*100 -> 0.4044251863 | BK166: 91.1712334 | BL166: =BK166/BK$170*100 -> 0.3353139742 | BM166: 251.2297042 | BN166: =BM166/BM$170*100 -> 0.9801207367 | BO166: 79.50908357 | BP166: =BO166/BO$170*100 -> 0.3652344367 | BQ166: 80.73515841 | BR166: =BQ166/BQ$170*100 -> 0.1669653824 | BS166: 120.7129363 | BT166: =BS166/BS$170*100 -> 0.3977194012 | BU166: 152.5185184 | BV166: =BU166/BU$170*100 -> 0.4243244134 | BW166: 253.119961 | BX166: =BW166/BW$170*100 -> 0.811556727 | BY166: 168.048451 | BZ166: =BY166/BY$170*100 -> 0.4940042496 | CA166: 143.0563367 | CB166: =CA166/CA$170*100 -> 0.4195081289 | CC166: 345.7211787 | CD166: =CC166/CC$170*100 -> 0.9987009254 | CE166: 359.7538334 | CF166: =CE166/CE$170*100 -> 1.275217275 | CG166: 50.80516687 | CH166: =CG166/CG$170*100 -> 0.1517154921 | CI166: 275.0260216 | CJ166: =CI166/CI$170*100 -> 0.7576706871 | CK166: 311.3567795 | CL166: =CK166/CK$170*100 -> 0.858155844 | CM166: 69.66625764 | CN166: =CM166/CM$170*100 -> 0.2240337319
B167: Veracruz de Ignacio de la Llave | C167: nd | D167: nd | E167: nd | F167: nd | G167: nd | H167: nd | I167: nd | J167: nd | K167: nd | L167: nd | M167: nd | N167: nd | O167: nd | P167: nd | Q167: nd | R167: nd | S167: nd | T167: nd | U167: 4.3 | V167: 0.1720206425 | W167: 10.3 | X167: 0.276695769 | Y167: 63.2 | Z167: 1.772741298 | AA167: 9.6 | AB167: 0.2666962996 | AC167: 152.8 | AD167: 3.11792193 | AE167: 10.2 | AF167: 0.09580253407 | AG167: 29 | AH167: 0.3462851957 | AI167: 10.4 | AJ167: 0.1325195275 | AK167: 3.7 | AL167: 0.03046370702 | AM167: 38.2 | AN167: 0.4562011106 | AO167: 56.007422 | AP167: 0.4011901639 | AQ167: 311.501464 | AR167: 1.706980016 | AS167: 796.567839 | AT167: 2.650174798 | AU167: 640.317856 | AV167: 2.657008079 | AW167: 473.222924 | AX167: 2.59300676 | AY167: 652.4933724 | AZ167: 2.608349024 | BA167: 484.710835 | BB167: 1.879028249 | BC167: 252.740391 | BD167: 1.190164547 | BE167: 577.9367113 | BF167: 1.784111196 | BG167: 607.7801862 | BH167: =BG167/BG$170*100 -> 2.060041157 | BI167: 518.4131771 | BJ167: =BI167/BI$170*100 -> 2.90419121 | BK167: 1230.772751 | BL167: =BK167/BK$170*100 -> 4.526595583 | BM167: 1189.117356 | BN167: =BM167/BM$170*100 -> 4.639095456 | BO167: 1061.320845 | BP167: =BO167/BO$170*100 -> 4.875303594 | BQ167: 1702.750026 | BR167: =BQ167/BQ$170*100 -> 3.521394083 | BS167: 1271.254203 | BT167: =BS167/BS$170*100 -> 4.188469567 | BU167: 1589.121548 | BV167: =BU167/BU$170*100 -> 4.421122599 | BW167: 1045.512964 | BX167: =BW167/BW$170*100 -> 3.352138156 | BY167: 914.9217883 | BZ167: =BY167/BY$170*100 -> 2.689553213 | CA167: 962.0664319 | CB167: =CA167/CA$170*100 -> 2.821229021 | CC167: 1080.613338 | CD167: =CC167/CC$170*100 -> 3.12161825 | CE167: 1000.696635 | CF167: =CE167/CE$170*100 -> 3.547163415 | CG167: 935.3469883 | CH167: =CG167/CG$170*100 -> 2.793153479 | CI167: 0.007907561991 | CJ167: =CI167/CI$170*100 -> 2.178458567e-05 | CK167: 803.3872218 | CL167: =CK167/CK$170*100 -> 2.214281123 | CM167: 361.2842842 | CN167: =CM167/CM$170*100 -> 1.161823086
B168: Yucatán | C168: nd | D168: nd | E168: nd | F168: nd | G168: nd | H168: nd | I168: nd | J168: nd | K168: nd | L168: nd | M168: nd | N168: nd | O168: nd | P168: nd | Q168: nd | R168: nd | S168: nd | T168: nd | U168: 44.3 | V168: 1.772212666 | W168: 5.6 | X168: 0.1504365346 | Y168: 1.6 | Z168: 0.04487952652 | AA168: 7 | AB168: 0.1944660518 | AC168: 1.9 | AD168: 0.03876997164 | AE168: 48.1 | AF168: 0.451774695 | AG168: 19.8 | AH168: 0.2364292026 | AI168: 48.6 | AJ168: 0.6192739459 | AK168: 14.2 | AL168: 0.1169147675 | AM168: 31 | AN168: 0.370215561 | AO168: 64.12119901 | AP168: 0.4593104525 | AQ168: 82.88950203 | AR168: 0.4542216967 | AS168: 228.9732465 | AT168: 0.7617921505 | AU168: 212.4142565 | AV168: 0.8814159879 | AW168: 194.4810556 | AX168: 1.065651443 | AY168: 184.3538557 | AZ168: 0.7369564505 | BA168: 91.23024645 | BB168: 0.3536628395 | BC168: 105.3094414 | BD168: 0.4959063453 | BE168: 192.9766391 | BF168: 0.5957257529 | BG168: 146.0968711 | BH168: =BG168/BG$170*100 -> 0.495188185 | BI168: 79.87859641 | BJ168: =BI168/BI$170*100 -> 0.4474861516 | BK168: 94.81755758 | BL168: =BK168/BK$170*100 -> 0.3487246017 | BM168: 165.5354327 | BN168: =BM168/BM$170*100 -> 0.6458022579 | BO168: 127.9209779 | BP168: =BO168/BO$170*100 -> 0.5876202345 | BQ168: 516.6635074 | BR168: =BQ168/BQ$170*100 -> 1.068492609 | BS168: 86.08559134 | BT168: =BS168/BS$170*100 -> 0.283630826 | BU168: 213.4897891 | BV168: =BU168/BU$170*100 -> 0.5939536424 | BW168: 125.1417127 | BX168: =BW168/BW$170*100 -> 0.4012310935 | BY168: 107.842177 | BZ168: =BY168/BY$170*100 -> 0.3170186538 | CA168: 86.01460711 | CB168: =CA168/CA$170*100 -> 0.2522350825 | CC168: 159.9513485 | CD168: =CC168/CC$170*100 -> 0.4620589353 | CE168: 151.6577699 | CF168: =CE168/CE$170*100 -> 0.5375803954 | CG168: 145.545818 | CH168: =CG168/CG$170*100 -> 0.434632081 | CI168: 547.3720942 | CJ168: =CI168/CI$170*100 -> 1.507958368 | CK168: 199.548485 | CL168: =CK168/CK$170*100 -> 0.5499918739 | CM168: 98.76019344 | CN168: =CM168/CM$170*100 -> 0.3175944202
B169: Zacatecas | C169: nd | D169: nd | E169: nd | F169: nd | G169: nd | H169: nd | I169: nd | J169: nd | K169: nd | L169: nd | M169: nd | N169: nd | O169: nd | P169: nd | Q169: nd | R169: nd | S169: nd | T169: nd | U169: 0 | V169: 0 | W169: 0 | X169: 0 | Y169: 0.2 | Z169: 0.005609940815 | AA169: 6.2 | AB169: 0.1722413602 | AC169: 0.7 | AD169: 0.01428367376 | AE169: 13.8 | AF169: 0.1296151932 | AG169: 12.2 | AH169: 0.1456785996 | AI169: 11.1 | AJ169: 0.1414391111 | AK169: 13.6 | AL169: 0.1119747069 | AM169: 13.6 | AN169: 0.1624171493 | AO169: 30.590731 | AP169: 0.2191263219 | AQ169: 47.210349 | AR169: 0.2587054367 | AS169: 62.048525 | AT169: 0.2064349439 | AU169: 209.981412 | AV169: 0.8713208649 | AW169: 119.206368 | AX169: 0.6531866956 | AY169: 233.778092 | AZ169: 0.9345303475 | BA169: -33.800504 | BB169: -0.1310309101 | BC169: 97.132104 | BD169: 0.4573989384 | BE169: 867.519411 | BF169: 2.678063296 | BG169: 1836.462303 | BH169: =BG169/BG$170*100 -> 6.22459898 | BI169: 301.516316 | BJ169: =BI169/BI$170*100 -> 1.689118011 | BK169: 381.918385 | BL169: =BK169/BK$170*100 -> 1.404637918 | BM169: 466.7329255 | BN169: =BM169/BM$170*100 -> 1.820861989 | BO169: 754.3879178 | BP169: =BO169/BO$170*100 -> 3.465370671 | BQ169: 3973.158215 | BR169: =BQ169/BQ$170*100 -> 8.21674093 | BS169: 758.9138019 | BT169: =BS169/BS$170*100 -> 2.500434104 | BU169: 107.5754891 | BV169: =BU169/BU$170*100 -> 0.2992876326 | BW169: 532.6161787 | BX169: =BW169/BW$170*100 -> 1.707681374 | BY169: 457.6370232 | BZ169: =BY169/BY$170*100 -> 1.345294365 | CA169: 301.735376 | CB169: =CA169/CA$170*100 -> 0.8848293335 | CC169: 746.4906225 | CD169: =CC169/CC$170*100 -> 2.156422347 | CE169: -405.5288343 | CF169: =CE169/CE$170*100 -> -1.437475648 | CG169: 1320.209359 | CH169: =CG169/CG$170*100 -> 3.942437845 | CI169: 8.704230122 | CJ169: =CI169/CI$170*100 -> 0.02397933105 | CK169: 641.9358122 | CL169: =CK169/CK$170*100 -> 1.76929171 | CM169: 72.88250504 | CN169: =CM169/CM$170*100 -> 0.2343765856
B170: Total | C170: 1622.6 | D170: 100 | E170: 1701.1 | F170: 100 | G170: 626.5 | H170: 100 | I170: 683.7 | J170: 100 | K170: 1429.8 | L170: 100 | M170: 1729 | N170: 100 | O170: 2424.2 | P170: 100 | Q170: 3877.2 | R170: 100 | S170: 3157.1 | T170: 100 | U170: 2499.7 | V170: 100 | W170: 3722.5 | X170: 100 | Y170: 3565.1 | Z170: 100 | AA170: 3599.6 | AB170: 100 | AC170: 4900.7 | AD170: 100 | AE170: 10646.9 | AF170: 100 | AG170: 8374.6 | AH170: 100 | AI170: 7847.9 | AJ170: 100 | AK170: 12145.6 | AL170: 100 | AM170: 8373.5 | AN170: 100 | AO170: 13960.31783 | AP170: 100 | AQ170: 18248.68839 | AR170: 100 | AS170: 30057.18112 | AT170: 100 | AU170: 24099.20621 | AV170: 100 | AW170: 18249.96878 | AX170: 100 | AY170: 25015.56987 | AZ170: 100 | BA170: 25795.8248 | BB170: 100 | BC170: 21235.75195 | BD170: 100 | BE170: 32393.53649 | BF170: 100 | BG170: 29503.30309 | BH170: =BG170/BG$170*100 -> 100 | BI170: 17850.51808 | BJ170: =BI170/BI$170*100 -> 100 | BK170: 27189.81027 | BL170: =BK170/BK$170*100 -> 100 | BM170: 25632.52616 | BN170: =BM170/BM$170*100 -> 100 | BO170: 21769.32829 | BP170: =BO170/BO$170*100 -> 100 | BQ170: 48354.42968 | BR170: =BQ170/BQ$170*100 -> 100 | BS170: 30351.28183 | BT170: =BS170/BS$170*100 -> 100 | BU170: 35943.84711 | BV170: =BU170/BU$170*100 -> 100 | BW170: 31189.43539 | BX170: =BW170/BW$170*100 -> 100 | BY170: 34017.61243 | BZ170: =BY170/BY$170*100 -> 100 | CA170: 34100.96893 | CB170: =CA170/CA$170*100 -> 100 | CC170: 34617.08805 | CD170: =CC170/CC$170*100 -> 100 | CE170: 28211.17942 | CF170: =CE170/CE$170*100 -> 100 | CG170: 33487.13185 | CH170: =CG170/CG$170*100 -> 100 | CI170: 36298.88634 | CJ170: =CI170/CI$170*100 -> 100 | CK170: 36282.07879 | CL170: =CK170/CK$170*100 -> 100 | CM170: 31096.32511 | CN170: =CM170/CM$170*100 -> 100
B171: * La diferencia entre el total de IED publicado por la Secretaría de Economía y la desagregación por país de origen, se debe a que esta última sólo incuye las nuevas inversiones reportadas al RNIE más el valor de la importación temporal de maquinaria y equipo de empresas maquiladoras.
B172: ** De 1999 a 2005 los datos no cambian
B173: nd: Dato no disponible
B174: Fuente: Secretaría de Economía

Sheet Inward
A1: INWARD O IED RECIBIDA A NIVEL INTERNACIONAL
A6: CONTENIDO
A7: * Nota Metodológica
A8: * Principales países receptores de IED
A9: * Participación de la IED recibida por México respecto al total mundial
A10: * Participación de la IED recibida por México respecto a los países en desarrollo y Latinoamérica
A11: * Acervos de IED
A29: Principales países receptores de IED (millones de dólares/participación porcentual)
B33: País receptor | C33: 1996 | E33: 1997 | G33: 1998 | I33: 1999 | K33: 2000 | M33: 2001 | O33: 2002 | Q33: 2003 | S33: 2004 | U33: 2005 | W33: 2006 | Y33: 2007 | AA33: 2008 | AC33: 2009 | AE33: 2010 | AG33: 2011 | AI33: 2012 | AK33: 2013 | AM33: 2014 | AO33: 2015 | AQ33: 2016 | AS33: 2017 | AU33: 2018 | AW33: 2019 | AY33: 2020 | BA33: 2021 | BC33: 2022 | BE33: 2023
